Workbook

Sheet tarifs transporteur
B8: A
E14: de | F14: 1 | G14: 10 | H14: 20 | I14: 30 | J14: 40 | K14: 50 | L14: 60 | M14: 70 | N14: 80 | O14: 90 | P14: 101 | Q14: 111 | R14: 121 | S14: 131 | T14: 141 | U14: 151 | V14: 161 | W14: 171 | X14: 181 | Y14: 191
E15: a | F15: 9 | G15: 19 | H15: 29 | I15: 39 | J15: 49 | K15: 59 | L15: 69 | M15: 79 | N15: 89 | O15: 100 | P15: 110 | Q15: 120 | R15: 130 | S15: 140 | T15: 150 | U15: 160 | V15: 170 | W15: 180 | X15: 190 | Y15: 200
A16: Dpt | B16: Destination | C16: Difficulté | D16: Poids réel
A17: 1 | B17: Ain | D17: Oui | F17: 21.8 | G17: 24.27 | H17: 26.73 | I17: 28.79 | J17: 31.25 | K17: 33.74 | L17: 35.78 | M17: 37.01 | N17: 38.66 | O17: 41.13 | P17: =AC17*1.1 -> 42.988 | Q17: =AC17*1.2 -> 46.896 | R17: =AC17*1.3 -> 50.804 | S17: =AC17*1.4 -> 54.712 | T17: =AC17*1.5 -> 58.62 | U17: =AC17*1.6 -> 62.528 | V17: =AC17*1.4 -> 54.712 | W17: =AC17*1.8 -> 70.344 | X17: =AC17*1.9 -> 74.252 | Y17: =AC17*2 -> 78.16 | AC17: 39.08
A18: 2 | B18: Aisne | D18: Oui | F18: 22.76 | G18: 25.34 | H18: 27.9 | I18: 30.06 | J18: 32.64 | K18: 35.22 | L18: 37.35 | M18: 38.64 | N18: 40.37 | O18: 42.93 | P18: =AC18*1.1 -> 44.869 | Q18: =AC18*1.2 -> 48.948 | R18: =AC18*1.3 -> 53.027 | S18: =AC18*1.4 -> 57.106 | T18: =AC18*1.5 -> 61.185 | U18: =AC18*1.6 -> 65.264 | V18: =AC18*1.4 -> 57.106 | W18: =AC18*1.8 -> 73.422 | X18: =AC18*1.9 -> 77.501 | Y18: =AC18*2 -> 81.58 | AC18: 40.79
A19: 3 | B19: Allier | D19: Oui | F19: 19.01 | G19: 21.17 | H19: 23.31 | I19: 25.1 | J19: 27.26 | K19: 29.4 | L19: 31.2 | M19: 32.28 | N19: 33.72 | O19: 35.85 | P19: 37.488 | Q19: 40.896 | R19: 44.304 | S19: 47.712 | T19: 51.12 | U19: 54.528 | V19: 47.712 | W19: 61.344 | X19: 64.752 | Y19: 68.16 | AC19: 34.08
A20: 4 | B20: Alpes-de-Haute-Provence | D20: Oui | F20: 29.69 | G20: 33.05 | H20: 36.41 | I20: 39.2 | J20: 42.56 | K20: 45.92 | L20: 48.72 | M20: 50.4 | N20: 52.64 | O20: 56.01 | P20: 58.531 | Q20: 63.852 | R20: 69.173 | S20: 74.494 | T20: 79.815 | U20: 85.136 | V20: 74.494 | W20: 95.778 | X20: 101.099 | Y20: 106.42 | AC20: 53.21
A21: 5 | B21: Hautes-Alpes | D21: Oui | F21: 28.4 | G21: 31.61 | H21: 34.83 | I21: 37.5 | J21: 40.71 | K21: 43.94 | L21: 46.61 | M21: 48.23 | N21: 50.36 | O21: 53.58 | P21: 55.99 | Q21: 61.08 | R21: 66.17 | S21: 71.26 | T21: 76.35 | U21: 81.44 | V21: 71.26 | W21: 91.62 | X21: 96.71 | Y21: 101.8 | AC21: 50.9
A22: 6 | B22: Alpes-Maritimes | D22: Oui | F22: 30.3 | G22: 33.74 | H22: 37.16 | I22: 40.02 | J22: 43.44 | K22: 46.88 | L22: 49.74 | M22: 51.45 | N22: 53.73 | O22: 57.17 | P22: 59.73 | Q22: 65.16 | R22: 70.59 | S22: 76.02 | T22: 81.45 | U22: 86.88 | V22: 76.02 | W22: 97.74 | X22: 103.17 | Y22: 108.6 | AC22: 54.3
A23: 7 | B23: Ardèche | D23: Oui | F23: 24.56 | G23: 27.33 | H23: 30.11 | I23: 32.43 | J23: 35.21 | K23: 38 | L23: 40.31 | M23: 41.7 | N23: 43.55 | O23: 46.34 | P23: 48.411 | Q23: 52.812 | R23: 57.213 | S23: 61.614 | T23: 66.015 | U23: 70.416 | V23: 61.614 | W23: 79.218 | X23: 83.619 | Y23: 88.02 | AC23: 44.01
A24: 8 | B24: Ardennes | D24: Oui | F24: 24.87 | G24: 27.68 | H24: 30.48 | I24: 32.84 | J24: 35.66 | K24: 38.46 | L24: 40.8 | M24: 42.23 | N24: 44.1 | O24: 46.91 | P24: 49.027 | Q24: 53.484 | R24: 57.941 | S24: 62.398 | T24: 66.855 | U24: 71.312 | V24: 62.398 | W24: 80.226 | X24: 84.683 | Y24: 89.14 | AC24: 44.57
A25: 9 | B25: Ariège | D25: Oui | F25: 22.97 | G25: 25.56 | H25: 28.16 | I25: 30.32 | J25: 32.93 | K25: 35.51 | L25: 37.68 | M25: 38.99 | N25: 40.71 | O25: 43.32 | P25: 45.265 | Q25: 49.38 | R25: 53.495 | S25: 57.61 | T25: 61.725 | U25: 65.84 | V25: 57.61 | W25: 74.07 | X25: 78.185 | Y25: 82.3 | AC25: 41.15
A26: 10 | B26: Aube | D26: Oui | F26: 20.99 | G26: 23.36 | H26: 25.74 | I26: 27.71 | J26: 30.09 | K26: 32.46 | L26: 34.44 | M26: 35.63 | N26: 37.22 | O26: 39.59 | P26: 41.371 | Q26: 45.132 | R26: 48.893 | S26: 52.654 | T26: 56.415 | U26: 60.176 | V26: 52.654 | W26: 67.698 | X26: 71.459 | Y26: 75.22 | AC26: 37.61
A27: 11 | B27: Aude | D27: Oui | F27: 22.52 | G27: 25.07 | H27: 27.63 | I27: 29.75 | J27: 32.3 | K27: 34.85 | L27: 36.96 | M27: 38.24 | N27: 39.95 | O27: 42.5 | P27: 44.407 | Q27: 48.444 | R27: 52.481 | S27: 56.518 | T27: 60.555 | U27: 64.592 | V27: 56.518 | W27: 72.666 | X27: 76.703 | Y27: 80.74 | AC27: 40.37
A28: 12 | B28: Aveyron | D28: Oui | F28: 20.66 | G28: 23 | H28: 25.34 | I28: 27.29 | J28: 29.63 | K28: 31.95 | L28: 33.9 | M28: 35.07 | N28: 36.63 | O28: 38.97 | P28: 40.722 | Q28: 44.424 | R28: 48.126 | S28: 51.828 | T28: 55.53 | U28: 59.232 | V28: 51.828 | W28: 66.636 | X28: 70.338 | Y28: 74.04 | AC28: 37.02
A29: 13 | B29: Bouches-du-Rhône | D29: Oui | F29: 26.55 | G29: 29.55 | H29: 32.55 | I29: 35.06 | J29: 38.07 | K29: 41.07 | L29: 43.58 | M29: 45.08 | N29: 47.09 | O29: 50.09 | P29: 52.338 | Q29: 57.096 | R29: 61.854 | S29: 66.612 | T29: 71.37 | U29: 76.128 | V29: 66.612 | W29: 85.644 | X29: 90.402 | Y29: 95.16 | AC29: 47.58
A30: 14 | B30: Calvados | D30: Oui | F30: 16.8 | G30: 18.69 | H30: 20.6 | I30: 22.19 | J30: 24.08 | K30: 25.98 | L30: 27.57 | M30: 28.52 | N30: 29.79 | O30: 31.68 | P30: 33.121 | Q30: 36.132 | R30: 39.143 | S30: 42.154 | T30: 45.165 | U30: 48.176 | V30: 42.154 | W30: 54.198 | X30: 57.209 | Y30: 60.22 | AC30: 30.11
A31: 15 | B31: Cantal | D31: Oui | F31: 19.7 | G31: 21.93 | H31: 24.15 | I31: 26.01 | J31: 28.23 | K31: 30.47 | L31: 32.33 | M31: 33.44 | N31: 34.94 | O31: 37.16 | P31: 38.83 | Q31: 42.36 | R31: 45.89 | S31: 49.42 | T31: 52.95 | U31: 56.48 | V31: 49.42 | W31: 63.54 | X31: 67.07 | Y31: 70.6 | AC31: 35.3
A32: 16 | B32: Charente | D32: Oui | F32: 13.94 | G32: 15.51 | H32: 17.09 | I32: 18.41 | J32: 19.98 | K32: 21.56 | L32: 22.86 | M32: 23.66 | N32: 24.71 | O32: 26.28 | P32: 27.478 | Q32: 29.976 | R32: 32.474 | S32: 34.972 | T32: 37.47 | U32: 39.968 | V32: 34.972 | W32: 44.964 | X32: 47.462 | Y32: 49.96 | AC32: 24.98
A33: 17 | B33: Charente-Maritime | D33: Oui | F33: 12.27 | G33: 13.65 | H33: 15.05 | I33: 16.2 | J33: 17.58 | K33: 18.98 | L33: 20.13 | M33: 20.82 | N33: 21.75 | O33: 23.15 | P33: 24.178 | Q33: 26.376 | R33: 28.574 | S33: 30.772 | T33: 32.97 | U33: 35.168 | V33: 30.772 | W33: 39.564 | X33: 41.762 | Y33: 43.96 | AC33: 21.98
A34: 18 | B34: Cher | D34: Oui | F34: 15.53 | G34: 17.28 | H34: 19.04 | I34: 20.51 | J34: 22.26 | K34: 24.02 | L34: 25.49 | M34: 26.36 | N34: 27.53 | O34: 29.3 | P34: 30.613 | Q34: 33.396 | R34: 36.179 | S34: 38.962 | T34: 41.745 | U34: 44.528 | V34: 38.962 | W34: 50.094 | X34: 52.877 | Y34: 55.66 | AC34: 27.83
A35: 19 | B35: Corrèze | D35: Oui | F35: 18.2 | G35: 20.25 | H35: 22.31 | I35: 24.02 | J35: 26.09 | K35: 28.14 | L35: 29.87 | M35: 30.89 | N35: 32.27 | O35: 34.32 | P35: 35.871 | Q35: 39.132 | R35: 42.393 | S35: 45.654 | T35: 48.915 | U35: 52.176 | V35: 45.654 | W35: 58.698 | X35: 61.959 | Y35: 65.22 | AC35: 32.61
A36: 20 | B36: Corse | D36: Oui | F36: 69.02 | G36: 76.83 | H36: 84.65 | I36: 91.16 | J36: 98.97 | K36: 106.79 | L36: 113.3 | M36: 117.21 | N36: 122.42 | O36: 130.23 | P36: 136.092 | Q36: 148.464 | R36: 160.836 | S36: 173.208 | T36: 185.58 | U36: 197.952 | V36: 173.208 | W36: 222.696 | X36: 235.068 | Y36: 247.44 | AC36: 123.72
A37: 21 | B37: Côte-d'Or | D37: Oui | F37: 21.8 | G37: 24.27 | H37: 26.73 | I37: 28.79 | J37: 31.25 | K37: 33.74 | L37: 35.78 | M37: 37.01 | N37: 38.66 | O37: 41.13 | P37: 42.988 | Q37: 46.896 | R37: 50.804 | S37: 54.712 | T37: 58.62 | U37: 62.528 | V37: 54.712 | W37: 70.344 | X37: 74.252 | Y37: 78.16 | AC37: 39.08
A38: 22 | B38: Côtes d'Armor | D38: Oui | F38: 18.17 | G38: 20.22 | H38: 22.29 | I38: 24 | J38: 26.06 | K38: 28.13 | L38: 29.84 | M38: 30.86 | N38: 32.24 | O38: 34.29 | P38: 35.838 | Q38: 39.096 | R38: 42.354 | S38: 45.612 | T38: 48.87 | U38: 52.128 | V38: 45.612 | W38: 58.644 | X38: 61.902 | Y38: 65.16 | AC38: 32.58
A39: 23 | B39: Creuse | D39: Oui | F39: 17.69 | G39: 19.68 | H39: 21.69 | I39: 23.36 | J39: 25.37 | K39: 27.36 | L39: 29.03 | M39: 30.03 | N39: 31.37 | O39: 33.36 | P39: 34.87 | Q39: 38.04 | R39: 41.21 | S39: 44.38 | T39: 47.55 | U39: 50.72 | V39: 44.38 | W39: 57.06 | X39: 60.23 | Y39: 63.4 | AC39: 31.7
A40: 24 | B40: Dordogne | D40: Oui | F40: 16.01 | G40: 17.82 | H40: 19.65 | I40: 21.15 | J40: 22.97 | K40: 24.78 | L40: 26.3 | M40: 27.2 | N40: 28.41 | O40: 30.21 | P40: 31.581 | Q40: 34.452 | R40: 37.323 | S40: 40.194 | T40: 43.065 | U40: 45.936 | V40: 40.194 | W40: 51.678 | X40: 54.549 | Y40: 57.42 | AC40: 28.71
A41: 25 | B41: Doubs | D41: Oui | F41: 23.24 | G41: 25.88 | H41: 28.52 | I41: 30.71 | J41: 33.35 | K41: 35.97 | L41: 38.16 | M41: 39.48 | N41: 41.22 | O41: 43.86 | P41: 45.837 | Q41: 50.004 | R41: 54.171 | S41: 58.338 | T41: 62.505 | U41: 66.672 | V41: 58.338 | W41: 75.006 | X41: 79.173 | Y41: 83.34 | AC41: 41.67
A42: 26 | B42: Drôme | D42: Oui | F42: 22.88 | G42: 25.47 | H42: 28.07 | I42: 30.23 | J42: 32.82 | K42: 35.4 | L42: 37.56 | M42: 38.85 | N42: 40.59 | O42: 43.17 | P42: 45.133 | Q42: 49.236 | R42: 53.339 | S42: 57.442 | T42: 61.545 | U42: 65.648 | V42: 57.442 | W42: 73.854 | X42: 77.957 | Y42: 82.06 | AC42: 41.03
A43: 27 | B43: Eure | D43: Oui | F43: 17.69 | G43: 19.68 | H43: 21.69 | I43: 23.36 | J43: 25.37 | K43: 27.36 | L43: 29.03 | M43: 30.03 | N43: 31.37 | O43: 33.36 | P43: 34.87 | Q43: 38.04 | R43: 41.21 | S43: 44.38 | T43: 47.55 | U43: 50.72 | V43: 44.38 | W43: 57.06 | X43: 60.23 | Y43: 63.4 | AC43: 31.7
A44: 28 | B44: Eure-et-Loir | D44: Oui | F44: 18.15 | G44: 20.21 | H44: 22.26 | I44: 23.97 | J44: 26.04 | K44: 28.08 | L44: 29.81 | M44: 30.83 | N44: 32.21 | O44: 34.26 | P44: 35.794 | Q44: 39.048 | R44: 42.302 | S44: 45.556 | T44: 48.81 | U44: 52.064 | V44: 45.556 | W44: 58.572 | X44: 61.826 | Y44: 65.08 | AC44: 32.54
A45: 29 | B45: Finistère | D45: Oui | F45: 18.83 | G45: 20.96 | H45: 23.09 | I45: 24.87 | J45: 26.99 | K45: 29.13 | L45: 30.9 | M45: 31.97 | N45: 33.39 | O45: 35.51 | P45: 37.125 | Q45: 40.5 | R45: 43.875 | S45: 47.25 | T45: 50.625 | U45: 54 | V45: 47.25 | W45: 60.75 | X45: 64.125 | Y45: 67.5 | AC45: 33.75
A46: 30 | B46: Gard | D46: Oui | F46: 23.22 | G46: 25.86 | H46: 28.49 | I46: 30.68 | J46: 33.32 | K46: 35.94 | L46: 38.13 | M46: 39.45 | N46: 41.19 | O46: 43.83 | P46: 45.793 | Q46: 49.956 | R46: 54.119 | S46: 58.282 | T46: 62.445 | U46: 66.608 | V46: 58.282 | W46: 74.934 | X46: 79.097 | Y46: 83.26 | AC46: 41.63
A47: 31 | B47: Haute-Garonne | D47: Oui | F47: 19.01 | G47: 21.17 | H47: 23.31 | I47: 25.1 | J47: 27.26 | K47: 29.4 | L47: 31.2 | M47: 32.28 | N47: 33.72 | O47: 35.85 | P47: 37.488 | Q47: 40.896 | R47: 44.304 | S47: 47.712 | T47: 51.12 | U47: 54.528 | V47: 47.712 | W47: 61.344 | X47: 64.752 | Y47: 68.16 | AC47: 34.08
A48: 32 | B48: Gers | D48: Oui | F48: 19.38 | G48: 21.59 | H48: 23.78 | I48: 25.61 | J48: 27.8 | K48: 30 | L48: 31.82 | M48: 32.93 | N48: 34.38 | O48: 36.57 | P48: 38.214 | Q48: 41.688 | R48: 45.162 | S48: 48.636 | T48: 52.11 | U48: 55.584 | V48: 48.636 | W48: 62.532 | X48: 66.006 | Y48: 69.48 | AC48: 34.74
A49: 33 | B49: Gironde | D49: Oui | F49: 14.91 | G49: 16.59 | H49: 18.29 | I49: 19.7 | J49: 21.38 | K49: 23.07 | L49: 24.47 | M49: 25.32 | N49: 26.45 | O49: 28.14 | P49: 29.392 | Q49: 32.064 | R49: 34.736 | S49: 37.408 | T49: 40.08 | U49: 42.752 | V49: 37.408 | W49: 48.096 | X49: 50.768 | Y49: 53.44 | AC49: 26.72
A50: 34 | B50: Hérault | D50: Oui | F50: 23.88 | G50: 26.58 | H50: 29.3 | I50: 31.55 | J50: 34.25 | K50: 36.95 | L50: 39.2 | M50: 40.56 | N50: 42.35 | O50: 45.06 | P50: 47.091 | Q50: 51.372 | R50: 55.653 | S50: 59.934 | T50: 64.215 | U50: 68.496 | V50: 59.934 | W50: 77.058 | X50: 81.339 | Y50: 85.62 | AC50: 42.81
A51: 35 | B51: Ille-et-Vilaine | D51: Oui | F51: 16.05 | G51: 17.87 | H51: 19.68 | I51: 21.2 | J51: 23.03 | K51: 24.83 | L51: 26.34 | M51: 27.26 | N51: 28.47 | O51: 30.29 | P51: 31.647 | Q51: 34.524 | R51: 37.401 | S51: 40.278 | T51: 43.155 | U51: 46.032 | V51: 40.278 | W51: 51.786 | X51: 54.663 | Y51: 57.54 | AC51: 28.77
A52: 36 | B52: Indre | D52: Oui | F52: 14.34 | G52: 15.98 | H52: 17.6 | I52: 18.95 | J52: 20.58 | K52: 22.2 | L52: 23.55 | M52: 24.36 | N52: 25.44 | O52: 27.08 | P52: 28.303 | Q52: 30.876 | R52: 33.449 | S52: 36.022 | T52: 38.595 | U52: 41.168 | V52: 36.022 | W52: 46.314 | X52: 48.887 | Y52: 51.46 | AC52: 25.73
A53: 37 | B53: Indre-et-Loire | D53: Oui | F53: 15.6 | G53: 17.37 | H53: 19.14 | I53: 20.6 | J53: 22.37 | K53: 24.14 | L53: 25.61 | M53: 26.49 | N53: 27.66 | O53: 29.43 | P53: 30.756 | Q53: 33.552 | R53: 36.348 | S53: 39.144 | T53: 41.94 | U53: 44.736 | V53: 39.144 | W53: 50.328 | X53: 53.124 | Y53: 55.92 | AC53: 27.96
A54: 38 | B54: Isère | D54: Oui | F54: 24.06 | G54: 26.79 | H54: 29.52 | I54: 31.79 | J54: 34.5 | K54: 37.23 | L54: 39.5 | M54: 40.86 | N54: 42.68 | O54: 45.41 | P54: 47.443 | Q54: 51.756 | R54: 56.069 | S54: 60.382 | T54: 64.695 | U54: 69.008 | V54: 60.382 | W54: 77.634 | X54: 81.947 | Y54: 86.26 | AC54: 43.13
A55: 39 | B55: Jura | D55: Oui | F55: 24.17 | G55: 26.91 | H55: 29.64 | I55: 31.92 | J55: 34.67 | K55: 37.4 | L55: 39.68 | M55: 41.04 | N55: 42.87 | O55: 45.62 | P55: 47.652 | Q55: 51.984 | R55: 56.316 | S55: 60.648 | T55: 64.98 | U55: 69.312 | V55: 60.648 | W55: 77.976 | X55: 82.308 | Y55: 86.64 | AC55: 43.32
A56: 40 | B56: Landes | D56: Oui | F56: 18.17 | G56: 20.22 | H56: 22.29 | I56: 24 | J56: 26.06 | K56: 28.13 | L56: 29.84 | M56: 30.86 | N56: 32.24 | O56: 34.29 | P56: 35.838 | Q56: 39.096 | R56: 42.354 | S56: 45.612 | T56: 48.87 | U56: 52.128 | V56: 45.612 | W56: 58.644 | X56: 61.902 | Y56: 65.16 | AC56: 32.58
A57: 41 | B57: Loir-et-Cher | D57: Oui | F57: 16.67 | G57: 18.56 | H57: 20.45 | I57: 22.02 | J57: 23.9 | K57: 25.79 | L57: 27.36 | M57: 28.31 | N57: 29.57 | O57: 31.44 | P57: 32.868 | Q57: 35.856 | R57: 38.844 | S57: 41.832 | T57: 44.82 | U57: 47.808 | V57: 41.832 | W57: 53.784 | X57: 56.772 | Y57: 59.76 | AC57: 29.88
A58: 42 | B58: Loire | D58: Oui | F58: 21.23 | G58: 23.64 | H58: 26.04 | I58: 28.05 | J58: 30.45 | K58: 32.85 | L58: 34.86 | M58: 36.06 | N58: 37.67 | O58: 40.07 | P58: 41.866 | Q58: 45.672 | R58: 49.478 | S58: 53.284 | T58: 57.09 | U58: 60.896 | V58: 53.284 | W58: 68.508 | X58: 72.314 | Y58: 76.12 | AC58: 38.06
A59: 43 | B59: Haute-Loire | D59: Oui | F59: 22.14 | G59: 24.65 | H59: 27.15 | I59: 29.25 | J59: 31.74 | K59: 34.26 | L59: 36.35 | M59: 37.61 | N59: 39.27 | O59: 41.78 | P59: 43.659 | Q59: 47.628 | R59: 51.597 | S59: 55.566 | T59: 59.535 | U59: 63.504 | V59: 55.566 | W59: 71.442 | X59: 75.411 | Y59: 79.38 | AC59: 39.69
A60: 44 | B60: Loire-Atlantique | D60: Oui | F60: 14.07 | G60: 15.66 | H60: 17.27 | I60: 18.59 | J60: 20.19 | K60: 21.77 | L60: 23.12 | M60: 23.91 | N60: 24.98 | O60: 26.57 | P60: 27.753 | Q60: 30.276 | R60: 32.799 | S60: 35.322 | T60: 37.845 | U60: 40.368 | V60: 35.322 | W60: 45.414 | X60: 47.937 | Y60: 50.46 | AC60: 25.23
A61: 45 | B61: Loiret | D61: Oui | F61: 17.69 | G61: 19.68 | H61: 21.69 | I61: 23.36 | J61: 25.37 | K61: 27.36 | L61: 29.03 | M61: 30.03 | N61: 31.37 | O61: 33.36 | P61: 34.87 | Q61: 38.04 | R61: 41.21 | S61: 44.38 | T61: 47.55 | U61: 50.72 | V61: 44.38 | W61: 57.06 | X61: 60.23 | Y61: 63.4 | AC61: 31.7
A62: 46 | B62: Lot | D62: Oui | F62: 18.92 | G62: 21.06 | H62: 23.19 | I62: 24.99 | J62: 27.12 | K62: 29.27 | L62: 31.05 | M62: 32.12 | N62: 33.54 | O62: 35.69 | P62: 37.29 | Q62: 40.68 | R62: 44.07 | S62: 47.46 | T62: 50.85 | U62: 54.24 | V62: 47.46 | W62: 61.02 | X62: 64.41 | Y62: 67.8 | AC62: 33.9
A63: 47 | B63: Lot-et-Garonne | D63: Oui | F63: 17.7 | G63: 19.71 | H63: 21.71 | I63: 23.39 | J63: 25.38 | K63: 27.39 | L63: 29.06 | M63: 30.06 | N63: 31.4 | O63: 33.41 | P63: 34.903 | Q63: 38.076 | R63: 41.249 | S63: 44.422 | T63: 47.595 | U63: 50.768 | V63: 44.422 | W63: 57.114 | X63: 60.287 | Y63: 63.46 | AC63: 31.73
A64: 48 | B64: Lozère | D64: Oui | F64: 22.22 | G64: 24.72 | H64: 27.24 | I64: 29.34 | J64: 31.86 | K64: 34.37 | L64: 36.47 | M64: 37.73 | N64: 39.39 | O64: 41.91 | P64: 43.813 | Q64: 47.796 | R64: 51.779 | S64: 55.762 | T64: 59.745 | U64: 63.728 | V64: 55.762 | W64: 71.694 | X64: 75.677 | Y64: 79.66 | AC64: 39.83
A65: 49 | B65: Maine-et-Loire | D65: Oui | F65: 14.79 | G65: 16.46 | H65: 18.14 | I65: 19.53 | J65: 21.2 | K65: 22.86 | L65: 24.27 | M65: 25.1 | N65: 26.22 | O65: 27.89 | P65: 29.161 | Q65: 31.812 | R65: 34.463 | S65: 37.114 | T65: 39.765 | U65: 42.416 | V65: 37.114 | W65: 47.718 | X65: 50.369 | Y65: 53.02 | AC65: 26.51
A66: 50 | B66: Manche | D66: Oui | F66: 17.12 | G66: 19.07 | H66: 21 | I66: 22.62 | J66: 24.56 | K66: 26.49 | L66: 28.1 | M66: 29.09 | N66: 30.38 | O66: 32.31 | P66: 33.759 | Q66: 36.828 | R66: 39.897 | S66: 42.966 | T66: 46.035 | U66: 49.104 | V66: 42.966 | W66: 55.242 | X66: 58.311 | Y66: 61.38 | AC66: 30.69
A67: 51 | B67: Marne | D67: Oui | F67: 22.01 | G67: 24.5 | H67: 26.97 | I67: 29.06 | J67: 31.55 | K67: 34.02 | L67: 36.11 | M67: 37.35 | N67: 39 | O67: 41.51 | P67: 43.362 | Q67: 47.304 | R67: 51.246 | S67: 55.188 | T67: 59.13 | U67: 63.072 | V67: 55.188 | W67: 70.956 | X67: 74.898 | Y67: 78.84 | AC67: 39.42
A68: 52 | B68: Haute-Marne | D68: Oui | F68: 23.51 | G68: 26.16 | H68: 28.82 | I68: 31.04 | J68: 33.71 | K68: 36.36 | L68: 38.58 | M68: 39.9 | N68: 41.69 | O68: 44.34 | P68: 46.332 | Q68: 50.544 | R68: 54.756 | S68: 58.968 | T68: 63.18 | U68: 67.392 | V68: 58.968 | W68: 75.816 | X68: 80.028 | Y68: 84.24 | AC68: 42.12
A69: 53 | B69: Mayenne | D69: Oui | F69: 16.08 | G69: 17.88 | H69: 19.71 | I69: 21.23 | J69: 23.04 | K69: 24.87 | L69: 26.37 | M69: 27.29 | N69: 28.5 | O69: 30.32 | P69: 31.68 | Q69: 34.56 | R69: 37.44 | S69: 40.32 | T69: 43.2 | U69: 46.08 | V69: 40.32 | W69: 51.84 | X69: 54.72 | Y69: 57.6 | AC69: 28.8
A70: 54 | B70: Meurthe-et-Moselle | D70: Oui | F70: 24.27 | G70: 27.02 | H70: 29.75 | I70: 32.04 | J70: 34.79 | K70: 37.53 | L70: 39.83 | M70: 41.19 | N70: 43.04 | O70: 45.78 | P70: 47.839 | Q70: 52.188 | R70: 56.537 | S70: 60.886 | T70: 65.235 | U70: 69.584 | V70: 60.886 | W70: 78.282 | X70: 82.631 | Y70: 86.98 | AC70: 43.49
A71: 55 | B71: Meuse | D71: Oui | F71: 24.87 | G71: 27.68 | H71: 30.48 | I71: 32.84 | J71: 35.66 | K71: 38.46 | L71: 40.8 | M71: 42.23 | N71: 44.1 | O71: 46.91 | P71: 49.027 | Q71: 53.484 | R71: 57.941 | S71: 62.398 | T71: 66.855 | U71: 71.312 | V71: 62.398 | W71: 80.226 | X71: 84.683 | Y71: 89.14 | AC71: 44.57
A72: 56 | B72: Morbihan | D72: Oui | F72: 17.34 | G72: 19.31 | H72: 21.27 | I72: 22.89 | J72: 24.87 | K72: 26.84 | L72: 28.46 | M72: 29.45 | N72: 30.75 | O72: 32.72 | P72: 34.188 | Q72: 37.296 | R72: 40.404 | S72: 43.512 | T72: 46.62 | U72: 49.728 | V72: 43.512 | W72: 55.944 | X72: 59.052 | Y72: 62.16 | AC72: 31.08
A73: 57 | B73: Moselle | D73: Oui | F73: 24.8 | G73: 27.6 | H73: 30.41 | I73: 32.73 | J73: 35.55 | K73: 38.36 | L73: 40.68 | M73: 42.09 | N73: 43.97 | O73: 46.77 | P73: 48.873 | Q73: 53.316 | R73: 57.759 | S73: 62.202 | T73: 66.645 | U73: 71.088 | V73: 62.202 | W73: 79.974 | X73: 84.417 | Y73: 88.86 | AC73: 44.43
A74: 58 | B74: Nièvre | D74: Oui | F74: 17.4 | G74: 19.37 | H74: 21.33 | I74: 22.98 | J74: 24.95 | K74: 26.91 | L74: 28.55 | M74: 29.54 | N74: 30.84 | O74: 32.82 | P74: 34.287 | Q74: 37.404 | R74: 40.521 | S74: 43.638 | T74: 46.755 | U74: 49.872 | V74: 43.638 | W74: 56.106 | X74: 59.223 | Y74: 62.34 | AC74: 31.17
A75: 59 | B75: Nord | D75: Oui | F75: 24.84 | G75: 27.66 | H75: 30.47 | I75: 32.81 | J75: 35.63 | K75: 38.43 | L75: 40.79 | M75: 42.18 | N75: 44.06 | O75: 46.88 | P75: 48.994 | Q75: 53.448 | R75: 57.902 | S75: 62.356 | T75: 66.81 | U75: 71.264 | V75: 62.356 | W75: 80.172 | X75: 84.626 | Y75: 89.08 | AC75: 44.54
A76: 60 | B76: Oise | D76: Oui | F76: 19.28 | G76: 21.47 | H76: 23.64 | I76: 25.46 | J76: 27.65 | K76: 29.82 | L76: 31.65 | M76: 32.73 | N76: 34.19 | O76: 36.38 | P76: 38.016 | Q76: 41.472 | R76: 44.928 | S76: 48.384 | T76: 51.84 | U76: 55.296 | V76: 48.384 | W76: 62.208 | X76: 65.664 | Y76: 69.12 | AC76: 34.56
A77: 61 | B77: Orne | D77: Oui | F77: 18.42 | G77: 20.52 | H77: 22.61 | I77: 24.33 | J77: 26.42 | K77: 28.52 | L77: 30.26 | M77: 31.29 | N77: 32.69 | O77: 34.76 | P77: 36.333 | Q77: 39.636 | R77: 42.939 | S77: 46.242 | T77: 49.545 | U77: 52.848 | V77: 46.242 | W77: 59.454 | X77: 62.757 | Y77: 66.06 | AC77: 33.03
A78: 62 | B78: Pas-de-Calais | D78: Oui | F78: 22.7 | G78: 25.28 | H78: 27.84 | I78: 29.99 | J78: 32.55 | K78: 35.12 | L78: 37.28 | M78: 38.55 | N78: 40.26 | O78: 42.84 | P78: 44.77 | Q78: 48.84 | R78: 52.91 | S78: 56.98 | T78: 61.05 | U78: 65.12 | V78: 56.98 | W78: 73.26 | X78: 77.33 | Y78: 81.4 | AC78: 40.7
A79: 63 | B79: Puy-de-Dôme | D79: Oui | F79: 19.95 | G79: 22.22 | H79: 24.47 | I79: 26.34 | J79: 28.61 | K79: 30.86 | L79: 32.75 | M79: 33.87 | N79: 35.39 | O79: 37.64 | P79: 39.336 | Q79: 42.912 | R79: 46.488 | S79: 50.064 | T79: 53.64 | U79: 57.216 | V79: 50.064 | W79: 64.368 | X79: 67.944 | Y79: 71.52 | AC79: 35.76
A80: 64 | B80: Pyrénées-Atlantiques | D80: Oui | F80: 19.62 | G80: 21.86 | H80: 24.06 | I80: 25.92 | J80: 28.14 | K80: 30.36 | L80: 32.22 | M80: 33.33 | N80: 34.8 | O80: 37.02 | P80: 38.698 | Q80: 42.216 | R80: 45.734 | S80: 49.252 | T80: 52.77 | U80: 56.288 | V80: 49.252 | W80: 63.324 | X80: 66.842 | Y80: 70.36 | AC80: 35.18
A81: 65 | B81: Hautes-Pyrénées | D81: Oui | F81: 20.58 | G81: 22.91 | H81: 25.25 | I81: 27.2 | J81: 29.52 | K81: 31.85 | L81: 33.78 | M81: 34.95 | N81: 36.51 | O81: 38.84 | P81: 40.59 | Q81: 44.28 | R81: 47.97 | S81: 51.66 | T81: 55.35 | U81: 59.04 | V81: 51.66 | W81: 66.42 | X81: 70.11 | Y81: 73.8 | AC81: 36.9
A82: 66 | B82: Pyrénées-Orientales | D82: Oui | F82: 24.41 | G82: 27.17 | H82: 29.93 | I82: 32.24 | J82: 35 | K82: 37.77 | L82: 40.07 | M82: 41.45 | N82: 43.29 | O82: 46.05 | P82: =AC82*1.1 -> 48.136 | Q82: =AC82*1.2 -> 52.512 | R82: =AC82*1.3 -> 56.888 | S82: =AC82*1.4 -> 61.264 | T82: =AC82*1.5 -> 65.64 | U82: =AC82*1.6 -> 70.016 | V82: =AC82*1.4 -> 61.264 | W82: =AC82*1.8 -> 78.768 | X82: =AC82*1.9 -> 83.144 | Y82: =AC82*2 -> 87.52 | AC82: 43.76
A83: 67 | B83: Bas-Rhin | D83: Oui | F83: 27.95 | G83: 31.11 | H83: 34.28 | I83: 36.9 | J83: 40.07 | K83: 43.23 | L83: 45.86 | M83: 47.45 | N83: 49.56 | O83: 52.71 | P83: 55.099 | Q83: 60.108 | R83: 65.117 | S83: 70.126 | T83: 75.135 | U83: 80.144 | V83: 70.126 | W83: 90.162 | X83: 95.171 | Y83: 100.18 | AC83: 50.09
A84: 68 | B84: Haut-Rhin | D84: Oui | F84: 25.94 | G84: 28.88 | H84: 31.8 | I84: 34.25 | J84: 37.19 | K84: 40.11 | L84: 42.56 | M84: 44.03 | N84: 45.99 | O84: 48.92 | P84: 51.117 | Q84: 55.764 | R84: 60.411 | S84: 65.058 | T84: 69.705 | U84: 74.352 | V84: 65.058 | W84: 83.646 | X84: 88.293 | Y84: 92.94 | AC84: 46.47
A85: 69 | B85: Rhône | D85: Oui | F85: 23.43 | G85: 26.09 | H85: 28.74 | I85: 30.95 | J85: 33.59 | K85: 36.24 | L85: 38.46 | M85: 39.78 | N85: 41.55 | O85: 44.21 | P85: 46.189 | Q85: 50.388 | R85: 54.587 | S85: 58.786 | T85: 62.985 | U85: 67.184 | V85: 58.786 | W85: 75.582 | X85: 79.781 | Y85: 83.98 | AC85: 41.99
A86: 70 | B86: Haute-Saône | D86: Oui | F86: 24.98 | G86: 27.8 | H86: 30.63 | I86: 32.99 | J86: 35.81 | K86: 38.64 | L86: 41 | M86: 42.41 | N86: 44.28 | O86: 47.12 | P86: 49.236 | Q86: 53.712 | R86: 58.188 | S86: 62.664 | T86: 67.14 | U86: 71.616 | V86: 62.664 | W86: 80.568 | X86: 85.044 | Y86: 89.52 | AC86: 44.76
A87: 71 | B87: Saône-et-Loire | D87: Oui | F87: 21.72 | G87: 24.18 | H87: 26.64 | I87: 28.7 | J87: 31.16 | K87: 33.6 | L87: 35.66 | M87: 36.89 | N87: 38.54 | O87: 41 | P87: 42.834 | Q87: 46.728 | R87: 50.622 | S87: 54.516 | T87: 58.41 | U87: 62.304 | V87: 54.516 | W87: 70.092 | X87: 73.986 | Y87: 77.88 | AC87: 38.94
A88: 72 | B88: Sarthe | D88: Oui | F88: 16.28 | G88: 18.12 | H88: 19.97 | I88: 21.5 | J88: 23.34 | K88: 25.17 | L88: 26.7 | M88: 27.63 | N88: 28.85 | O88: 30.69 | P88: 32.076 | Q88: 34.992 | R88: 37.908 | S88: 40.824 | T88: 43.74 | U88: 46.656 | V88: 40.824 | W88: 52.488 | X88: 55.404 | Y88: 58.32 | AC88: 29.16
A89: 73 | B89: Savoie | D89: Oui | F89: 24.62 | G89: 27.39 | H89: 30.18 | I89: 32.49 | J89: 35.28 | K89: 38.07 | L89: 40.4 | M89: 41.79 | N89: 43.64 | O89: 46.43 | P89: 48.532 | Q89: 52.944 | R89: 57.356 | S89: 61.768 | T89: 66.18 | U89: 70.592 | V89: 61.768 | W89: 79.416 | X89: 83.828 | Y89: 88.24 | AC89: 44.12
A90: 74 | B90: Haute-Savoie | D90: Oui | F90: 25.02 | G90: 27.86 | H90: 30.69 | I90: 33.05 | J90: 35.88 | K90: 38.72 | L90: 41.07 | M90: 42.5 | N90: 44.39 | O90: 47.21 | P90: 49.335 | Q90: 53.82 | R90: 58.305 | S90: 62.79 | T90: 67.275 | U90: 71.76 | V90: 62.79 | W90: 80.73 | X90: 85.215 | Y90: 89.7 | AC90: 44.85
A91: 75 | B91: Paris | D91: Oui | F91: 22.83 | G91: 25.41 | H91: 28.01 | I91: 30.15 | J91: 32.73 | K91: 35.33 | L91: 37.47 | M91: 38.78 | N91: 40.49 | O91: 43.08 | P91: 45.012 | Q91: 49.104 | R91: 53.196 | S91: 57.288 | T91: 61.38 | U91: 65.472 | V91: 57.288 | W91: 73.656 | X91: 77.748 | Y91: 81.84 | AC91: 40.92
A92: 76 | B92: Seine-Maritime | D92: Oui | F92: 18.5 | G92: 20.6 | H92: 22.68 | I92: 24.44 | J92: 26.52 | K92: 28.62 | L92: 30.38 | M92: 31.41 | N92: 32.81 | O92: 34.91 | P92: 36.487 | Q92: 39.804 | R92: 43.121 | S92: 46.438 | T92: 49.755 | U92: 53.072 | V92: 46.438 | W92: 59.706 | X92: 63.023 | Y92: 66.34 | AC92: 33.17
A93: 77 | B93: Seine-et-Marne | D93: Oui | F93: 22.01 | G93: 24.5 | H93: 26.97 | I93: 29.06 | J93: 31.55 | K93: 34.02 | L93: 36.11 | M93: 37.35 | N93: 39 | O93: 41.51 | P93: 43.362 | Q93: 47.304 | R93: 51.246 | S93: 55.188 | T93: 59.13 | U93: 63.072 | V93: 55.188 | W93: 70.956 | X93: 74.898 | Y93: 78.84 | AC93: 39.42
A94: 78 | B94: Yvelines | D94: Oui | F94: 23.81 | G94: 26.51 | H94: 29.21 | I94: 31.44 | J94: 34.14 | K94: 36.84 | L94: 39.09 | M94: 40.43 | N94: 42.23 | O94: 44.93 | P94: 46.948 | Q94: 51.216 | R94: 55.484 | S94: 59.752 | T94: 64.02 | U94: 68.288 | V94: 59.752 | W94: 76.824 | X94: 81.092 | Y94: 85.36 | AC94: 42.68
A95: 79 | B95: Deux-Sèvres | D95: Oui | F95: 12.78 | G95: 14.22 | H95: 15.66 | I95: 16.88 | J95: 18.32 | K95: 19.76 | L95: 20.96 | M95: 21.69 | N95: 22.65 | O95: 24.09 | P95: 25.179 | Q95: 27.468 | R95: 29.757 | S95: 32.046 | T95: 34.335 | U95: 36.624 | V95: 32.046 | W95: 41.202 | X95: 43.491 | Y95: 45.78 | AC95: 22.89
A96: 80 | B96: Somme | D96: Oui | F96: 21.53 | G96: 23.96 | H96: 26.4 | I96: 28.43 | J96: 30.86 | K96: 33.3 | L96: 35.33 | M96: 36.56 | N96: 38.18 | O96: 40.62 | P96: 42.438 | Q96: 46.296 | R96: 50.154 | S96: 54.012 | T96: 57.87 | U96: 61.728 | V96: 54.012 | W96: 69.444 | X96: 73.302 | Y96: 77.16 | AC96: 38.58
A97: 81 | B97: Tarn | D97: Oui | F97: 20.76 | G97: 23.12 | H97: 25.47 | I97: 27.42 | J97: 29.78 | K97: 32.12 | L97: 34.1 | M97: 35.27 | N97: 36.83 | O97: 39.18 | P97: 40.953 | Q97: 44.676 | R97: 48.399 | S97: 52.122 | T97: 55.845 | U97: 59.568 | V97: 52.122 | W97: 67.014 | X97: 70.737 | Y97: 74.46 | AC97: 37.23
A98: 82 | B98: Tarn-et-Garonne | D98: Oui | F98: 19.43 | G98: 21.63 | H98: 23.82 | I98: 25.65 | J98: 27.86 | K98: 30.05 | L98: 31.89 | M98: 32.99 | N98: 34.46 | O98: 36.65 | P98: 38.302 | Q98: 41.784 | R98: 45.266 | S98: 48.748 | T98: 52.23 | U98: 55.712 | V98: 48.748 | W98: 62.676 | X98: 66.158 | Y98: 69.64 | AC98: 34.82
A99: 83 | B99: Var | D99: Oui | F99: 28.4 | G99: 31.61 | H99: 34.83 | I99: 37.5 | J99: 40.71 | K99: 43.94 | L99: 46.61 | M99: 48.23 | N99: 50.36 | O99: 53.58 | P99: 55.99 | Q99: 61.08 | R99: 66.17 | S99: 71.26 | T99: 76.35 | U99: 81.44 | V99: 71.26 | W99: 91.62 | X99: 96.71 | Y99: 101.8 | AC99: 50.9
A100: 84 | B100: Vaucluse | D100: Oui | F100: 23.99 | G100: 26.7 | H100: 29.42 | I100: 31.68 | J100: 34.4 | K100: 37.13 | L100: 39.38 | M100: 40.74 | N100: 42.54 | O100: 45.27 | P100: 47.311 | Q100: 51.612 | R100: 55.913 | S100: 60.214 | T100: 64.515 | U100: 68.816 | V100: 60.214 | W100: 77.418 | X100: 81.719 | Y100: 86.02 | AC100: 43.01
A101: 85 | B101: Vendée | D101: Oui | F101: 12.95 | G101: 14.42 | H101: 15.89 | I101: 17.1 | J101: 18.57 | K101: 20.04 | L101: 21.27 | M101: 22.01 | N101: 22.98 | O101: 24.44 | P101: 25.542 | Q101: 27.864 | R101: 30.186 | S101: 32.508 | T101: 34.83 | U101: 37.152 | V101: 32.508 | W101: 41.796 | X101: 44.118 | Y101: 46.44 | AC101: 23.22
A102: 86 | B102: Vienne | D102: Oui | F102: 14.09 | G102: 15.69 | H102: 17.28 | I102: 18.62 | J102: 20.21 | K102: 21.81 | L102: 23.15 | M102: 23.94 | N102: 25.01 | O102: 26.6 | P102: 27.786 | Q102: 30.312 | R102: 32.838 | S102: 35.364 | T102: 37.89 | U102: 40.416 | V102: 35.364 | W102: 45.468 | X102: 47.994 | Y102: 50.52 | AC102: 25.26
A103: 87 | B103: Haute-Vienne | D103: Oui | F103: 15.51 | G103: 17.27 | H103: 19.02 | I103: 20.48 | J103: 22.25 | K103: 23.99 | L103: 25.46 | M103: 26.33 | N103: 27.5 | O103: 29.27 | P103: 30.58 | Q103: 33.36 | R103: 36.14 | S103: 38.92 | T103: 41.7 | U103: 44.48 | V103: 38.92 | W103: 50.04 | X103: 52.82 | Y103: 55.6 | AC103: 27.8
A104: 88 | B104: Vosges | D104: Oui | F104: 25.64 | G104: 28.55 | H104: 31.44 | I104: 33.86 | J104: 36.77 | K104: 39.68 | L104: 42.09 | M104: 43.55 | N104: 45.47 | O104: 48.38 | P104: 50.556 | Q104: 55.152 | R104: 59.748 | S104: 64.344 | T104: 68.94 | U104: 73.536 | V104: 64.344 | W104: 82.728 | X104: 87.324 | Y104: 91.92 | AC104: 45.96
A105: 89 | B105: Yonne | D105: Oui | F105: 20.28 | G105: 22.58 | H105: 24.87 | I105: 26.78 | J105: 29.09 | K105: 31.37 | L105: 33.27 | M105: 34.44 | N105: 35.97 | O105: 38.25 | P105: 39.985 | Q105: 43.62 | R105: 47.255 | S105: 50.89 | T105: 54.525 | U105: 58.16 | V105: 50.89 | W105: 65.43 | X105: 69.065 | Y105: 72.7 | AC105: 36.35
A106: 90 | B106: Terr. de Belfort | D106: Oui | F106: 24.89 | G106: 27.69 | H106: 30.51 | I106: 32.85 | J106: 35.67 | K106: 38.49 | L106: 40.83 | M106: 42.26 | N106: 44.13 | O106: 46.94 | P106: 49.06 | Q106: 53.52 | R106: 57.98 | S106: 62.44 | T106: 66.9 | U106: 71.36 | V106: 62.44 | W106: 80.28 | X106: 84.74 | Y106: 89.2 | AC106: 44.6
A107: 91 | B107: Essonne | D107: Oui | F107: 21.98 | G107: 24.47 | H107: 26.96 | I107: 29.03 | J107: 31.52 | K107: 34.01 | L107: 36.08 | M107: 37.32 | N107: 38.97 | O107: 41.46 | P107: 43.329 | Q107: 47.268 | R107: 51.207 | S107: 55.146 | T107: 59.085 | U107: 63.024 | V107: 55.146 | W107: 70.902 | X107: 74.841 | Y107: 78.78 | AC107: 39.39
A108: 92 | B108: Hauts-de-Seine | D108: Oui | F108: 22.17 | G108: 24.69 | H108: 27.21 | I108: 29.3 | J108: 31.8 | K108: 34.31 | L108: 36.41 | M108: 37.67 | N108: 39.33 | O108: 41.84 | P108: 43.725 | Q108: 47.7 | R108: 51.675 | S108: 55.65 | T108: 59.625 | U108: 63.6 | V108: 55.65 | W108: 71.55 | X108: 75.525 | Y108: 79.5 | AC108: 39.75
A109: 93 | B109: Seine-St-Denis | D109: Oui | F109: 22.4 | G109: 24.93 | H109: 27.47 | I109: 29.58 | J109: 32.12 | K109: 34.65 | L109: 36.77 | M109: 38.03 | N109: 39.72 | O109: 42.26 | P109: 44.154 | Q109: 48.168 | R109: 52.182 | S109: 56.196 | T109: 60.21 | U109: 64.224 | V109: 56.196 | W109: 72.252 | X109: 76.266 | Y109: 80.28 | AC109: 40.14
A110: 94 | B110: Val-de-Marne | D110: Oui | F110: 22.22 | G110: 24.72 | H110: 27.24 | I110: 29.34 | J110: 31.86 | K110: 34.37 | L110: 36.47 | M110: 37.73 | N110: 39.39 | O110: 41.91 | P110: 43.813 | Q110: 47.796 | R110: 51.779 | S110: 55.762 | T110: 59.745 | U110: 63.728 | V110: 55.762 | W110: 71.694 | X110: 75.677 | Y110: 79.66 | AC110: 39.83
A111: 95 | B111: Val-D'Oise | D111: Oui | F111: 22.38 | G111: 24.92 | H111: 27.44 | I111: 29.55 | J111: 32.09 | K111: 34.62 | L111: 36.74 | M111: 38 | N111: 39.69 | O111: 42.23 | P111: 44.121 | Q111: 48.132 | R111: 52.143 | S111: 56.154 | T111: 60.165 | U111: 64.176 | V111: 56.154 | W111: 72.198 | X111: 76.209 | Y111: 80.22 | AC111: 40.11
B115: B
A120: Dpt | B120: Destination | C120: Difficulté | D120: Poids réel | F120: 1 | G120: 2 | H120: 3 | I120: 4 | J120: 5 | K120: 6 | L120: 7 | M120: 8 | N120: 9 | O120: 10 | P120: 11 | Q120: 12 | R120: 13 | S120: 14 | T120: 15 | U120: 16 | V120: 17 | W120: 18 | X120: 19 | Y120: 20 | Z120: 21 | AA120: 22 | AB120: 23 | AC120: 24 | AD120: 25 | AE120: 26 | AF120: 27 | AG120: 28 | AH120: 29 | AI120: 30 | AJ120: 31 | AK120: 32 | AL120: 33 | AM120: 34 | AN120: 35 | AO120: 36 | AP120: 37 | AQ120: 38 | AR120: 39 | AS120: 40 | AT120: 41 | AU120: 42 | AV120: 43 | AW120: 44 | AX120: 45 | AY120: 46 | AZ120: 47 | BA120: 48 | BB120: 49 | BC120: 50 | BD120: 51 | BE120: 52 | BF120: 53 | BG120: 54 | BH120: 55 | BI120: 56 | BJ120: 57 | BK120: 58 | BL120: 59 | BM120: 60 | BN120: 61 | BO120: 62 | BP120: 63 | BQ120: 64 | BR120: 65 | BS120: 66 | BT120: 67 | BU120: 68 | BV120: 69 | BW120: 70 | BX120: 71 | BY120: 72 | BZ120: 73 | CA120: 74 | CB120: 75 | CC120: 76 | CD120: 77 | CE120: 78 | CF120: 79 | CG120: 80 | CH120: 81 | CI120: 82 | CJ120: 83 | CK120: 84 | CL120: 85 | CM120: 86 | CN120: 87 | CO120: 88 | CP120: 89 | CQ120: 90 | CR120: 91 | CS120: 92 | CT120: 93 | CU120: 94 | CV120: 95 | CW120: 96 | CX120: 97 | CY120: 98 | CZ120: 99 | DA120: 100 | DB120: 101 | DC120: 102 | DD120: 103 | DE120: 104 | DF120: 105 | DG120: 106 | DH120: 107 | DI120: 108 | DJ120: 109 | DK120: 110 | DL120: 111 | DM120: 112 | DN120: 113 | DO120: 114 | DP120: 115 | DQ120: 116 | DR120: 117 | DS120: 118 | DT120: 119 | DU120: 120 | DV120: 121 | DW120: 122 | DX120: 123 | DY120: 124 | DZ120: 125 | EA120: 126 | EB120: 127 | EC120: 128 | ED120: 129 | EE120: 130 | EF120: 131 | EG120: 132 | EH120: 133 | EI120: 134 | EJ120: 135 | EK120: 136 | EL120: 137 | EM120: 138 | EN120: 139 | EO120: 140 | EP120: 141 | EQ120: 142 | ER120: 143 | ES120: 144 | ET120: 145 | EU120: 146 | EV120: 147 | EW120: 148 | EX120: 149 | EY120: 150 | EZ120: 151 | FA120: 152 | FB120: 153 | FC120: 154 | FD120: 155 | FE120: 156 | FF120: 157 | FG120: 158 | FH120: 159 | FI120: 160 | FJ120: 161 | FK120: 162 | FL120: 163 | FM120: 164 | FN120: 165 | FO120: 166 | FP120: 167 | FQ120: 168 | FR120: 169 | FS120: 170 | FT120: 171 | FU120: 172 | FV120: 173 | FW120: 174 | FX120: 175 | FY120: 176 | FZ120: 177 | GA120: 178 | GB120: 179 | GC120: 180 | GD120: 181 | GE120: 182 | GF120: 183 | GG120: 184 | GH120: 185 | GI120: 186 | GJ120: 187 | GK120: 188 | GL120: 189 | GM120: 190 | GN120: 191 | GO120: 192 | GP120: 193 | GQ120: 194 | GR120: 195 | GS120: 196 | GT120: 197 | GU120: 198 | GV120: 199 | GW120: 200
A121: 1 | B121: Ain | D121: Oui | F121: 6.09 | G121: 6.6 | H121: 7.11 | I121: 7.62 | J121: 8.13 | K121: 8.64 | L121: 9.15 | M121: 9.66 | N121: 10.17 | O121: 10.68 | P121: 11.19 | Q121: 11.7 | R121: 12.21 | S121: 12.72 | T121: 13.23 | U121: 13.74 | V121: 14.25 | W121: 14.76 | X121: 15.27 | Y121: 15.78 | Z121: 16.29 | AA121: 16.8 | AB121: 17.31 | AC121: 17.82 | AD121: 18.33 | AE121: 18.84 | AF121: 19.35 | AG121: 19.86 | AH121: 20.37 | AI121: 20.88 | AJ121: 21.39 | AK121: 21.9 | AL121: 22.41 | AM121: 22.92 | AN121: 23.43 | AO121: 23.94 | AP121: 24.45 | AQ121: 24.96 | AR121: 25.47 | AS121: 25.98 | AT121: 26.49 | AU121: 27 | AV121: 27.51 | AW121: 28.02 | AX121: 28.53 | AY121: 29.04 | AZ121: 29.55 | BA121: 30.06 | BB121: 30.57 | BC121: 31.08 | BD121: 31.59 | BE121: 32.1 | BF121: 32.61 | BG121: 33.12 | BH121: 33.63 | BI121: 34.14 | BJ121: 34.65 | BK121: 35.16 | BL121: 35.67 | BM121: 36.18 | BN121: 36.69 | BO121: 37.2 | BP121: 37.71 | BQ121: 38.22 | BR121: 38.73 | BS121: 39.24 | BT121: 39.75 | BU121: 40.26 | BV121: 40.77 | BW121: 41.28 | BX121: 41.79 | BY121: 42.3 | BZ121: 42.81 | CA121: 43.32 | CB121: 43.83 | CC121: 44.34 | CD121: 44.85 | CE121: 45.36 | CF121: 45.87 | CG121: 46.38 | CH121: 46.89 | CI121: 47.4 | CJ121: 47.91 | CK121: 48.42 | CL121: 48.93 | CM121: 49.44 | CN121: 49.95 | CO121: 50.46 | CP121: 50.97 | CQ121: 51.48 | CR121: 51.99 | CS121: 52.5 | CT121: 53.01 | CU121: 53.52 | CV121: 54.03 | CW121: 54.54 | CX121: 55.05 | CY121: 55.56 | CZ121: 56.07 | DA121: 56.58 | DB121: 57.09 | DC121: 57.6 | DD121: 58.11 | DE121: 58.62 | DF121: 59.13 | DG121: 59.64 | DH121: 60.15 | DI121: 60.66 | DJ121: 61.17 | DK121: 61.68 | DL121: 62.19 | DM121: 62.7 | DN121: 63.21 | DO121: 63.72 | DP121: 64.23 | DQ121: 64.74 | DR121: 65.25 | DS121: 65.76 | DT121: 66.27 | DU121: 66.78 | DV121: 67.29 | DW121: 67.8 | DX121: 68.31 | DY121: 68.82 | DZ121: 69.33 | EA121: 69.84 | EB121: 70.35 | EC121: 70.86 | ED121: 71.37 | EE121: 71.88 | EF121: 72.39 | EG121: 72.9 | EH121: 73.41 | EI121: 73.92 | EJ121: 74.43 | EK121: 74.94 | EL121: 75.45 | EM121: 75.96 | EN121: 76.47 | EO121: 76.98 | EP121: 77.49 | EQ121: 78 | ER121: 78.51 | ES121: 79.02 | ET121: 79.53 | EU121: 80.04 | EV121: 80.55 | EW121: 81.06 | EX121: 81.57 | EY121: 82.08 | EZ121: 82.59 | FA121: 83.1 | FB121: 83.61 | FC121: 84.12 | FD121: 84.63 | FE121: 85.14 | FF121: 85.65 | FG121: 86.16 | FH121: 86.67 | FI121: 87.18 | FJ121: 87.69 | FK121: 88.2 | FL121: 88.71 | FM121: 89.22 | FN121: 89.73 | FO121: 90.24 | FP121: 90.75 | FQ121: 91.26 | FR121: 91.77 | FS121: 92.28 | FT121: 92.79 | FU121: 93.3 | FV121: 93.81 | FW121: 94.32 | FX121: 94.83 | FY121: 95.34 | FZ121: 95.85 | GA121: 96.36 | GB121: 96.87 | GC121: 97.38 | GD121: 97.89 | GE121: 98.4 | GF121: 98.91 | GG121: 99.42 | GH121: 99.93 | GI121: 100.44 | GJ121: 100.95 | GK121: 101.46 | GL121: 101.97 | GM121: 102.48 | GN121: 102.99 | GO121: 103.5 | GP121: 104.01 | GQ121: 104.52 | GR121: 105.03 | GS121: 105.54 | GT121: 106.05 | GU121: 106.56 | GV121: 107.07 | GW121: 107.58
A122: 2 | B122: Aisne | D122: Oui | F122: 6.09 | G122: 6.6 | H122: 7.11 | I122: 7.62 | J122: 8.13 | K122: 8.64 | L122: 9.15 | M122: 9.66 | N122: 10.17 | O122: 10.68 | P122: 11.19 | Q122: 11.7 | R122: 12.21 | S122: 12.72 | T122: 13.23 | U122: 13.74 | V122: 14.25 | W122: 14.76 | X122: 15.27 | Y122: 15.78 | Z122: 16.29 | AA122: 16.8 | AB122: 17.31 | AC122: 17.82 | AD122: 18.33 | AE122: 18.84 | AF122: 19.35 | AG122: 19.86 | AH122: 20.37 | AI122: 20.88 | AJ122: 21.39 | AK122: 21.9 | AL122: 22.41 | AM122: 22.92 | AN122: 23.43 | AO122: 23.94 | AP122: 24.45 | AQ122: 24.96 | AR122: 25.47 | AS122: 25.98 | AT122: 26.49 | AU122: 27 | AV122: 27.51 | AW122: 28.02 | AX122: 28.53 | AY122: 29.04 | AZ122: 29.55 | BA122: 30.06 | BB122: 30.57 | BC122: 31.08 | BD122: 31.59 | BE122: 32.1 | BF122: 32.61 | BG122: 33.12 | BH122: 33.63 | BI122: 34.14 | BJ122: 34.65 | BK122: 35.16 | BL122: 35.67 | BM122: 36.18 | BN122: 36.69 | BO122: 37.2 | BP122: 37.71 | BQ122: 38.22 | BR122: 38.73 | BS122: 39.24 | BT122: 39.75 | BU122: 40.26 | BV122: 40.77 | BW122: 41.28 | BX122: 41.79 | BY122: 42.3 | BZ122: 42.81 | CA122: 43.32 | CB122: 43.83 | CC122: 44.34 | CD122: 44.85 | CE122: 45.36 | CF122: 45.87 | CG122: 46.38 | CH122: 46.89 | CI122: 47.4 | CJ122: 47.91 | CK122: 48.42 | CL122: 48.93 | CM122: 49.44 | CN122: 49.95 | CO122: 50.46 | CP122: 50.97 | CQ122: 51.48 | CR122: 51.99 | CS122: 52.5 | CT122: 53.01 | CU122: 53.52 | CV122: 54.03 | CW122: 54.54 | CX122: 55.05 | CY122: 55.56 | CZ122: 56.07 | DA122: 56.58 | DB122: 57.09 | DC122: 57.6 | DD122: 58.11 | DE122: 58.62 | DF122: 59.13 | DG122: 59.64 | DH122: 60.15 | DI122: 60.66 | DJ122: 61.17 | DK122: 61.68 | DL122: 62.19 | DM122: 62.7 | DN122: 63.21 | DO122: 63.72 | DP122: 64.23 | DQ122: 64.74 | DR122: 65.25 | DS122: 65.76 | DT122: 66.27 | DU122: 66.78 | DV122: 67.29 | DW122: 67.8 | DX122: 68.31 | DY122: 68.82 | DZ122: 69.33 | EA122: 69.84 | EB122: 70.35 | EC122: 70.86 | ED122: 71.37 | EE122: 71.88 | EF122: 72.39 | EG122: 72.9 | EH122: 73.41 | EI122: 73.92 | EJ122: 74.43 | EK122: 74.94 | EL122: 75.45 | EM122: 75.96 | EN122: 76.47 | EO122: 76.98 | EP122: 77.49 | EQ122: 78 | ER122: 78.51 | ES122: 79.02 | ET122: 79.53 | EU122: 80.04 | EV122: 80.55 | EW122: 81.06 | EX122: 81.57 | EY122: 82.08 | EZ122: 82.59 | FA122: 83.1 | FB122: 83.61 | FC122: 84.12 | FD122: 84.63 | FE122: 85.14 | FF122: 85.65 | FG122: 86.16 | FH122: 86.67 | FI122: 87.18 | FJ122: 87.69 | FK122: 88.2 | FL122: 88.71 | FM122: 89.22 | FN122: 89.73 | FO122: 90.24 | FP122: 90.75 | FQ122: 91.26 | FR122: 91.77 | FS122: 92.28 | FT122: 92.79 | FU122: 93.3 | FV122: 93.81 | FW122: 94.32 | FX122: 94.83 | FY122: 95.34 | FZ122: 95.85 | GA122: 96.36 | GB122: 96.87 | GC122: 97.38 | GD122: 97.89 | GE122: 98.4 | GF122: 98.91 | GG122: 99.42 | GH122: 99.93 | GI122: 100.44 | GJ122: 100.95 | GK122: 101.46 | GL122: 101.97 | GM122: 102.48 | GN122: 102.99 | GO122: 103.5 | GP122: 104.01 | GQ122: 104.52 | GR122: 105.03 | GS122: 105.54 | GT122: 106.05 | GU122: 106.56 | GV122: 107.07 | GW122: 107.58
A123: 3 | B123: Allier | D123: Oui | F123: 6.09 | G123: 6.6 | H123: 7.11 | I123: 7.62 | J123: 8.13 | K123: 8.64 | L123: 9.15 | M123: 9.66 | N123: 10.17 | O123: 10.68 | P123: 11.19 | Q123: 11.7 | R123: 12.21 | S123: 12.72 | T123: 13.23 | U123: 13.74 | V123: 14.25 | W123: 14.76 | X123: 15.27 | Y123: 15.78 | Z123: 16.29 | AA123: 16.8 | AB123: 17.31 | AC123: 17.82 | AD123: 18.33 | AE123: 18.84 | AF123: 19.35 | AG123: 19.86 | AH123: 20.37 | AI123: 20.88 | AJ123: 21.39 | AK123: 21.9 | AL123: 22.41 | AM123: 22.92 | AN123: 23.43 | AO123: 23.94 | AP123: 24.45 | AQ123: 24.96 | AR123: 25.47 | AS123: 25.98 | AT123: 26.49 | AU123: 27 | AV123: 27.51 | AW123: 28.02 | AX123: 28.53 | AY123: 29.04 | AZ123: 29.55 | BA123: 30.06 | BB123: 30.57 | BC123: 31.08 | BD123: 31.59 | BE123: 32.1 | BF123: 32.61 | BG123: 33.12 | BH123: 33.63 | BI123: 34.14 | BJ123: 34.65 | BK123: 35.16 | BL123: 35.67 | BM123: 36.18 | BN123: 36.69 | BO123: 37.2 | BP123: 37.71 | BQ123: 38.22 | BR123: 38.73 | BS123: 39.24 | BT123: 39.75 | BU123: 40.26 | BV123: 40.77 | BW123: 41.28 | BX123: 41.79 | BY123: 42.3 | BZ123: 42.81 | CA123: 43.32 | CB123: 43.83 | CC123: 44.34 | CD123: 44.85 | CE123: 45.36 | CF123: 45.87 | CG123: 46.38 | CH123: 46.89 | CI123: 47.4 | CJ123: 47.91 | CK123: 48.42 | CL123: 48.93 | CM123: 49.44 | CN123: 49.95 | CO123: 50.46 | CP123: 50.97 | CQ123: 51.48 | CR123: 51.99 | CS123: 52.5 | CT123: 53.01 | CU123: 53.52 | CV123: 54.03 | CW123: 54.54 | CX123: 55.05 | CY123: 55.56 | CZ123: 56.07 | DA123: 56.58 | DB123: 57.09 | DC123: 57.6 | DD123: 58.11 | DE123: 58.62 | DF123: 59.13 | DG123: 59.64 | DH123: 60.15 | DI123: 60.66 | DJ123: 61.17 | DK123: 61.68 | DL123: 62.19 | DM123: 62.7 | DN123: 63.21 | DO123: 63.72 | DP123: 64.23 | DQ123: 64.74 | DR123: 65.25 | DS123: 65.76 | DT123: 66.27 | DU123: 66.78 | DV123: 67.29 | DW123: 67.8 | DX123: 68.31 | DY123: 68.82 | DZ123: 69.33 | EA123: 69.84 | EB123: 70.35 | EC123: 70.86 | ED123: 71.37 | EE123: 71.88 | EF123: 72.39 | EG123: 72.9 | EH123: 73.41 | EI123: 73.92 | EJ123: 74.43 | EK123: 74.94 | EL123: 75.45 | EM123: 75.96 | EN123: 76.47 | EO123: 76.98 | EP123: 77.49 | EQ123: 78 | ER123: 78.51 | ES123: 79.02 | ET123: 79.53 | EU123: 80.04 | EV123: 80.55 | EW123: 81.06 | EX123: 81.57 | EY123: 82.08 | EZ123: 82.59 | FA123: 83.1 | FB123: 83.61 | FC123: 84.12 | FD123: 84.63 | FE123: 85.14 | FF123: 85.65 | FG123: 86.16 | FH123: 86.67 | FI123: 87.18 | FJ123: 87.69 | FK123: 88.2 | FL123: 88.71 | FM123: 89.22 | FN123: 89.73 | FO123: 90.24 | FP123: 90.75 | FQ123: 91.26 | FR123: 91.77 | FS123: 92.28 | FT123: 92.79 | FU123: 93.3 | FV123: 93.81 | FW123: 94.32 | FX123: 94.83 | FY123: 95.34 | FZ123: 95.85 | GA123: 96.36 | GB123: 96.87 | GC123: 97.38 | GD123: 97.89 | GE123: 98.4 | GF123: 98.91 | GG123: 99.42 | GH123: 99.93 | GI123: 100.44 | GJ123: 100.95 | GK123: 101.46 | GL123: 101.97 | GM123: 102.48 | GN123: 102.99 | GO123: 103.5 | GP123: 104.01 | GQ123: 104.52 | GR123: 105.03 | GS123: 105.54 | GT123: 106.05 | GU123: 106.56 | GV123: 107.07 | GW123: 107.58
A124: 4 | B124: Alpes-de-Haute-Provence | D124: Oui | F124: 6.09 | G124: 6.6 | H124: 7.11 | I124: 7.62 | J124: 8.13 | K124: 8.64 | L124: 9.15 | M124: 9.66 | N124: 10.17 | O124: 10.68 | P124: 11.19 | Q124: 11.7 | R124: 12.21 | S124: 12.72 | T124: 13.23 | U124: 13.74 | V124: 14.25 | W124: 14.76 | X124: 15.27 | Y124: 15.78 | Z124: 16.29 | AA124: 16.8 | AB124: 17.31 | AC124: 17.82 | AD124: 18.33 | AE124: 18.84 | AF124: 19.35 | AG124: 19.86 | AH124: 20.37 | AI124: 20.88 | AJ124: 21.39 | AK124: 21.9 | AL124: 22.41 | AM124: 22.92 | AN124: 23.43 | AO124: 23.94 | AP124: 24.45 | AQ124: 24.96 | AR124: 25.47 | AS124: 25.98 | AT124: 26.49 | AU124: 27 | AV124: 27.51 | AW124: 28.02 | AX124: 28.53 | AY124: 29.04 | AZ124: 29.55 | BA124: 30.06 | BB124: 30.57 | BC124: 31.08 | BD124: 31.59 | BE124: 32.1 | BF124: 32.61 | BG124: 33.12 | BH124: 33.63 | BI124: 34.14 | BJ124: 34.65 | BK124: 35.16 | BL124: 35.67 | BM124: 36.18 | BN124: 36.69 | BO124: 37.2 | BP124: 37.71 | BQ124: 38.22 | BR124: 38.73 | BS124: 39.24 | BT124: 39.75 | BU124: 40.26 | BV124: 40.77 | BW124: 41.28 | BX124: 41.79 | BY124: 42.3 | BZ124: 42.81 | CA124: 43.32 | CB124: 43.83 | CC124: 44.34 | CD124: 44.85 | CE124: 45.36 | CF124: 45.87 | CG124: 46.38 | CH124: 46.89 | CI124: 47.4 | CJ124: 47.91 | CK124: 48.42 | CL124: 48.93 | CM124: 49.44 | CN124: 49.95 | CO124: 50.46 | CP124: 50.97 | CQ124: 51.48 | CR124: 51.99 | CS124: 52.5 | CT124: 53.01 | CU124: 53.52 | CV124: 54.03 | CW124: 54.54 | CX124: 55.05 | CY124: 55.56 | CZ124: 56.07 | DA124: 56.58 | DB124: 57.09 | DC124: 57.6 | DD124: 58.11 | DE124: 58.62 | DF124: 59.13 | DG124: 59.64 | DH124: 60.15 | DI124: 60.66 | DJ124: 61.17 | DK124: 61.68 | DL124: 62.19 | DM124: 62.7 | DN124: 63.21 | DO124: 63.72 | DP124: 64.23 | DQ124: 64.74 | DR124: 65.25 | DS124: 65.76 | DT124: 66.27 | DU124: 66.78 | DV124: 67.29 | DW124: 67.8 | DX124: 68.31 | DY124: 68.82 | DZ124: 69.33 | EA124: 69.84 | EB124: 70.35 | EC124: 70.86 | ED124: 71.37 | EE124: 71.88 | EF124: 72.39 | EG124: 72.9 | EH124: 73.41 | EI124: 73.92 | EJ124: 74.43 | EK124: 74.94 | EL124: 75.45 | EM124: 75.96 | EN124: 76.47 | EO124: 76.98 | EP124: 77.49 | EQ124: 78 | ER124: 78.51 | ES124: 79.02 | ET124: 79.53 | EU124: 80.04 | EV124: 80.55 | EW124: 81.06 | EX124: 81.57 | EY124: 82.08 | EZ124: 82.59 | FA124: 83.1 | FB124: 83.61 | FC124: 84.12 | FD124: 84.63 | FE124: 85.14 | FF124: 85.65 | FG124: 86.16 | FH124: 86.67 | FI124: 87.18 | FJ124: 87.69 | FK124: 88.2 | FL124: 88.71 | FM124: 89.22 | FN124: 89.73 | FO124: 90.24 | FP124: 90.75 | FQ124: 91.26 | FR124: 91.77 | FS124: 92.28 | FT124: 92.79 | FU124: 93.3 | FV124: 93.81 | FW124: 94.32 | FX124: 94.83 | FY124: 95.34 | FZ124: 95.85 | GA124: 96.36 | GB124: 96.87 | GC124: 97.38 | GD124: 97.89 | GE124: 98.4 | GF124: 98.91 | GG124: 99.42 | GH124: 99.93 | GI124: 100.44 | GJ124: 100.95 | GK124: 101.46 | GL124: 101.97 | GM124: 102.48 | GN124: 102.99 | GO124: 103.5 | GP124: 104.01 | GQ124: 104.52 | GR124: 105.03 | GS124: 105.54 | GT124: 106.05 | GU124: 106.56 | GV124: 107.07 | GW124: 107.58
A125: 5 | B125: Hautes-Alpes | D125: Oui | F125: 6.09 | G125: 6.6 | H125: 7.11 | I125: 7.62 | J125: 8.13 | K125: 8.64 | L125: 9.15 | M125: 9.66 | N125: 10.17 | O125: 10.68 | P125: 11.19 | Q125: 11.7 | R125: 12.21 | S125: 12.72 | T125: 13.23 | U125: 13.74 | V125: 14.25 | W125: 14.76 | X125: 15.27 | Y125: 15.78 | Z125: 16.29 | AA125: 16.8 | AB125: 17.31 | AC125: 17.82 | AD125: 18.33 | AE125: 18.84 | AF125: 19.35 | AG125: 19.86 | AH125: 20.37 | AI125: 20.88 | AJ125: 21.39 | AK125: 21.9 | AL125: 22.41 | AM125: 22.92 | AN125: 23.43 | AO125: 23.94 | AP125: 24.45 | AQ125: 24.96 | AR125: 25.47 | AS125: 25.98 | AT125: 26.49 | AU125: 27 | AV125: 27.51 | AW125: 28.02 | AX125: 28.53 | AY125: 29.04 | AZ125: 29.55 | BA125: 30.06 | BB125: 30.57 | BC125: 31.08 | BD125: 31.59 | BE125: 32.1 | BF125: 32.61 | BG125: 33.12 | BH125: 33.63 | BI125: 34.14 | BJ125: 34.65 | BK125: 35.16 | BL125: 35.67 | BM125: 36.18 | BN125: 36.69 | BO125: 37.2 | BP125: 37.71 | BQ125: 38.22 | BR125: 38.73 | BS125: 39.24 | BT125: 39.75 | BU125: 40.26 | BV125: 40.77 | BW125: 41.28 | BX125: 41.79 | BY125: 42.3 | BZ125: 42.81 | CA125: 43.32 | CB125: 43.83 | CC125: 44.34 | CD125: 44.85 | CE125: 45.36 | CF125: 45.87 | CG125: 46.38 | CH125: 46.89 | CI125: 47.4 | CJ125: 47.91 | CK125: 48.42 | CL125: 48.93 | CM125: 49.44 | CN125: 49.95 | CO125: 50.46 | CP125: 50.97 | CQ125: 51.48 | CR125: 51.99 | CS125: 52.5 | CT125: 53.01 | CU125: 53.52 | CV125: 54.03 | CW125: 54.54 | CX125: 55.05 | CY125: 55.56 | CZ125: 56.07 | DA125: 56.58 | DB125: 57.09 | DC125: 57.6 | DD125: 58.11 | DE125: 58.62 | DF125: 59.13 | DG125: 59.64 | DH125: 60.15 | DI125: 60.66 | DJ125: 61.17 | DK125: 61.68 | DL125: 62.19 | DM125: 62.7 | DN125: 63.21 | DO125: 63.72 | DP125: 64.23 | DQ125: 64.74 | DR125: 65.25 | DS125: 65.76 | DT125: 66.27 | DU125: 66.78 | DV125: 67.29 | DW125: 67.8 | DX125: 68.31 | DY125: 68.82 | DZ125: 69.33 | EA125: 69.84 | EB125: 70.35 | EC125: 70.86 | ED125: 71.37 | EE125: 71.88 | EF125: 72.39 | EG125: 72.9 | EH125: 73.41 | EI125: 73.92 | EJ125: 74.43 | EK125: 74.94 | EL125: 75.45 | EM125: 75.96 | EN125: 76.47 | EO125: 76.98 | EP125: 77.49 | EQ125: 78 | ER125: 78.51 | ES125: 79.02 | ET125: 79.53 | EU125: 80.04 | EV125: 80.55 | EW125: 81.06 | EX125: 81.57 | EY125: 82.08 | EZ125: 82.59 | FA125: 83.1 | FB125: 83.61 | FC125: 84.12 | FD125: 84.63 | FE125: 85.14 | FF125: 85.65 | FG125: 86.16 | FH125: 86.67 | FI125: 87.18 | FJ125: 87.69 | FK125: 88.2 | FL125: 88.71 | FM125: 89.22 | FN125: 89.73 | FO125: 90.24 | FP125: 90.75 | FQ125: 91.26 | FR125: 91.77 | FS125: 92.28 | FT125: 92.79 | FU125: 93.3 | FV125: 93.81 | FW125: 94.32 | FX125: 94.83 | FY125: 95.34 | FZ125: 95.85 | GA125: 96.36 | GB125: 96.87 | GC125: 97.38 | GD125: 97.89 | GE125: 98.4 | GF125: 98.91 | GG125: 99.42 | GH125: 99.93 | GI125: 100.44 | GJ125: 100.95 | GK125: 101.46 | GL125: 101.97 | GM125: 102.48 | GN125: 102.99 | GO125: 103.5 | GP125: 104.01 | GQ125: 104.52 | GR125: 105.03 | GS125: 105.54 | GT125: 106.05 | GU125: 106.56 | GV125: 107.07 | GW125: 107.58
A126: 6 | B126: Alpes-Maritimes | D126: Oui | F126: 6.09 | G126: 6.6 | H126: 7.11 | I126: 7.62 | J126: 8.13 | K126: 8.64 | L126: 9.15 | M126: 9.66 | N126: 10.17 | O126: 10.68 | P126: 11.19 | Q126: 11.7 | R126: 12.21 | S126: 12.72 | T126: 13.23 | U126: 13.74 | V126: 14.25 | W126: 14.76 | X126: 15.27 | Y126: 15.78 | Z126: 16.29 | AA126: 16.8 | AB126: 17.31 | AC126: 17.82 | AD126: 18.33 | AE126: 18.84 | AF126: 19.35 | AG126: 19.86 | AH126: 20.37 | AI126: 20.88 | AJ126: 21.39 | AK126: 21.9 | AL126: 22.41 | AM126: 22.92 | AN126: 23.43 | AO126: 23.94 | AP126: 24.45 | AQ126: 24.96 | AR126: 25.47 | AS126: 25.98 | AT126: 26.49 | AU126: 27 | AV126: 27.51 | AW126: 28.02 | AX126: 28.53 | AY126: 29.04 | AZ126: 29.55 | BA126: 30.06 | BB126: 30.57 | BC126: 31.08 | BD126: 31.59 | BE126: 32.1 | BF126: 32.61 | BG126: 33.12 | BH126: 33.63 | BI126: 34.14 | BJ126: 34.65 | BK126: 35.16 | BL126: 35.67 | BM126: 36.18 | BN126: 36.69 | BO126: 37.2 | BP126: 37.71 | BQ126: 38.22 | BR126: 38.73 | BS126: 39.24 | BT126: 39.75 | BU126: 40.26 | BV126: 40.77 | BW126: 41.28 | BX126: 41.79 | BY126: 42.3 | BZ126: 42.81 | CA126: 43.32 | CB126: 43.83 | CC126: 44.34 | CD126: 44.85 | CE126: 45.36 | CF126: 45.87 | CG126: 46.38 | CH126: 46.89 | CI126: 47.4 | CJ126: 47.91 | CK126: 48.42 | CL126: 48.93 | CM126: 49.44 | CN126: 49.95 | CO126: 50.46 | CP126: 50.97 | CQ126: 51.48 | CR126: 51.99 | CS126: 52.5 | CT126: 53.01 | CU126: 53.52 | CV126: 54.03 | CW126: 54.54 | CX126: 55.05 | CY126: 55.56 | CZ126: 56.07 | DA126: 56.58 | DB126: 57.09 | DC126: 57.6 | DD126: 58.11 | DE126: 58.62 | DF126: 59.13 | DG126: 59.64 | DH126: 60.15 | DI126: 60.66 | DJ126: 61.17 | DK126: 61.68 | DL126: 62.19 | DM126: 62.7 | DN126: 63.21 | DO126: 63.72 | DP126: 64.23 | DQ126: 64.74 | DR126: 65.25 | DS126: 65.76 | DT126: 66.27 | DU126: 66.78 | DV126: 67.29 | DW126: 67.8 | DX126: 68.31 | DY126: 68.82 | DZ126: 69.33 | EA126: 69.84 | EB126: 70.35 | EC126: 70.86 | ED126: 71.37 | EE126: 71.88 | EF126: 72.39 | EG126: 72.9 | EH126: 73.41 | EI126: 73.92 | EJ126: 74.43 | EK126: 74.94 | EL126: 75.45 | EM126: 75.96 | EN126: 76.47 | EO126: 76.98 | EP126: 77.49 | EQ126: 78 | ER126: 78.51 | ES126: 79.02 | ET126: 79.53 | EU126: 80.04 | EV126: 80.55 | EW126: 81.06 | EX126: 81.57 | EY126: 82.08 | EZ126: 82.59 | FA126: 83.1 | FB126: 83.61 | FC126: 84.12 | FD126: 84.63 | FE126: 85.14 | FF126: 85.65 | FG126: 86.16 | FH126: 86.67 | FI126: 87.18 | FJ126: 87.69 | FK126: 88.2 | FL126: 88.71 | FM126: 89.22 | FN126: 89.73 | FO126: 90.24 | FP126: 90.75 | FQ126: 91.26 | FR126: 91.77 | FS126: 92.28 | FT126: 92.79 | FU126: 93.3 | FV126: 93.81 | FW126: 94.32 | FX126: 94.83 | FY126: 95.34 | FZ126: 95.85 | GA126: 96.36 | GB126: 96.87 | GC126: 97.38 | GD126: 97.89 | GE126: 98.4 | GF126: 98.91 | GG126: 99.42 | GH126: 99.93 | GI126: 100.44 | GJ126: 100.95 | GK126: 101.46 | GL126: 101.97 | GM126: 102.48 | GN126: 102.99 | GO126: 103.5 | GP126: 104.01 | GQ126: 104.52 | GR126: 105.03 | GS126: 105.54 | GT126: 106.05 | GU126: 106.56 | GV126: 107.07 | GW126: 107.58
A127: 7 | B127: Ardèche | D127: Oui | F127: 6.09 | G127: 6.6 | H127: 7.11 | I127: 7.62 | J127: 8.13 | K127: 8.64 | L127: 9.15 | M127: 9.66 | N127: 10.17 | O127: 10.68 | P127: 11.19 | Q127: 11.7 | R127: 12.21 | S127: 12.72 | T127: 13.23 | U127: 13.74 | V127: 14.25 | W127: 14.76 | X127: 15.27 | Y127: 15.78 | Z127: 16.29 | AA127: 16.8 | AB127: 17.31 | AC127: 17.82 | AD127: 18.33 | AE127: 18.84 | AF127: 19.35 | AG127: 19.86 | AH127: 20.37 | AI127: 20.88 | AJ127: 21.39 | AK127: 21.9 | AL127: 22.41 | AM127: 22.92 | AN127: 23.43 | AO127: 23.94 | AP127: 24.45 | AQ127: 24.96 | AR127: 25.47 | AS127: 25.98 | AT127: 26.49 | AU127: 27 | AV127: 27.51 | AW127: 28.02 | AX127: 28.53 | AY127: 29.04 | AZ127: 29.55 | BA127: 30.06 | BB127: 30.57 | BC127: 31.08 | BD127: 31.59 | BE127: 32.1 | BF127: 32.61 | BG127: 33.12 | BH127: 33.63 | BI127: 34.14 | BJ127: 34.65 | BK127: 35.16 | BL127: 35.67 | BM127: 36.18 | BN127: 36.69 | BO127: 37.2 | BP127: 37.71 | BQ127: 38.22 | BR127: 38.73 | BS127: 39.24 | BT127: 39.75 | BU127: 40.26 | BV127: 40.77 | BW127: 41.28 | BX127: 41.79 | BY127: 42.3 | BZ127: 42.81 | CA127: 43.32 | CB127: 43.83 | CC127: 44.34 | CD127: 44.85 | CE127: 45.36 | CF127: 45.87 | CG127: 46.38 | CH127: 46.89 | CI127: 47.4 | CJ127: 47.91 | CK127: 48.42 | CL127: 48.93 | CM127: 49.44 | CN127: 49.95 | CO127: 50.46 | CP127: 50.97 | CQ127: 51.48 | CR127: 51.99 | CS127: 52.5 | CT127: 53.01 | CU127: 53.52 | CV127: 54.03 | CW127: 54.54 | CX127: 55.05 | CY127: 55.56 | CZ127: 56.07 | DA127: 56.58 | DB127: 57.09 | DC127: 57.6 | DD127: 58.11 | DE127: 58.62 | DF127: 59.13 | DG127: 59.64 | DH127: 60.15 | DI127: 60.66 | DJ127: 61.17 | DK127: 61.68 | DL127: 62.19 | DM127: 62.7 | DN127: 63.21 | DO127: 63.72 | DP127: 64.23 | DQ127: 64.74 | DR127: 65.25 | DS127: 65.76 | DT127: 66.27 | DU127: 66.78 | DV127: 67.29 | DW127: 67.8 | DX127: 68.31 | DY127: 68.82 | DZ127: 69.33 | EA127: 69.84 | EB127: 70.35 | EC127: 70.86 | ED127: 71.37 | EE127: 71.88 | EF127: 72.39 | EG127: 72.9 | EH127: 73.41 | EI127: 73.92 | EJ127: 74.43 | EK127: 74.94 | EL127: 75.45 | EM127: 75.96 | EN127: 76.47 | EO127: 76.98 | EP127: 77.49 | EQ127: 78 | ER127: 78.51 | ES127: 79.02 | ET127: 79.53 | EU127: 80.04 | EV127: 80.55 | EW127: 81.06 | EX127: 81.57 | EY127: 82.08 | EZ127: 82.59 | FA127: 83.1 | FB127: 83.61 | FC127: 84.12 | FD127: 84.63 | FE127: 85.14 | FF127: 85.65 | FG127: 86.16 | FH127: 86.67 | FI127: 87.18 | FJ127: 87.69 | FK127: 88.2 | FL127: 88.71 | FM127: 89.22 | FN127: 89.73 | FO127: 90.24 | FP127: 90.75 | FQ127: 91.26 | FR127: 91.77 | FS127: 92.28 | FT127: 92.79 | FU127: 93.3 | FV127: 93.81 | FW127: 94.32 | FX127: 94.83 | FY127: 95.34 | FZ127: 95.85 | GA127: 96.36 | GB127: 96.87 | GC127: 97.38 | GD127: 97.89 | GE127: 98.4 | GF127: 98.91 | GG127: 99.42 | GH127: 99.93 | GI127: 100.44 | GJ127: 100.95 | GK127: 101.46 | GL127: 101.97 | GM127: 102.48 | GN127: 102.99 | GO127: 103.5 | GP127: 104.01 | GQ127: 104.52 | GR127: 105.03 | GS127: 105.54 | GT127: 106.05 | GU127: 106.56 | GV127: 107.07 | GW127: 107.58
A128: 8 | B128: Ardennes | D128: Oui | F128: 6.09 | G128: 6.6 | H128: 7.11 | I128: 7.62 | J128: 8.13 | K128: 8.64 | L128: 9.15 | M128: 9.66 | N128: 10.17 | O128: 10.68 | P128: 11.19 | Q128: 11.7 | R128: 12.21 | S128: 12.72 | T128: 13.23 | U128: 13.74 | V128: 14.25 | W128: 14.76 | X128: 15.27 | Y128: 15.78 | Z128: 16.29 | AA128: 16.8 | AB128: 17.31 | AC128: 17.82 | AD128: 18.33 | AE128: 18.84 | AF128: 19.35 | AG128: 19.86 | AH128: 20.37 | AI128: 20.88 | AJ128: 21.39 | AK128: 21.9 | AL128: 22.41 | AM128: 22.92 | AN128: 23.43 | AO128: 23.94 | AP128: 24.45 | AQ128: 24.96 | AR128: 25.47 | AS128: 25.98 | AT128: 26.49 | AU128: 27 | AV128: 27.51 | AW128: 28.02 | AX128: 28.53 | AY128: 29.04 | AZ128: 29.55 | BA128: 30.06 | BB128: 30.57 | BC128: 31.08 | BD128: 31.59 | BE128: 32.1 | BF128: 32.61 | BG128: 33.12 | BH128: 33.63 | BI128: 34.14 | BJ128: 34.65 | BK128: 35.16 | BL128: 35.67 | BM128: 36.18 | BN128: 36.69 | BO128: 37.2 | BP128: 37.71 | BQ128: 38.22 | BR128: 38.73 | BS128: 39.24 | BT128: 39.75 | BU128: 40.26 | BV128: 40.77 | BW128: 41.28 | BX128: 41.79 | BY128: 42.3 | BZ128: 42.81 | CA128: 43.32 | CB128: 43.83 | CC128: 44.34 | CD128: 44.85 | CE128: 45.36 | CF128: 45.87 | CG128: 46.38 | CH128: 46.89 | CI128: 47.4 | CJ128: 47.91 | CK128: 48.42 | CL128: 48.93 | CM128: 49.44 | CN128: 49.95 | CO128: 50.46 | CP128: 50.97 | CQ128: 51.48 | CR128: 51.99 | CS128: 52.5 | CT128: 53.01 | CU128: 53.52 | CV128: 54.03 | CW128: 54.54 | CX128: 55.05 | CY128: 55.56 | CZ128: 56.07 | DA128: 56.58 | DB128: 57.09 | DC128: 57.6 | DD128: 58.11 | DE128: 58.62 | DF128: 59.13 | DG128: 59.64 | DH128: 60.15 | DI128: 60.66 | DJ128: 61.17 | DK128: 61.68 | DL128: 62.19 | DM128: 62.7 | DN128: 63.21 | DO128: 63.72 | DP128: 64.23 | DQ128: 64.74 | DR128: 65.25 | DS128: 65.76 | DT128: 66.27 | DU128: 66.78 | DV128: 67.29 | DW128: 67.8 | DX128: 68.31 | DY128: 68.82 | DZ128: 69.33 | EA128: 69.84 | EB128: 70.35 | EC128: 70.86 | ED128: 71.37 | EE128: 71.88 | EF128: 72.39 | EG128: 72.9 | EH128: 73.41 | EI128: 73.92 | EJ128: 74.43 | EK128: 74.94 | EL128: 75.45 | EM128: 75.96 | EN128: 76.47 | EO128: 76.98 | EP128: 77.49 | EQ128: 78 | ER128: 78.51 | ES128: 79.02 | ET128: 79.53 | EU128: 80.04 | EV128: 80.55 | EW128: 81.06 | EX128: 81.57 | EY128: 82.08 | EZ128: 82.59 | FA128: 83.1 | FB128: 83.61 | FC128: 84.12 | FD128: 84.63 | FE128: 85.14 | FF128: 85.65 | FG128: 86.16 | FH128: 86.67 | FI128: 87.18 | FJ128: 87.69 | FK128: 88.2 | FL128: 88.71 | FM128: 89.22 | FN128: 89.73 | FO128: 90.24 | FP128: 90.75 | FQ128: 91.26 | FR128: 91.77 | FS128: 92.28 | FT128: 92.79 | FU128: 93.3 | FV128: 93.81 | FW128: 94.32 | FX128: 94.83 | FY128: 95.34 | FZ128: 95.85 | GA128: 96.36 | GB128: 96.87 | GC128: 97.38 | GD128: 97.89 | GE128: 98.4 | GF128: 98.91 | GG128: 99.42 | GH128: 99.93 | GI128: 100.44 | GJ128: 100.95 | GK128: 101.46 | GL128: 101.97 | GM128: 102.48 | GN128: 102.99 | GO128: 103.5 | GP128: 104.01 | GQ128: 104.52 | GR128: 105.03 | GS128: 105.54 | GT128: 106.05 | GU128: 106.56 | GV128: 107.07 | GW128: 107.58
A129: 9 | B129: Ariège | D129: Oui | F129: 6.09 | G129: 6.6 | H129: 7.11 | I129: 7.62 | J129: 8.13 | K129: 8.64 | L129: 9.15 | M129: 9.66 | N129: 10.17 | O129: 10.68 | P129: 11.19 | Q129: 11.7 | R129: 12.21 | S129: 12.72 | T129: 13.23 | U129: 13.74 | V129: 14.25 | W129: 14.76 | X129: 15.27 | Y129: 15.78 | Z129: 16.29 | AA129: 16.8 | AB129: 17.31 | AC129: 17.82 | AD129: 18.33 | AE129: 18.84 | AF129: 19.35 | AG129: 19.86 | AH129: 20.37 | AI129: 20.88 | AJ129: 21.39 | AK129: 21.9 | AL129: 22.41 | AM129: 22.92 | AN129: 23.43 | AO129: 23.94 | AP129: 24.45 | AQ129: 24.96 | AR129: 25.47 | AS129: 25.98 | AT129: 26.49 | AU129: 27 | AV129: 27.51 | AW129: 28.02 | AX129: 28.53 | AY129: 29.04 | AZ129: 29.55 | BA129: 30.06 | BB129: 30.57 | BC129: 31.08 | BD129: 31.59 | BE129: 32.1 | BF129: 32.61 | BG129: 33.12 | BH129: 33.63 | BI129: 34.14 | BJ129: 34.65 | BK129: 35.16 | BL129: 35.67 | BM129: 36.18 | BN129: 36.69 | BO129: 37.2 | BP129: 37.71 | BQ129: 38.22 | BR129: 38.73 | BS129: 39.24 | BT129: 39.75 | BU129: 40.26 | BV129: 40.77 | BW129: 41.28 | BX129: 41.79 | BY129: 42.3 | BZ129: 42.81 | CA129: 43.32 | CB129: 43.83 | CC129: 44.34 | CD129: 44.85 | CE129: 45.36 | CF129: 45.87 | CG129: 46.38 | CH129: 46.89 | CI129: 47.4 | CJ129: 47.91 | CK129: 48.42 | CL129: 48.93 | CM129: 49.44 | CN129: 49.95 | CO129: 50.46 | CP129: 50.97 | CQ129: 51.48 | CR129: 51.99 | CS129: 52.5 | CT129: 53.01 | CU129: 53.52 | CV129: 54.03 | CW129: 54.54 | CX129: 55.05 | CY129: 55.56 | CZ129: 56.07 | DA129: 56.58 | DB129: 57.09 | DC129: 57.6 | DD129: 58.11 | DE129: 58.62 | DF129: 59.13 | DG129: 59.64 | DH129: 60.15 | DI129: 60.66 | DJ129: 61.17 | DK129: 61.68 | DL129: 62.19 | DM129: 62.7 | DN129: 63.21 | DO129: 63.72 | DP129: 64.23 | DQ129: 64.74 | DR129: 65.25 | DS129: 65.76 | DT129: 66.27 | DU129: 66.78 | DV129: 67.29 | DW129: 67.8 | DX129: 68.31 | DY129: 68.82 | DZ129: 69.33 | EA129: 69.84 | EB129: 70.35 | EC129: 70.86 | ED129: 71.37 | EE129: 71.88 | EF129: 72.39 | EG129: 72.9 | EH129: 73.41 | EI129: 73.92 | EJ129: 74.43 | EK129: 74.94 | EL129: 75.45 | EM129: 75.96 | EN129: 76.47 | EO129: 76.98 | EP129: 77.49 | EQ129: 78 | ER129: 78.51 | ES129: 79.02 | ET129: 79.53 | EU129: 80.04 | EV129: 80.55 | EW129: 81.06 | EX129: 81.57 | EY129: 82.08 | EZ129: 82.59 | FA129: 83.1 | FB129: 83.61 | FC129: 84.12 | FD129: 84.63 | FE129: 85.14 | FF129: 85.65 | FG129: 86.16 | FH129: 86.67 | FI129: 87.18 | FJ129: 87.69 | FK129: 88.2 | FL129: 88.71 | FM129: 89.22 | FN129: 89.73 | FO129: 90.24 | FP129: 90.75 | FQ129: 91.26 | FR129: 91.77 | FS129: 92.28 | FT129: 92.79 | FU129: 93.3 | FV129: 93.81 | FW129: 94.32 | FX129: 94.83 | FY129: 95.34 | FZ129: 95.85 | GA129: 96.36 | GB129: 96.87 | GC129: 97.38 | GD129: 97.89 | GE129: 98.4 | GF129: 98.91 | GG129: 99.42 | GH129: 99.93 | GI129: 100.44 | GJ129: 100.95 | GK129: 101.46 | GL129: 101.97 | GM129: 102.48 | GN129: 102.99 | GO129: 103.5 | GP129: 104.01 | GQ129: 104.52 | GR129: 105.03 | GS129: 105.54 | GT129: 106.05 | GU129: 106.56 | GV129: 107.07 | GW129: 107.58
A130: 10 | B130: Aube | D130: Oui | F130: 6.09 | G130: 6.6 | H130: 7.11 | I130: 7.62 | J130: 8.13 | K130: 8.64 | L130: 9.15 | M130: 9.66 | N130: 10.17 | O130: 10.68 | P130: 11.19 | Q130: 11.7 | R130: 12.21 | S130: 12.72 | T130: 13.23 | U130: 13.74 | V130: 14.25 | W130: 14.76 | X130: 15.27 | Y130: 15.78 | Z130: 16.29 | AA130: 16.8 | AB130: 17.31 | AC130: 17.82 | AD130: 18.33 | AE130: 18.84 | AF130: 19.35 | AG130: 19.86 | AH130: 20.37 | AI130: 20.88 | AJ130: 21.39 | AK130: 21.9 | AL130: 22.41 | AM130: 22.92 | AN130: 23.43 | AO130: 23.94 | AP130: 24.45 | AQ130: 24.96 | AR130: 25.47 | AS130: 25.98 | AT130: 26.49 | AU130: 27 | AV130: 27.51 | AW130: 28.02 | AX130: 28.53 | AY130: 29.04 | AZ130: 29.55 | BA130: 30.06 | BB130: 30.57 | BC130: 31.08 | BD130: 31.59 | BE130: 32.1 | BF130: 32.61 | BG130: 33.12 | BH130: 33.63 | BI130: 34.14 | BJ130: 34.65 | BK130: 35.16 | BL130: 35.67 | BM130: 36.18 | BN130: 36.69 | BO130: 37.2 | BP130: 37.71 | BQ130: 38.22 | BR130: 38.73 | BS130: 39.24 | BT130: 39.75 | BU130: 40.26 | BV130: 40.77 | BW130: 41.28 | BX130: 41.79 | BY130: 42.3 | BZ130: 42.81 | CA130: 43.32 | CB130: 43.83 | CC130: 44.34 | CD130: 44.85 | CE130: 45.36 | CF130: 45.87 | CG130: 46.38 | CH130: 46.89 | CI130: 47.4 | CJ130: 47.91 | CK130: 48.42 | CL130: 48.93 | CM130: 49.44 | CN130: 49.95 | CO130: 50.46 | CP130: 50.97 | CQ130: 51.48 | CR130: 51.99 | CS130: 52.5 | CT130: 53.01 | CU130: 53.52 | CV130: 54.03 | CW130: 54.54 | CX130: 55.05 | CY130: 55.56 | CZ130: 56.07 | DA130: 56.58 | DB130: 57.09 | DC130: 57.6 | DD130: 58.11 | DE130: 58.62 | DF130: 59.13 | DG130: 59.64 | DH130: 60.15 | DI130: 60.66 | DJ130: 61.17 | DK130: 61.68 | DL130: 62.19 | DM130: 62.7 | DN130: 63.21 | DO130: 63.72 | DP130: 64.23 | DQ130: 64.74 | DR130: 65.25 | DS130: 65.76 | DT130: 66.27 | DU130: 66.78 | DV130: 67.29 | DW130: 67.8 | DX130: 68.31 | DY130: 68.82 | DZ130: 69.33 | EA130: 69.84 | EB130: 70.35 | EC130: 70.86 | ED130: 71.37 | EE130: 71.88 | EF130: 72.39 | EG130: 72.9 | EH130: 73.41 | EI130: 73.92 | EJ130: 74.43 | EK130: 74.94 | EL130: 75.45 | EM130: 75.96 | EN130: 76.47 | EO130: 76.98 | EP130: 77.49 | EQ130: 78 | ER130: 78.51 | ES130: 79.02 | ET130: 79.53 | EU130: 80.04 | EV130: 80.55 | EW130: 81.06 | EX130: 81.57 | EY130: 82.08 | EZ130: 82.59 | FA130: 83.1 | FB130: 83.61 | FC130: 84.12 | FD130: 84.63 | FE130: 85.14 | FF130: 85.65 | FG130: 86.16 | FH130: 86.67 | FI130: 87.18 | FJ130: 87.69 | FK130: 88.2 | FL130: 88.71 | FM130: 89.22 | FN130: 89.73 | FO130: 90.24 | FP130: 90.75 | FQ130: 91.26 | FR130: 91.77 | FS130: 92.28 | FT130: 92.79 | FU130: 93.3 | FV130: 93.81 | FW130: 94.32 | FX130: 94.83 | FY130: 95.34 | FZ130: 95.85 | GA130: 96.36 | GB130: 96.87 | GC130: 97.38 | GD130: 97.89 | GE130: 98.4 | GF130: 98.91 | GG130: 99.42 | GH130: 99.93 | GI130: 100.44 | GJ130: 100.95 | GK130: 101.46 | GL130: 101.97 | GM130: 102.48 | GN130: 102.99 | GO130: 103.5 | GP130: 104.01 | GQ130: 104.52 | GR130: 105.03 | GS130: 105.54 | GT130: 106.05 | GU130: 106.56 | GV130: 107.07 | GW130: 107.58
A131: 11 | B131: Aude | D131: Oui | F131: 6.09 | G131: 6.6 | H131: 7.11 | I131: 7.62 | J131: 8.13 | K131: 8.64 | L131: 9.15 | M131: 9.66 | N131: 10.17 | O131: 10.68 | P131: 11.19 | Q131: 11.7 | R131: 12.21 | S131: 12.72 | T131: 13.23 | U131: 13.74 | V131: 14.25 | W131: 14.76 | X131: 15.27 | Y131: 15.78 | Z131: 16.29 | AA131: 16.8 | AB131: 17.31 | AC131: 17.82 | AD131: 18.33 | AE131: 18.84 | AF131: 19.35 | AG131: 19.86 | AH131: 20.37 | AI131: 20.88 | AJ131: 21.39 | AK131: 21.9 | AL131: 22.41 | AM131: 22.92 | AN131: 23.43 | AO131: 23.94 | AP131: 24.45 | AQ131: 24.96 | AR131: 25.47 | AS131: 25.98 | AT131: 26.49 | AU131: 27 | AV131: 27.51 | AW131: 28.02 | AX131: 28.53 | AY131: 29.04 | AZ131: 29.55 | BA131: 30.06 | BB131: 30.57 | BC131: 31.08 | BD131: 31.59 | BE131: 32.1 | BF131: 32.61 | BG131: 33.12 | BH131: 33.63 | BI131: 34.14 | BJ131: 34.65 | BK131: 35.16 | BL131: 35.67 | BM131: 36.18 | BN131: 36.69 | BO131: 37.2 | BP131: 37.71 | BQ131: 38.22 | BR131: 38.73 | BS131: 39.24 | BT131: 39.75 | BU131: 40.26 | BV131: 40.77 | BW131: 41.28 | BX131: 41.79 | BY131: 42.3 | BZ131: 42.81 | CA131: 43.32 | CB131: 43.83 | CC131: 44.34 | CD131: 44.85 | CE131: 45.36 | CF131: 45.87 | CG131: 46.38 | CH131: 46.89 | CI131: 47.4 | CJ131: 47.91 | CK131: 48.42 | CL131: 48.93 | CM131: 49.44 | CN131: 49.95 | CO131: 50.46 | CP131: 50.97 | CQ131: 51.48 | CR131: 51.99 | CS131: 52.5 | CT131: 53.01 | CU131: 53.52 | CV131: 54.03 | CW131: 54.54 | CX131: 55.05 | CY131: 55.56 | CZ131: 56.07 | DA131: 56.58 | DB131: 57.09 | DC131: 57.6 | DD131: 58.11 | DE131: 58.62 | DF131: 59.13 | DG131: 59.64 | DH131: 60.15 | DI131: 60.66 | DJ131: 61.17 | DK131: 61.68 | DL131: 62.19 | DM131: 62.7 | DN131: 63.21 | DO131: 63.72 | DP131: 64.23 | DQ131: 64.74 | DR131: 65.25 | DS131: 65.76 | DT131: 66.27 | DU131: 66.78 | DV131: 67.29 | DW131: 67.8 | DX131: 68.31 | DY131: 68.82 | DZ131: 69.33 | EA131: 69.84 | EB131: 70.35 | EC131: 70.86 | ED131: 71.37 | EE131: 71.88 | EF131: 72.39 | EG131: 72.9 | EH131: 73.41 | EI131: 73.92 | EJ131: 74.43 | EK131: 74.94 | EL131: 75.45 | EM131: 75.96 | EN131: 76.47 | EO131: 76.98 | EP131: 77.49 | EQ131: 78 | ER131: 78.51 | ES131: 79.02 | ET131: 79.53 | EU131: 80.04 | EV131: 80.55 | EW131: 81.06 | EX131: 81.57 | EY131: 82.08 | EZ131: 82.59 | FA131: 83.1 | FB131: 83.61 | FC131: 84.12 | FD131: 84.63 | FE131: 85.14 | FF131: 85.65 | FG131: 86.16 | FH131: 86.67 | FI131: 87.18 | FJ131: 87.69 | FK131: 88.2 | FL131: 88.71 | FM131: 89.22 | FN131: 89.73 | FO131: 90.24 | FP131: 90.75 | FQ131: 91.26 | FR131: 91.77 | FS131: 92.28 | FT131: 92.79 | FU131: 93.3 | FV131: 93.81 | FW131: 94.32 | FX131: 94.83 | FY131: 95.34 | FZ131: 95.85 | GA131: 96.36 | GB131: 96.87 | GC131: 97.38 | GD131: 97.89 | GE131: 98.4 | GF131: 98.91 | GG131: 99.42 | GH131: 99.93 | GI131: 100.44 | GJ131: 100.95 | GK131: 101.46 | GL131: 101.97 | GM131: 102.48 | GN131: 102.99 | GO131: 103.5 | GP131: 104.01 | GQ131: 104.52 | GR131: 105.03 | GS131: 105.54 | GT131: 106.05 | GU131: 106.56 | GV131: 107.07 | GW131: 107.58
A132: 12 | B132: Aveyron | D132: Oui | F132: 6.09 | G132: 6.6 | H132: 7.11 | I132: 7.62 | J132: 8.13 | K132: 8.64 | L132: 9.15 | M132: 9.66 | N132: 10.17 | O132: 10.68 | P132: 11.19 | Q132: 11.7 | R132: 12.21 | S132: 12.72 | T132: 13.23 | U132: 13.74 | V132: 14.25 | W132: 14.76 | X132: 15.27 | Y132: 15.78 | Z132: 16.29 | AA132: 16.8 | AB132: 17.31 | AC132: 17.82 | AD132: 18.33 | AE132: 18.84 | AF132: 19.35 | AG132: 19.86 | AH132: 20.37 | AI132: 20.88 | AJ132: 21.39 | AK132: 21.9 | AL132: 22.41 | AM132: 22.92 | AN132: 23.43 | AO132: 23.94 | AP132: 24.45 | AQ132: 24.96 | AR132: 25.47 | AS132: 25.98 | AT132: 26.49 | AU132: 27 | AV132: 27.51 | AW132: 28.02 | AX132: 28.53 | AY132: 29.04 | AZ132: 29.55 | BA132: 30.06 | BB132: 30.57 | BC132: 31.08 | BD132: 31.59 | BE132: 32.1 | BF132: 32.61 | BG132: 33.12 | BH132: 33.63 | BI132: 34.14 | BJ132: 34.65 | BK132: 35.16 | BL132: 35.67 | BM132: 36.18 | BN132: 36.69 | BO132: 37.2 | BP132: 37.71 | BQ132: 38.22 | BR132: 38.73 | BS132: 39.24 | BT132: 39.75 | BU132: 40.26 | BV132: 40.77 | BW132: 41.28 | BX132: 41.79 | BY132: 42.3 | BZ132: 42.81 | CA132: 43.32 | CB132: 43.83 | CC132: 44.34 | CD132: 44.85 | CE132: 45.36 | CF132: 45.87 | CG132: 46.38 | CH132: 46.89 | CI132: 47.4 | CJ132: 47.91 | CK132: 48.42 | CL132: 48.93 | CM132: 49.44 | CN132: 49.95 | CO132: 50.46 | CP132: 50.97 | CQ132: 51.48 | CR132: 51.99 | CS132: 52.5 | CT132: 53.01 | CU132: 53.52 | CV132: 54.03 | CW132: 54.54 | CX132: 55.05 | CY132: 55.56 | CZ132: 56.07 | DA132: 56.58 | DB132: 57.09 | DC132: 57.6 | DD132: 58.11 | DE132: 58.62 | DF132: 59.13 | DG132: 59.64 | DH132: 60.15 | DI132: 60.66 | DJ132: 61.17 | DK132: 61.68 | DL132: 62.19 | DM132: 62.7 | DN132: 63.21 | DO132: 63.72 | DP132: 64.23 | DQ132: 64.74 | DR132: 65.25 | DS132: 65.76 | DT132: 66.27 | DU132: 66.78 | DV132: 67.29 | DW132: 67.8 | DX132: 68.31 | DY132: 68.82 | DZ132: 69.33 | EA132: 69.84 | EB132: 70.35 | EC132: 70.86 | ED132: 71.37 | EE132: 71.88 | EF132: 72.39 | EG132: 72.9 | EH132: 73.41 | EI132: 73.92 | EJ132: 74.43 | EK132: 74.94 | EL132: 75.45 | EM132: 75.96 | EN132: 76.47 | EO132: 76.98 | EP132: 77.49 | EQ132: 78 | ER132: 78.51 | ES132: 79.02 | ET132: 79.53 | EU132: 80.04 | EV132: 80.55 | EW132: 81.06 | EX132: 81.57 | EY132: 82.08 | EZ132: 82.59 | FA132: 83.1 | FB132: 83.61 | FC132: 84.12 | FD132: 84.63 | FE132: 85.14 | FF132: 85.65 | FG132: 86.16 | FH132: 86.67 | FI132: 87.18 | FJ132: 87.69 | FK132: 88.2 | FL132: 88.71 | FM132: 89.22 | FN132: 89.73 | FO132: 90.24 | FP132: 90.75 | FQ132: 91.26 | FR132: 91.77 | FS132: 92.28 | FT132: 92.79 | FU132: 93.3 | FV132: 93.81 | FW132: 94.32 | FX132: 94.83 | FY132: 95.34 | FZ132: 95.85 | GA132: 96.36 | GB132: 96.87 | GC132: 97.38 | GD132: 97.89 | GE132: 98.4 | GF132: 98.91 | GG132: 99.42 | GH132: 99.93 | GI132: 100.44 | GJ132: 100.95 | GK132: 101.46 | GL132: 101.97 | GM132: 102.48 | GN132: 102.99 | GO132: 103.5 | GP132: 104.01 | GQ132: 104.52 | GR132: 105.03 | GS132: 105.54 | GT132: 106.05 | GU132: 106.56 | GV132: 107.07 | GW132: 107.58
A133: 13 | B133: Bouches-du-Rhône | D133: Oui | F133: 6.09 | G133: 6.6 | H133: 7.11 | I133: 7.62 | J133: 8.13 | K133: 8.64 | L133: 9.15 | M133: 9.66 | N133: 10.17 | O133: 10.68 | P133: 11.19 | Q133: 11.7 | R133: 12.21 | S133: 12.72 | T133: 13.23 | U133: 13.74 | V133: 14.25 | W133: 14.76 | X133: 15.27 | Y133: 15.78 | Z133: 16.29 | AA133: 16.8 | AB133: 17.31 | AC133: 17.82 | AD133: 18.33 | AE133: 18.84 | AF133: 19.35 | AG133: 19.86 | AH133: 20.37 | AI133: 20.88 | AJ133: 21.39 | AK133: 21.9 | AL133: 22.41 | AM133: 22.92 | AN133: 23.43 | AO133: 23.94 | AP133: 24.45 | AQ133: 24.96 | AR133: 25.47 | AS133: 25.98 | AT133: 26.49 | AU133: 27 | AV133: 27.51 | AW133: 28.02 | AX133: 28.53 | AY133: 29.04 | AZ133: 29.55 | BA133: 30.06 | BB133: 30.57 | BC133: 31.08 | BD133: 31.59 | BE133: 32.1 | BF133: 32.61 | BG133: 33.12 | BH133: 33.63 | BI133: 34.14 | BJ133: 34.65 | BK133: 35.16 | BL133: 35.67 | BM133: 36.18 | BN133: 36.69 | BO133: 37.2 | BP133: 37.71 | BQ133: 38.22 | BR133: 38.73 | BS133: 39.24 | BT133: 39.75 | BU133: 40.26 | BV133: 40.77 | BW133: 41.28 | BX133: 41.79 | BY133: 42.3 | BZ133: 42.81 | CA133: 43.32 | CB133: 43.83 | CC133: 44.34 | CD133: 44.85 | CE133: 45.36 | CF133: 45.87 | CG133: 46.38 | CH133: 46.89 | CI133: 47.4 | CJ133: 47.91 | CK133: 48.42 | CL133: 48.93 | CM133: 49.44 | CN133: 49.95 | CO133: 50.46 | CP133: 50.97 | CQ133: 51.48 | CR133: 51.99 | CS133: 52.5 | CT133: 53.01 | CU133: 53.52 | CV133: 54.03 | CW133: 54.54 | CX133: 55.05 | CY133: 55.56 | CZ133: 56.07 | DA133: 56.58 | DB133: 57.09 | DC133: 57.6 | DD133: 58.11 | DE133: 58.62 | DF133: 59.13 | DG133: 59.64 | DH133: 60.15 | DI133: 60.66 | DJ133: 61.17 | DK133: 61.68 | DL133: 62.19 | DM133: 62.7 | DN133: 63.21 | DO133: 63.72 | DP133: 64.23 | DQ133: 64.74 | DR133: 65.25 | DS133: 65.76 | DT133: 66.27 | DU133: 66.78 | DV133: 67.29 | DW133: 67.8 | DX133: 68.31 | DY133: 68.82 | DZ133: 69.33 | EA133: 69.84 | EB133: 70.35 | EC133: 70.86 | ED133: 71.37 | EE133: 71.88 | EF133: 72.39 | EG133: 72.9 | EH133: 73.41 | EI133: 73.92 | EJ133: 74.43 | EK133: 74.94 | EL133: 75.45 | EM133: 75.96 | EN133: 76.47 | EO133: 76.98 | EP133: 77.49 | EQ133: 78 | ER133: 78.51 | ES133: 79.02 | ET133: 79.53 | EU133: 80.04 | EV133: 80.55 | EW133: 81.06 | EX133: 81.57 | EY133: 82.08 | EZ133: 82.59 | FA133: 83.1 | FB133: 83.61 | FC133: 84.12 | FD133: 84.63 | FE133: 85.14 | FF133: 85.65 | FG133: 86.16 | FH133: 86.67 | FI133: 87.18 | FJ133: 87.69 | FK133: 88.2 | FL133: 88.71 | FM133: 89.22 | FN133: 89.73 | FO133: 90.24 | FP133: 90.75 | FQ133: 91.26 | FR133: 91.77 | FS133: 92.28 | FT133: 92.79 | FU133: 93.3 | FV133: 93.81 | FW133: 94.32 | FX133: 94.83 | FY133: 95.34 | FZ133: 95.85 | GA133: 96.36 | GB133: 96.87 | GC133: 97.38 | GD133: 97.89 | GE133: 98.4 | GF133: 98.91 | GG133: 99.42 | GH133: 99.93 | GI133: 100.44 | GJ133: 100.95 | GK133: 101.46 | GL133: 101.97 | GM133: 102.48 | GN133: 102.99 | GO133: 103.5 | GP133: 104.01 | GQ133: 104.52 | GR133: 105.03 | GS133: 105.54 | GT133: 106.05 | GU133: 106.56 | GV133: 107.07 | GW133: 107.58
A134: 14 | B134: Calvados | D134: Oui | F134: 6.09 | G134: 6.6 | H134: 7.11 | I134: 7.62 | J134: 8.13 | K134: 8.64 | L134: 9.15 | M134: 9.66 | N134: 10.17 | O134: 10.68 | P134: 11.19 | Q134: 11.7 | R134: 12.21 | S134: 12.72 | T134: 13.23 | U134: 13.74 | V134: 14.25 | W134: 14.76 | X134: 15.27 | Y134: 15.78 | Z134: 16.29 | AA134: 16.8 | AB134: 17.31 | AC134: 17.82 | AD134: 18.33 | AE134: 18.84 | AF134: 19.35 | AG134: 19.86 | AH134: 20.37 | AI134: 20.88 | AJ134: 21.39 | AK134: 21.9 | AL134: 22.41 | AM134: 22.92 | AN134: 23.43 | AO134: 23.94 | AP134: 24.45 | AQ134: 24.96 | AR134: 25.47 | AS134: 25.98 | AT134: 26.49 | AU134: 27 | AV134: 27.51 | AW134: 28.02 | AX134: 28.53 | AY134: 29.04 | AZ134: 29.55 | BA134: 30.06 | BB134: 30.57 | BC134: 31.08 | BD134: 31.59 | BE134: 32.1 | BF134: 32.61 | BG134: 33.12 | BH134: 33.63 | BI134: 34.14 | BJ134: 34.65 | BK134: 35.16 | BL134: 35.67 | BM134: 36.18 | BN134: 36.69 | BO134: 37.2 | BP134: 37.71 | BQ134: 38.22 | BR134: 38.73 | BS134: 39.24 | BT134: 39.75 | BU134: 40.26 | BV134: 40.77 | BW134: 41.28 | BX134: 41.79 | BY134: 42.3 | BZ134: 42.81 | CA134: 43.32 | CB134: 43.83 | CC134: 44.34 | CD134: 44.85 | CE134: 45.36 | CF134: 45.87 | CG134: 46.38 | CH134: 46.89 | CI134: 47.4 | CJ134: 47.91 | CK134: 48.42 | CL134: 48.93 | CM134: 49.44 | CN134: 49.95 | CO134: 50.46 | CP134: 50.97 | CQ134: 51.48 | CR134: 51.99 | CS134: 52.5 | CT134: 53.01 | CU134: 53.52 | CV134: 54.03 | CW134: 54.54 | CX134: 55.05 | CY134: 55.56 | CZ134: 56.07 | DA134: 56.58 | DB134: 57.09 | DC134: 57.6 | DD134: 58.11 | DE134: 58.62 | DF134: 59.13 | DG134: 59.64 | DH134: 60.15 | DI134: 60.66 | DJ134: 61.17 | DK134: 61.68 | DL134: 62.19 | DM134: 62.7 | DN134: 63.21 | DO134: 63.72 | DP134: 64.23 | DQ134: 64.74 | DR134: 65.25 | DS134: 65.76 | DT134: 66.27 | DU134: 66.78 | DV134: 67.29 | DW134: 67.8 | DX134: 68.31 | DY134: 68.82 | DZ134: 69.33 | EA134: 69.84 | EB134: 70.35 | EC134: 70.86 | ED134: 71.37 | EE134: 71.88 | EF134: 72.39 | EG134: 72.9 | EH134: 73.41 | EI134: 73.92 | EJ134: 74.43 | EK134: 74.94 | EL134: 75.45 | EM134: 75.96 | EN134: 76.47 | EO134: 76.98 | EP134: 77.49 | EQ134: 78 | ER134: 78.51 | ES134: 79.02 | ET134: 79.53 | EU134: 80.04 | EV134: 80.55 | EW134: 81.06 | EX134: 81.57 | EY134: 82.08 | EZ134: 82.59 | FA134: 83.1 | FB134: 83.61 | FC134: 84.12 | FD134: 84.63 | FE134: 85.14 | FF134: 85.65 | FG134: 86.16 | FH134: 86.67 | FI134: 87.18 | FJ134: 87.69 | FK134: 88.2 | FL134: 88.71 | FM134: 89.22 | FN134: 89.73 | FO134: 90.24 | FP134: 90.75 | FQ134: 91.26 | FR134: 91.77 | FS134: 92.28 | FT134: 92.79 | FU134: 93.3 | FV134: 93.81 | FW134: 94.32 | FX134: 94.83 | FY134: 95.34 | FZ134: 95.85 | GA134: 96.36 | GB134: 96.87 | GC134: 97.38 | GD134: 97.89 | GE134: 98.4 | GF134: 98.91 | GG134: 99.42 | GH134: 99.93 | GI134: 100.44 | GJ134: 100.95 | GK134: 101.46 | GL134: 101.97 | GM134: 102.48 | GN134: 102.99 | GO134: 103.5 | GP134: 104.01 | GQ134: 104.52 | GR134: 105.03 | GS134: 105.54 | GT134: 106.05 | GU134: 106.56 | GV134: 107.07 | GW134: 107.58
A135: 15 | B135: Cantal | D135: Oui | F135: 6.09 | G135: 6.6 | H135: 7.11 | I135: 7.62 | J135: 8.13 | K135: 8.64 | L135: 9.15 | M135: 9.66 | N135: 10.17 | O135: 10.68 | P135: 11.19 | Q135: 11.7 | R135: 12.21 | S135: 12.72 | T135: 13.23 | U135: 13.74 | V135: 14.25 | W135: 14.76 | X135: 15.27 | Y135: 15.78 | Z135: 16.29 | AA135: 16.8 | AB135: 17.31 | AC135: 17.82 | AD135: 18.33 | AE135: 18.84 | AF135: 19.35 | AG135: 19.86 | AH135: 20.37 | AI135: 20.88 | AJ135: 21.39 | AK135: 21.9 | AL135: 22.41 | AM135: 22.92 | AN135: 23.43 | AO135: 23.94 | AP135: 24.45 | AQ135: 24.96 | AR135: 25.47 | AS135: 25.98 | AT135: 26.49 | AU135: 27 | AV135: 27.51 | AW135: 28.02 | AX135: 28.53 | AY135: 29.04 | AZ135: 29.55 | BA135: 30.06 | BB135: 30.57 | BC135: 31.08 | BD135: 31.59 | BE135: 32.1 | BF135: 32.61 | BG135: 33.12 | BH135: 33.63 | BI135: 34.14 | BJ135: 34.65 | BK135: 35.16 | BL135: 35.67 | BM135: 36.18 | BN135: 36.69 | BO135: 37.2 | BP135: 37.71 | BQ135: 38.22 | BR135: 38.73 | BS135: 39.24 | BT135: 39.75 | BU135: 40.26 | BV135: 40.77 | BW135: 41.28 | BX135: 41.79 | BY135: 42.3 | BZ135: 42.81 | CA135: 43.32 | CB135: 43.83 | CC135: 44.34 | CD135: 44.85 | CE135: 45.36 | CF135: 45.87 | CG135: 46.38 | CH135: 46.89 | CI135: 47.4 | CJ135: 47.91 | CK135: 48.42 | CL135: 48.93 | CM135: 49.44 | CN135: 49.95 | CO135: 50.46 | CP135: 50.97 | CQ135: 51.48 | CR135: 51.99 | CS135: 52.5 | CT135: 53.01 | CU135: 53.52 | CV135: 54.03 | CW135: 54.54 | CX135: 55.05 | CY135: 55.56 | CZ135: 56.07 | DA135: 56.58 | DB135: 57.09 | DC135: 57.6 | DD135: 58.11 | DE135: 58.62 | DF135: 59.13 | DG135: 59.64 | DH135: 60.15 | DI135: 60.66 | DJ135: 61.17 | DK135: 61.68 | DL135: 62.19 | DM135: 62.7 | DN135: 63.21 | DO135: 63.72 | DP135: 64.23 | DQ135: 64.74 | DR135: 65.25 | DS135: 65.76 | DT135: 66.27 | DU135: 66.78 | DV135: 67.29 | DW135: 67.8 | DX135: 68.31 | DY135: 68.82 | DZ135: 69.33 | EA135: 69.84 | EB135: 70.35 | EC135: 70.86 | ED135: 71.37 | EE135: 71.88 | EF135: 72.39 | EG135: 72.9 | EH135: 73.41 | EI135: 73.92 | EJ135: 74.43 | EK135: 74.94 | EL135: 75.45 | EM135: 75.96 | EN135: 76.47 | EO135: 76.98 | EP135: 77.49 | EQ135: 78 | ER135: 78.51 | ES135: 79.02 | ET135: 79.53 | EU135: 80.04 | EV135: 80.55 | EW135: 81.06 | EX135: 81.57 | EY135: 82.08 | EZ135: 82.59 | FA135: 83.1 | FB135: 83.61 | FC135: 84.12 | FD135: 84.63 | FE135: 85.14 | FF135: 85.65 | FG135: 86.16 | FH135: 86.67 | FI135: 87.18 | FJ135: 87.69 | FK135: 88.2 | FL135: 88.71 | FM135: 89.22 | FN135: 89.73 | FO135: 90.24 | FP135: 90.75 | FQ135: 91.26 | FR135: 91.77 | FS135: 92.28 | FT135: 92.79 | FU135: 93.3 | FV135: 93.81 | FW135: 94.32 | FX135: 94.83 | FY135: 95.34 | FZ135: 95.85 | GA135: 96.36 | GB135: 96.87 | GC135: 97.38 | GD135: 97.89 | GE135: 98.4 | GF135: 98.91 | GG135: 99.42 | GH135: 99.93 | GI135: 100.44 | GJ135: 100.95 | GK135: 101.46 | GL135: 101.97 | GM135: 102.48 | GN135: 102.99 | GO135: 103.5 | GP135: 104.01 | GQ135: 104.52 | GR135: 105.03 | GS135: 105.54 | GT135: 106.05 | GU135: 106.56 | GV135: 107.07 | GW135: 107.58
A136: 16 | B136: Charente | D136: Oui | F136: 6.09 | G136: 6.6 | H136: 7.11 | I136: 7.62 | J136: 8.13 | K136: 8.64 | L136: 9.15 | M136: 9.66 | N136: 10.17 | O136: 10.68 | P136: 11.19 | Q136: 11.7 | R136: 12.21 | S136: 12.72 | T136: 13.23 | U136: 13.74 | V136: 14.25 | W136: 14.76 | X136: 15.27 | Y136: 15.78 | Z136: 16.29 | AA136: 16.8 | AB136: 17.31 | AC136: 17.82 | AD136: 18.33 | AE136: 18.84 | AF136: 19.35 | AG136: 19.86 | AH136: 20.37 | AI136: 20.88 | AJ136: 21.39 | AK136: 21.9 | AL136: 22.41 | AM136: 22.92 | AN136: 23.43 | AO136: 23.94 | AP136: 24.45 | AQ136: 24.96 | AR136: 25.47 | AS136: 25.98 | AT136: 26.49 | AU136: 27 | AV136: 27.51 | AW136: 28.02 | AX136: 28.53 | AY136: 29.04 | AZ136: 29.55 | BA136: 30.06 | BB136: 30.57 | BC136: 31.08 | BD136: 31.59 | BE136: 32.1 | BF136: 32.61 | BG136: 33.12 | BH136: 33.63 | BI136: 34.14 | BJ136: 34.65 | BK136: 35.16 | BL136: 35.67 | BM136: 36.18 | BN136: 36.69 | BO136: 37.2 | BP136: 37.71 | BQ136: 38.22 | BR136: 38.73 | BS136: 39.24 | BT136: 39.75 | BU136: 40.26 | BV136: 40.77 | BW136: 41.28 | BX136: 41.79 | BY136: 42.3 | BZ136: 42.81 | CA136: 43.32 | CB136: 43.83 | CC136: 44.34 | CD136: 44.85 | CE136: 45.36 | CF136: 45.87 | CG136: 46.38 | CH136: 46.89 | CI136: 47.4 | CJ136: 47.91 | CK136: 48.42 | CL136: 48.93 | CM136: 49.44 | CN136: 49.95 | CO136: 50.46 | CP136: 50.97 | CQ136: 51.48 | CR136: 51.99 | CS136: 52.5 | CT136: 53.01 | CU136: 53.52 | CV136: 54.03 | CW136: 54.54 | CX136: 55.05 | CY136: 55.56 | CZ136: 56.07 | DA136: 56.58 | DB136: 57.09 | DC136: 57.6 | DD136: 58.11 | DE136: 58.62 | DF136: 59.13 | DG136: 59.64 | DH136: 60.15 | DI136: 60.66 | DJ136: 61.17 | DK136: 61.68 | DL136: 62.19 | DM136: 62.7 | DN136: 63.21 | DO136: 63.72 | DP136: 64.23 | DQ136: 64.74 | DR136: 65.25 | DS136: 65.76 | DT136: 66.27 | DU136: 66.78 | DV136: 67.29 | DW136: 67.8 | DX136: 68.31 | DY136: 68.82 | DZ136: 69.33 | EA136: 69.84 | EB136: 70.35 | EC136: 70.86 | ED136: 71.37 | EE136: 71.88 | EF136: 72.39 | EG136: 72.9 | EH136: 73.41 | EI136: 73.92 | EJ136: 74.43 | EK136: 74.94 | EL136: 75.45 | EM136: 75.96 | EN136: 76.47 | EO136: 76.98 | EP136: 77.49 | EQ136: 78 | ER136: 78.51 | ES136: 79.02 | ET136: 79.53 | EU136: 80.04 | EV136: 80.55 | EW136: 81.06 | EX136: 81.57 | EY136: 82.08 | EZ136: 82.59 | FA136: 83.1 | FB136: 83.61 | FC136: 84.12 | FD136: 84.63 | FE136: 85.14 | FF136: 85.65 | FG136: 86.16 | FH136: 86.67 | FI136: 87.18 | FJ136: 87.69 | FK136: 88.2 | FL136: 88.71 | FM136: 89.22 | FN136: 89.73 | FO136: 90.24 | FP136: 90.75 | FQ136: 91.26 | FR136: 91.77 | FS136: 92.28 | FT136: 92.79 | FU136: 93.3 | FV136: 93.81 | FW136: 94.32 | FX136: 94.83 | FY136: 95.34 | FZ136: 95.85 | GA136: 96.36 | GB136: 96.87 | GC136: 97.38 | GD136: 97.89 | GE136: 98.4 | GF136: 98.91 | GG136: 99.42 | GH136: 99.93 | GI136: 100.44 | GJ136: 100.95 | GK136: 101.46 | GL136: 101.97 | GM136: 102.48 | GN136: 102.99 | GO136: 103.5 | GP136: 104.01 | GQ136: 104.52 | GR136: 105.03 | GS136: 105.54 | GT136: 106.05 | GU136: 106.56 | GV136: 107.07 | GW136: 107.58
A137: 17 | B137: Charente-Maritime | D137: Oui | F137: 6.09 | G137: 6.6 | H137: 7.11 | I137: 7.62 | J137: 8.13 | K137: 8.64 | L137: 9.15 | M137: 9.66 | N137: 10.17 | O137: 10.68 | P137: 11.19 | Q137: 11.7 | R137: 12.21 | S137: 12.72 | T137: 13.23 | U137: 13.74 | V137: 14.25 | W137: 14.76 | X137: 15.27 | Y137: 15.78 | Z137: 16.29 | AA137: 16.8 | AB137: 17.31 | AC137: 17.82 | AD137: 18.33 | AE137: 18.84 | AF137: 19.35 | AG137: 19.86 | AH137: 20.37 | AI137: 20.88 | AJ137: 21.39 | AK137: 21.9 | AL137: 22.41 | AM137: 22.92 | AN137: 23.43 | AO137: 23.94 | AP137: 24.45 | AQ137: 24.96 | AR137: 25.47 | AS137: 25.98 | AT137: 26.49 | AU137: 27 | AV137: 27.51 | AW137: 28.02 | AX137: 28.53 | AY137: 29.04 | AZ137: 29.55 | BA137: 30.06 | BB137: 30.57 | BC137: 31.08 | BD137: 31.59 | BE137: 32.1 | BF137: 32.61 | BG137: 33.12 | BH137: 33.63 | BI137: 34.14 | BJ137: 34.65 | BK137: 35.16 | BL137: 35.67 | BM137: 36.18 | BN137: 36.69 | BO137: 37.2 | BP137: 37.71 | BQ137: 38.22 | BR137: 38.73 | BS137: 39.24 | BT137: 39.75 | BU137: 40.26 | BV137: 40.77 | BW137: 41.28 | BX137: 41.79 | BY137: 42.3 | BZ137: 42.81 | CA137: 43.32 | CB137: 43.83 | CC137: 44.34 | CD137: 44.85 | CE137: 45.36 | CF137: 45.87 | CG137: 46.38 | CH137: 46.89 | CI137: 47.4 | CJ137: 47.91 | CK137: 48.42 | CL137: 48.93 | CM137: 49.44 | CN137: 49.95 | CO137: 50.46 | CP137: 50.97 | CQ137: 51.48 | CR137: 51.99 | CS137: 52.5 | CT137: 53.01 | CU137: 53.52 | CV137: 54.03 | CW137: 54.54 | CX137: 55.05 | CY137: 55.56 | CZ137: 56.07 | DA137: 56.58 | DB137: 57.09 | DC137: 57.6 | DD137: 58.11 | DE137: 58.62 | DF137: 59.13 | DG137: 59.64 | DH137: 60.15 | DI137: 60.66 | DJ137: 61.17 | DK137: 61.68 | DL137: 62.19 | DM137: 62.7 | DN137: 63.21 | DO137: 63.72 | DP137: 64.23 | DQ137: 64.74 | DR137: 65.25 | DS137: 65.76 | DT137: 66.27 | DU137: 66.78 | DV137: 67.29 | DW137: 67.8 | DX137: 68.31 | DY137: 68.82 | DZ137: 69.33 | EA137: 69.84 | EB137: 70.35 | EC137: 70.86 | ED137: 71.37 | EE137: 71.88 | EF137: 72.39 | EG137: 72.9 | EH137: 73.41 | EI137: 73.92 | EJ137: 74.43 | EK137: 74.94 | EL137: 75.45 | EM137: 75.96 | EN137: 76.47 | EO137: 76.98 | EP137: 77.49 | EQ137: 78 | ER137: 78.51 | ES137: 79.02 | ET137: 79.53 | EU137: 80.04 | EV137: 80.55 | EW137: 81.06 | EX137: 81.57 | EY137: 82.08 | EZ137: 82.59 | FA137: 83.1 | FB137: 83.61 | FC137: 84.12 | FD137: 84.63 | FE137: 85.14 | FF137: 85.65 | FG137: 86.16 | FH137: 86.67 | FI137: 87.18 | FJ137: 87.69 | FK137: 88.2 | FL137: 88.71 | FM137: 89.22 | FN137: 89.73 | FO137: 90.24 | FP137: 90.75 | FQ137: 91.26 | FR137: 91.77 | FS137: 92.28 | FT137: 92.79 | FU137: 93.3 | FV137: 93.81 | FW137: 94.32 | FX137: 94.83 | FY137: 95.34 | FZ137: 95.85 | GA137: 96.36 | GB137: 96.87 | GC137: 97.38 | GD137: 97.89 | GE137: 98.4 | GF137: 98.91 | GG137: 99.42 | GH137: 99.93 | GI137: 100.44 | GJ137: 100.95 | GK137: 101.46 | GL137: 101.97 | GM137: 102.48 | GN137: 102.99 | GO137: 103.5 | GP137: 104.01 | GQ137: 104.52 | GR137: 105.03 | GS137: 105.54 | GT137: 106.05 | GU137: 106.56 | GV137: 107.07 | GW137: 107.58
A138: 18 | B138: Cher | D138: Oui | F138: 6.09 | G138: 6.6 | H138: 7.11 | I138: 7.62 | J138: 8.13 | K138: 8.64 | L138: 9.15 | M138: 9.66 | N138: 10.17 | O138: 10.68 | P138: 11.19 | Q138: 11.7 | R138: 12.21 | S138: 12.72 | T138: 13.23 | U138: 13.74 | V138: 14.25 | W138: 14.76 | X138: 15.27 | Y138: 15.78 | Z138: 16.29 | AA138: 16.8 | AB138: 17.31 | AC138: 17.82 | AD138: 18.33 | AE138: 18.84 | AF138: 19.35 | AG138: 19.86 | AH138: 20.37 | AI138: 20.88 | AJ138: 21.39 | AK138: 21.9 | AL138: 22.41 | AM138: 22.92 | AN138: 23.43 | AO138: 23.94 | AP138: 24.45 | AQ138: 24.96 | AR138: 25.47 | AS138: 25.98 | AT138: 26.49 | AU138: 27 | AV138: 27.51 | AW138: 28.02 | AX138: 28.53 | AY138: 29.04 | AZ138: 29.55 | BA138: 30.06 | BB138: 30.57 | BC138: 31.08 | BD138: 31.59 | BE138: 32.1 | BF138: 32.61 | BG138: 33.12 | BH138: 33.63 | BI138: 34.14 | BJ138: 34.65 | BK138: 35.16 | BL138: 35.67 | BM138: 36.18 | BN138: 36.69 | BO138: 37.2 | BP138: 37.71 | BQ138: 38.22 | BR138: 38.73 | BS138: 39.24 | BT138: 39.75 | BU138: 40.26 | BV138: 40.77 | BW138: 41.28 | BX138: 41.79 | BY138: 42.3 | BZ138: 42.81 | CA138: 43.32 | CB138: 43.83 | CC138: 44.34 | CD138: 44.85 | CE138: 45.36 | CF138: 45.87 | CG138: 46.38 | CH138: 46.89 | CI138: 47.4 | CJ138: 47.91 | CK138: 48.42 | CL138: 48.93 | CM138: 49.44 | CN138: 49.95 | CO138: 50.46 | CP138: 50.97 | CQ138: 51.48 | CR138: 51.99 | CS138: 52.5 | CT138: 53.01 | CU138: 53.52 | CV138: 54.03 | CW138: 54.54 | CX138: 55.05 | CY138: 55.56 | CZ138: 56.07 | DA138: 56.58 | DB138: 57.09 | DC138: 57.6 | DD138: 58.11 | DE138: 58.62 | DF138: 59.13 | DG138: 59.64 | DH138: 60.15 | DI138: 60.66 | DJ138: 61.17 | DK138: 61.68 | DL138: 62.19 | DM138: 62.7 | DN138: 63.21 | DO138: 63.72 | DP138: 64.23 | DQ138: 64.74 | DR138: 65.25 | DS138: 65.76 | DT138: 66.27 | DU138: 66.78 | DV138: 67.29 | DW138: 67.8 | DX138: 68.31 | DY138: 68.82 | DZ138: 69.33 | EA138: 69.84 | EB138: 70.35 | EC138: 70.86 | ED138: 71.37 | EE138: 71.88 | EF138: 72.39 | EG138: 72.9 | EH138: 73.41 | EI138: 73.92 | EJ138: 74.43 | EK138: 74.94 | EL138: 75.45 | EM138: 75.96 | EN138: 76.47 | EO138: 76.98 | EP138: 77.49 | EQ138: 78 | ER138: 78.51 | ES138: 79.02 | ET138: 79.53 | EU138: 80.04 | EV138: 80.55 | EW138: 81.06 | EX138: 81.57 | EY138: 82.08 | EZ138: 82.59 | FA138: 83.1 | FB138: 83.61 | FC138: 84.12 | FD138: 84.63 | FE138: 85.14 | FF138: 85.65 | FG138: 86.16 | FH138: 86.67 | FI138: 87.18 | FJ138: 87.69 | FK138: 88.2 | FL138: 88.71 | FM138: 89.22 | FN138: 89.73 | FO138: 90.24 | FP138: 90.75 | FQ138: 91.26 | FR138: 91.77 | FS138: 92.28 | FT138: 92.79 | FU138: 93.3 | FV138: 93.81 | FW138: 94.32 | FX138: 94.83 | FY138: 95.34 | FZ138: 95.85 | GA138: 96.36 | GB138: 96.87 | GC138: 97.38 | GD138: 97.89 | GE138: 98.4 | GF138: 98.91 | GG138: 99.42 | GH138: 99.93 | GI138: 100.44 | GJ138: 100.95 | GK138: 101.46 | GL138: 101.97 | GM138: 102.48 | GN138: 102.99 | GO138: 103.5 | GP138: 104.01 | GQ138: 104.52 | GR138: 105.03 | GS138: 105.54 | GT138: 106.05 | GU138: 106.56 | GV138: 107.07 | GW138: 107.58
A139: 19 | B139: Corrèze | D139: Oui | F139: 6.09 | G139: 6.6 | H139: 7.11 | I139: 7.62 | J139: 8.13 | K139: 8.64 | L139: 9.15 | M139: 9.66 | N139: 10.17 | O139: 10.68 | P139: 11.19 | Q139: 11.7 | R139: 12.21 | S139: 12.72 | T139: 13.23 | U139: 13.74 | V139: 14.25 | W139: 14.76 | X139: 15.27 | Y139: 15.78 | Z139: 16.29 | AA139: 16.8 | AB139: 17.31 | AC139: 17.82 | AD139: 18.33 | AE139: 18.84 | AF139: 19.35 | AG139: 19.86 | AH139: 20.37 | AI139: 20.88 | AJ139: 21.39 | AK139: 21.9 | AL139: 22.41 | AM139: 22.92 | AN139: 23.43 | AO139: 23.94 | AP139: 24.45 | AQ139: 24.96 | AR139: 25.47 | AS139: 25.98 | AT139: 26.49 | AU139: 27 | AV139: 27.51 | AW139: 28.02 | AX139: 28.53 | AY139: 29.04 | AZ139: 29.55 | BA139: 30.06 | BB139: 30.57 | BC139: 31.08 | BD139: 31.59 | BE139: 32.1 | BF139: 32.61 | BG139: 33.12 | BH139: 33.63 | BI139: 34.14 | BJ139: 34.65 | BK139: 35.16 | BL139: 35.67 | BM139: 36.18 | BN139: 36.69 | BO139: 37.2 | BP139: 37.71 | BQ139: 38.22 | BR139: 38.73 | BS139: 39.24 | BT139: 39.75 | BU139: 40.26 | BV139: 40.77 | BW139: 41.28 | BX139: 41.79 | BY139: 42.3 | BZ139: 42.81 | CA139: 43.32 | CB139: 43.83 | CC139: 44.34 | CD139: 44.85 | CE139: 45.36 | CF139: 45.87 | CG139: 46.38 | CH139: 46.89 | CI139: 47.4 | CJ139: 47.91 | CK139: 48.42 | CL139: 48.93 | CM139: 49.44 | CN139: 49.95 | CO139: 50.46 | CP139: 50.97 | CQ139: 51.48 | CR139: 51.99 | CS139: 52.5 | CT139: 53.01 | CU139: 53.52 | CV139: 54.03 | CW139: 54.54 | CX139: 55.05 | CY139: 55.56 | CZ139: 56.07 | DA139: 56.58 | DB139: 57.09 | DC139: 57.6 | DD139: 58.11 | DE139: 58.62 | DF139: 59.13 | DG139: 59.64 | DH139: 60.15 | DI139: 60.66 | DJ139: 61.17 | DK139: 61.68 | DL139: 62.19 | DM139: 62.7 | DN139: 63.21 | DO139: 63.72 | DP139: 64.23 | DQ139: 64.74 | DR139: 65.25 | DS139: 65.76 | DT139: 66.27 | DU139: 66.78 | DV139: 67.29 | DW139: 67.8 | DX139: 68.31 | DY139: 68.82 | DZ139: 69.33 | EA139: 69.84 | EB139: 70.35 | EC139: 70.86 | ED139: 71.37 | EE139: 71.88 | EF139: 72.39 | EG139: 72.9 | EH139: 73.41 | EI139: 73.92 | EJ139: 74.43 | EK139: 74.94 | EL139: 75.45 | EM139: 75.96 | EN139: 76.47 | EO139: 76.98 | EP139: 77.49 | EQ139: 78 | ER139: 78.51 | ES139: 79.02 | ET139: 79.53 | EU139: 80.04 | EV139: 80.55 | EW139: 81.06 | EX139: 81.57 | EY139: 82.08 | EZ139: 82.59 | FA139: 83.1 | FB139: 83.61 | FC139: 84.12 | FD139: 84.63 | FE139: 85.14 | FF139: 85.65 | FG139: 86.16 | FH139: 86.67 | FI139: 87.18 | FJ139: 87.69 | FK139: 88.2 | FL139: 88.71 | FM139: 89.22 | FN139: 89.73 | FO139: 90.24 | FP139: 90.75 | FQ139: 91.26 | FR139: 91.77 | FS139: 92.28 | FT139: 92.79 | FU139: 93.3 | FV139: 93.81 | FW139: 94.32 | FX139: 94.83 | FY139: 95.34 | FZ139: 95.85 | GA139: 96.36 | GB139: 96.87 | GC139: 97.38 | GD139: 97.89 | GE139: 98.4 | GF139: 98.91 | GG139: 99.42 | GH139: 99.93 | GI139: 100.44 | GJ139: 100.95 | GK139: 101.46 | GL139: 101.97 | GM139: 102.48 | GN139: 102.99 | GO139: 103.5 | GP139: 104.01 | GQ139: 104.52 | GR139: 105.03 | GS139: 105.54 | GT139: 106.05 | GU139: 106.56 | GV139: 107.07 | GW139: 107.58
A140: 20 | B140: Corse | D140: Oui | F140: 6.09 | G140: 6.6 | H140: 7.11 | I140: 7.62 | J140: 8.13 | K140: 8.64 | L140: 9.15 | M140: 9.66 | N140: 10.17 | O140: 10.68 | P140: 11.19 | Q140: 11.7 | R140: 12.21 | S140: 12.72 | T140: 13.23 | U140: 13.74 | V140: 14.25 | W140: 14.76 | X140: 15.27 | Y140: 15.78 | Z140: 16.29 | AA140: 16.8 | AB140: 17.31 | AC140: 17.82 | AD140: 18.33 | AE140: 18.84 | AF140: 19.35 | AG140: 19.86 | AH140: 20.37 | AI140: 20.88 | AJ140: 21.39 | AK140: 21.9 | AL140: 22.41 | AM140: 22.92 | AN140: 23.43 | AO140: 23.94 | AP140: 24.45 | AQ140: 24.96 | AR140: 25.47 | AS140: 25.98 | AT140: 26.49 | AU140: 27 | AV140: 27.51 | AW140: 28.02 | AX140: 28.53 | AY140: 29.04 | AZ140: 29.55 | BA140: 30.06 | BB140: 30.57 | BC140: 31.08 | BD140: 31.59 | BE140: 32.1 | BF140: 32.61 | BG140: 33.12 | BH140: 33.63 | BI140: 34.14 | BJ140: 34.65 | BK140: 35.16 | BL140: 35.67 | BM140: 36.18 | BN140: 36.69 | BO140: 37.2 | BP140: 37.71 | BQ140: 38.22 | BR140: 38.73 | BS140: 39.24 | BT140: 39.75 | BU140: 40.26 | BV140: 40.77 | BW140: 41.28 | BX140: 41.79 | BY140: 42.3 | BZ140: 42.81 | CA140: 43.32 | CB140: 43.83 | CC140: 44.34 | CD140: 44.85 | CE140: 45.36 | CF140: 45.87 | CG140: 46.38 | CH140: 46.89 | CI140: 47.4 | CJ140: 47.91 | CK140: 48.42 | CL140: 48.93 | CM140: 49.44 | CN140: 49.95 | CO140: 50.46 | CP140: 50.97 | CQ140: 51.48 | CR140: 51.99 | CS140: 52.5 | CT140: 53.01 | CU140: 53.52 | CV140: 54.03 | CW140: 54.54 | CX140: 55.05 | CY140: 55.56 | CZ140: 56.07 | DA140: 56.58 | DB140: 57.09 | DC140: 57.6 | DD140: 58.11 | DE140: 58.62 | DF140: 59.13 | DG140: 59.64 | DH140: 60.15 | DI140: 60.66 | DJ140: 61.17 | DK140: 61.68 | DL140: 62.19 | DM140: 62.7 | DN140: 63.21 | DO140: 63.72 | DP140: 64.23 | DQ140: 64.74 | DR140: 65.25 | DS140: 65.76 | DT140: 66.27 | DU140: 66.78 | DV140: 67.29 | DW140: 67.8 | DX140: 68.31 | DY140: 68.82 | DZ140: 69.33 | EA140: 69.84 | EB140: 70.35 | EC140: 70.86 | ED140: 71.37 | EE140: 71.88 | EF140: 72.39 | EG140: 72.9 | EH140: 73.41 | EI140: 73.92 | EJ140: 74.43 | EK140: 74.94 | EL140: 75.45 | EM140: 75.96 | EN140: 76.47 | EO140: 76.98 | EP140: 77.49 | EQ140: 78 | ER140: 78.51 | ES140: 79.02 | ET140: 79.53 | EU140: 80.04 | EV140: 80.55 | EW140: 81.06 | EX140: 81.57 | EY140: 82.08 | EZ140: 82.59 | FA140: 83.1 | FB140: 83.61 | FC140: 84.12 | FD140: 84.63 | FE140: 85.14 | FF140: 85.65 | FG140: 86.16 | FH140: 86.67 | FI140: 87.18 | FJ140: 87.69 | FK140: 88.2 | FL140: 88.71 | FM140: 89.22 | FN140: 89.73 | FO140: 90.24 | FP140: 90.75 | FQ140: 91.26 | FR140: 91.77 | FS140: 92.28 | FT140: 92.79 | FU140: 93.3 | FV140: 93.81 | FW140: 94.32 | FX140: 94.83 | FY140: 95.34 | FZ140: 95.85 | GA140: 96.36 | GB140: 96.87 | GC140: 97.38 | GD140: 97.89 | GE140: 98.4 | GF140: 98.91 | GG140: 99.42 | GH140: 99.93 | GI140: 100.44 | GJ140: 100.95 | GK140: 101.46 | GL140: 101.97 | GM140: 102.48 | GN140: 102.99 | GO140: 103.5 | GP140: 104.01 | GQ140: 104.52 | GR140: 105.03 | GS140: 105.54 | GT140: 106.05 | GU140: 106.56 | GV140: 107.07 | GW140: 107.58
A141: 21 | B141: Côte-d'Or | D141: Oui | F141: 6.09 | G141: 6.6 | H141: 7.11 | I141: 7.62 | J141: 8.13 | K141: 8.64 | L141: 9.15 | M141: 9.66 | N141: 10.17 | O141: 10.68 | P141: 11.19 | Q141: 11.7 | R141: 12.21 | S141: 12.72 | T141: 13.23 | U141: 13.74 | V141: 14.25 | W141: 14.76 | X141: 15.27 | Y141: 15.78 | Z141: 16.29 | AA141: 16.8 | AB141: 17.31 | AC141: 17.82 | AD141: 18.33 | AE141: 18.84 | AF141: 19.35 | AG141: 19.86 | AH141: 20.37 | AI141: 20.88 | AJ141: 21.39 | AK141: 21.9 | AL141: 22.41 | AM141: 22.92 | AN141: 23.43 | AO141: 23.94 | AP141: 24.45 | AQ141: 24.96 | AR141: 25.47 | AS141: 25.98 | AT141: 26.49 | AU141: 27 | AV141: 27.51 | AW141: 28.02 | AX141: 28.53 | AY141: 29.04 | AZ141: 29.55 | BA141: 30.06 | BB141: 30.57 | BC141: 31.08 | BD141: 31.59 | BE141: 32.1 | BF141: 32.61 | BG141: 33.12 | BH141: 33.63 | BI141: 34.14 | BJ141: 34.65 | BK141: 35.16 | BL141: 35.67 | BM141: 36.18 | BN141: 36.69 | BO141: 37.2 | BP141: 37.71 | BQ141: 38.22 | BR141: 38.73 | BS141: 39.24 | BT141: 39.75 | BU141: 40.26 | BV141: 40.77 | BW141: 41.28 | BX141: 41.79 | BY141: 42.3 | BZ141: 42.81 | CA141: 43.32 | CB141: 43.83 | CC141: 44.34 | CD141: 44.85 | CE141: 45.36 | CF141: 45.87 | CG141: 46.38 | CH141: 46.89 | CI141: 47.4 | CJ141: 47.91 | CK141: 48.42 | CL141: 48.93 | CM141: 49.44 | CN141: 49.95 | CO141: 50.46 | CP141: 50.97 | CQ141: 51.48 | CR141: 51.99 | CS141: 52.5 | CT141: 53.01 | CU141: 53.52 | CV141: 54.03 | CW141: 54.54 | CX141: 55.05 | CY141: 55.56 | CZ141: 56.07 | DA141: 56.58 | DB141: 57.09 | DC141: 57.6 | DD141: 58.11 | DE141: 58.62 | DF141: 59.13 | DG141: 59.64 | DH141: 60.15 | DI141: 60.66 | DJ141: 61.17 | DK141: 61.68 | DL141: 62.19 | DM141: 62.7 | DN141: 63.21 | DO141: 63.72 | DP141: 64.23 | DQ141: 64.74 | DR141: 65.25 | DS141: 65.76 | DT141: 66.27 | DU141: 66.78 | DV141: 67.29 | DW141: 67.8 | DX141: 68.31 | DY141: 68.82 | DZ141: 69.33 | EA141: 69.84 | EB141: 70.35 | EC141: 70.86 | ED141: 71.37 | EE141: 71.88 | EF141: 72.39 | EG141: 72.9 | EH141: 73.41 | EI141: 73.92 | EJ141: 74.43 | EK141: 74.94 | EL141: 75.45 | EM141: 75.96 | EN141: 76.47 | EO141: 76.98 | EP141: 77.49 | EQ141: 78 | ER141: 78.51 | ES141: 79.02 | ET141: 79.53 | EU141: 80.04 | EV141: 80.55 | EW141: 81.06 | EX141: 81.57 | EY141: 82.08 | EZ141: 82.59 | FA141: 83.1 | FB141: 83.61 | FC141: 84.12 | FD141: 84.63 | FE141: 85.14 | FF141: 85.65 | FG141: 86.16 | FH141: 86.67 | FI141: 87.18 | FJ141: 87.69 | FK141: 88.2 | FL141: 88.71 | FM141: 89.22 | FN141: 89.73 | FO141: 90.24 | FP141: 90.75 | FQ141: 91.26 | FR141: 91.77 | FS141: 92.28 | FT141: 92.79 | FU141: 93.3 | FV141: 93.81 | FW141: 94.32 | FX141: 94.83 | FY141: 95.34 | FZ141: 95.85 | GA141: 96.36 | GB141: 96.87 | GC141: 97.38 | GD141: 97.89 | GE141: 98.4 | GF141: 98.91 | GG141: 99.42 | GH141: 99.93 | GI141: 100.44 | GJ141: 100.95 | GK141: 101.46 | GL141: 101.97 | GM141: 102.48 | GN141: 102.99 | GO141: 103.5 | GP141: 104.01 | GQ141: 104.52 | GR141: 105.03 | GS141: 105.54 | GT141: 106.05 | GU141: 106.56 | GV141: 107.07 | GW141: 107.58
A142: 22 | B142: Côtes d'Armor | D142: Oui | F142: 6.09 | G142: 6.6 | H142: 7.11 | I142: 7.62 | J142: 8.13 | K142: 8.64 | L142: 9.15 | M142: 9.66 | N142: 10.17 | O142: 10.68 | P142: 11.19 | Q142: 11.7 | R142: 12.21 | S142: 12.72 | T142: 13.23 | U142: 13.74 | V142: 14.25 | W142: 14.76 | X142: 15.27 | Y142: 15.78 | Z142: 16.29 | AA142: 16.8 | AB142: 17.31 | AC142: 17.82 | AD142: 18.33 | AE142: 18.84 | AF142: 19.35 | AG142: 19.86 | AH142: 20.37 | AI142: 20.88 | AJ142: 21.39 | AK142: 21.9 | AL142: 22.41 | AM142: 22.92 | AN142: 23.43 | AO142: 23.94 | AP142: 24.45 | AQ142: 24.96 | AR142: 25.47 | AS142: 25.98 | AT142: 26.49 | AU142: 27 | AV142: 27.51 | AW142: 28.02 | AX142: 28.53 | AY142: 29.04 | AZ142: 29.55 | BA142: 30.06 | BB142: 30.57 | BC142: 31.08 | BD142: 31.59 | BE142: 32.1 | BF142: 32.61 | BG142: 33.12 | BH142: 33.63 | BI142: 34.14 | BJ142: 34.65 | BK142: 35.16 | BL142: 35.67 | BM142: 36.18 | BN142: 36.69 | BO142: 37.2 | BP142: 37.71 | BQ142: 38.22 | BR142: 38.73 | BS142: 39.24 | BT142: 39.75 | BU142: 40.26 | BV142: 40.77 | BW142: 41.28 | BX142: 41.79 | BY142: 42.3 | BZ142: 42.81 | CA142: 43.32 | CB142: 43.83 | CC142: 44.34 | CD142: 44.85 | CE142: 45.36 | CF142: 45.87 | CG142: 46.38 | CH142: 46.89 | CI142: 47.4 | CJ142: 47.91 | CK142: 48.42 | CL142: 48.93 | CM142: 49.44 | CN142: 49.95 | CO142: 50.46 | CP142: 50.97 | CQ142: 51.48 | CR142: 51.99 | CS142: 52.5 | CT142: 53.01 | CU142: 53.52 | CV142: 54.03 | CW142: 54.54 | CX142: 55.05 | CY142: 55.56 | CZ142: 56.07 | DA142: 56.58 | DB142: 57.09 | DC142: 57.6 | DD142: 58.11 | DE142: 58.62 | DF142: 59.13 | DG142: 59.64 | DH142: 60.15 | DI142: 60.66 | DJ142: 61.17 | DK142: 61.68 | DL142: 62.19 | DM142: 62.7 | DN142: 63.21 | DO142: 63.72 | DP142: 64.23 | DQ142: 64.74 | DR142: 65.25 | DS142: 65.76 | DT142: 66.27 | DU142: 66.78 | DV142: 67.29 | DW142: 67.8 | DX142: 68.31 | DY142: 68.82 | DZ142: 69.33 | EA142: 69.84 | EB142: 70.35 | EC142: 70.86 | ED142: 71.37 | EE142: 71.88 | EF142: 72.39 | EG142: 72.9 | EH142: 73.41 | EI142: 73.92 | EJ142: 74.43 | EK142: 74.94 | EL142: 75.45 | EM142: 75.96 | EN142: 76.47 | EO142: 76.98 | EP142: 77.49 | EQ142: 78 | ER142: 78.51 | ES142: 79.02 | ET142: 79.53 | EU142: 80.04 | EV142: 80.55 | EW142: 81.06 | EX142: 81.57 | EY142: 82.08 | EZ142: 82.59 | FA142: 83.1 | FB142: 83.61 | FC142: 84.12 | FD142: 84.63 | FE142: 85.14 | FF142: 85.65 | FG142: 86.16 | FH142: 86.67 | FI142: 87.18 | FJ142: 87.69 | FK142: 88.2 | FL142: 88.71 | FM142: 89.22 | FN142: 89.73 | FO142: 90.24 | FP142: 90.75 | FQ142: 91.26 | FR142: 91.77 | FS142: 92.28 | FT142: 92.79 | FU142: 93.3 | FV142: 93.81 | FW142: 94.32 | FX142: 94.83 | FY142: 95.34 | FZ142: 95.85 | GA142: 96.36 | GB142: 96.87 | GC142: 97.38 | GD142: 97.89 | GE142: 98.4 | GF142: 98.91 | GG142: 99.42 | GH142: 99.93 | GI142: 100.44 | GJ142: 100.95 | GK142: 101.46 | GL142: 101.97 | GM142: 102.48 | GN142: 102.99 | GO142: 103.5 | GP142: 104.01 | GQ142: 104.52 | GR142: 105.03 | GS142: 105.54 | GT142: 106.05 | GU142: 106.56 | GV142: 107.07 | GW142: 107.58
A143: 23 | B143: Creuse | D143: Oui | F143: 6.09 | G143: 6.6 | H143: 7.11 | I143: 7.62 | J143: 8.13 | K143: 8.64 | L143: 9.15 | M143: 9.66 | N143: 10.17 | O143: 10.68 | P143: 11.19 | Q143: 11.7 | R143: 12.21 | S143: 12.72 | T143: 13.23 | U143: 13.74 | V143: 14.25 | W143: 14.76 | X143: 15.27 | Y143: 15.78 | Z143: 16.29 | AA143: 16.8 | AB143: 17.31 | AC143: 17.82 | AD143: 18.33 | AE143: 18.84 | AF143: 19.35 | AG143: 19.86 | AH143: 20.37 | AI143: 20.88 | AJ143: 21.39 | AK143: 21.9 | AL143: 22.41 | AM143: 22.92 | AN143: 23.43 | AO143: 23.94 | AP143: 24.45 | AQ143: 24.96 | AR143: 25.47 | AS143: 25.98 | AT143: 26.49 | AU143: 27 | AV143: 27.51 | AW143: 28.02 | AX143: 28.53 | AY143: 29.04 | AZ143: 29.55 | BA143: 30.06 | BB143: 30.57 | BC143: 31.08 | BD143: 31.59 | BE143: 32.1 | BF143: 32.61 | BG143: 33.12 | BH143: 33.63 | BI143: 34.14 | BJ143: 34.65 | BK143: 35.16 | BL143: 35.67 | BM143: 36.18 | BN143: 36.69 | BO143: 37.2 | BP143: 37.71 | BQ143: 38.22 | BR143: 38.73 | BS143: 39.24 | BT143: 39.75 | BU143: 40.26 | BV143: 40.77 | BW143: 41.28 | BX143: 41.79 | BY143: 42.3 | BZ143: 42.81 | CA143: 43.32 | CB143: 43.83 | CC143: 44.34 | CD143: 44.85 | CE143: 45.36 | CF143: 45.87 | CG143: 46.38 | CH143: 46.89 | CI143: 47.4 | CJ143: 47.91 | CK143: 48.42 | CL143: 48.93 | CM143: 49.44 | CN143: 49.95 | CO143: 50.46 | CP143: 50.97 | CQ143: 51.48 | CR143: 51.99 | CS143: 52.5 | CT143: 53.01 | CU143: 53.52 | CV143: 54.03 | CW143: 54.54 | CX143: 55.05 | CY143: 55.56 | CZ143: 56.07 | DA143: 56.58 | DB143: 57.09 | DC143: 57.6 | DD143: 58.11 | DE143: 58.62 | DF143: 59.13 | DG143: 59.64 | DH143: 60.15 | DI143: 60.66 | DJ143: 61.17 | DK143: 61.68 | DL143: 62.19 | DM143: 62.7 | DN143: 63.21 | DO143: 63.72 | DP143: 64.23 | DQ143: 64.74 | DR143: 65.25 | DS143: 65.76 | DT143: 66.27 | DU143: 66.78 | DV143: 67.29 | DW143: 67.8 | DX143: 68.31 | DY143: 68.82 | DZ143: 69.33 | EA143: 69.84 | EB143: 70.35 | EC143: 70.86 | ED143: 71.37 | EE143: 71.88 | EF143: 72.39 | EG143: 72.9 | EH143: 73.41 | EI143: 73.92 | EJ143: 74.43 | EK143: 74.94 | EL143: 75.45 | EM143: 75.96 | EN143: 76.47 | EO143: 76.98 | EP143: 77.49 | EQ143: 78 | ER143: 78.51 | ES143: 79.02 | ET143: 79.53 | EU143: 80.04 | EV143: 80.55 | EW143: 81.06 | EX143: 81.57 | EY143: 82.08 | EZ143: 82.59 | FA143: 83.1 | FB143: 83.61 | FC143: 84.12 | FD143: 84.63 | FE143: 85.14 | FF143: 85.65 | FG143: 86.16 | FH143: 86.67 | FI143: 87.18 | FJ143: 87.69 | FK143: 88.2 | FL143: 88.71 | FM143: 89.22 | FN143: 89.73 | FO143: 90.24 | FP143: 90.75 | FQ143: 91.26 | FR143: 91.77 | FS143: 92.28 | FT143: 92.79 | FU143: 93.3 | FV143: 93.81 | FW143: 94.32 | FX143: 94.83 | FY143: 95.34 | FZ143: 95.85 | GA143: 96.36 | GB143: 96.87 | GC143: 97.38 | GD143: 97.89 | GE143: 98.4 | GF143: 98.91 | GG143: 99.42 | GH143: 99.93 | GI143: 100.44 | GJ143: 100.95 | GK143: 101.46 | GL143: 101.97 | GM143: 102.48 | GN143: 102.99 | GO143: 103.5 | GP143: 104.01 | GQ143: 104.52 | GR143: 105.03 | GS143: 105.54 | GT143: 106.05 | GU143: 106.56 | GV143: 107.07 | GW143: 107.58
A144: 24 | B144: Dordogne | D144: Oui | F144: 6.09 | G144: 6.6 | H144: 7.11 | I144: 7.62 | J144: 8.13 | K144: 8.64 | L144: 9.15 | M144: 9.66 | N144: 10.17 | O144: 10.68 | P144: 11.19 | Q144: 11.7 | R144: 12.21 | S144: 12.72 | T144: 13.23 | U144: 13.74 | V144: 14.25 | W144: 14.76 | X144: 15.27 | Y144: 15.78 | Z144: 16.29 | AA144: 16.8 | AB144: 17.31 | AC144: 17.82 | AD144: 18.33 | AE144: 18.84 | AF144: 19.35 | AG144: 19.86 | AH144: 20.37 | AI144: 20.88 | AJ144: 21.39 | AK144: 21.9 | AL144: 22.41 | AM144: 22.92 | AN144: 23.43 | AO144: 23.94 | AP144: 24.45 | AQ144: 24.96 | AR144: 25.47 | AS144: 25.98 | AT144: 26.49 | AU144: 27 | AV144: 27.51 | AW144: 28.02 | AX144: 28.53 | AY144: 29.04 | AZ144: 29.55 | BA144: 30.06 | BB144: 30.57 | BC144: 31.08 | BD144: 31.59 | BE144: 32.1 | BF144: 32.61 | BG144: 33.12 | BH144: 33.63 | BI144: 34.14 | BJ144: 34.65 | BK144: 35.16 | BL144: 35.67 | BM144: 36.18 | BN144: 36.69 | BO144: 37.2 | BP144: 37.71 | BQ144: 38.22 | BR144: 38.73 | BS144: 39.24 | BT144: 39.75 | BU144: 40.26 | BV144: 40.77 | BW144: 41.28 | BX144: 41.79 | BY144: 42.3 | BZ144: 42.81 | CA144: 43.32 | CB144: 43.83 | CC144: 44.34 | CD144: 44.85 | CE144: 45.36 | CF144: 45.87 | CG144: 46.38 | CH144: 46.89 | CI144: 47.4 | CJ144: 47.91 | CK144: 48.42 | CL144: 48.93 | CM144: 49.44 | CN144: 49.95 | CO144: 50.46 | CP144: 50.97 | CQ144: 51.48 | CR144: 51.99 | CS144: 52.5 | CT144: 53.01 | CU144: 53.52 | CV144: 54.03 | CW144: 54.54 | CX144: 55.05 | CY144: 55.56 | CZ144: 56.07 | DA144: 56.58 | DB144: 57.09 | DC144: 57.6 | DD144: 58.11 | DE144: 58.62 | DF144: 59.13 | DG144: 59.64 | DH144: 60.15 | DI144: 60.66 | DJ144: 61.17 | DK144: 61.68 | DL144: 62.19 | DM144: 62.7 | DN144: 63.21 | DO144: 63.72 | DP144: 64.23 | DQ144: 64.74 | DR144: 65.25 | DS144: 65.76 | DT144: 66.27 | DU144: 66.78 | DV144: 67.29 | DW144: 67.8 | DX144: 68.31 | DY144: 68.82 | DZ144: 69.33 | EA144: 69.84 | EB144: 70.35 | EC144: 70.86 | ED144: 71.37 | EE144: 71.88 | EF144: 72.39 | EG144: 72.9 | EH144: 73.41 | EI144: 73.92 | EJ144: 74.43 | EK144: 74.94 | EL144: 75.45 | EM144: 75.96 | EN144: 76.47 | EO144: 76.98 | EP144: 77.49 | EQ144: 78 | ER144: 78.51 | ES144: 79.02 | ET144: 79.53 | EU144: 80.04 | EV144: 80.55 | EW144: 81.06 | EX144: 81.57 | EY144: 82.08 | EZ144: 82.59 | FA144: 83.1 | FB144: 83.61 | FC144: 84.12 | FD144: 84.63 | FE144: 85.14 | FF144: 85.65 | FG144: 86.16 | FH144: 86.67 | FI144: 87.18 | FJ144: 87.69 | FK144: 88.2 | FL144: 88.71 | FM144: 89.22 | FN144: 89.73 | FO144: 90.24 | FP144: 90.75 | FQ144: 91.26 | FR144: 91.77 | FS144: 92.28 | FT144: 92.79 | FU144: 93.3 | FV144: 93.81 | FW144: 94.32 | FX144: 94.83 | FY144: 95.34 | FZ144: 95.85 | GA144: 96.36 | GB144: 96.87 | GC144: 97.38 | GD144: 97.89 | GE144: 98.4 | GF144: 98.91 | GG144: 99.42 | GH144: 99.93 | GI144: 100.44 | GJ144: 100.95 | GK144: 101.46 | GL144: 101.97 | GM144: 102.48 | GN144: 102.99 | GO144: 103.5 | GP144: 104.01 | GQ144: 104.52 | GR144: 105.03 | GS144: 105.54 | GT144: 106.05 | GU144: 106.56 | GV144: 107.07 | GW144: 107.58
A145: 25 | B145: Doubs | D145: Oui | F145: 6.09 | G145: 6.6 | H145: 7.11 | I145: 7.62 | J145: 8.13 | K145: 8.64 | L145: 9.15 | M145: 9.66 | N145: 10.17 | O145: 10.68 | P145: 11.19 | Q145: 11.7 | R145: 12.21 | S145: 12.72 | T145: 13.23 | U145: 13.74 | V145: 14.25 | W145: 14.76 | X145: 15.27 | Y145: 15.78 | Z145: 16.29 | AA145: 16.8 | AB145: 17.31 | AC145: 17.82 | AD145: 18.33 | AE145: 18.84 | AF145: 19.35 | AG145: 19.86 | AH145: 20.37 | AI145: 20.88 | AJ145: 21.39 | AK145: 21.9 | AL145: 22.41 | AM145: 22.92 | AN145: 23.43 | AO145: 23.94 | AP145: 24.45 | AQ145: 24.96 | AR145: 25.47 | AS145: 25.98 | AT145: 26.49 | AU145: 27 | AV145: 27.51 | AW145: 28.02 | AX145: 28.53 | AY145: 29.04 | AZ145: 29.55 | BA145: 30.06 | BB145: 30.57 | BC145: 31.08 | BD145: 31.59 | BE145: 32.1 | BF145: 32.61 | BG145: 33.12 | BH145: 33.63 | BI145: 34.14 | BJ145: 34.65 | BK145: 35.16 | BL145: 35.67 | BM145: 36.18 | BN145: 36.69 | BO145: 37.2 | BP145: 37.71 | BQ145: 38.22 | BR145: 38.73 | BS145: 39.24 | BT145: 39.75 | BU145: 40.26 | BV145: 40.77 | BW145: 41.28 | BX145: 41.79 | BY145: 42.3 | BZ145: 42.81 | CA145: 43.32 | CB145: 43.83 | CC145: 44.34 | CD145: 44.85 | CE145: 45.36 | CF145: 45.87 | CG145: 46.38 | CH145: 46.89 | CI145: 47.4 | CJ145: 47.91 | CK145: 48.42 | CL145: 48.93 | CM145: 49.44 | CN145: 49.95 | CO145: 50.46 | CP145: 50.97 | CQ145: 51.48 | CR145: 51.99 | CS145: 52.5 | CT145: 53.01 | CU145: 53.52 | CV145: 54.03 | CW145: 54.54 | CX145: 55.05 | CY145: 55.56 | CZ145: 56.07 | DA145: 56.58 | DB145: 57.09 | DC145: 57.6 | DD145: 58.11 | DE145: 58.62 | DF145: 59.13 | DG145: 59.64 | DH145: 60.15 | DI145: 60.66 | DJ145: 61.17 | DK145: 61.68 | DL145: 62.19 | DM145: 62.7 | DN145: 63.21 | DO145: 63.72 | DP145: 64.23 | DQ145: 64.74 | DR145: 65.25 | DS145: 65.76 | DT145: 66.27 | DU145: 66.78 | DV145: 67.29 | DW145: 67.8 | DX145: 68.31 | DY145: 68.82 | DZ145: 69.33 | EA145: 69.84 | EB145: 70.35 | EC145: 70.86 | ED145: 71.37 | EE145: 71.88 | EF145: 72.39 | EG145: 72.9 | EH145: 73.41 | EI145: 73.92 | EJ145: 74.43 | EK145: 74.94 | EL145: 75.45 | EM145: 75.96 | EN145: 76.47 | EO145: 76.98 | EP145: 77.49 | EQ145: 78 | ER145: 78.51 | ES145: 79.02 | ET145: 79.53 | EU145: 80.04 | EV145: 80.55 | EW145: 81.06 | EX145: 81.57 | EY145: 82.08 | EZ145: 82.59 | FA145: 83.1 | FB145: 83.61 | FC145: 84.12 | FD145: 84.63 | FE145: 85.14 | FF145: 85.65 | FG145: 86.16 | FH145: 86.67 | FI145: 87.18 | FJ145: 87.69 | FK145: 88.2 | FL145: 88.71 | FM145: 89.22 | FN145: 89.73 | FO145: 90.24 | FP145: 90.75 | FQ145: 91.26 | FR145: 91.77 | FS145: 92.28 | FT145: 92.79 | FU145: 93.3 | FV145: 93.81 | FW145: 94.32 | FX145: 94.83 | FY145: 95.34 | FZ145: 95.85 | GA145: 96.36 | GB145: 96.87 | GC145: 97.38 | GD145: 97.89 | GE145: 98.4 | GF145: 98.91 | GG145: 99.42 | GH145: 99.93 | GI145: 100.44 | GJ145: 100.95 | GK145: 101.46 | GL145: 101.97 | GM145: 102.48 | GN145: 102.99 | GO145: 103.5 | GP145: 104.01 | GQ145: 104.52 | GR145: 105.03 | GS145: 105.54 | GT145: 106.05 | GU145: 106.56 | GV145: 107.07 | GW145: 107.58
A146: 26 | B146: Drôme | D146: Oui | F146: 6.09 | G146: 6.6 | H146: 7.11 | I146: 7.62 | J146: 8.13 | K146: 8.64 | L146: 9.15 | M146: 9.66 | N146: 10.17 | O146: 10.68 | P146: 11.19 | Q146: 11.7 | R146: 12.21 | S146: 12.72 | T146: 13.23 | U146: 13.74 | V146: 14.25 | W146: 14.76 | X146: 15.27 | Y146: 15.78 | Z146: 16.29 | AA146: 16.8 | AB146: 17.31 | AC146: 17.82 | AD146: 18.33 | AE146: 18.84 | AF146: 19.35 | AG146: 19.86 | AH146: 20.37 | AI146: 20.88 | AJ146: 21.39 | AK146: 21.9 | AL146: 22.41 | AM146: 22.92 | AN146: 23.43 | AO146: 23.94 | AP146: 24.45 | AQ146: 24.96 | AR146: 25.47 | AS146: 25.98 | AT146: 26.49 | AU146: 27 | AV146: 27.51 | AW146: 28.02 | AX146: 28.53 | AY146: 29.04 | AZ146: 29.55 | BA146: 30.06 | BB146: 30.57 | BC146: 31.08 | BD146: 31.59 | BE146: 32.1 | BF146: 32.61 | BG146: 33.12 | BH146: 33.63 | BI146: 34.14 | BJ146: 34.65 | BK146: 35.16 | BL146: 35.67 | BM146: 36.18 | BN146: 36.69 | BO146: 37.2 | BP146: 37.71 | BQ146: 38.22 | BR146: 38.73 | BS146: 39.24 | BT146: 39.75 | BU146: 40.26 | BV146: 40.77 | BW146: 41.28 | BX146: 41.79 | BY146: 42.3 | BZ146: 42.81 | CA146: 43.32 | CB146: 43.83 | CC146: 44.34 | CD146: 44.85 | CE146: 45.36 | CF146: 45.87 | CG146: 46.38 | CH146: 46.89 | CI146: 47.4 | CJ146: 47.91 | CK146: 48.42 | CL146: 48.93 | CM146: 49.44 | CN146: 49.95 | CO146: 50.46 | CP146: 50.97 | CQ146: 51.48 | CR146: 51.99 | CS146: 52.5 | CT146: 53.01 | CU146: 53.52 | CV146: 54.03 | CW146: 54.54 | CX146: 55.05 | CY146: 55.56 | CZ146: 56.07 | DA146: 56.58 | DB146: 57.09 | DC146: 57.6 | DD146: 58.11 | DE146: 58.62 | DF146: 59.13 | DG146: 59.64 | DH146: 60.15 | DI146: 60.66 | DJ146: 61.17 | DK146: 61.68 | DL146: 62.19 | DM146: 62.7 | DN146: 63.21 | DO146: 63.72 | DP146: 64.23 | DQ146: 64.74 | DR146: 65.25 | DS146: 65.76 | DT146: 66.27 | DU146: 66.78 | DV146: 67.29 | DW146: 67.8 | DX146: 68.31 | DY146: 68.82 | DZ146: 69.33 | EA146: 69.84 | EB146: 70.35 | EC146: 70.86 | ED146: 71.37 | EE146: 71.88 | EF146: 72.39 | EG146: 72.9 | EH146: 73.41 | EI146: 73.92 | EJ146: 74.43 | EK146: 74.94 | EL146: 75.45 | EM146: 75.96 | EN146: 76.47 | EO146: 76.98 | EP146: 77.49 | EQ146: 78 | ER146: 78.51 | ES146: 79.02 | ET146: 79.53 | EU146: 80.04 | EV146: 80.55 | EW146: 81.06 | EX146: 81.57 | EY146: 82.08 | EZ146: 82.59 | FA146: 83.1 | FB146: 83.61 | FC146: 84.12 | FD146: 84.63 | FE146: 85.14 | FF146: 85.65 | FG146: 86.16 | FH146: 86.67 | FI146: 87.18 | FJ146: 87.69 | FK146: 88.2 | FL146: 88.71 | FM146: 89.22 | FN146: 89.73 | FO146: 90.24 | FP146: 90.75 | FQ146: 91.26 | FR146: 91.77 | FS146: 92.28 | FT146: 92.79 | FU146: 93.3 | FV146: 93.81 | FW146: 94.32 | FX146: 94.83 | FY146: 95.34 | FZ146: 95.85 | GA146: 96.36 | GB146: 96.87 | GC146: 97.38 | GD146: 97.89 | GE146: 98.4 | GF146: 98.91 | GG146: 99.42 | GH146: 99.93 | GI146: 100.44 | GJ146: 100.95 | GK146: 101.46 | GL146: 101.97 | GM146: 102.48 | GN146: 102.99 | GO146: 103.5 | GP146: 104.01 | GQ146: 104.52 | GR146: 105.03 | GS146: 105.54 | GT146: 106.05 | GU146: 106.56 | GV146: 107.07 | GW146: 107.58
A147: 27 | B147: Eure | D147: Oui | F147: 6.09 | G147: 6.6 | H147: 7.11 | I147: 7.62 | J147: 8.13 | K147: 8.64 | L147: 9.15 | M147: 9.66 | N147: 10.17 | O147: 10.68 | P147: 11.19 | Q147: 11.7 | R147: 12.21 | S147: 12.72 | T147: 13.23 | U147: 13.74 | V147: 14.25 | W147: 14.76 | X147: 15.27 | Y147: 15.78 | Z147: 16.29 | AA147: 16.8 | AB147: 17.31 | AC147: 17.82 | AD147: 18.33 | AE147: 18.84 | AF147: 19.35 | AG147: 19.86 | AH147: 20.37 | AI147: 20.88 | AJ147: 21.39 | AK147: 21.9 | AL147: 22.41 | AM147: 22.92 | AN147: 23.43 | AO147: 23.94 | AP147: 24.45 | AQ147: 24.96 | AR147: 25.47 | AS147: 25.98 | AT147: 26.49 | AU147: 27 | AV147: 27.51 | AW147: 28.02 | AX147: 28.53 | AY147: 29.04 | AZ147: 29.55 | BA147: 30.06 | BB147: 30.57 | BC147: 31.08 | BD147: 31.59 | BE147: 32.1 | BF147: 32.61 | BG147: 33.12 | BH147: 33.63 | BI147: 34.14 | BJ147: 34.65 | BK147: 35.16 | BL147: 35.67 | BM147: 36.18 | BN147: 36.69 | BO147: 37.2 | BP147: 37.71 | BQ147: 38.22 | BR147: 38.73 | BS147: 39.24 | BT147: 39.75 | BU147: 40.26 | BV147: 40.77 | BW147: 41.28 | BX147: 41.79 | BY147: 42.3 | BZ147: 42.81 | CA147: 43.32 | CB147: 43.83 | CC147: 44.34 | CD147: 44.85 | CE147: 45.36 | CF147: 45.87 | CG147: 46.38 | CH147: 46.89 | CI147: 47.4 | CJ147: 47.91 | CK147: 48.42 | CL147: 48.93 | CM147: 49.44 | CN147: 49.95 | CO147: 50.46 | CP147: 50.97 | CQ147: 51.48 | CR147: 51.99 | CS147: 52.5 | CT147: 53.01 | CU147: 53.52 | CV147: 54.03 | CW147: 54.54 | CX147: 55.05 | CY147: 55.56 | CZ147: 56.07 | DA147: 56.58 | DB147: 57.09 | DC147: 57.6 | DD147: 58.11 | DE147: 58.62 | DF147: 59.13 | DG147: 59.64 | DH147: 60.15 | DI147: 60.66 | DJ147: 61.17 | DK147: 61.68 | DL147: 62.19 | DM147: 62.7 | DN147: 63.21 | DO147: 63.72 | DP147: 64.23 | DQ147: 64.74 | DR147: 65.25 | DS147: 65.76 | DT147: 66.27 | DU147: 66.78 | DV147: 67.29 | DW147: 67.8 | DX147: 68.31 | DY147: 68.82 | DZ147: 69.33 | EA147: 69.84 | EB147: 70.35 | EC147: 70.86 | ED147: 71.37 | EE147: 71.88 | EF147: 72.39 | EG147: 72.9 | EH147: 73.41 | EI147: 73.92 | EJ147: 74.43 | EK147: 74.94 | EL147: 75.45 | EM147: 75.96 | EN147: 76.47 | EO147: 76.98 | EP147: 77.49 | EQ147: 78 | ER147: 78.51 | ES147: 79.02 | ET147: 79.53 | EU147: 80.04 | EV147: 80.55 | EW147: 81.06 | EX147: 81.57 | EY147: 82.08 | EZ147: 82.59 | FA147: 83.1 | FB147: 83.61 | FC147: 84.12 | FD147: 84.63 | FE147: 85.14 | FF147: 85.65 | FG147: 86.16 | FH147: 86.67 | FI147: 87.18 | FJ147: 87.69 | FK147: 88.2 | FL147: 88.71 | FM147: 89.22 | FN147: 89.73 | FO147: 90.24 | FP147: 90.75 | FQ147: 91.26 | FR147: 91.77 | FS147: 92.28 | FT147: 92.79 | FU147: 93.3 | FV147: 93.81 | FW147: 94.32 | FX147: 94.83 | FY147: 95.34 | FZ147: 95.85 | GA147: 96.36 | GB147: 96.87 | GC147: 97.38 | GD147: 97.89 | GE147: 98.4 | GF147: 98.91 | GG147: 99.42 | GH147: 99.93 | GI147: 100.44 | GJ147: 100.95 | GK147: 101.46 | GL147: 101.97 | GM147: 102.48 | GN147: 102.99 | GO147: 103.5 | GP147: 104.01 | GQ147: 104.52 | GR147: 105.03 | GS147: 105.54 | GT147: 106.05 | GU147: 106.56 | GV147: 107.07 | GW147: 107.58
A148: 28 | B148: Eure-et-Loir | D148: Oui | F148: 6.09 | G148: 6.6 | H148: 7.11 | I148: 7.62 | J148: 8.13 | K148: 8.64 | L148: 9.15 | M148: 9.66 | N148: 10.17 | O148: 10.68 | P148: 11.19 | Q148: 11.7 | R148: 12.21 | S148: 12.72 | T148: 13.23 | U148: 13.74 | V148: 14.25 | W148: 14.76 | X148: 15.27 | Y148: 15.78 | Z148: 16.29 | AA148: 16.8 | AB148: 17.31 | AC148: 17.82 | AD148: 18.33 | AE148: 18.84 | AF148: 19.35 | AG148: 19.86 | AH148: 20.37 | AI148: 20.88 | AJ148: 21.39 | AK148: 21.9 | AL148: 22.41 | AM148: 22.92 | AN148: 23.43 | AO148: 23.94 | AP148: 24.45 | AQ148: 24.96 | AR148: 25.47 | AS148: 25.98 | AT148: 26.49 | AU148: 27 | AV148: 27.51 | AW148: 28.02 | AX148: 28.53 | AY148: 29.04 | AZ148: 29.55 | BA148: 30.06 | BB148: 30.57 | BC148: 31.08 | BD148: 31.59 | BE148: 32.1 | BF148: 32.61 | BG148: 33.12 | BH148: 33.63 | BI148: 34.14 | BJ148: 34.65 | BK148: 35.16 | BL148: 35.67 | BM148: 36.18 | BN148: 36.69 | BO148: 37.2 | BP148: 37.71 | BQ148: 38.22 | BR148: 38.73 | BS148: 39.24 | BT148: 39.75 | BU148: 40.26 | BV148: 40.77 | BW148: 41.28 | BX148: 41.79 | BY148: 42.3 | BZ148: 42.81 | CA148: 43.32 | CB148: 43.83 | CC148: 44.34 | CD148: 44.85 | CE148: 45.36 | CF148: 45.87 | CG148: 46.38 | CH148: 46.89 | CI148: 47.4 | CJ148: 47.91 | CK148: 48.42 | CL148: 48.93 | CM148: 49.44 | CN148: 49.95 | CO148: 50.46 | CP148: 50.97 | CQ148: 51.48 | CR148: 51.99 | CS148: 52.5 | CT148: 53.01 | CU148: 53.52 | CV148: 54.03 | CW148: 54.54 | CX148: 55.05 | CY148: 55.56 | CZ148: 56.07 | DA148: 56.58 | DB148: 57.09 | DC148: 57.6 | DD148: 58.11 | DE148: 58.62 | DF148: 59.13 | DG148: 59.64 | DH148: 60.15 | DI148: 60.66 | DJ148: 61.17 | DK148: 61.68 | DL148: 62.19 | DM148: 62.7 | DN148: 63.21 | DO148: 63.72 | DP148: 64.23 | DQ148: 64.74 | DR148: 65.25 | DS148: 65.76 | DT148: 66.27 | DU148: 66.78 | DV148: 67.29 | DW148: 67.8 | DX148: 68.31 | DY148: 68.82 | DZ148: 69.33 | EA148: 69.84 | EB148: 70.35 | EC148: 70.86 | ED148: 71.37 | EE148: 71.88 | EF148: 72.39 | EG148: 72.9 | EH148: 73.41 | EI148: 73.92 | EJ148: 74.43 | EK148: 74.94 | EL148: 75.45 | EM148: 75.96 | EN148: 76.47 | EO148: 76.98 | EP148: 77.49 | EQ148: 78 | ER148: 78.51 | ES148: 79.02 | ET148: 79.53 | EU148: 80.04 | EV148: 80.55 | EW148: 81.06 | EX148: 81.57 | EY148: 82.08 | EZ148: 82.59 | FA148: 83.1 | FB148: 83.61 | FC148: 84.12 | FD148: 84.63 | FE148: 85.14 | FF148: 85.65 | FG148: 86.16 | FH148: 86.67 | FI148: 87.18 | FJ148: 87.69 | FK148: 88.2 | FL148: 88.71 | FM148: 89.22 | FN148: 89.73 | FO148: 90.24 | FP148: 90.75 | FQ148: 91.26 | FR148: 91.77 | FS148: 92.28 | FT148: 92.79 | FU148: 93.3 | FV148: 93.81 | FW148: 94.32 | FX148: 94.83 | FY148: 95.34 | FZ148: 95.85 | GA148: 96.36 | GB148: 96.87 | GC148: 97.38 | GD148: 97.89 | GE148: 98.4 | GF148: 98.91 | GG148: 99.42 | GH148: 99.93 | GI148: 100.44 | GJ148: 100.95 | GK148: 101.46 | GL148: 101.97 | GM148: 102.48 | GN148: 102.99 | GO148: 103.5 | GP148: 104.01 | GQ148: 104.52 | GR148: 105.03 | GS148: 105.54 | GT148: 106.05 | GU148: 106.56 | GV148: 107.07 | GW148: 107.58
A149: 29 | B149: Finistère | D149: Oui | F149: 6.09 | G149: 6.6 | H149: 7.11 | I149: 7.62 | J149: 8.13 | K149: 8.64 | L149: 9.15 | M149: 9.66 | N149: 10.17 | O149: 10.68 | P149: 11.19 | Q149: 11.7 | R149: 12.21 | S149: 12.72 | T149: 13.23 | U149: 13.74 | V149: 14.25 | W149: 14.76 | X149: 15.27 | Y149: 15.78 | Z149: 16.29 | AA149: 16.8 | AB149: 17.31 | AC149: 17.82 | AD149: 18.33 | AE149: 18.84 | AF149: 19.35 | AG149: 19.86 | AH149: 20.37 | AI149: 20.88 | AJ149: 21.39 | AK149: 21.9 | AL149: 22.41 | AM149: 22.92 | AN149: 23.43 | AO149: 23.94 | AP149: 24.45 | AQ149: 24.96 | AR149: 25.47 | AS149: 25.98 | AT149: 26.49 | AU149: 27 | AV149: 27.51 | AW149: 28.02 | AX149: 28.53 | AY149: 29.04 | AZ149: 29.55 | BA149: 30.06 | BB149: 30.57 | BC149: 31.08 | BD149: 31.59 | BE149: 32.1 | BF149: 32.61 | BG149: 33.12 | BH149: 33.63 | BI149: 34.14 | BJ149: 34.65 | BK149: 35.16 | BL149: 35.67 | BM149: 36.18 | BN149: 36.69 | BO149: 37.2 | BP149: 37.71 | BQ149: 38.22 | BR149: 38.73 | BS149: 39.24 | BT149: 39.75 | BU149: 40.26 | BV149: 40.77 | BW149: 41.28 | BX149: 41.79 | BY149: 42.3 | BZ149: 42.81 | CA149: 43.32 | CB149: 43.83 | CC149: 44.34 | CD149: 44.85 | CE149: 45.36 | CF149: 45.87 | CG149: 46.38 | CH149: 46.89 | CI149: 47.4 | CJ149: 47.91 | CK149: 48.42 | CL149: 48.93 | CM149: 49.44 | CN149: 49.95 | CO149: 50.46 | CP149: 50.97 | CQ149: 51.48 | CR149: 51.99 | CS149: 52.5 | CT149: 53.01 | CU149: 53.52 | CV149: 54.03 | CW149: 54.54 | CX149: 55.05 | CY149: 55.56 | CZ149: 56.07 | DA149: 56.58 | DB149: 57.09 | DC149: 57.6 | DD149: 58.11 | DE149: 58.62 | DF149: 59.13 | DG149: 59.64 | DH149: 60.15 | DI149: 60.66 | DJ149: 61.17 | DK149: 61.68 | DL149: 62.19 | DM149: 62.7 | DN149: 63.21 | DO149: 63.72 | DP149: 64.23 | DQ149: 64.74 | DR149: 65.25 | DS149: 65.76 | DT149: 66.27 | DU149: 66.78 | DV149: 67.29 | DW149: 67.8 | DX149: 68.31 | DY149: 68.82 | DZ149: 69.33 | EA149: 69.84 | EB149: 70.35 | EC149: 70.86 | ED149: 71.37 | EE149: 71.88 | EF149: 72.39 | EG149: 72.9 | EH149: 73.41 | EI149: 73.92 | EJ149: 74.43 | EK149: 74.94 | EL149: 75.45 | EM149: 75.96 | EN149: 76.47 | EO149: 76.98 | EP149: 77.49 | EQ149: 78 | ER149: 78.51 | ES149: 79.02 | ET149: 79.53 | EU149: 80.04 | EV149: 80.55 | EW149: 81.06 | EX149: 81.57 | EY149: 82.08 | EZ149: 82.59 | FA149: 83.1 | FB149: 83.61 | FC149: 84.12 | FD149: 84.63 | FE149: 85.14 | FF149: 85.65 | FG149: 86.16 | FH149: 86.67 | FI149: 87.18 | FJ149: 87.69 | FK149: 88.2 | FL149: 88.71 | FM149: 89.22 | FN149: 89.73 | FO149: 90.24 | FP149: 90.75 | FQ149: 91.26 | FR149: 91.77 | FS149: 92.28 | FT149: 92.79 | FU149: 93.3 | FV149: 93.81 | FW149: 94.32 | FX149: 94.83 | FY149: 95.34 | FZ149: 95.85 | GA149: 96.36 | GB149: 96.87 | GC149: 97.38 | GD149: 97.89 | GE149: 98.4 | GF149: 98.91 | GG149: 99.42 | GH149: 99.93 | GI149: 100.44 | GJ149: 100.95 | GK149: 101.46 | GL149: 101.97 | GM149: 102.48 | GN149: 102.99 | GO149: 103.5 | GP149: 104.01 | GQ149: 104.52 | GR149: 105.03 | GS149: 105.54 | GT149: 106.05 | GU149: 106.56 | GV149: 107.07 | GW149: 107.58
A150: 30 | B150: Gard | D150: Oui | F150: 6.09 | G150: 6.6 | H150: 7.11 | I150: 7.62 | J150: 8.13 | K150: 8.64 | L150: 9.15 | M150: 9.66 | N150: 10.17 | O150: 10.68 | P150: 11.19 | Q150: 11.7 | R150: 12.21 | S150: 12.72 | T150: 13.23 | U150: 13.74 | V150: 14.25 | W150: 14.76 | X150: 15.27 | Y150: 15.78 | Z150: 16.29 | AA150: 16.8 | AB150: 17.31 | AC150: 17.82 | AD150: 18.33 | AE150: 18.84 | AF150: 19.35 | AG150: 19.86 | AH150: 20.37 | AI150: 20.88 | AJ150: 21.39 | AK150: 21.9 | AL150: 22.41 | AM150: 22.92 | AN150: 23.43 | AO150: 23.94 | AP150: 24.45 | AQ150: 24.96 | AR150: 25.47 | AS150: 25.98 | AT150: 26.49 | AU150: 27 | AV150: 27.51 | AW150: 28.02 | AX150: 28.53 | AY150: 29.04 | AZ150: 29.55 | BA150: 30.06 | BB150: 30.57 | BC150: 31.08 | BD150: 31.59 | BE150: 32.1 | BF150: 32.61 | BG150: 33.12 | BH150: 33.63 | BI150: 34.14 | BJ150: 34.65 | BK150: 35.16 | BL150: 35.67 | BM150: 36.18 | BN150: 36.69 | BO150: 37.2 | BP150: 37.71 | BQ150: 38.22 | BR150: 38.73 | BS150: 39.24 | BT150: 39.75 | BU150: 40.26 | BV150: 40.77 | BW150: 41.28 | BX150: 41.79 | BY150: 42.3 | BZ150: 42.81 | CA150: 43.32 | CB150: 43.83 | CC150: 44.34 | CD150: 44.85 | CE150: 45.36 | CF150: 45.87 | CG150: 46.38 | CH150: 46.89 | CI150: 47.4 | CJ150: 47.91 | CK150: 48.42 | CL150: 48.93 | CM150: 49.44 | CN150: 49.95 | CO150: 50.46 | CP150: 50.97 | CQ150: 51.48 | CR150: 51.99 | CS150: 52.5 | CT150: 53.01 | CU150: 53.52 | CV150: 54.03 | CW150: 54.54 | CX150: 55.05 | CY150: 55.56 | CZ150: 56.07 | DA150: 56.58 | DB150: 57.09 | DC150: 57.6 | DD150: 58.11 | DE150: 58.62 | DF150: 59.13 | DG150: 59.64 | DH150: 60.15 | DI150: 60.66 | DJ150: 61.17 | DK150: 61.68 | DL150: 62.19 | DM150: 62.7 | DN150: 63.21 | DO150: 63.72 | DP150: 64.23 | DQ150: 64.74 | DR150: 65.25 | DS150: 65.76 | DT150: 66.27 | DU150: 66.78 | DV150: 67.29 | DW150: 67.8 | DX150: 68.31 | DY150: 68.82 | DZ150: 69.33 | EA150: 69.84 | EB150: 70.35 | EC150: 70.86 | ED150: 71.37 | EE150: 71.88 | EF150: 72.39 | EG150: 72.9 | EH150: 73.41 | EI150: 73.92 | EJ150: 74.43 | EK150: 74.94 | EL150: 75.45 | EM150: 75.96 | EN150: 76.47 | EO150: 76.98 | EP150: 77.49 | EQ150: 78 | ER150: 78.51 | ES150: 79.02 | ET150: 79.53 | EU150: 80.04 | EV150: 80.55 | EW150: 81.06 | EX150: 81.57 | EY150: 82.08 | EZ150: 82.59 | FA150: 83.1 | FB150: 83.61 | FC150: 84.12 | FD150: 84.63 | FE150: 85.14 | FF150: 85.65 | FG150: 86.16 | FH150: 86.67 | FI150: 87.18 | FJ150: 87.69 | FK150: 88.2 | FL150: 88.71 | FM150: 89.22 | FN150: 89.73 | FO150: 90.24 | FP150: 90.75 | FQ150: 91.26 | FR150: 91.77 | FS150: 92.28 | FT150: 92.79 | FU150: 93.3 | FV150: 93.81 | FW150: 94.32 | FX150: 94.83 | FY150: 95.34 | FZ150: 95.85 | GA150: 96.36 | GB150: 96.87 | GC150: 97.38 | GD150: 97.89 | GE150: 98.4 | GF150: 98.91 | GG150: 99.42 | GH150: 99.93 | GI150: 100.44 | GJ150: 100.95 | GK150: 101.46 | GL150: 101.97 | GM150: 102.48 | GN150: 102.99 | GO150: 103.5 | GP150: 104.01 | GQ150: 104.52 | GR150: 105.03 | GS150: 105.54 | GT150: 106.05 | GU150: 106.56 | GV150: 107.07 | GW150: 107.58
A151: 31 | B151: Haute-Garonne | D151: Oui | F151: 6.09 | G151: 6.6 | H151: 7.11 | I151: 7.62 | J151: 8.13 | K151: 8.64 | L151: 9.15 | M151: 9.66 | N151: 10.17 | O151: 10.68 | P151: 11.19 | Q151: 11.7 | R151: 12.21 | S151: 12.72 | T151: 13.23 | U151: 13.74 | V151: 14.25 | W151: 14.76 | X151: 15.27 | Y151: 15.78 | Z151: 16.29 | AA151: 16.8 | AB151: 17.31 | AC151: 17.82 | AD151: 18.33 | AE151: 18.84 | AF151: 19.35 | AG151: 19.86 | AH151: 20.37 | AI151: 20.88 | AJ151: 21.39 | AK151: 21.9 | AL151: 22.41 | AM151: 22.92 | AN151: 23.43 | AO151: 23.94 | AP151: 24.45 | AQ151: 24.96 | AR151: 25.47 | AS151: 25.98 | AT151: 26.49 | AU151: 27 | AV151: 27.51 | AW151: 28.02 | AX151: 28.53 | AY151: 29.04 | AZ151: 29.55 | BA151: 30.06 | BB151: 30.57 | BC151: 31.08 | BD151: 31.59 | BE151: 32.1 | BF151: 32.61 | BG151: 33.12 | BH151: 33.63 | BI151: 34.14 | BJ151: 34.65 | BK151: 35.16 | BL151: 35.67 | BM151: 36.18 | BN151: 36.69 | BO151: 37.2 | BP151: 37.71 | BQ151: 38.22 | BR151: 38.73 | BS151: 39.24 | BT151: 39.75 | BU151: 40.26 | BV151: 40.77 | BW151: 41.28 | BX151: 41.79 | BY151: 42.3 | BZ151: 42.81 | CA151: 43.32 | CB151: 43.83 | CC151: 44.34 | CD151: 44.85 | CE151: 45.36 | CF151: 45.87 | CG151: 46.38 | CH151: 46.89 | CI151: 47.4 | CJ151: 47.91 | CK151: 48.42 | CL151: 48.93 | CM151: 49.44 | CN151: 49.95 | CO151: 50.46 | CP151: 50.97 | CQ151: 51.48 | CR151: 51.99 | CS151: 52.5 | CT151: 53.01 | CU151: 53.52 | CV151: 54.03 | CW151: 54.54 | CX151: 55.05 | CY151: 55.56 | CZ151: 56.07 | DA151: 56.58 | DB151: 57.09 | DC151: 57.6 | DD151: 58.11 | DE151: 58.62 | DF151: 59.13 | DG151: 59.64 | DH151: 60.15 | DI151: 60.66 | DJ151: 61.17 | DK151: 61.68 | DL151: 62.19 | DM151: 62.7 | DN151: 63.21 | DO151: 63.72 | DP151: 64.23 | DQ151: 64.74 | DR151: 65.25 | DS151: 65.76 | DT151: 66.27 | DU151: 66.78 | DV151: 67.29 | DW151: 67.8 | DX151: 68.31 | DY151: 68.82 | DZ151: 69.33 | EA151: 69.84 | EB151: 70.35 | EC151: 70.86 | ED151: 71.37 | EE151: 71.88 | EF151: 72.39 | EG151: 72.9 | EH151: 73.41 | EI151: 73.92 | EJ151: 74.43 | EK151: 74.94 | EL151: 75.45 | EM151: 75.96 | EN151: 76.47 | EO151: 76.98 | EP151: 77.49 | EQ151: 78 | ER151: 78.51 | ES151: 79.02 | ET151: 79.53 | EU151: 80.04 | EV151: 80.55 | EW151: 81.06 | EX151: 81.57 | EY151: 82.08 | EZ151: 82.59 | FA151: 83.1 | FB151: 83.61 | FC151: 84.12 | FD151: 84.63 | FE151: 85.14 | FF151: 85.65 | FG151: 86.16 | FH151: 86.67 | FI151: 87.18 | FJ151: 87.69 | FK151: 88.2 | FL151: 88.71 | FM151: 89.22 | FN151: 89.73 | FO151: 90.24 | FP151: 90.75 | FQ151: 91.26 | FR151: 91.77 | FS151: 92.28 | FT151: 92.79 | FU151: 93.3 | FV151: 93.81 | FW151: 94.32 | FX151: 94.83 | FY151: 95.34 | FZ151: 95.85 | GA151: 96.36 | GB151: 96.87 | GC151: 97.38 | GD151: 97.89 | GE151: 98.4 | GF151: 98.91 | GG151: 99.42 | GH151: 99.93 | GI151: 100.44 | GJ151: 100.95 | GK151: 101.46 | GL151: 101.97 | GM151: 102.48 | GN151: 102.99 | GO151: 103.5 | GP151: 104.01 | GQ151: 104.52 | GR151: 105.03 | GS151: 105.54 | GT151: 106.05 | GU151: 106.56 | GV151: 107.07 | GW151: 107.58
A152: 32 | B152: Gers | D152: Oui | F152: 6.09 | G152: 6.6 | H152: 7.11 | I152: 7.62 | J152: 8.13 | K152: 8.64 | L152: 9.15 | M152: 9.66 | N152: 10.17 | O152: 10.68 | P152: 11.19 | Q152: 11.7 | R152: 12.21 | S152: 12.72 | T152: 13.23 | U152: 13.74 | V152: 14.25 | W152: 14.76 | X152: 15.27 | Y152: 15.78 | Z152: 16.29 | AA152: 16.8 | AB152: 17.31 | AC152: 17.82 | AD152: 18.33 | AE152: 18.84 | AF152: 19.35 | AG152: 19.86 | AH152: 20.37 | AI152: 20.88 | AJ152: 21.39 | AK152: 21.9 | AL152: 22.41 | AM152: 22.92 | AN152: 23.43 | AO152: 23.94 | AP152: 24.45 | AQ152: 24.96 | AR152: 25.47 | AS152: 25.98 | AT152: 26.49 | AU152: 27 | AV152: 27.51 | AW152: 28.02 | AX152: 28.53 | AY152: 29.04 | AZ152: 29.55 | BA152: 30.06 | BB152: 30.57 | BC152: 31.08 | BD152: 31.59 | BE152: 32.1 | BF152: 32.61 | BG152: 33.12 | BH152: 33.63 | BI152: 34.14 | BJ152: 34.65 | BK152: 35.16 | BL152: 35.67 | BM152: 36.18 | BN152: 36.69 | BO152: 37.2 | BP152: 37.71 | BQ152: 38.22 | BR152: 38.73 | BS152: 39.24 | BT152: 39.75 | BU152: 40.26 | BV152: 40.77 | BW152: 41.28 | BX152: 41.79 | BY152: 42.3 | BZ152: 42.81 | CA152: 43.32 | CB152: 43.83 | CC152: 44.34 | CD152: 44.85 | CE152: 45.36 | CF152: 45.87 | CG152: 46.38 | CH152: 46.89 | CI152: 47.4 | CJ152: 47.91 | CK152: 48.42 | CL152: 48.93 | CM152: 49.44 | CN152: 49.95 | CO152: 50.46 | CP152: 50.97 | CQ152: 51.48 | CR152: 51.99 | CS152: 52.5 | CT152: 53.01 | CU152: 53.52 | CV152: 54.03 | CW152: 54.54 | CX152: 55.05 | CY152: 55.56 | CZ152: 56.07 | DA152: 56.58 | DB152: 57.09 | DC152: 57.6 | DD152: 58.11 | DE152: 58.62 | DF152: 59.13 | DG152: 59.64 | DH152: 60.15 | DI152: 60.66 | DJ152: 61.17 | DK152: 61.68 | DL152: 62.19 | DM152: 62.7 | DN152: 63.21 | DO152: 63.72 | DP152: 64.23 | DQ152: 64.74 | DR152: 65.25 | DS152: 65.76 | DT152: 66.27 | DU152: 66.78 | DV152: 67.29 | DW152: 67.8 | DX152: 68.31 | DY152: 68.82 | DZ152: 69.33 | EA152: 69.84 | EB152: 70.35 | EC152: 70.86 | ED152: 71.37 | EE152: 71.88 | EF152: 72.39 | EG152: 72.9 | EH152: 73.41 | EI152: 73.92 | EJ152: 74.43 | EK152: 74.94 | EL152: 75.45 | EM152: 75.96 | EN152: 76.47 | EO152: 76.98 | EP152: 77.49 | EQ152: 78 | ER152: 78.51 | ES152: 79.02 | ET152: 79.53 | EU152: 80.04 | EV152: 80.55 | EW152: 81.06 | EX152: 81.57 | EY152: 82.08 | EZ152: 82.59 | FA152: 83.1 | FB152: 83.61 | FC152: 84.12 | FD152: 84.63 | FE152: 85.14 | FF152: 85.65 | FG152: 86.16 | FH152: 86.67 | FI152: 87.18 | FJ152: 87.69 | FK152: 88.2 | FL152: 88.71 | FM152: 89.22 | FN152: 89.73 | FO152: 90.24 | FP152: 90.75 | FQ152: 91.26 | FR152: 91.77 | FS152: 92.28 | FT152: 92.79 | FU152: 93.3 | FV152: 93.81 | FW152: 94.32 | FX152: 94.83 | FY152: 95.34 | FZ152: 95.85 | GA152: 96.36 | GB152: 96.87 | GC152: 97.38 | GD152: 97.89 | GE152: 98.4 | GF152: 98.91 | GG152: 99.42 | GH152: 99.93 | GI152: 100.44 | GJ152: 100.95 | GK152: 101.46 | GL152: 101.97 | GM152: 102.48 | GN152: 102.99 | GO152: 103.5 | GP152: 104.01 | GQ152: 104.52 | GR152: 105.03 | GS152: 105.54 | GT152: 106.05 | GU152: 106.56 | GV152: 107.07 | GW152: 107.58
A153: 33 | B153: Gironde | D153: Oui | F153: 6.09 | G153: 6.6 | H153: 7.11 | I153: 7.62 | J153: 8.13 | K153: 8.64 | L153: 9.15 | M153: 9.66 | N153: 10.17 | O153: 10.68 | P153: 11.19 | Q153: 11.7 | R153: 12.21 | S153: 12.72 | T153: 13.23 | U153: 13.74 | V153: 14.25 | W153: 14.76 | X153: 15.27 | Y153: 15.78 | Z153: 16.29 | AA153: 16.8 | AB153: 17.31 | AC153: 17.82 | AD153: 18.33 | AE153: 18.84 | AF153: 19.35 | AG153: 19.86 | AH153: 20.37 | AI153: 20.88 | AJ153: 21.39 | AK153: 21.9 | AL153: 22.41 | AM153: 22.92 | AN153: 23.43 | AO153: 23.94 | AP153: 24.45 | AQ153: 24.96 | AR153: 25.47 | AS153: 25.98 | AT153: 26.49 | AU153: 27 | AV153: 27.51 | AW153: 28.02 | AX153: 28.53 | AY153: 29.04 | AZ153: 29.55 | BA153: 30.06 | BB153: 30.57 | BC153: 31.08 | BD153: 31.59 | BE153: 32.1 | BF153: 32.61 | BG153: 33.12 | BH153: 33.63 | BI153: 34.14 | BJ153: 34.65 | BK153: 35.16 | BL153: 35.67 | BM153: 36.18 | BN153: 36.69 | BO153: 37.2 | BP153: 37.71 | BQ153: 38.22 | BR153: 38.73 | BS153: 39.24 | BT153: 39.75 | BU153: 40.26 | BV153: 40.77 | BW153: 41.28 | BX153: 41.79 | BY153: 42.3 | BZ153: 42.81 | CA153: 43.32 | CB153: 43.83 | CC153: 44.34 | CD153: 44.85 | CE153: 45.36 | CF153: 45.87 | CG153: 46.38 | CH153: 46.89 | CI153: 47.4 | CJ153: 47.91 | CK153: 48.42 | CL153: 48.93 | CM153: 49.44 | CN153: 49.95 | CO153: 50.46 | CP153: 50.97 | CQ153: 51.48 | CR153: 51.99 | CS153: 52.5 | CT153: 53.01 | CU153: 53.52 | CV153: 54.03 | CW153: 54.54 | CX153: 55.05 | CY153: 55.56 | CZ153: 56.07 | DA153: 56.58 | DB153: 57.09 | DC153: 57.6 | DD153: 58.11 | DE153: 58.62 | DF153: 59.13 | DG153: 59.64 | DH153: 60.15 | DI153: 60.66 | DJ153: 61.17 | DK153: 61.68 | DL153: 62.19 | DM153: 62.7 | DN153: 63.21 | DO153: 63.72 | DP153: 64.23 | DQ153: 64.74 | DR153: 65.25 | DS153: 65.76 | DT153: 66.27 | DU153: 66.78 | DV153: 67.29 | DW153: 67.8 | DX153: 68.31 | DY153: 68.82 | DZ153: 69.33 | EA153: 69.84 | EB153: 70.35 | EC153: 70.86 | ED153: 71.37 | EE153: 71.88 | EF153: 72.39 | EG153: 72.9 | EH153: 73.41 | EI153: 73.92 | EJ153: 74.43 | EK153: 74.94 | EL153: 75.45 | EM153: 75.96 | EN153: 76.47 | EO153: 76.98 | EP153: 77.49 | EQ153: 78 | ER153: 78.51 | ES153: 79.02 | ET153: 79.53 | EU153: 80.04 | EV153: 80.55 | EW153: 81.06 | EX153: 81.57 | EY153: 82.08 | EZ153: 82.59 | FA153: 83.1 | FB153: 83.61 | FC153: 84.12 | FD153: 84.63 | FE153: 85.14 | FF153: 85.65 | FG153: 86.16 | FH153: 86.67 | FI153: 87.18 | FJ153: 87.69 | FK153: 88.2 | FL153: 88.71 | FM153: 89.22 | FN153: 89.73 | FO153: 90.24 | FP153: 90.75 | FQ153: 91.26 | FR153: 91.77 | FS153: 92.28 | FT153: 92.79 | FU153: 93.3 | FV153: 93.81 | FW153: 94.32 | FX153: 94.83 | FY153: 95.34 | FZ153: 95.85 | GA153: 96.36 | GB153: 96.87 | GC153: 97.38 | GD153: 97.89 | GE153: 98.4 | GF153: 98.91 | GG153: 99.42 | GH153: 99.93 | GI153: 100.44 | GJ153: 100.95 | GK153: 101.46 | GL153: 101.97 | GM153: 102.48 | GN153: 102.99 | GO153: 103.5 | GP153: 104.01 | GQ153: 104.52 | GR153: 105.03 | GS153: 105.54 | GT153: 106.05 | GU153: 106.56 | GV153: 107.07 | GW153: 107.58
A154: 34 | B154: Hérault | D154: Oui | F154: 6.09 | G154: 6.6 | H154: 7.11 | I154: 7.62 | J154: 8.13 | K154: 8.64 | L154: 9.15 | M154: 9.66 | N154: 10.17 | O154: 10.68 | P154: 11.19 | Q154: 11.7 | R154: 12.21 | S154: 12.72 | T154: 13.23 | U154: 13.74 | V154: 14.25 | W154: 14.76 | X154: 15.27 | Y154: 15.78 | Z154: 16.29 | AA154: 16.8 | AB154: 17.31 | AC154: 17.82 | AD154: 18.33 | AE154: 18.84 | AF154: 19.35 | AG154: 19.86 | AH154: 20.37 | AI154: 20.88 | AJ154: 21.39 | AK154: 21.9 | AL154: 22.41 | AM154: 22.92 | AN154: 23.43 | AO154: 23.94 | AP154: 24.45 | AQ154: 24.96 | AR154: 25.47 | AS154: 25.98 | AT154: 26.49 | AU154: 27 | AV154: 27.51 | AW154: 28.02 | AX154: 28.53 | AY154: 29.04 | AZ154: 29.55 | BA154: 30.06 | BB154: 30.57 | BC154: 31.08 | BD154: 31.59 | BE154: 32.1 | BF154: 32.61 | BG154: 33.12 | BH154: 33.63 | BI154: 34.14 | BJ154: 34.65 | BK154: 35.16 | BL154: 35.67 | BM154: 36.18 | BN154: 36.69 | BO154: 37.2 | BP154: 37.71 | BQ154: 38.22 | BR154: 38.73 | BS154: 39.24 | BT154: 39.75 | BU154: 40.26 | BV154: 40.77 | BW154: 41.28 | BX154: 41.79 | BY154: 42.3 | BZ154: 42.81 | CA154: 43.32 | CB154: 43.83 | CC154: 44.34 | CD154: 44.85 | CE154: 45.36 | CF154: 45.87 | CG154: 46.38 | CH154: 46.89 | CI154: 47.4 | CJ154: 47.91 | CK154: 48.42 | CL154: 48.93 | CM154: 49.44 | CN154: 49.95 | CO154: 50.46 | CP154: 50.97 | CQ154: 51.48 | CR154: 51.99 | CS154: 52.5 | CT154: 53.01 | CU154: 53.52 | CV154: 54.03 | CW154: 54.54 | CX154: 55.05 | CY154: 55.56 | CZ154: 56.07 | DA154: 56.58 | DB154: 57.09 | DC154: 57.6 | DD154: 58.11 | DE154: 58.62 | DF154: 59.13 | DG154: 59.64 | DH154: 60.15 | DI154: 60.66 | DJ154: 61.17 | DK154: 61.68 | DL154: 62.19 | DM154: 62.7 | DN154: 63.21 | DO154: 63.72 | DP154: 64.23 | DQ154: 64.74 | DR154: 65.25 | DS154: 65.76 | DT154: 66.27 | DU154: 66.78 | DV154: 67.29 | DW154: 67.8 | DX154: 68.31 | DY154: 68.82 | DZ154: 69.33 | EA154: 69.84 | EB154: 70.35 | EC154: 70.86 | ED154: 71.37 | EE154: 71.88 | EF154: 72.39 | EG154: 72.9 | EH154: 73.41 | EI154: 73.92 | EJ154: 74.43 | EK154: 74.94 | EL154: 75.45 | EM154: 75.96 | EN154: 76.47 | EO154: 76.98 | EP154: 77.49 | EQ154: 78 | ER154: 78.51 | ES154: 79.02 | ET154: 79.53 | EU154: 80.04 | EV154: 80.55 | EW154: 81.06 | EX154: 81.57 | EY154: 82.08 | EZ154: 82.59 | FA154: 83.1 | FB154: 83.61 | FC154: 84.12 | FD154: 84.63 | FE154: 85.14 | FF154: 85.65 | FG154: 86.16 | FH154: 86.67 | FI154: 87.18 | FJ154: 87.69 | FK154: 88.2 | FL154: 88.71 | FM154: 89.22 | FN154: 89.73 | FO154: 90.24 | FP154: 90.75 | FQ154: 91.26 | FR154: 91.77 | FS154: 92.28 | FT154: 92.79 | FU154: 93.3 | FV154: 93.81 | FW154: 94.32 | FX154: 94.83 | FY154: 95.34 | FZ154: 95.85 | GA154: 96.36 | GB154: 96.87 | GC154: 97.38 | GD154: 97.89 | GE154: 98.4 | GF154: 98.91 | GG154: 99.42 | GH154: 99.93 | GI154: 100.44 | GJ154: 100.95 | GK154: 101.46 | GL154: 101.97 | GM154: 102.48 | GN154: 102.99 | GO154: 103.5 | GP154: 104.01 | GQ154: 104.52 | GR154: 105.03 | GS154: 105.54 | GT154: 106.05 | GU154: 106.56 | GV154: 107.07 | GW154: 107.58
A155: 35 | B155: Ille-et-Vilaine | D155: Oui | F155: 6.09 | G155: 6.6 | H155: 7.11 | I155: 7.62 | J155: 8.13 | K155: 8.64 | L155: 9.15 | M155: 9.66 | N155: 10.17 | O155: 10.68 | P155: 11.19 | Q155: 11.7 | R155: 12.21 | S155: 12.72 | T155: 13.23 | U155: 13.74 | V155: 14.25 | W155: 14.76 | X155: 15.27 | Y155: 15.78 | Z155: 16.29 | AA155: 16.8 | AB155: 17.31 | AC155: 17.82 | AD155: 18.33 | AE155: 18.84 | AF155: 19.35 | AG155: 19.86 | AH155: 20.37 | AI155: 20.88 | AJ155: 21.39 | AK155: 21.9 | AL155: 22.41 | AM155: 22.92 | AN155: 23.43 | AO155: 23.94 | AP155: 24.45 | AQ155: 24.96 | AR155: 25.47 | AS155: 25.98 | AT155: 26.49 | AU155: 27 | AV155: 27.51 | AW155: 28.02 | AX155: 28.53 | AY155: 29.04 | AZ155: 29.55 | BA155: 30.06 | BB155: 30.57 | BC155: 31.08 | BD155: 31.59 | BE155: 32.1 | BF155: 32.61 | BG155: 33.12 | BH155: 33.63 | BI155: 34.14 | BJ155: 34.65 | BK155: 35.16 | BL155: 35.67 | BM155: 36.18 | BN155: 36.69 | BO155: 37.2 | BP155: 37.71 | BQ155: 38.22 | BR155: 38.73 | BS155: 39.24 | BT155: 39.75 | BU155: 40.26 | BV155: 40.77 | BW155: 41.28 | BX155: 41.79 | BY155: 42.3 | BZ155: 42.81 | CA155: 43.32 | CB155: 43.83 | CC155: 44.34 | CD155: 44.85 | CE155: 45.36 | CF155: 45.87 | CG155: 46.38 | CH155: 46.89 | CI155: 47.4 | CJ155: 47.91 | CK155: 48.42 | CL155: 48.93 | CM155: 49.44 | CN155: 49.95 | CO155: 50.46 | CP155: 50.97 | CQ155: 51.48 | CR155: 51.99 | CS155: 52.5 | CT155: 53.01 | CU155: 53.52 | CV155: 54.03 | CW155: 54.54 | CX155: 55.05 | CY155: 55.56 | CZ155: 56.07 | DA155: 56.58 | DB155: 57.09 | DC155: 57.6 | DD155: 58.11 | DE155: 58.62 | DF155: 59.13 | DG155: 59.64 | DH155: 60.15 | DI155: 60.66 | DJ155: 61.17 | DK155: 61.68 | DL155: 62.19 | DM155: 62.7 | DN155: 63.21 | DO155: 63.72 | DP155: 64.23 | DQ155: 64.74 | DR155: 65.25 | DS155: 65.76 | DT155: 66.27 | DU155: 66.78 | DV155: 67.29 | DW155: 67.8 | DX155: 68.31 | DY155: 68.82 | DZ155: 69.33 | EA155: 69.84 | EB155: 70.35 | EC155: 70.86 | ED155: 71.37 | EE155: 71.88 | EF155: 72.39 | EG155: 72.9 | EH155: 73.41 | EI155: 73.92 | EJ155: 74.43 | EK155: 74.94 | EL155: 75.45 | EM155: 75.96 | EN155: 76.47 | EO155: 76.98 | EP155: 77.49 | EQ155: 78 | ER155: 78.51 | ES155: 79.02 | ET155: 79.53 | EU155: 80.04 | EV155: 80.55 | EW155: 81.06 | EX155: 81.57 | EY155: 82.08 | EZ155: 82.59 | FA155: 83.1 | FB155: 83.61 | FC155: 84.12 | FD155: 84.63 | FE155: 85.14 | FF155: 85.65 | FG155: 86.16 | FH155: 86.67 | FI155: 87.18 | FJ155: 87.69 | FK155: 88.2 | FL155: 88.71 | FM155: 89.22 | FN155: 89.73 | FO155: 90.24 | FP155: 90.75 | FQ155: 91.26 | FR155: 91.77 | FS155: 92.28 | FT155: 92.79 | FU155: 93.3 | FV155: 93.81 | FW155: 94.32 | FX155: 94.83 | FY155: 95.34 | FZ155: 95.85 | GA155: 96.36 | GB155: 96.87 | GC155: 97.38 | GD155: 97.89 | GE155: 98.4 | GF155: 98.91 | GG155: 99.42 | GH155: 99.93 | GI155: 100.44 | GJ155: 100.95 | GK155: 101.46 | GL155: 101.97 | GM155: 102.48 | GN155: 102.99 | GO155: 103.5 | GP155: 104.01 | GQ155: 104.52 | GR155: 105.03 | GS155: 105.54 | GT155: 106.05 | GU155: 106.56 | GV155: 107.07 | GW155: 107.58
A156: 36 | B156: Indre | D156: Oui | F156: 6.09 | G156: 6.6 | H156: 7.11 | I156: 7.62 | J156: 8.13 | K156: 8.64 | L156: 9.15 | M156: 9.66 | N156: 10.17 | O156: 10.68 | P156: 11.19 | Q156: 11.7 | R156: 12.21 | S156: 12.72 | T156: 13.23 | U156: 13.74 | V156: 14.25 | W156: 14.76 | X156: 15.27 | Y156: 15.78 | Z156: 16.29 | AA156: 16.8 | AB156: 17.31 | AC156: 17.82 | AD156: 18.33 | AE156: 18.84 | AF156: 19.35 | AG156: 19.86 | AH156: 20.37 | AI156: 20.88 | AJ156: 21.39 | AK156: 21.9 | AL156: 22.41 | AM156: 22.92 | AN156: 23.43 | AO156: 23.94 | AP156: 24.45 | AQ156: 24.96 | AR156: 25.47 | AS156: 25.98 | AT156: 26.49 | AU156: 27 | AV156: 27.51 | AW156: 28.02 | AX156: 28.53 | AY156: 29.04 | AZ156: 29.55 | BA156: 30.06 | BB156: 30.57 | BC156: 31.08 | BD156: 31.59 | BE156: 32.1 | BF156: 32.61 | BG156: 33.12 | BH156: 33.63 | BI156: 34.14 | BJ156: 34.65 | BK156: 35.16 | BL156: 35.67 | BM156: 36.18 | BN156: 36.69 | BO156: 37.2 | BP156: 37.71 | BQ156: 38.22 | BR156: 38.73 | BS156: 39.24 | BT156: 39.75 | BU156: 40.26 | BV156: 40.77 | BW156: 41.28 | BX156: 41.79 | BY156: 42.3 | BZ156: 42.81 | CA156: 43.32 | CB156: 43.83 | CC156: 44.34 | CD156: 44.85 | CE156: 45.36 | CF156: 45.87 | CG156: 46.38 | CH156: 46.89 | CI156: 47.4 | CJ156: 47.91 | CK156: 48.42 | CL156: 48.93 | CM156: 49.44 | CN156: 49.95 | CO156: 50.46 | CP156: 50.97 | CQ156: 51.48 | CR156: 51.99 | CS156: 52.5 | CT156: 53.01 | CU156: 53.52 | CV156: 54.03 | CW156: 54.54 | CX156: 55.05 | CY156: 55.56 | CZ156: 56.07 | DA156: 56.58 | DB156: 57.09 | DC156: 57.6 | DD156: 58.11 | DE156: 58.62 | DF156: 59.13 | DG156: 59.64 | DH156: 60.15 | DI156: 60.66 | DJ156: 61.17 | DK156: 61.68 | DL156: 62.19 | DM156: 62.7 | DN156: 63.21 | DO156: 63.72 | DP156: 64.23 | DQ156: 64.74 | DR156: 65.25 | DS156: 65.76 | DT156: 66.27 | DU156: 66.78 | DV156: 67.29 | DW156: 67.8 | DX156: 68.31 | DY156: 68.82 | DZ156: 69.33 | EA156: 69.84 | EB156: 70.35 | EC156: 70.86 | ED156: 71.37 | EE156: 71.88 | EF156: 72.39 | EG156: 72.9 | EH156: 73.41 | EI156: 73.92 | EJ156: 74.43 | EK156: 74.94 | EL156: 75.45 | EM156: 75.96 | EN156: 76.47 | EO156: 76.98 | EP156: 77.49 | EQ156: 78 | ER156: 78.51 | ES156: 79.02 | ET156: 79.53 | EU156: 80.04 | EV156: 80.55 | EW156: 81.06 | EX156: 81.57 | EY156: 82.08 | EZ156: 82.59 | FA156: 83.1 | FB156: 83.61 | FC156: 84.12 | FD156: 84.63 | FE156: 85.14 | FF156: 85.65 | FG156: 86.16 | FH156: 86.67 | FI156: 87.18 | FJ156: 87.69 | FK156: 88.2 | FL156: 88.71 | FM156: 89.22 | FN156: 89.73 | FO156: 90.24 | FP156: 90.75 | FQ156: 91.26 | FR156: 91.77 | FS156: 92.28 | FT156: 92.79 | FU156: 93.3 | FV156: 93.81 | FW156: 94.32 | FX156: 94.83 | FY156: 95.34 | FZ156: 95.85 | GA156: 96.36 | GB156: 96.87 | GC156: 97.38 | GD156: 97.89 | GE156: 98.4 | GF156: 98.91 | GG156: 99.42 | GH156: 99.93 | GI156: 100.44 | GJ156: 100.95 | GK156: 101.46 | GL156: 101.97 | GM156: 102.48 | GN156: 102.99 | GO156: 103.5 | GP156: 104.01 | GQ156: 104.52 | GR156: 105.03 | GS156: 105.54 | GT156: 106.05 | GU156: 106.56 | GV156: 107.07 | GW156: 107.58
A157: 37 | B157: Indre-et-Loire | D157: Oui | F157: 6.09 | G157: 6.6 | H157: 7.11 | I157: 7.62 | J157: 8.13 | K157: 8.64 | L157: 9.15 | M157: 9.66 | N157: 10.17 | O157: 10.68 | P157: 11.19 | Q157: 11.7 | R157: 12.21 | S157: 12.72 | T157: 13.23 | U157: 13.74 | V157: 14.25 | W157: 14.76 | X157: 15.27 | Y157: 15.78 | Z157: 16.29 | AA157: 16.8 | AB157: 17.31 | AC157: 17.82 | AD157: 18.33 | AE157: 18.84 | AF157: 19.35 | AG157: 19.86 | AH157: 20.37 | AI157: 20.88 | AJ157: 21.39 | AK157: 21.9 | AL157: 22.41 | AM157: 22.92 | AN157: 23.43 | AO157: 23.94 | AP157: 24.45 | AQ157: 24.96 | AR157: 25.47 | AS157: 25.98 | AT157: 26.49 | AU157: 27 | AV157: 27.51 | AW157: 28.02 | AX157: 28.53 | AY157: 29.04 | AZ157: 29.55 | BA157: 30.06 | BB157: 30.57 | BC157: 31.08 | BD157: 31.59 | BE157: 32.1 | BF157: 32.61 | BG157: 33.12 | BH157: 33.63 | BI157: 34.14 | BJ157: 34.65 | BK157: 35.16 | BL157: 35.67 | BM157: 36.18 | BN157: 36.69 | BO157: 37.2 | BP157: 37.71 | BQ157: 38.22 | BR157: 38.73 | BS157: 39.24 | BT157: 39.75 | BU157: 40.26 | BV157: 40.77 | BW157: 41.28 | BX157: 41.79 | BY157: 42.3 | BZ157: 42.81 | CA157: 43.32 | CB157: 43.83 | CC157: 44.34 | CD157: 44.85 | CE157: 45.36 | CF157: 45.87 | CG157: 46.38 | CH157: 46.89 | CI157: 47.4 | CJ157: 47.91 | CK157: 48.42 | CL157: 48.93 | CM157: 49.44 | CN157: 49.95 | CO157: 50.46 | CP157: 50.97 | CQ157: 51.48 | CR157: 51.99 | CS157: 52.5 | CT157: 53.01 | CU157: 53.52 | CV157: 54.03 | CW157: 54.54 | CX157: 55.05 | CY157: 55.56 | CZ157: 56.07 | DA157: 56.58 | DB157: 57.09 | DC157: 57.6 | DD157: 58.11 | DE157: 58.62 | DF157: 59.13 | DG157: 59.64 | DH157: 60.15 | DI157: 60.66 | DJ157: 61.17 | DK157: 61.68 | DL157: 62.19 | DM157: 62.7 | DN157: 63.21 | DO157: 63.72 | DP157: 64.23 | DQ157: 64.74 | DR157: 65.25 | DS157: 65.76 | DT157: 66.27 | DU157: 66.78 | DV157: 67.29 | DW157: 67.8 | DX157: 68.31 | DY157: 68.82 | DZ157: 69.33 | EA157: 69.84 | EB157: 70.35 | EC157: 70.86 | ED157: 71.37 | EE157: 71.88 | EF157: 72.39 | EG157: 72.9 | EH157: 73.41 | EI157: 73.92 | EJ157: 74.43 | EK157: 74.94 | EL157: 75.45 | EM157: 75.96 | EN157: 76.47 | EO157: 76.98 | EP157: 77.49 | EQ157: 78 | ER157: 78.51 | ES157: 79.02 | ET157: 79.53 | EU157: 80.04 | EV157: 80.55 | EW157: 81.06 | EX157: 81.57 | EY157: 82.08 | EZ157: 82.59 | FA157: 83.1 | FB157: 83.61 | FC157: 84.12 | FD157: 84.63 | FE157: 85.14 | FF157: 85.65 | FG157: 86.16 | FH157: 86.67 | FI157: 87.18 | FJ157: 87.69 | FK157: 88.2 | FL157: 88.71 | FM157: 89.22 | FN157: 89.73 | FO157: 90.24 | FP157: 90.75 | FQ157: 91.26 | FR157: 91.77 | FS157: 92.28 | FT157: 92.79 | FU157: 93.3 | FV157: 93.81 | FW157: 94.32 | FX157: 94.83 | FY157: 95.34 | FZ157: 95.85 | GA157: 96.36 | GB157: 96.87 | GC157: 97.38 | GD157: 97.89 | GE157: 98.4 | GF157: 98.91 | GG157: 99.42 | GH157: 99.93 | GI157: 100.44 | GJ157: 100.95 | GK157: 101.46 | GL157: 101.97 | GM157: 102.48 | GN157: 102.99 | GO157: 103.5 | GP157: 104.01 | GQ157: 104.52 | GR157: 105.03 | GS157: 105.54 | GT157: 106.05 | GU157: 106.56 | GV157: 107.07 | GW157: 107.58
A158: 38 | B158: Isère | D158: Oui | F158: 6.09 | G158: 6.6 | H158: 7.11 | I158: 7.62 | J158: 8.13 | K158: 8.64 | L158: 9.15 | M158: 9.66 | N158: 10.17 | O158: 10.68 | P158: 11.19 | Q158: 11.7 | R158: 12.21 | S158: 12.72 | T158: 13.23 | U158: 13.74 | V158: 14.25 | W158: 14.76 | X158: 15.27 | Y158: 15.78 | Z158: 16.29 | AA158: 16.8 | AB158: 17.31 | AC158: 17.82 | AD158: 18.33 | AE158: 18.84 | AF158: 19.35 | AG158: 19.86 | AH158: 20.37 | AI158: 20.88 | AJ158: 21.39 | AK158: 21.9 | AL158: 22.41 | AM158: 22.92 | AN158: 23.43 | AO158: 23.94 | AP158: 24.45 | AQ158: 24.96 | AR158: 25.47 | AS158: 25.98 | AT158: 26.49 | AU158: 27 | AV158: 27.51 | AW158: 28.02 | AX158: 28.53 | AY158: 29.04 | AZ158: 29.55 | BA158: 30.06 | BB158: 30.57 | BC158: 31.08 | BD158: 31.59 | BE158: 32.1 | BF158: 32.61 | BG158: 33.12 | BH158: 33.63 | BI158: 34.14 | BJ158: 34.65 | BK158: 35.16 | BL158: 35.67 | BM158: 36.18 | BN158: 36.69 | BO158: 37.2 | BP158: 37.71 | BQ158: 38.22 | BR158: 38.73 | BS158: 39.24 | BT158: 39.75 | BU158: 40.26 | BV158: 40.77 | BW158: 41.28 | BX158: 41.79 | BY158: 42.3 | BZ158: 42.81 | CA158: 43.32 | CB158: 43.83 | CC158: 44.34 | CD158: 44.85 | CE158: 45.36 | CF158: 45.87 | CG158: 46.38 | CH158: 46.89 | CI158: 47.4 | CJ158: 47.91 | CK158: 48.42 | CL158: 48.93 | CM158: 49.44 | CN158: 49.95 | CO158: 50.46 | CP158: 50.97 | CQ158: 51.48 | CR158: 51.99 | CS158: 52.5 | CT158: 53.01 | CU158: 53.52 | CV158: 54.03 | CW158: 54.54 | CX158: 55.05 | CY158: 55.56 | CZ158: 56.07 | DA158: 56.58 | DB158: 57.09 | DC158: 57.6 | DD158: 58.11 | DE158: 58.62 | DF158: 59.13 | DG158: 59.64 | DH158: 60.15 | DI158: 60.66 | DJ158: 61.17 | DK158: 61.68 | DL158: 62.19 | DM158: 62.7 | DN158: 63.21 | DO158: 63.72 | DP158: 64.23 | DQ158: 64.74 | DR158: 65.25 | DS158: 65.76 | DT158: 66.27 | DU158: 66.78 | DV158: 67.29 | DW158: 67.8 | DX158: 68.31 | DY158: 68.82 | DZ158: 69.33 | EA158: 69.84 | EB158: 70.35 | EC158: 70.86 | ED158: 71.37 | EE158: 71.88 | EF158: 72.39 | EG158: 72.9 | EH158: 73.41 | EI158: 73.92 | EJ158: 74.43 | EK158: 74.94 | EL158: 75.45 | EM158: 75.96 | EN158: 76.47 | EO158: 76.98 | EP158: 77.49 | EQ158: 78 | ER158: 78.51 | ES158: 79.02 | ET158: 79.53 | EU158: 80.04 | EV158: 80.55 | EW158: 81.06 | EX158: 81.57 | EY158: 82.08 | EZ158: 82.59 | FA158: 83.1 | FB158: 83.61 | FC158: 84.12 | FD158: 84.63 | FE158: 85.14 | FF158: 85.65 | FG158: 86.16 | FH158: 86.67 | FI158: 87.18 | FJ158: 87.69 | FK158: 88.2 | FL158: 88.71 | FM158: 89.22 | FN158: 89.73 | FO158: 90.24 | FP158: 90.75 | FQ158: 91.26 | FR158: 91.77 | FS158: 92.28 | FT158: 92.79 | FU158: 93.3 | FV158: 93.81 | FW158: 94.32 | FX158: 94.83 | FY158: 95.34 | FZ158: 95.85 | GA158: 96.36 | GB158: 96.87 | GC158: 97.38 | GD158: 97.89 | GE158: 98.4 | GF158: 98.91 | GG158: 99.42 | GH158: 99.93 | GI158: 100.44 | GJ158: 100.95 | GK158: 101.46 | GL158: 101.97 | GM158: 102.48 | GN158: 102.99 | GO158: 103.5 | GP158: 104.01 | GQ158: 104.52 | GR158: 105.03 | GS158: 105.54 | GT158: 106.05 | GU158: 106.56 | GV158: 107.07 | GW158: 107.58
A159: 39 | B159: Jura | D159: Oui | F159: 6.09 | G159: 6.6 | H159: 7.11 | I159: 7.62 | J159: 8.13 | K159: 8.64 | L159: 9.15 | M159: 9.66 | N159: 10.17 | O159: 10.68 | P159: 11.19 | Q159: 11.7 | R159: 12.21 | S159: 12.72 | T159: 13.23 | U159: 13.74 | V159: 14.25 | W159: 14.76 | X159: 15.27 | Y159: 15.78 | Z159: 16.29 | AA159: 16.8 | AB159: 17.31 | AC159: 17.82 | AD159: 18.33 | AE159: 18.84 | AF159: 19.35 | AG159: 19.86 | AH159: 20.37 | AI159: 20.88 | AJ159: 21.39 | AK159: 21.9 | AL159: 22.41 | AM159: 22.92 | AN159: 23.43 | AO159: 23.94 | AP159: 24.45 | AQ159: 24.96 | AR159: 25.47 | AS159: 25.98 | AT159: 26.49 | AU159: 27 | AV159: 27.51 | AW159: 28.02 | AX159: 28.53 | AY159: 29.04 | AZ159: 29.55 | BA159: 30.06 | BB159: 30.57 | BC159: 31.08 | BD159: 31.59 | BE159: 32.1 | BF159: 32.61 | BG159: 33.12 | BH159: 33.63 | BI159: 34.14 | BJ159: 34.65 | BK159: 35.16 | BL159: 35.67 | BM159: 36.18 | BN159: 36.69 | BO159: 37.2 | BP159: 37.71 | BQ159: 38.22 | BR159: 38.73 | BS159: 39.24 | BT159: 39.75 | BU159: 40.26 | BV159: 40.77 | BW159: 41.28 | BX159: 41.79 | BY159: 42.3 | BZ159: 42.81 | CA159: 43.32 | CB159: 43.83 | CC159: 44.34 | CD159: 44.85 | CE159: 45.36 | CF159: 45.87 | CG159: 46.38 | CH159: 46.89 | CI159: 47.4 | CJ159: 47.91 | CK159: 48.42 | CL159: 48.93 | CM159: 49.44 | CN159: 49.95 | CO159: 50.46 | CP159: 50.97 | CQ159: 51.48 | CR159: 51.99 | CS159: 52.5 | CT159: 53.01 | CU159: 53.52 | CV159: 54.03 | CW159: 54.54 | CX159: 55.05 | CY159: 55.56 | CZ159: 56.07 | DA159: 56.58 | DB159: 57.09 | DC159: 57.6 | DD159: 58.11 | DE159: 58.62 | DF159: 59.13 | DG159: 59.64 | DH159: 60.15 | DI159: 60.66 | DJ159: 61.17 | DK159: 61.68 | DL159: 62.19 | DM159: 62.7 | DN159: 63.21 | DO159: 63.72 | DP159: 64.23 | DQ159: 64.74 | DR159: 65.25 | DS159: 65.76 | DT159: 66.27 | DU159: 66.78 | DV159: 67.29 | DW159: 67.8 | DX159: 68.31 | DY159: 68.82 | DZ159: 69.33 | EA159: 69.84 | EB159: 70.35 | EC159: 70.86 | ED159: 71.37 | EE159: 71.88 | EF159: 72.39 | EG159: 72.9 | EH159: 73.41 | EI159: 73.92 | EJ159: 74.43 | EK159: 74.94 | EL159: 75.45 | EM159: 75.96 | EN159: 76.47 | EO159: 76.98 | EP159: 77.49 | EQ159: 78 | ER159: 78.51 | ES159: 79.02 | ET159: 79.53 | EU159: 80.04 | EV159: 80.55 | EW159: 81.06 | EX159: 81.57 | EY159: 82.08 | EZ159: 82.59 | FA159: 83.1 | FB159: 83.61 | FC159: 84.12 | FD159: 84.63 | FE159: 85.14 | FF159: 85.65 | FG159: 86.16 | FH159: 86.67 | FI159: 87.18 | FJ159: 87.69 | FK159: 88.2 | FL159: 88.71 | FM159: 89.22 | FN159: 89.73 | FO159: 90.24 | FP159: 90.75 | FQ159: 91.26 | FR159: 91.77 | FS159: 92.28 | FT159: 92.79 | FU159: 93.3 | FV159: 93.81 | FW159: 94.32 | FX159: 94.83 | FY159: 95.34 | FZ159: 95.85 | GA159: 96.36 | GB159: 96.87 | GC159: 97.38 | GD159: 97.89 | GE159: 98.4 | GF159: 98.91 | GG159: 99.42 | GH159: 99.93 | GI159: 100.44 | GJ159: 100.95 | GK159: 101.46 | GL159: 101.97 | GM159: 102.48 | GN159: 102.99 | GO159: 103.5 | GP159: 104.01 | GQ159: 104.52 | GR159: 105.03 | GS159: 105.54 | GT159: 106.05 | GU159: 106.56 | GV159: 107.07 | GW159: 107.58
A160: 40 | B160: Landes | D160: Oui | F160: 6.09 | G160: 6.6 | H160: 7.11 | I160: 7.62 | J160: 8.13 | K160: 8.64 | L160: 9.15 | M160: 9.66 | N160: 10.17 | O160: 10.68 | P160: 11.19 | Q160: 11.7 | R160: 12.21 | S160: 12.72 | T160: 13.23 | U160: 13.74 | V160: 14.25 | W160: 14.76 | X160: 15.27 | Y160: 15.78 | Z160: 16.29 | AA160: 16.8 | AB160: 17.31 | AC160: 17.82 | AD160: 18.33 | AE160: 18.84 | AF160: 19.35 | AG160: 19.86 | AH160: 20.37 | AI160: 20.88 | AJ160: 21.39 | AK160: 21.9 | AL160: 22.41 | AM160: 22.92 | AN160: 23.43 | AO160: 23.94 | AP160: 24.45 | AQ160: 24.96 | AR160: 25.47 | AS160: 25.98 | AT160: 26.49 | AU160: 27 | AV160: 27.51 | AW160: 28.02 | AX160: 28.53 | AY160: 29.04 | AZ160: 29.55 | BA160: 30.06 | BB160: 30.57 | BC160: 31.08 | BD160: 31.59 | BE160: 32.1 | BF160: 32.61 | BG160: 33.12 | BH160: 33.63 | BI160: 34.14 | BJ160: 34.65 | BK160: 35.16 | BL160: 35.67 | BM160: 36.18 | BN160: 36.69 | BO160: 37.2 | BP160: 37.71 | BQ160: 38.22 | BR160: 38.73 | BS160: 39.24 | BT160: 39.75 | BU160: 40.26 | BV160: 40.77 | BW160: 41.28 | BX160: 41.79 | BY160: 42.3 | BZ160: 42.81 | CA160: 43.32 | CB160: 43.83 | CC160: 44.34 | CD160: 44.85 | CE160: 45.36 | CF160: 45.87 | CG160: 46.38 | CH160: 46.89 | CI160: 47.4 | CJ160: 47.91 | CK160: 48.42 | CL160: 48.93 | CM160: 49.44 | CN160: 49.95 | CO160: 50.46 | CP160: 50.97 | CQ160: 51.48 | CR160: 51.99 | CS160: 52.5 | CT160: 53.01 | CU160: 53.52 | CV160: 54.03 | CW160: 54.54 | CX160: 55.05 | CY160: 55.56 | CZ160: 56.07 | DA160: 56.58 | DB160: 57.09 | DC160: 57.6 | DD160: 58.11 | DE160: 58.62 | DF160: 59.13 | DG160: 59.64 | DH160: 60.15 | DI160: 60.66 | DJ160: 61.17 | DK160: 61.68 | DL160: 62.19 | DM160: 62.7 | DN160: 63.21 | DO160: 63.72 | DP160: 64.23 | DQ160: 64.74 | DR160: 65.25 | DS160: 65.76 | DT160: 66.27 | DU160: 66.78 | DV160: 67.29 | DW160: 67.8 | DX160: 68.31 | DY160: 68.82 | DZ160: 69.33 | EA160: 69.84 | EB160: 70.35 | EC160: 70.86 | ED160: 71.37 | EE160: 71.88 | EF160: 72.39 | EG160: 72.9 | EH160: 73.41 | EI160: 73.92 | EJ160: 74.43 | EK160: 74.94 | EL160: 75.45 | EM160: 75.96 | EN160: 76.47 | EO160: 76.98 | EP160: 77.49 | EQ160: 78 | ER160: 78.51 | ES160: 79.02 | ET160: 79.53 | EU160: 80.04 | EV160: 80.55 | EW160: 81.06 | EX160: 81.57 | EY160: 82.08 | EZ160: 82.59 | FA160: 83.1 | FB160: 83.61 | FC160: 84.12 | FD160: 84.63 | FE160: 85.14 | FF160: 85.65 | FG160: 86.16 | FH160: 86.67 | FI160: 87.18 | FJ160: 87.69 | FK160: 88.2 | FL160: 88.71 | FM160: 89.22 | FN160: 89.73 | FO160: 90.24 | FP160: 90.75 | FQ160: 91.26 | FR160: 91.77 | FS160: 92.28 | FT160: 92.79 | FU160: 93.3 | FV160: 93.81 | FW160: 94.32 | FX160: 94.83 | FY160: 95.34 | FZ160: 95.85 | GA160: 96.36 | GB160: 96.87 | GC160: 97.38 | GD160: 97.89 | GE160: 98.4 | GF160: 98.91 | GG160: 99.42 | GH160: 99.93 | GI160: 100.44 | GJ160: 100.95 | GK160: 101.46 | GL160: 101.97 | GM160: 102.48 | GN160: 102.99 | GO160: 103.5 | GP160: 104.01 | GQ160: 104.52 | GR160: 105.03 | GS160: 105.54 | GT160: 106.05 | GU160: 106.56 | GV160: 107.07 | GW160: 107.58
A161: 41 | B161: Loir-et-Cher | D161: Oui | F161: 6.09 | G161: 6.6 | H161: 7.11 | I161: 7.62 | J161: 8.13 | K161: 8.64 | L161: 9.15 | M161: 9.66 | N161: 10.17 | O161: 10.68 | P161: 11.19 | Q161: 11.7 | R161: 12.21 | S161: 12.72 | T161: 13.23 | U161: 13.74 | V161: 14.25 | W161: 14.76 | X161: 15.27 | Y161: 15.78 | Z161: 16.29 | AA161: 16.8 | AB161: 17.31 | AC161: 17.82 | AD161: 18.33 | AE161: 18.84 | AF161: 19.35 | AG161: 19.86 | AH161: 20.37 | AI161: 20.88 | AJ161: 21.39 | AK161: 21.9 | AL161: 22.41 | AM161: 22.92 | AN161: 23.43 | AO161: 23.94 | AP161: 24.45 | AQ161: 24.96 | AR161: 25.47 | AS161: 25.98 | AT161: 26.49 | AU161: 27 | AV161: 27.51 | AW161: 28.02 | AX161: 28.53 | AY161: 29.04 | AZ161: 29.55 | BA161: 30.06 | BB161: 30.57 | BC161: 31.08 | BD161: 31.59 | BE161: 32.1 | BF161: 32.61 | BG161: 33.12 | BH161: 33.63 | BI161: 34.14 | BJ161: 34.65 | BK161: 35.16 | BL161: 35.67 | BM161: 36.18 | BN161: 36.69 | BO161: 37.2 | BP161: 37.71 | BQ161: 38.22 | BR161: 38.73 | BS161: 39.24 | BT161: 39.75 | BU161: 40.26 | BV161: 40.77 | BW161: 41.28 | BX161: 41.79 | BY161: 42.3 | BZ161: 42.81 | CA161: 43.32 | CB161: 43.83 | CC161: 44.34 | CD161: 44.85 | CE161: 45.36 | CF161: 45.87 | CG161: 46.38 | CH161: 46.89 | CI161: 47.4 | CJ161: 47.91 | CK161: 48.42 | CL161: 48.93 | CM161: 49.44 | CN161: 49.95 | CO161: 50.46 | CP161: 50.97 | CQ161: 51.48 | CR161: 51.99 | CS161: 52.5 | CT161: 53.01 | CU161: 53.52 | CV161: 54.03 | CW161: 54.54 | CX161: 55.05 | CY161: 55.56 | CZ161: 56.07 | DA161: 56.58 | DB161: 57.09 | DC161: 57.6 | DD161: 58.11 | DE161: 58.62 | DF161: 59.13 | DG161: 59.64 | DH161: 60.15 | DI161: 60.66 | DJ161: 61.17 | DK161: 61.68 | DL161: 62.19 | DM161: 62.7 | DN161: 63.21 | DO161: 63.72 | DP161: 64.23 | DQ161: 64.74 | DR161: 65.25 | DS161: 65.76 | DT161: 66.27 | DU161: 66.78 | DV161: 67.29 | DW161: 67.8 | DX161: 68.31 | DY161: 68.82 | DZ161: 69.33 | EA161: 69.84 | EB161: 70.35 | EC161: 70.86 | ED161: 71.37 | EE161: 71.88 | EF161: 72.39 | EG161: 72.9 | EH161: 73.41 | EI161: 73.92 | EJ161: 74.43 | EK161: 74.94 | EL161: 75.45 | EM161: 75.96 | EN161: 76.47 | EO161: 76.98 | EP161: 77.49 | EQ161: 78 | ER161: 78.51 | ES161: 79.02 | ET161: 79.53 | EU161: 80.04 | EV161: 80.55 | EW161: 81.06 | EX161: 81.57 | EY161: 82.08 | EZ161: 82.59 | FA161: 83.1 | FB161: 83.61 | FC161: 84.12 | FD161: 84.63 | FE161: 85.14 | FF161: 85.65 | FG161: 86.16 | FH161: 86.67 | FI161: 87.18 | FJ161: 87.69 | FK161: 88.2 | FL161: 88.71 | FM161: 89.22 | FN161: 89.73 | FO161: 90.24 | FP161: 90.75 | FQ161: 91.26 | FR161: 91.77 | FS161: 92.28 | FT161: 92.79 | FU161: 93.3 | FV161: 93.81 | FW161: 94.32 | FX161: 94.83 | FY161: 95.34 | FZ161: 95.85 | GA161: 96.36 | GB161: 96.87 | GC161: 97.38 | GD161: 97.89 | GE161: 98.4 | GF161: 98.91 | GG161: 99.42 | GH161: 99.93 | GI161: 100.44 | GJ161: 100.95 | GK161: 101.46 | GL161: 101.97 | GM161: 102.48 | GN161: 102.99 | GO161: 103.5 | GP161: 104.01 | GQ161: 104.52 | GR161: 105.03 | GS161: 105.54 | GT161: 106.05 | GU161: 106.56 | GV161: 107.07 | GW161: 107.58
A162: 42 | B162: Loire | D162: Oui | F162: 6.09 | G162: 6.6 | H162: 7.11 | I162: 7.62 | J162: 8.13 | K162: 8.64 | L162: 9.15 | M162: 9.66 | N162: 10.17 | O162: 10.68 | P162: 11.19 | Q162: 11.7 | R162: 12.21 | S162: 12.72 | T162: 13.23 | U162: 13.74 | V162: 14.25 | W162: 14.76 | X162: 15.27 | Y162: 15.78 | Z162: 16.29 | AA162: 16.8 | AB162: 17.31 | AC162: 17.82 | AD162: 18.33 | AE162: 18.84 | AF162: 19.35 | AG162: 19.86 | AH162: 20.37 | AI162: 20.88 | AJ162: 21.39 | AK162: 21.9 | AL162: 22.41 | AM162: 22.92 | AN162: 23.43 | AO162: 23.94 | AP162: 24.45 | AQ162: 24.96 | AR162: 25.47 | AS162: 25.98 | AT162: 26.49 | AU162: 27 | AV162: 27.51 | AW162: 28.02 | AX162: 28.53 | AY162: 29.04 | AZ162: 29.55 | BA162: 30.06 | BB162: 30.57 | BC162: 31.08 | BD162: 31.59 | BE162: 32.1 | BF162: 32.61 | BG162: 33.12 | BH162: 33.63 | BI162: 34.14 | BJ162: 34.65 | BK162: 35.16 | BL162: 35.67 | BM162: 36.18 | BN162: 36.69 | BO162: 37.2 | BP162: 37.71 | BQ162: 38.22 | BR162: 38.73 | BS162: 39.24 | BT162: 39.75 | BU162: 40.26 | BV162: 40.77 | BW162: 41.28 | BX162: 41.79 | BY162: 42.3 | BZ162: 42.81 | CA162: 43.32 | CB162: 43.83 | CC162: 44.34 | CD162: 44.85 | CE162: 45.36 | CF162: 45.87 | CG162: 46.38 | CH162: 46.89 | CI162: 47.4 | CJ162: 47.91 | CK162: 48.42 | CL162: 48.93 | CM162: 49.44 | CN162: 49.95 | CO162: 50.46 | CP162: 50.97 | CQ162: 51.48 | CR162: 51.99 | CS162: 52.5 | CT162: 53.01 | CU162: 53.52 | CV162: 54.03 | CW162: 54.54 | CX162: 55.05 | CY162: 55.56 | CZ162: 56.07 | DA162: 56.58 | DB162: 57.09 | DC162: 57.6 | DD162: 58.11 | DE162: 58.62 | DF162: 59.13 | DG162: 59.64 | DH162: 60.15 | DI162: 60.66 | DJ162: 61.17 | DK162: 61.68 | DL162: 62.19 | DM162: 62.7 | DN162: 63.21 | DO162: 63.72 | DP162: 64.23 | DQ162: 64.74 | DR162: 65.25 | DS162: 65.76 | DT162: 66.27 | DU162: 66.78 | DV162: 67.29 | DW162: 67.8 | DX162: 68.31 | DY162: 68.82 | DZ162: 69.33 | EA162: 69.84 | EB162: 70.35 | EC162: 70.86 | ED162: 71.37 | EE162: 71.88 | EF162: 72.39 | EG162: 72.9 | EH162: 73.41 | EI162: 73.92 | EJ162: 74.43 | EK162: 74.94 | EL162: 75.45 | EM162: 75.96 | EN162: 76.47 | EO162: 76.98 | EP162: 77.49 | EQ162: 78 | ER162: 78.51 | ES162: 79.02 | ET162: 79.53 | EU162: 80.04 | EV162: 80.55 | EW162: 81.06 | EX162: 81.57 | EY162: 82.08 | EZ162: 82.59 | FA162: 83.1 | FB162: 83.61 | FC162: 84.12 | FD162: 84.63 | FE162: 85.14 | FF162: 85.65 | FG162: 86.16 | FH162: 86.67 | FI162: 87.18 | FJ162: 87.69 | FK162: 88.2 | FL162: 88.71 | FM162: 89.22 | FN162: 89.73 | FO162: 90.24 | FP162: 90.75 | FQ162: 91.26 | FR162: 91.77 | FS162: 92.28 | FT162: 92.79 | FU162: 93.3 | FV162: 93.81 | FW162: 94.32 | FX162: 94.83 | FY162: 95.34 | FZ162: 95.85 | GA162: 96.36 | GB162: 96.87 | GC162: 97.38 | GD162: 97.89 | GE162: 98.4 | GF162: 98.91 | GG162: 99.42 | GH162: 99.93 | GI162: 100.44 | GJ162: 100.95 | GK162: 101.46 | GL162: 101.97 | GM162: 102.48 | GN162: 102.99 | GO162: 103.5 | GP162: 104.01 | GQ162: 104.52 | GR162: 105.03 | GS162: 105.54 | GT162: 106.05 | GU162: 106.56 | GV162: 107.07 | GW162: 107.58
A163: 43 | B163: Haute-Loire | D163: Oui | F163: 6.09 | G163: 6.6 | H163: 7.11 | I163: 7.62 | J163: 8.13 | K163: 8.64 | L163: 9.15 | M163: 9.66 | N163: 10.17 | O163: 10.68 | P163: 11.19 | Q163: 11.7 | R163: 12.21 | S163: 12.72 | T163: 13.23 | U163: 13.74 | V163: 14.25 | W163: 14.76 | X163: 15.27 | Y163: 15.78 | Z163: 16.29 | AA163: 16.8 | AB163: 17.31 | AC163: 17.82 | AD163: 18.33 | AE163: 18.84 | AF163: 19.35 | AG163: 19.86 | AH163: 20.37 | AI163: 20.88 | AJ163: 21.39 | AK163: 21.9 | AL163: 22.41 | AM163: 22.92 | AN163: 23.43 | AO163: 23.94 | AP163: 24.45 | AQ163: 24.96 | AR163: 25.47 | AS163: 25.98 | AT163: 26.49 | AU163: 27 | AV163: 27.51 | AW163: 28.02 | AX163: 28.53 | AY163: 29.04 | AZ163: 29.55 | BA163: 30.06 | BB163: 30.57 | BC163: 31.08 | BD163: 31.59 | BE163: 32.1 | BF163: 32.61 | BG163: 33.12 | BH163: 33.63 | BI163: 34.14 | BJ163: 34.65 | BK163: 35.16 | BL163: 35.67 | BM163: 36.18 | BN163: 36.69 | BO163: 37.2 | BP163: 37.71 | BQ163: 38.22 | BR163: 38.73 | BS163: 39.24 | BT163: 39.75 | BU163: 40.26 | BV163: 40.77 | BW163: 41.28 | BX163: 41.79 | BY163: 42.3 | BZ163: 42.81 | CA163: 43.32 | CB163: 43.83 | CC163: 44.34 | CD163: 44.85 | CE163: 45.36 | CF163: 45.87 | CG163: 46.38 | CH163: 46.89 | CI163: 47.4 | CJ163: 47.91 | CK163: 48.42 | CL163: 48.93 | CM163: 49.44 | CN163: 49.95 | CO163: 50.46 | CP163: 50.97 | CQ163: 51.48 | CR163: 51.99 | CS163: 52.5 | CT163: 53.01 | CU163: 53.52 | CV163: 54.03 | CW163: 54.54 | CX163: 55.05 | CY163: 55.56 | CZ163: 56.07 | DA163: 56.58 | DB163: 57.09 | DC163: 57.6 | DD163: 58.11 | DE163: 58.62 | DF163: 59.13 | DG163: 59.64 | DH163: 60.15 | DI163: 60.66 | DJ163: 61.17 | DK163: 61.68 | DL163: 62.19 | DM163: 62.7 | DN163: 63.21 | DO163: 63.72 | DP163: 64.23 | DQ163: 64.74 | DR163: 65.25 | DS163: 65.76 | DT163: 66.27 | DU163: 66.78 | DV163: 67.29 | DW163: 67.8 | DX163: 68.31 | DY163: 68.82 | DZ163: 69.33 | EA163: 69.84 | EB163: 70.35 | EC163: 70.86 | ED163: 71.37 | EE163: 71.88 | EF163: 72.39 | EG163: 72.9 | EH163: 73.41 | EI163: 73.92 | EJ163: 74.43 | EK163: 74.94 | EL163: 75.45 | EM163: 75.96 | EN163: 76.47 | EO163: 76.98 | EP163: 77.49 | EQ163: 78 | ER163: 78.51 | ES163: 79.02 | ET163: 79.53 | EU163: 80.04 | EV163: 80.55 | EW163: 81.06 | EX163: 81.57 | EY163: 82.08 | EZ163: 82.59 | FA163: 83.1 | FB163: 83.61 | FC163: 84.12 | FD163: 84.63 | FE163: 85.14 | FF163: 85.65 | FG163: 86.16 | FH163: 86.67 | FI163: 87.18 | FJ163: 87.69 | FK163: 88.2 | FL163: 88.71 | FM163: 89.22 | FN163: 89.73 | FO163: 90.24 | FP163: 90.75 | FQ163: 91.26 | FR163: 91.77 | FS163: 92.28 | FT163: 92.79 | FU163: 93.3 | FV163: 93.81 | FW163: 94.32 | FX163: 94.83 | FY163: 95.34 | FZ163: 95.85 | GA163: 96.36 | GB163: 96.87 | GC163: 97.38 | GD163: 97.89 | GE163: 98.4 | GF163: 98.91 | GG163: 99.42 | GH163: 99.93 | GI163: 100.44 | GJ163: 100.95 | GK163: 101.46 | GL163: 101.97 | GM163: 102.48 | GN163: 102.99 | GO163: 103.5 | GP163: 104.01 | GQ163: 104.52 | GR163: 105.03 | GS163: 105.54 | GT163: 106.05 | GU163: 106.56 | GV163: 107.07 | GW163: 107.58
A164: 44 | B164: Loire-Atlantique | D164: Oui | F164: 6.09 | G164: 6.6 | H164: 7.11 | I164: 7.62 | J164: 8.13 | K164: 8.64 | L164: 9.15 | M164: 9.66 | N164: 10.17 | O164: 10.68 | P164: 11.19 | Q164: 11.7 | R164: 12.21 | S164: 12.72 | T164: 13.23 | U164: 13.74 | V164: 14.25 | W164: 14.76 | X164: 15.27 | Y164: 15.78 | Z164: 16.29 | AA164: 16.8 | AB164: 17.31 | AC164: 17.82 | AD164: 18.33 | AE164: 18.84 | AF164: 19.35 | AG164: 19.86 | AH164: 20.37 | AI164: 20.88 | AJ164: 21.39 | AK164: 21.9 | AL164: 22.41 | AM164: 22.92 | AN164: 23.43 | AO164: 23.94 | AP164: 24.45 | AQ164: 24.96 | AR164: 25.47 | AS164: 25.98 | AT164: 26.49 | AU164: 27 | AV164: 27.51 | AW164: 28.02 | AX164: 28.53 | AY164: 29.04 | AZ164: 29.55 | BA164: 30.06 | BB164: 30.57 | BC164: 31.08 | BD164: 31.59 | BE164: 32.1 | BF164: 32.61 | BG164: 33.12 | BH164: 33.63 | BI164: 34.14 | BJ164: 34.65 | BK164: 35.16 | BL164: 35.67 | BM164: 36.18 | BN164: 36.69 | BO164: 37.2 | BP164: 37.71 | BQ164: 38.22 | BR164: 38.73 | BS164: 39.24 | BT164: 39.75 | BU164: 40.26 | BV164: 40.77 | BW164: 41.28 | BX164: 41.79 | BY164: 42.3 | BZ164: 42.81 | CA164: 43.32 | CB164: 43.83 | CC164: 44.34 | CD164: 44.85 | CE164: 45.36 | CF164: 45.87 | CG164: 46.38 | CH164: 46.89 | CI164: 47.4 | CJ164: 47.91 | CK164: 48.42 | CL164: 48.93 | CM164: 49.44 | CN164: 49.95 | CO164: 50.46 | CP164: 50.97 | CQ164: 51.48 | CR164: 51.99 | CS164: 52.5 | CT164: 53.01 | CU164: 53.52 | CV164: 54.03 | CW164: 54.54 | CX164: 55.05 | CY164: 55.56 | CZ164: 56.07 | DA164: 56.58 | DB164: 57.09 | DC164: 57.6 | DD164: 58.11 | DE164: 58.62 | DF164: 59.13 | DG164: 59.64 | DH164: 60.15 | DI164: 60.66 | DJ164: 61.17 | DK164: 61.68 | DL164: 62.19 | DM164: 62.7 | DN164: 63.21 | DO164: 63.72 | DP164: 64.23 | DQ164: 64.74 | DR164: 65.25 | DS164: 65.76 | DT164: 66.27 | DU164: 66.78 | DV164: 67.29 | DW164: 67.8 | DX164: 68.31 | DY164: 68.82 | DZ164: 69.33 | EA164: 69.84 | EB164: 70.35 | EC164: 70.86 | ED164: 71.37 | EE164: 71.88 | EF164: 72.39 | EG164: 72.9 | EH164: 73.41 | EI164: 73.92 | EJ164: 74.43 | EK164: 74.94 | EL164: 75.45 | EM164: 75.96 | EN164: 76.47 | EO164: 76.98 | EP164: 77.49 | EQ164: 78 | ER164: 78.51 | ES164: 79.02 | ET164: 79.53 | EU164: 80.04 | EV164: 80.55 | EW164: 81.06 | EX164: 81.57 | EY164: 82.08 | EZ164: 82.59 | FA164: 83.1 | FB164: 83.61 | FC164: 84.12 | FD164: 84.63 | FE164: 85.14 | FF164: 85.65 | FG164: 86.16 | FH164: 86.67 | FI164: 87.18 | FJ164: 87.69 | FK164: 88.2 | FL164: 88.71 | FM164: 89.22 | FN164: 89.73 | FO164: 90.24 | FP164: 90.75 | FQ164: 91.26 | FR164: 91.77 | FS164: 92.28 | FT164: 92.79 | FU164: 93.3 | FV164: 93.81 | FW164: 94.32 | FX164: 94.83 | FY164: 95.34 | FZ164: 95.85 | GA164: 96.36 | GB164: 96.87 | GC164: 97.38 | GD164: 97.89 | GE164: 98.4 | GF164: 98.91 | GG164: 99.42 | GH164: 99.93 | GI164: 100.44 | GJ164: 100.95 | GK164: 101.46 | GL164: 101.97 | GM164: 102.48 | GN164: 102.99 | GO164: 103.5 | GP164: 104.01 | GQ164: 104.52 | GR164: 105.03 | GS164: 105.54 | GT164: 106.05 | GU164: 106.56 | GV164: 107.07 | GW164: 107.58
A165: 45 | B165: Loiret | D165: Oui | F165: 6.09 | G165: 6.6 | H165: 7.11 | I165: 7.62 | J165: 8.13 | K165: 8.64 | L165: 9.15 | M165: 9.66 | N165: 10.17 | O165: 10.68 | P165: 11.19 | Q165: 11.7 | R165: 12.21 | S165: 12.72 | T165: 13.23 | U165: 13.74 | V165: 14.25 | W165: 14.76 | X165: 15.27 | Y165: 15.78 | Z165: 16.29 | AA165: 16.8 | AB165: 17.31 | AC165: 17.82 | AD165: 18.33 | AE165: 18.84 | AF165: 19.35 | AG165: 19.86 | AH165: 20.37 | AI165: 20.88 | AJ165: 21.39 | AK165: 21.9 | AL165: 22.41 | AM165: 22.92 | AN165: 23.43 | AO165: 23.94 | AP165: 24.45 | AQ165: 24.96 | AR165: 25.47 | AS165: 25.98 | AT165: 26.49 | AU165: 27 | AV165: 27.51 | AW165: 28.02 | AX165: 28.53 | AY165: 29.04 | AZ165: 29.55 | BA165: 30.06 | BB165: 30.57 | BC165: 31.08 | BD165: 31.59 | BE165: 32.1 | BF165: 32.61 | BG165: 33.12 | BH165: 33.63 | BI165: 34.14 | BJ165: 34.65 | BK165: 35.16 | BL165: 35.67 | BM165: 36.18 | BN165: 36.69 | BO165: 37.2 | BP165: 37.71 | BQ165: 38.22 | BR165: 38.73 | BS165: 39.24 | BT165: 39.75 | BU165: 40.26 | BV165: 40.77 | BW165: 41.28 | BX165: 41.79 | BY165: 42.3 | BZ165: 42.81 | CA165: 43.32 | CB165: 43.83 | CC165: 44.34 | CD165: 44.85 | CE165: 45.36 | CF165: 45.87 | CG165: 46.38 | CH165: 46.89 | CI165: 47.4 | CJ165: 47.91 | CK165: 48.42 | CL165: 48.93 | CM165: 49.44 | CN165: 49.95 | CO165: 50.46 | CP165: 50.97 | CQ165: 51.48 | CR165: 51.99 | CS165: 52.5 | CT165: 53.01 | CU165: 53.52 | CV165: 54.03 | CW165: 54.54 | CX165: 55.05 | CY165: 55.56 | CZ165: 56.07 | DA165: 56.58 | DB165: 57.09 | DC165: 57.6 | DD165: 58.11 | DE165: 58.62 | DF165: 59.13 | DG165: 59.64 | DH165: 60.15 | DI165: 60.66 | DJ165: 61.17 | DK165: 61.68 | DL165: 62.19 | DM165: 62.7 | DN165: 63.21 | DO165: 63.72 | DP165: 64.23 | DQ165: 64.74 | DR165: 65.25 | DS165: 65.76 | DT165: 66.27 | DU165: 66.78 | DV165: 67.29 | DW165: 67.8 | DX165: 68.31 | DY165: 68.82 | DZ165: 69.33 | EA165: 69.84 | EB165: 70.35 | EC165: 70.86 | ED165: 71.37 | EE165: 71.88 | EF165: 72.39 | EG165: 72.9 | EH165: 73.41 | EI165: 73.92 | EJ165: 74.43 | EK165: 74.94 | EL165: 75.45 | EM165: 75.96 | EN165: 76.47 | EO165: 76.98 | EP165: 77.49 | EQ165: 78 | ER165: 78.51 | ES165: 79.02 | ET165: 79.53 | EU165: 80.04 | EV165: 80.55 | EW165: 81.06 | EX165: 81.57 | EY165: 82.08 | EZ165: 82.59 | FA165: 83.1 | FB165: 83.61 | FC165: 84.12 | FD165: 84.63 | FE165: 85.14 | FF165: 85.65 | FG165: 86.16 | FH165: 86.67 | FI165: 87.18 | FJ165: 87.69 | FK165: 88.2 | FL165: 88.71 | FM165: 89.22 | FN165: 89.73 | FO165: 90.24 | FP165: 90.75 | FQ165: 91.26 | FR165: 91.77 | FS165: 92.28 | FT165: 92.79 | FU165: 93.3 | FV165: 93.81 | FW165: 94.32 | FX165: 94.83 | FY165: 95.34 | FZ165: 95.85 | GA165: 96.36 | GB165: 96.87 | GC165: 97.38 | GD165: 97.89 | GE165: 98.4 | GF165: 98.91 | GG165: 99.42 | GH165: 99.93 | GI165: 100.44 | GJ165: 100.95 | GK165: 101.46 | GL165: 101.97 | GM165: 102.48 | GN165: 102.99 | GO165: 103.5 | GP165: 104.01 | GQ165: 104.52 | GR165: 105.03 | GS165: 105.54 | GT165: 106.05 | GU165: 106.56 | GV165: 107.07 | GW165: 107.58
A166: 46 | B166: Lot | D166: Oui | F166: 6.09 | G166: 6.6 | H166: 7.11 | I166: 7.62 | J166: 8.13 | K166: 8.64 | L166: 9.15 | M166: 9.66 | N166: 10.17 | O166: 10.68 | P166: 11.19 | Q166: 11.7 | R166: 12.21 | S166: 12.72 | T166: 13.23 | U166: 13.74 | V166: 14.25 | W166: 14.76 | X166: 15.27 | Y166: 15.78 | Z166: 16.29 | AA166: 16.8 | AB166: 17.31 | AC166: 17.82 | AD166: 18.33 | AE166: 18.84 | AF166: 19.35 | AG166: 19.86 | AH166: 20.37 | AI166: 20.88 | AJ166: 21.39 | AK166: 21.9 | AL166: 22.41 | AM166: 22.92 | AN166: 23.43 | AO166: 23.94 | AP166: 24.45 | AQ166: 24.96 | AR166: 25.47 | AS166: 25.98 | AT166: 26.49 | AU166: 27 | AV166: 27.51 | AW166: 28.02 | AX166: 28.53 | AY166: 29.04 | AZ166: 29.55 | BA166: 30.06 | BB166: 30.57 | BC166: 31.08 | BD166: 31.59 | BE166: 32.1 | BF166: 32.61 | BG166: 33.12 | BH166: 33.63 | BI166: 34.14 | BJ166: 34.65 | BK166: 35.16 | BL166: 35.67 | BM166: 36.18 | BN166: 36.69 | BO166: 37.2 | BP166: 37.71 | BQ166: 38.22 | BR166: 38.73 | BS166: 39.24 | BT166: 39.75 | BU166: 40.26 | BV166: 40.77 | BW166: 41.28 | BX166: 41.79 | BY166: 42.3 | BZ166: 42.81 | CA166: 43.32 | CB166: 43.83 | CC166: 44.34 | CD166: 44.85 | CE166: 45.36 | CF166: 45.87 | CG166: 46.38 | CH166: 46.89 | CI166: 47.4 | CJ166: 47.91 | CK166: 48.42 | CL166: 48.93 | CM166: 49.44 | CN166: 49.95 | CO166: 50.46 | CP166: 50.97 | CQ166: 51.48 | CR166: 51.99 | CS166: 52.5 | CT166: 53.01 | CU166: 53.52 | CV166: 54.03 | CW166: 54.54 | CX166: 55.05 | CY166: 55.56 | CZ166: 56.07 | DA166: 56.58 | DB166: 57.09 | DC166: 57.6 | DD166: 58.11 | DE166: 58.62 | DF166: 59.13 | DG166: 59.64 | DH166: 60.15 | DI166: 60.66 | DJ166: 61.17 | DK166: 61.68 | DL166: 62.19 | DM166: 62.7 | DN166: 63.21 | DO166: 63.72 | DP166: 64.23 | DQ166: 64.74 | DR166: 65.25 | DS166: 65.76 | DT166: 66.27 | DU166: 66.78 | DV166: 67.29 | DW166: 67.8 | DX166: 68.31 | DY166: 68.82 | DZ166: 69.33 | EA166: 69.84 | EB166: 70.35 | EC166: 70.86 | ED166: 71.37 | EE166: 71.88 | EF166: 72.39 | EG166: 72.9 | EH166: 73.41 | EI166: 73.92 | EJ166: 74.43 | EK166: 74.94 | EL166: 75.45 | EM166: 75.96 | EN166: 76.47 | EO166: 76.98 | EP166: 77.49 | EQ166: 78 | ER166: 78.51 | ES166: 79.02 | ET166: 79.53 | EU166: 80.04 | EV166: 80.55 | EW166: 81.06 | EX166: 81.57 | EY166: 82.08 | EZ166: 82.59 | FA166: 83.1 | FB166: 83.61 | FC166: 84.12 | FD166: 84.63 | FE166: 85.14 | FF166: 85.65 | FG166: 86.16 | FH166: 86.67 | FI166: 87.18 | FJ166: 87.69 | FK166: 88.2 | FL166: 88.71 | FM166: 89.22 | FN166: 89.73 | FO166: 90.24 | FP166: 90.75 | FQ166: 91.26 | FR166: 91.77 | FS166: 92.28 | FT166: 92.79 | FU166: 93.3 | FV166: 93.81 | FW166: 94.32 | FX166: 94.83 | FY166: 95.34 | FZ166: 95.85 | GA166: 96.36 | GB166: 96.87 | GC166: 97.38 | GD166: 97.89 | GE166: 98.4 | GF166: 98.91 | GG166: 99.42 | GH166: 99.93 | GI166: 100.44 | GJ166: 100.95 | GK166: 101.46 | GL166: 101.97 | GM166: 102.48 | GN166: 102.99 | GO166: 103.5 | GP166: 104.01 | GQ166: 104.52 | GR166: 105.03 | GS166: 105.54 | GT166: 106.05 | GU166: 106.56 | GV166: 107.07 | GW166: 107.58
A167: 47 | B167: Lot-et-Garonne | D167: Oui | F167: 6.09 | G167: 6.6 | H167: 7.11 | I167: 7.62 | J167: 8.13 | K167: 8.64 | L167: 9.15 | M167: 9.66 | N167: 10.17 | O167: 10.68 | P167: 11.19 | Q167: 11.7 | R167: 12.21 | S167: 12.72 | T167: 13.23 | U167: 13.74 | V167: 14.25 | W167: 14.76 | X167: 15.27 | Y167: 15.78 | Z167: 16.29 | AA167: 16.8 | AB167: 17.31 | AC167: 17.82 | AD167: 18.33 | AE167: 18.84 | AF167: 19.35 | AG167: 19.86 | AH167: 20.37 | AI167: 20.88 | AJ167: 21.39 | AK167: 21.9 | AL167: 22.41 | AM167: 22.92 | AN167: 23.43 | AO167: 23.94 | AP167: 24.45 | AQ167: 24.96 | AR167: 25.47 | AS167: 25.98 | AT167: 26.49 | AU167: 27 | AV167: 27.51 | AW167: 28.02 | AX167: 28.53 | AY167: 29.04 | AZ167: 29.55 | BA167: 30.06 | BB167: 30.57 | BC167: 31.08 | BD167: 31.59 | BE167: 32.1 | BF167: 32.61 | BG167: 33.12 | BH167: 33.63 | BI167: 34.14 | BJ167: 34.65 | BK167: 35.16 | BL167: 35.67 | BM167: 36.18 | BN167: 36.69 | BO167: 37.2 | BP167: 37.71 | BQ167: 38.22 | BR167: 38.73 | BS167: 39.24 | BT167: 39.75 | BU167: 40.26 | BV167: 40.77 | BW167: 41.28 | BX167: 41.79 | BY167: 42.3 | BZ167: 42.81 | CA167: 43.32 | CB167: 43.83 | CC167: 44.34 | CD167: 44.85 | CE167: 45.36 | CF167: 45.87 | CG167: 46.38 | CH167: 46.89 | CI167: 47.4 | CJ167: 47.91 | CK167: 48.42 | CL167: 48.93 | CM167: 49.44 | CN167: 49.95 | CO167: 50.46 | CP167: 50.97 | CQ167: 51.48 | CR167: 51.99 | CS167: 52.5 | CT167: 53.01 | CU167: 53.52 | CV167: 54.03 | CW167: 54.54 | CX167: 55.05 | CY167: 55.56 | CZ167: 56.07 | DA167: 56.58 | DB167: 57.09 | DC167: 57.6 | DD167: 58.11 | DE167: 58.62 | DF167: 59.13 | DG167: 59.64 | DH167: 60.15 | DI167: 60.66 | DJ167: 61.17 | DK167: 61.68 | DL167: 62.19 | DM167: 62.7 | DN167: 63.21 | DO167: 63.72 | DP167: 64.23 | DQ167: 64.74 | DR167: 65.25 | DS167: 65.76 | DT167: 66.27 | DU167: 66.78 | DV167: 67.29 | DW167: 67.8 | DX167: 68.31 | DY167: 68.82 | DZ167: 69.33 | EA167: 69.84 | EB167: 70.35 | EC167: 70.86 | ED167: 71.37 | EE167: 71.88 | EF167: 72.39 | EG167: 72.9 | EH167: 73.41 | EI167: 73.92 | EJ167: 74.43 | EK167: 74.94 | EL167: 75.45 | EM167: 75.96 | EN167: 76.47 | EO167: 76.98 | EP167: 77.49 | EQ167: 78 | ER167: 78.51 | ES167: 79.02 | ET167: 79.53 | EU167: 80.04 | EV167: 80.55 | EW167: 81.06 | EX167: 81.57 | EY167: 82.08 | EZ167: 82.59 | FA167: 83.1 | FB167: 83.61 | FC167: 84.12 | FD167: 84.63 | FE167: 85.14 | FF167: 85.65 | FG167: 86.16 | FH167: 86.67 | FI167: 87.18 | FJ167: 87.69 | FK167: 88.2 | FL167: 88.71 | FM167: 89.22 | FN167: 89.73 | FO167: 90.24 | FP167: 90.75 | FQ167: 91.26 | FR167: 91.77 | FS167: 92.28 | FT167: 92.79 | FU167: 93.3 | FV167: 93.81 | FW167: 94.32 | FX167: 94.83 | FY167: 95.34 | FZ167: 95.85 | GA167: 96.36 | GB167: 96.87 | GC167: 97.38 | GD167: 97.89 | GE167: 98.4 | GF167: 98.91 | GG167: 99.42 | GH167: 99.93 | GI167: 100.44 | GJ167: 100.95 | GK167: 101.46 | GL167: 101.97 | GM167: 102.48 | GN167: 102.99 | GO167: 103.5 | GP167: 104.01 | GQ167: 104.52 | GR167: 105.03 | GS167: 105.54 | GT167: 106.05 | GU167: 106.56 | GV167: 107.07 | GW167: 107.58
A168: 48 | B168: Lozère | D168: Oui | F168: 6.09 | G168: 6.6 | H168: 7.11 | I168: 7.62 | J168: 8.13 | K168: 8.64 | L168: 9.15 | M168: 9.66 | N168: 10.17 | O168: 10.68 | P168: 11.19 | Q168: 11.7 | R168: 12.21 | S168: 12.72 | T168: 13.23 | U168: 13.74 | V168: 14.25 | W168: 14.76 | X168: 15.27 | Y168: 15.78 | Z168: 16.29 | AA168: 16.8 | AB168: 17.31 | AC168: 17.82 | AD168: 18.33 | AE168: 18.84 | AF168: 19.35 | AG168: 19.86 | AH168: 20.37 | AI168: 20.88 | AJ168: 21.39 | AK168: 21.9 | AL168: 22.41 | AM168: 22.92 | AN168: 23.43 | AO168: 23.94 | AP168: 24.45 | AQ168: 24.96 | AR168: 25.47 | AS168: 25.98 | AT168: 26.49 | AU168: 27 | AV168: 27.51 | AW168: 28.02 | AX168: 28.53 | AY168: 29.04 | AZ168: 29.55 | BA168: 30.06 | BB168: 30.57 | BC168: 31.08 | BD168: 31.59 | BE168: 32.1 | BF168: 32.61 | BG168: 33.12 | BH168: 33.63 | BI168: 34.14 | BJ168: 34.65 | BK168: 35.16 | BL168: 35.67 | BM168: 36.18 | BN168: 36.69 | BO168: 37.2 | BP168: 37.71 | BQ168: 38.22 | BR168: 38.73 | BS168: 39.24 | BT168: 39.75 | BU168: 40.26 | BV168: 40.77 | BW168: 41.28 | BX168: 41.79 | BY168: 42.3 | BZ168: 42.81 | CA168: 43.32 | CB168: 43.83 | CC168: 44.34 | CD168: 44.85 | CE168: 45.36 | CF168: 45.87 | CG168: 46.38 | CH168: 46.89 | CI168: 47.4 | CJ168: 47.91 | CK168: 48.42 | CL168: 48.93 | CM168: 49.44 | CN168: 49.95 | CO168: 50.46 | CP168: 50.97 | CQ168: 51.48 | CR168: 51.99 | CS168: 52.5 | CT168: 53.01 | CU168: 53.52 | CV168: 54.03 | CW168: 54.54 | CX168: 55.05 | CY168: 55.56 | CZ168: 56.07 | DA168: 56.58 | DB168: 57.09 | DC168: 57.6 | DD168: 58.11 | DE168: 58.62 | DF168: 59.13 | DG168: 59.64 | DH168: 60.15 | DI168: 60.66 | DJ168: 61.17 | DK168: 61.68 | DL168: 62.19 | DM168: 62.7 | DN168: 63.21 | DO168: 63.72 | DP168: 64.23 | DQ168: 64.74 | DR168: 65.25 | DS168: 65.76 | DT168: 66.27 | DU168: 66.78 | DV168: 67.29 | DW168: 67.8 | DX168: 68.31 | DY168: 68.82 | DZ168: 69.33 | EA168: 69.84 | EB168: 70.35 | EC168: 70.86 | ED168: 71.37 | EE168: 71.88 | EF168: 72.39 | EG168: 72.9 | EH168: 73.41 | EI168: 73.92 | EJ168: 74.43 | EK168: 74.94 | EL168: 75.45 | EM168: 75.96 | EN168: 76.47 | EO168: 76.98 | EP168: 77.49 | EQ168: 78 | ER168: 78.51 | ES168: 79.02 | ET168: 79.53 | EU168: 80.04 | EV168: 80.55 | EW168: 81.06 | EX168: 81.57 | EY168: 82.08 | EZ168: 82.59 | FA168: 83.1 | FB168: 83.61 | FC168: 84.12 | FD168: 84.63 | FE168: 85.14 | FF168: 85.65 | FG168: 86.16 | FH168: 86.67 | FI168: 87.18 | FJ168: 87.69 | FK168: 88.2 | FL168: 88.71 | FM168: 89.22 | FN168: 89.73 | FO168: 90.24 | FP168: 90.75 | FQ168: 91.26 | FR168: 91.77 | FS168: 92.28 | FT168: 92.79 | FU168: 93.3 | FV168: 93.81 | FW168: 94.32 | FX168: 94.83 | FY168: 95.34 | FZ168: 95.85 | GA168: 96.36 | GB168: 96.87 | GC168: 97.38 | GD168: 97.89 | GE168: 98.4 | GF168: 98.91 | GG168: 99.42 | GH168: 99.93 | GI168: 100.44 | GJ168: 100.95 | GK168: 101.46 | GL168: 101.97 | GM168: 102.48 | GN168: 102.99 | GO168: 103.5 | GP168: 104.01 | GQ168: 104.52 | GR168: 105.03 | GS168: 105.54 | GT168: 106.05 | GU168: 106.56 | GV168: 107.07 | GW168: 107.58
A169: 49 | B169: Maine-et-Loire | D169: Oui | F169: 6.09 | G169: 6.6 | H169: 7.11 | I169: 7.62 | J169: 8.13 | K169: 8.64 | L169: 9.15 | M169: 9.66 | N169: 10.17 | O169: 10.68 | P169: 11.19 | Q169: 11.7 | R169: 12.21 | S169: 12.72 | T169: 13.23 | U169: 13.74 | V169: 14.25 | W169: 14.76 | X169: 15.27 | Y169: 15.78 | Z169: 16.29 | AA169: 16.8 | AB169: 17.31 | AC169: 17.82 | AD169: 18.33 | AE169: 18.84 | AF169: 19.35 | AG169: 19.86 | AH169: 20.37 | AI169: 20.88 | AJ169: 21.39 | AK169: 21.9 | AL169: 22.41 | AM169: 22.92 | AN169: 23.43 | AO169: 23.94 | AP169: 24.45 | AQ169: 24.96 | AR169: 25.47 | AS169: 25.98 | AT169: 26.49 | AU169: 27 | AV169: 27.51 | AW169: 28.02 | AX169: 28.53 | AY169: 29.04 | AZ169: 29.55 | BA169: 30.06 | BB169: 30.57 | BC169: 31.08 | BD169: 31.59 | BE169: 32.1 | BF169: 32.61 | BG169: 33.12 | BH169: 33.63 | BI169: 34.14 | BJ169: 34.65 | BK169: 35.16 | BL169: 35.67 | BM169: 36.18 | BN169: 36.69 | BO169: 37.2 | BP169: 37.71 | BQ169: 38.22 | BR169: 38.73 | BS169: 39.24 | BT169: 39.75 | BU169: 40.26 | BV169: 40.77 | BW169: 41.28 | BX169: 41.79 | BY169: 42.3 | BZ169: 42.81 | CA169: 43.32 | CB169: 43.83 | CC169: 44.34 | CD169: 44.85 | CE169: 45.36 | CF169: 45.87 | CG169: 46.38 | CH169: 46.89 | CI169: 47.4 | CJ169: 47.91 | CK169: 48.42 | CL169: 48.93 | CM169: 49.44 | CN169: 49.95 | CO169: 50.46 | CP169: 50.97 | CQ169: 51.48 | CR169: 51.99 | CS169: 52.5 | CT169: 53.01 | CU169: 53.52 | CV169: 54.03 | CW169: 54.54 | CX169: 55.05 | CY169: 55.56 | CZ169: 56.07 | DA169: 56.58 | DB169: 57.09 | DC169: 57.6 | DD169: 58.11 | DE169: 58.62 | DF169: 59.13 | DG169: 59.64 | DH169: 60.15 | DI169: 60.66 | DJ169: 61.17 | DK169: 61.68 | DL169: 62.19 | DM169: 62.7 | DN169: 63.21 | DO169: 63.72 | DP169: 64.23 | DQ169: 64.74 | DR169: 65.25 | DS169: 65.76 | DT169: 66.27 | DU169: 66.78 | DV169: 67.29 | DW169: 67.8 | DX169: 68.31 | DY169: 68.82 | DZ169: 69.33 | EA169: 69.84 | EB169: 70.35 | EC169: 70.86 | ED169: 71.37 | EE169: 71.88 | EF169: 72.39 | EG169: 72.9 | EH169: 73.41 | EI169: 73.92 | EJ169: 74.43 | EK169: 74.94 | EL169: 75.45 | EM169: 75.96 | EN169: 76.47 | EO169: 76.98 | EP169: 77.49 | EQ169: 78 | ER169: 78.51 | ES169: 79.02 | ET169: 79.53 | EU169: 80.04 | EV169: 80.55 | EW169: 81.06 | EX169: 81.57 | EY169: 82.08 | EZ169: 82.59 | FA169: 83.1 | FB169: 83.61 | FC169: 84.12 | FD169: 84.63 | FE169: 85.14 | FF169: 85.65 | FG169: 86.16 | FH169: 86.67 | FI169: 87.18 | FJ169: 87.69 | FK169: 88.2 | FL169: 88.71 | FM169: 89.22 | FN169: 89.73 | FO169: 90.24 | FP169: 90.75 | FQ169: 91.26 | FR169: 91.77 | FS169: 92.28 | FT169: 92.79 | FU169: 93.3 | FV169: 93.81 | FW169: 94.32 | FX169: 94.83 | FY169: 95.34 | FZ169: 95.85 | GA169: 96.36 | GB169: 96.87 | GC169: 97.38 | GD169: 97.89 | GE169: 98.4 | GF169: 98.91 | GG169: 99.42 | GH169: 99.93 | GI169: 100.44 | GJ169: 100.95 | GK169: 101.46 | GL169: 101.97 | GM169: 102.48 | GN169: 102.99 | GO169: 103.5 | GP169: 104.01 | GQ169: 104.52 | GR169: 105.03 | GS169: 105.54 | GT169: 106.05 | GU169: 106.56 | GV169: 107.07 | GW169: 107.58
A170: 50 | B170: Manche | D170: Oui | F170: 6.09 | G170: 6.6 | H170: 7.11 | I170: 7.62 | J170: 8.13 | K170: 8.64 | L170: 9.15 | M170: 9.66 | N170: 10.17 | O170: 10.68 | P170: 11.19 | Q170: 11.7 | R170: 12.21 | S170: 12.72 | T170: 13.23 | U170: 13.74 | V170: 14.25 | W170: 14.76 | X170: 15.27 | Y170: 15.78 | Z170: 16.29 | AA170: 16.8 | AB170: 17.31 | AC170: 17.82 | AD170: 18.33 | AE170: 18.84 | AF170: 19.35 | AG170: 19.86 | AH170: 20.37 | AI170: 20.88 | AJ170: 21.39 | AK170: 21.9 | AL170: 22.41 | AM170: 22.92 | AN170: 23.43 | AO170: 23.94 | AP170: 24.45 | AQ170: 24.96 | AR170: 25.47 | AS170: 25.98 | AT170: 26.49 | AU170: 27 | AV170: 27.51 | AW170: 28.02 | AX170: 28.53 | AY170: 29.04 | AZ170: 29.55 | BA170: 30.06 | BB170: 30.57 | BC170: 31.08 | BD170: 31.59 | BE170: 32.1 | BF170: 32.61 | BG170: 33.12 | BH170: 33.63 | BI170: 34.14 | BJ170: 34.65 | BK170: 35.16 | BL170: 35.67 | BM170: 36.18 | BN170: 36.69 | BO170: 37.2 | BP170: 37.71 | BQ170: 38.22 | BR170: 38.73 | BS170: 39.24 | BT170: 39.75 | BU170: 40.26 | BV170: 40.77 | BW170: 41.28 | BX170: 41.79 | BY170: 42.3 | BZ170: 42.81 | CA170: 43.32 | CB170: 43.83 | CC170: 44.34 | CD170: 44.85 | CE170: 45.36 | CF170: 45.87 | CG170: 46.38 | CH170: 46.89 | CI170: 47.4 | CJ170: 47.91 | CK170: 48.42 | CL170: 48.93 | CM170: 49.44 | CN170: 49.95 | CO170: 50.46 | CP170: 50.97 | CQ170: 51.48 | CR170: 51.99 | CS170: 52.5 | CT170: 53.01 | CU170: 53.52 | CV170: 54.03 | CW170: 54.54 | CX170: 55.05 | CY170: 55.56 | CZ170: 56.07 | DA170: 56.58 | DB170: 57.09 | DC170: 57.6 | DD170: 58.11 | DE170: 58.62 | DF170: 59.13 | DG170: 59.64 | DH170: 60.15 | DI170: 60.66 | DJ170: 61.17 | DK170: 61.68 | DL170: 62.19 | DM170: 62.7 | DN170: 63.21 | DO170: 63.72 | DP170: 64.23 | DQ170: 64.74 | DR170: 65.25 | DS170: 65.76 | DT170: 66.27 | DU170: 66.78 | DV170: 67.29 | DW170: 67.8 | DX170: 68.31 | DY170: 68.82 | DZ170: 69.33 | EA170: 69.84 | EB170: 70.35 | EC170: 70.86 | ED170: 71.37 | EE170: 71.88 | EF170: 72.39 | EG170: 72.9 | EH170: 73.41 | EI170: 73.92 | EJ170: 74.43 | EK170: 74.94 | EL170: 75.45 | EM170: 75.96 | EN170: 76.47 | EO170: 76.98 | EP170: 77.49 | EQ170: 78 | ER170: 78.51 | ES170: 79.02 | ET170: 79.53 | EU170: 80.04 | EV170: 80.55 | EW170: 81.06 | EX170: 81.57 | EY170: 82.08 | EZ170: 82.59 | FA170: 83.1 | FB170: 83.61 | FC170: 84.12 | FD170: 84.63 | FE170: 85.14 | FF170: 85.65 | FG170: 86.16 | FH170: 86.67 | FI170: 87.18 | FJ170: 87.69 | FK170: 88.2 | FL170: 88.71 | FM170: 89.22 | FN170: 89.73 | FO170: 90.24 | FP170: 90.75 | FQ170: 91.26 | FR170: 91.77 | FS170: 92.28 | FT170: 92.79 | FU170: 93.3 | FV170: 93.81 | FW170: 94.32 | FX170: 94.83 | FY170: 95.34 | FZ170: 95.85 | GA170: 96.36 | GB170: 96.87 | GC170: 97.38 | GD170: 97.89 | GE170: 98.4 | GF170: 98.91 | GG170: 99.42 | GH170: 99.93 | GI170: 100.44 | GJ170: 100.95 | GK170: 101.46 | GL170: 101.97 | GM170: 102.48 | GN170: 102.99 | GO170: 103.5 | GP170: 104.01 | GQ170: 104.52 | GR170: 105.03 | GS170: 105.54 | GT170: 106.05 | GU170: 106.56 | GV170: 107.07 | GW170: 107.58
A171: 51 | B171: Marne | D171: Oui | F171: 6.09 | G171: 6.6 | H171: 7.11 | I171: 7.62 | J171: 8.13 | K171: 8.64 | L171: 9.15 | M171: 9.66 | N171: 10.17 | O171: 10.68 | P171: 11.19 | Q171: 11.7 | R171: 12.21 | S171: 12.72 | T171: 13.23 | U171: 13.74 | V171: 14.25 | W171: 14.76 | X171: 15.27 | Y171: 15.78 | Z171: 16.29 | AA171: 16.8 | AB171: 17.31 | AC171: 17.82 | AD171: 18.33 | AE171: 18.84 | AF171: 19.35 | AG171: 19.86 | AH171: 20.37 | AI171: 20.88 | AJ171: 21.39 | AK171: 21.9 | AL171: 22.41 | AM171: 22.92 | AN171: 23.43 | AO171: 23.94 | AP171: 24.45 | AQ171: 24.96 | AR171: 25.47 | AS171: 25.98 | AT171: 26.49 | AU171: 27 | AV171: 27.51 | AW171: 28.02 | AX171: 28.53 | AY171: 29.04 | AZ171: 29.55 | BA171: 30.06 | BB171: 30.57 | BC171: 31.08 | BD171: 31.59 | BE171: 32.1 | BF171: 32.61 | BG171: 33.12 | BH171: 33.63 | BI171: 34.14 | BJ171: 34.65 | BK171: 35.16 | BL171: 35.67 | BM171: 36.18 | BN171: 36.69 | BO171: 37.2 | BP171: 37.71 | BQ171: 38.22 | BR171: 38.73 | BS171: 39.24 | BT171: 39.75 | BU171: 40.26 | BV171: 40.77 | BW171: 41.28 | BX171: 41.79 | BY171: 42.3 | BZ171: 42.81 | CA171: 43.32 | CB171: 43.83 | CC171: 44.34 | CD171: 44.85 | CE171: 45.36 | CF171: 45.87 | CG171: 46.38 | CH171: 46.89 | CI171: 47.4 | CJ171: 47.91 | CK171: 48.42 | CL171: 48.93 | CM171: 49.44 | CN171: 49.95 | CO171: 50.46 | CP171: 50.97 | CQ171: 51.48 | CR171: 51.99 | CS171: 52.5 | CT171: 53.01 | CU171: 53.52 | CV171: 54.03 | CW171: 54.54 | CX171: 55.05 | CY171: 55.56 | CZ171: 56.07 | DA171: 56.58 | DB171: 57.09 | DC171: 57.6 | DD171: 58.11 | DE171: 58.62 | DF171: 59.13 | DG171: 59.64 | DH171: 60.15 | DI171: 60.66 | DJ171: 61.17 | DK171: 61.68 | DL171: 62.19 | DM171: 62.7 | DN171: 63.21 | DO171: 63.72 | DP171: 64.23 | DQ171: 64.74 | DR171: 65.25 | DS171: 65.76 | DT171: 66.27 | DU171: 66.78 | DV171: 67.29 | DW171: 67.8 | DX171: 68.31 | DY171: 68.82 | DZ171: 69.33 | EA171: 69.84 | EB171: 70.35 | EC171: 70.86 | ED171: 71.37 | EE171: 71.88 | EF171: 72.39 | EG171: 72.9 | EH171: 73.41 | EI171: 73.92 | EJ171: 74.43 | EK171: 74.94 | EL171: 75.45 | EM171: 75.96 | EN171: 76.47 | EO171: 76.98 | EP171: 77.49 | EQ171: 78 | ER171: 78.51 | ES171: 79.02 | ET171: 79.53 | EU171: 80.04 | EV171: 80.55 | EW171: 81.06 | EX171: 81.57 | EY171: 82.08 | EZ171: 82.59 | FA171: 83.1 | FB171: 83.61 | FC171: 84.12 | FD171: 84.63 | FE171: 85.14 | FF171: 85.65 | FG171: 86.16 | FH171: 86.67 | FI171: 87.18 | FJ171: 87.69 | FK171: 88.2 | FL171: 88.71 | FM171: 89.22 | FN171: 89.73 | FO171: 90.24 | FP171: 90.75 | FQ171: 91.26 | FR171: 91.77 | FS171: 92.28 | FT171: 92.79 | FU171: 93.3 | FV171: 93.81 | FW171: 94.32 | FX171: 94.83 | FY171: 95.34 | FZ171: 95.85 | GA171: 96.36 | GB171: 96.87 | GC171: 97.38 | GD171: 97.89 | GE171: 98.4 | GF171: 98.91 | GG171: 99.42 | GH171: 99.93 | GI171: 100.44 | GJ171: 100.95 | GK171: 101.46 | GL171: 101.97 | GM171: 102.48 | GN171: 102.99 | GO171: 103.5 | GP171: 104.01 | GQ171: 104.52 | GR171: 105.03 | GS171: 105.54 | GT171: 106.05 | GU171: 106.56 | GV171: 107.07 | GW171: 107.58
A172: 52 | B172: Haute-Marne | D172: Oui | F172: 6.09 | G172: 6.6 | H172: 7.11 | I172: 7.62 | J172: 8.13 | K172: 8.64 | L172: 9.15 | M172: 9.66 | N172: 10.17 | O172: 10.68 | P172: 11.19 | Q172: 11.7 | R172: 12.21 | S172: 12.72 | T172: 13.23 | U172: 13.74 | V172: 14.25 | W172: 14.76 | X172: 15.27 | Y172: 15.78 | Z172: 16.29 | AA172: 16.8 | AB172: 17.31 | AC172: 17.82 | AD172: 18.33 | AE172: 18.84 | AF172: 19.35 | AG172: 19.86 | AH172: 20.37 | AI172: 20.88 | AJ172: 21.39 | AK172: 21.9 | AL172: 22.41 | AM172: 22.92 | AN172: 23.43 | AO172: 23.94 | AP172: 24.45 | AQ172: 24.96 | AR172: 25.47 | AS172: 25.98 | AT172: 26.49 | AU172: 27 | AV172: 27.51 | AW172: 28.02 | AX172: 28.53 | AY172: 29.04 | AZ172: 29.55 | BA172: 30.06 | BB172: 30.57 | BC172: 31.08 | BD172: 31.59 | BE172: 32.1 | BF172: 32.61 | BG172: 33.12 | BH172: 33.63 | BI172: 34.14 | BJ172: 34.65 | BK172: 35.16 | BL172: 35.67 | BM172: 36.18 | BN172: 36.69 | BO172: 37.2 | BP172: 37.71 | BQ172: 38.22 | BR172: 38.73 | BS172: 39.24 | BT172: 39.75 | BU172: 40.26 | BV172: 40.77 | BW172: 41.28 | BX172: 41.79 | BY172: 42.3 | BZ172: 42.81 | CA172: 43.32 | CB172: 43.83 | CC172: 44.34 | CD172: 44.85 | CE172: 45.36 | CF172: 45.87 | CG172: 46.38 | CH172: 46.89 | CI172: 47.4 | CJ172: 47.91 | CK172: 48.42 | CL172: 48.93 | CM172: 49.44 | CN172: 49.95 | CO172: 50.46 | CP172: 50.97 | CQ172: 51.48 | CR172: 51.99 | CS172: 52.5 | CT172: 53.01 | CU172: 53.52 | CV172: 54.03 | CW172: 54.54 | CX172: 55.05 | CY172: 55.56 | CZ172: 56.07 | DA172: 56.58 | DB172: 57.09 | DC172: 57.6 | DD172: 58.11 | DE172: 58.62 | DF172: 59.13 | DG172: 59.64 | DH172: 60.15 | DI172: 60.66 | DJ172: 61.17 | DK172: 61.68 | DL172: 62.19 | DM172: 62.7 | DN172: 63.21 | DO172: 63.72 | DP172: 64.23 | DQ172: 64.74 | DR172: 65.25 | DS172: 65.76 | DT172: 66.27 | DU172: 66.78 | DV172: 67.29 | DW172: 67.8 | DX172: 68.31 | DY172: 68.82 | DZ172: 69.33 | EA172: 69.84 | EB172: 70.35 | EC172: 70.86 | ED172: 71.37 | EE172: 71.88 | EF172: 72.39 | EG172: 72.9 | EH172: 73.41 | EI172: 73.92 | EJ172: 74.43 | EK172: 74.94 | EL172: 75.45 | EM172: 75.96 | EN172: 76.47 | EO172: 76.98 | EP172: 77.49 | EQ172: 78 | ER172: 78.51 | ES172: 79.02 | ET172: 79.53 | EU172: 80.04 | EV172: 80.55 | EW172: 81.06 | EX172: 81.57 | EY172: 82.08 | EZ172: 82.59 | FA172: 83.1 | FB172: 83.61 | FC172: 84.12 | FD172: 84.63 | FE172: 85.14 | FF172: 85.65 | FG172: 86.16 | FH172: 86.67 | FI172: 87.18 | FJ172: 87.69 | FK172: 88.2 | FL172: 88.71 | FM172: 89.22 | FN172: 89.73 | FO172: 90.24 | FP172: 90.75 | FQ172: 91.26 | FR172: 91.77 | FS172: 92.28 | FT172: 92.79 | FU172: 93.3 | FV172: 93.81 | FW172: 94.32 | FX172: 94.83 | FY172: 95.34 | FZ172: 95.85 | GA172: 96.36 | GB172: 96.87 | GC172: 97.38 | GD172: 97.89 | GE172: 98.4 | GF172: 98.91 | GG172: 99.42 | GH172: 99.93 | GI172: 100.44 | GJ172: 100.95 | GK172: 101.46 | GL172: 101.97 | GM172: 102.48 | GN172: 102.99 | GO172: 103.5 | GP172: 104.01 | GQ172: 104.52 | GR172: 105.03 | GS172: 105.54 | GT172: 106.05 | GU172: 106.56 | GV172: 107.07 | GW172: 107.58
A173: 53 | B173: Mayenne | D173: Oui | F173: 6.09 | G173: 6.6 | H173: 7.11 | I173: 7.62 | J173: 8.13 | K173: 8.64 | L173: 9.15 | M173: 9.66 | N173: 10.17 | O173: 10.68 | P173: 11.19 | Q173: 11.7 | R173: 12.21 | S173: 12.72 | T173: 13.23 | U173: 13.74 | V173: 14.25 | W173: 14.76 | X173: 15.27 | Y173: 15.78 | Z173: 16.29 | AA173: 16.8 | AB173: 17.31 | AC173: 17.82 | AD173: 18.33 | AE173: 18.84 | AF173: 19.35 | AG173: 19.86 | AH173: 20.37 | AI173: 20.88 | AJ173: 21.39 | AK173: 21.9 | AL173: 22.41 | AM173: 22.92 | AN173: 23.43 | AO173: 23.94 | AP173: 24.45 | AQ173: 24.96 | AR173: 25.47 | AS173: 25.98 | AT173: 26.49 | AU173: 27 | AV173: 27.51 | AW173: 28.02 | AX173: 28.53 | AY173: 29.04 | AZ173: 29.55 | BA173: 30.06 | BB173: 30.57 | BC173: 31.08 | BD173: 31.59 | BE173: 32.1 | BF173: 32.61 | BG173: 33.12 | BH173: 33.63 | BI173: 34.14 | BJ173: 34.65 | BK173: 35.16 | BL173: 35.67 | BM173: 36.18 | BN173: 36.69 | BO173: 37.2 | BP173: 37.71 | BQ173: 38.22 | BR173: 38.73 | BS173: 39.24 | BT173: 39.75 | BU173: 40.26 | BV173: 40.77 | BW173: 41.28 | BX173: 41.79 | BY173: 42.3 | BZ173: 42.81 | CA173: 43.32 | CB173: 43.83 | CC173: 44.34 | CD173: 44.85 | CE173: 45.36 | CF173: 45.87 | CG173: 46.38 | CH173: 46.89 | CI173: 47.4 | CJ173: 47.91 | CK173: 48.42 | CL173: 48.93 | CM173: 49.44 | CN173: 49.95 | CO173: 50.46 | CP173: 50.97 | CQ173: 51.48 | CR173: 51.99 | CS173: 52.5 | CT173: 53.01 | CU173: 53.52 | CV173: 54.03 | CW173: 54.54 | CX173: 55.05 | CY173: 55.56 | CZ173: 56.07 | DA173: 56.58 | DB173: 57.09 | DC173: 57.6 | DD173: 58.11 | DE173: 58.62 | DF173: 59.13 | DG173: 59.64 | DH173: 60.15 | DI173: 60.66 | DJ173: 61.17 | DK173: 61.68 | DL173: 62.19 | DM173: 62.7 | DN173: 63.21 | DO173: 63.72 | DP173: 64.23 | DQ173: 64.74 | DR173: 65.25 | DS173: 65.76 | DT173: 66.27 | DU173: 66.78 | DV173: 67.29 | DW173: 67.8 | DX173: 68.31 | DY173: 68.82 | DZ173: 69.33 | EA173: 69.84 | EB173: 70.35 | EC173: 70.86 | ED173: 71.37 | EE173: 71.88 | EF173: 72.39 | EG173: 72.9 | EH173: 73.41 | EI173: 73.92 | EJ173: 74.43 | EK173: 74.94 | EL173: 75.45 | EM173: 75.96 | EN173: 76.47 | EO173: 76.98 | EP173: 77.49 | EQ173: 78 | ER173: 78.51 | ES173: 79.02 | ET173: 79.53 | EU173: 80.04 | EV173: 80.55 | EW173: 81.06 | EX173: 81.57 | EY173: 82.08 | EZ173: 82.59 | FA173: 83.1 | FB173: 83.61 | FC173: 84.12 | FD173: 84.63 | FE173: 85.14 | FF173: 85.65 | FG173: 86.16 | FH173: 86.67 | FI173: 87.18 | FJ173: 87.69 | FK173: 88.2 | FL173: 88.71 | FM173: 89.22 | FN173: 89.73 | FO173: 90.24 | FP173: 90.75 | FQ173: 91.26 | FR173: 91.77 | FS173: 92.28 | FT173: 92.79 | FU173: 93.3 | FV173: 93.81 | FW173: 94.32 | FX173: 94.83 | FY173: 95.34 | FZ173: 95.85 | GA173: 96.36 | GB173: 96.87 | GC173: 97.38 | GD173: 97.89 | GE173: 98.4 | GF173: 98.91 | GG173: 99.42 | GH173: 99.93 | GI173: 100.44 | GJ173: 100.95 | GK173: 101.46 | GL173: 101.97 | GM173: 102.48 | GN173: 102.99 | GO173: 103.5 | GP173: 104.01 | GQ173: 104.52 | GR173: 105.03 | GS173: 105.54 | GT173: 106.05 | GU173: 106.56 | GV173: 107.07 | GW173: 107.58
A174: 54 | B174: Meurthe-et-Moselle | D174: Oui | F174: 6.09 | G174: 6.6 | H174: 7.11 | I174: 7.62 | J174: 8.13 | K174: 8.64 | L174: 9.15 | M174: 9.66 | N174: 10.17 | O174: 10.68 | P174: 11.19 | Q174: 11.7 | R174: 12.21 | S174: 12.72 | T174: 13.23 | U174: 13.74 | V174: 14.25 | W174: 14.76 | X174: 15.27 | Y174: 15.78 | Z174: 16.29 | AA174: 16.8 | AB174: 17.31 | AC174: 17.82 | AD174: 18.33 | AE174: 18.84 | AF174: 19.35 | AG174: 19.86 | AH174: 20.37 | AI174: 20.88 | AJ174: 21.39 | AK174: 21.9 | AL174: 22.41 | AM174: 22.92 | AN174: 23.43 | AO174: 23.94 | AP174: 24.45 | AQ174: 24.96 | AR174: 25.47 | AS174: 25.98 | AT174: 26.49 | AU174: 27 | AV174: 27.51 | AW174: 28.02 | AX174: 28.53 | AY174: 29.04 | AZ174: 29.55 | BA174: 30.06 | BB174: 30.57 | BC174: 31.08 | BD174: 31.59 | BE174: 32.1 | BF174: 32.61 | BG174: 33.12 | BH174: 33.63 | BI174: 34.14 | BJ174: 34.65 | BK174: 35.16 | BL174: 35.67 | BM174: 36.18 | BN174: 36.69 | BO174: 37.2 | BP174: 37.71 | BQ174: 38.22 | BR174: 38.73 | BS174: 39.24 | BT174: 39.75 | BU174: 40.26 | BV174: 40.77 | BW174: 41.28 | BX174: 41.79 | BY174: 42.3 | BZ174: 42.81 | CA174: 43.32 | CB174: 43.83 | CC174: 44.34 | CD174: 44.85 | CE174: 45.36 | CF174: 45.87 | CG174: 46.38 | CH174: 46.89 | CI174: 47.4 | CJ174: 47.91 | CK174: 48.42 | CL174: 48.93 | CM174: 49.44 | CN174: 49.95 | CO174: 50.46 | CP174: 50.97 | CQ174: 51.48 | CR174: 51.99 | CS174: 52.5 | CT174: 53.01 | CU174: 53.52 | CV174: 54.03 | CW174: 54.54 | CX174: 55.05 | CY174: 55.56 | CZ174: 56.07 | DA174: 56.58 | DB174: 57.09 | DC174: 57.6 | DD174: 58.11 | DE174: 58.62 | DF174: 59.13 | DG174: 59.64 | DH174: 60.15 | DI174: 60.66 | DJ174: 61.17 | DK174: 61.68 | DL174: 62.19 | DM174: 62.7 | DN174: 63.21 | DO174: 63.72 | DP174: 64.23 | DQ174: 64.74 | DR174: 65.25 | DS174: 65.76 | DT174: 66.27 | DU174: 66.78 | DV174: 67.29 | DW174: 67.8 | DX174: 68.31 | DY174: 68.82 | DZ174: 69.33 | EA174: 69.84 | EB174: 70.35 | EC174: 70.86 | ED174: 71.37 | EE174: 71.88 | EF174: 72.39 | EG174: 72.9 | EH174: 73.41 | EI174: 73.92 | EJ174: 74.43 | EK174: 74.94 | EL174: 75.45 | EM174: 75.96 | EN174: 76.47 | EO174: 76.98 | EP174: 77.49 | EQ174: 78 | ER174: 78.51 | ES174: 79.02 | ET174: 79.53 | EU174: 80.04 | EV174: 80.55 | EW174: 81.06 | EX174: 81.57 | EY174: 82.08 | EZ174: 82.59 | FA174: 83.1 | FB174: 83.61 | FC174: 84.12 | FD174: 84.63 | FE174: 85.14 | FF174: 85.65 | FG174: 86.16 | FH174: 86.67 | FI174: 87.18 | FJ174: 87.69 | FK174: 88.2 | FL174: 88.71 | FM174: 89.22 | FN174: 89.73 | FO174: 90.24 | FP174: 90.75 | FQ174: 91.26 | FR174: 91.77 | FS174: 92.28 | FT174: 92.79 | FU174: 93.3 | FV174: 93.81 | FW174: 94.32 | FX174: 94.83 | FY174: 95.34 | FZ174: 95.85 | GA174: 96.36 | GB174: 96.87 | GC174: 97.38 | GD174: 97.89 | GE174: 98.4 | GF174: 98.91 | GG174: 99.42 | GH174: 99.93 | GI174: 100.44 | GJ174: 100.95 | GK174: 101.46 | GL174: 101.97 | GM174: 102.48 | GN174: 102.99 | GO174: 103.5 | GP174: 104.01 | GQ174: 104.52 | GR174: 105.03 | GS174: 105.54 | GT174: 106.05 | GU174: 106.56 | GV174: 107.07 | GW174: 107.58
A175: 55 | B175: Meuse | D175: Oui | F175: 6.09 | G175: 6.6 | H175: 7.11 | I175: 7.62 | J175: 8.13 | K175: 8.64 | L175: 9.15 | M175: 9.66 | N175: 10.17 | O175: 10.68 | P175: 11.19 | Q175: 11.7 | R175: 12.21 | S175: 12.72 | T175: 13.23 | U175: 13.74 | V175: 14.25 | W175: 14.76 | X175: 15.27 | Y175: 15.78 | Z175: 16.29 | AA175: 16.8 | AB175: 17.31 | AC175: 17.82 | AD175: 18.33 | AE175: 18.84 | AF175: 19.35 | AG175: 19.86 | AH175: 20.37 | AI175: 20.88 | AJ175: 21.39 | AK175: 21.9 | AL175: 22.41 | AM175: 22.92 | AN175: 23.43 | AO175: 23.94 | AP175: 24.45 | AQ175: 24.96 | AR175: 25.47 | AS175: 25.98 | AT175: 26.49 | AU175: 27 | AV175: 27.51 | AW175: 28.02 | AX175: 28.53 | AY175: 29.04 | AZ175: 29.55 | BA175: 30.06 | BB175: 30.57 | BC175: 31.08 | BD175: 31.59 | BE175: 32.1 | BF175: 32.61 | BG175: 33.12 | BH175: 33.63 | BI175: 34.14 | BJ175: 34.65 | BK175: 35.16 | BL175: 35.67 | BM175: 36.18 | BN175: 36.69 | BO175: 37.2 | BP175: 37.71 | BQ175: 38.22 | BR175: 38.73 | BS175: 39.24 | BT175: 39.75 | BU175: 40.26 | BV175: 40.77 | BW175: 41.28 | BX175: 41.79 | BY175: 42.3 | BZ175: 42.81 | CA175: 43.32 | CB175: 43.83 | CC175: 44.34 | CD175: 44.85 | CE175: 45.36 | CF175: 45.87 | CG175: 46.38 | CH175: 46.89 | CI175: 47.4 | CJ175: 47.91 | CK175: 48.42 | CL175: 48.93 | CM175: 49.44 | CN175: 49.95 | CO175: 50.46 | CP175: 50.97 | CQ175: 51.48 | CR175: 51.99 | CS175: 52.5 | CT175: 53.01 | CU175: 53.52 | CV175: 54.03 | CW175: 54.54 | CX175: 55.05 | CY175: 55.56 | CZ175: 56.07 | DA175: 56.58 | DB175: 57.09 | DC175: 57.6 | DD175: 58.11 | DE175: 58.62 | DF175: 59.13 | DG175: 59.64 | DH175: 60.15 | DI175: 60.66 | DJ175: 61.17 | DK175: 61.68 | DL175: 62.19 | DM175: 62.7 | DN175: 63.21 | DO175: 63.72 | DP175: 64.23 | DQ175: 64.74 | DR175: 65.25 | DS175: 65.76 | DT175: 66.27 | DU175: 66.78 | DV175: 67.29 | DW175: 67.8 | DX175: 68.31 | DY175: 68.82 | DZ175: 69.33 | EA175: 69.84 | EB175: 70.35 | EC175: 70.86 | ED175: 71.37 | EE175: 71.88 | EF175: 72.39 | EG175: 72.9 | EH175: 73.41 | EI175: 73.92 | EJ175: 74.43 | EK175: 74.94 | EL175: 75.45 | EM175: 75.96 | EN175: 76.47 | EO175: 76.98 | EP175: 77.49 | EQ175: 78 | ER175: 78.51 | ES175: 79.02 | ET175: 79.53 | EU175: 80.04 | EV175: 80.55 | EW175: 81.06 | EX175: 81.57 | EY175: 82.08 | EZ175: 82.59 | FA175: 83.1 | FB175: 83.61 | FC175: 84.12 | FD175: 84.63 | FE175: 85.14 | FF175: 85.65 | FG175: 86.16 | FH175: 86.67 | FI175: 87.18 | FJ175: 87.69 | FK175: 88.2 | FL175: 88.71 | FM175: 89.22 | FN175: 89.73 | FO175: 90.24 | FP175: 90.75 | FQ175: 91.26 | FR175: 91.77 | FS175: 92.28 | FT175: 92.79 | FU175: 93.3 | FV175: 93.81 | FW175: 94.32 | FX175: 94.83 | FY175: 95.34 | FZ175: 95.85 | GA175: 96.36 | GB175: 96.87 | GC175: 97.38 | GD175: 97.89 | GE175: 98.4 | GF175: 98.91 | GG175: 99.42 | GH175: 99.93 | GI175: 100.44 | GJ175: 100.95 | GK175: 101.46 | GL175: 101.97 | GM175: 102.48 | GN175: 102.99 | GO175: 103.5 | GP175: 104.01 | GQ175: 104.52 | GR175: 105.03 | GS175: 105.54 | GT175: 106.05 | GU175: 106.56 | GV175: 107.07 | GW175: 107.58
A176: 56 | B176: Morbihan | D176: Oui | F176: 6.09 | G176: 6.6 | H176: 7.11 | I176: 7.62 | J176: 8.13 | K176: 8.64 | L176: 9.15 | M176: 9.66 | N176: 10.17 | O176: 10.68 | P176: 11.19 | Q176: 11.7 | R176: 12.21 | S176: 12.72 | T176: 13.23 | U176: 13.74 | V176: 14.25 | W176: 14.76 | X176: 15.27 | Y176: 15.78 | Z176: 16.29 | AA176: 16.8 | AB176: 17.31 | AC176: 17.82 | AD176: 18.33 | AE176: 18.84 | AF176: 19.35 | AG176: 19.86 | AH176: 20.37 | AI176: 20.88 | AJ176: 21.39 | AK176: 21.9 | AL176: 22.41 | AM176: 22.92 | AN176: 23.43 | AO176: 23.94 | AP176: 24.45 | AQ176: 24.96 | AR176: 25.47 | AS176: 25.98 | AT176: 26.49 | AU176: 27 | AV176: 27.51 | AW176: 28.02 | AX176: 28.53 | AY176: 29.04 | AZ176: 29.55 | BA176: 30.06 | BB176: 30.57 | BC176: 31.08 | BD176: 31.59 | BE176: 32.1 | BF176: 32.61 | BG176: 33.12 | BH176: 33.63 | BI176: 34.14 | BJ176: 34.65 | BK176: 35.16 | BL176: 35.67 | BM176: 36.18 | BN176: 36.69 | BO176: 37.2 | BP176: 37.71 | BQ176: 38.22 | BR176: 38.73 | BS176: 39.24 | BT176: 39.75 | BU176: 40.26 | BV176: 40.77 | BW176: 41.28 | BX176: 41.79 | BY176: 42.3 | BZ176: 42.81 | CA176: 43.32 | CB176: 43.83 | CC176: 44.34 | CD176: 44.85 | CE176: 45.36 | CF176: 45.87 | CG176: 46.38 | CH176: 46.89 | CI176: 47.4 | CJ176: 47.91 | CK176: 48.42 | CL176: 48.93 | CM176: 49.44 | CN176: 49.95 | CO176: 50.46 | CP176: 50.97 | CQ176: 51.48 | CR176: 51.99 | CS176: 52.5 | CT176: 53.01 | CU176: 53.52 | CV176: 54.03 | CW176: 54.54 | CX176: 55.05 | CY176: 55.56 | CZ176: 56.07 | DA176: 56.58 | DB176: 57.09 | DC176: 57.6 | DD176: 58.11 | DE176: 58.62 | DF176: 59.13 | DG176: 59.64 | DH176: 60.15 | DI176: 60.66 | DJ176: 61.17 | DK176: 61.68 | DL176: 62.19 | DM176: 62.7 | DN176: 63.21 | DO176: 63.72 | DP176: 64.23 | DQ176: 64.74 | DR176: 65.25 | DS176: 65.76 | DT176: 66.27 | DU176: 66.78 | DV176: 67.29 | DW176: 67.8 | DX176: 68.31 | DY176: 68.82 | DZ176: 69.33 | EA176: 69.84 | EB176: 70.35 | EC176: 70.86 | ED176: 71.37 | EE176: 71.88 | EF176: 72.39 | EG176: 72.9 | EH176: 73.41 | EI176: 73.92 | EJ176: 74.43 | EK176: 74.94 | EL176: 75.45 | EM176: 75.96 | EN176: 76.47 | EO176: 76.98 | EP176: 77.49 | EQ176: 78 | ER176: 78.51 | ES176: 79.02 | ET176: 79.53 | EU176: 80.04 | EV176: 80.55 | EW176: 81.06 | EX176: 81.57 | EY176: 82.08 | EZ176: 82.59 | FA176: 83.1 | FB176: 83.61 | FC176: 84.12 | FD176: 84.63 | FE176: 85.14 | FF176: 85.65 | FG176: 86.16 | FH176: 86.67 | FI176: 87.18 | FJ176: 87.69 | FK176: 88.2 | FL176: 88.71 | FM176: 89.22 | FN176: 89.73 | FO176: 90.24 | FP176: 90.75 | FQ176: 91.26 | FR176: 91.77 | FS176: 92.28 | FT176: 92.79 | FU176: 93.3 | FV176: 93.81 | FW176: 94.32 | FX176: 94.83 | FY176: 95.34 | FZ176: 95.85 | GA176: 96.36 | GB176: 96.87 | GC176: 97.38 | GD176: 97.89 | GE176: 98.4 | GF176: 98.91 | GG176: 99.42 | GH176: 99.93 | GI176: 100.44 | GJ176: 100.95 | GK176: 101.46 | GL176: 101.97 | GM176: 102.48 | GN176: 102.99 | GO176: 103.5 | GP176: 104.01 | GQ176: 104.52 | GR176: 105.03 | GS176: 105.54 | GT176: 106.05 | GU176: 106.56 | GV176: 107.07 | GW176: 107.58
A177: 57 | B177: Moselle | D177: Oui | F177: 6.09 | G177: 6.6 | H177: 7.11 | I177: 7.62 | J177: 8.13 | K177: 8.64 | L177: 9.15 | M177: 9.66 | N177: 10.17 | O177: 10.68 | P177: 11.19 | Q177: 11.7 | R177: 12.21 | S177: 12.72 | T177: 13.23 | U177: 13.74 | V177: 14.25 | W177: 14.76 | X177: 15.27 | Y177: 15.78 | Z177: 16.29 | AA177: 16.8 | AB177: 17.31 | AC177: 17.82 | AD177: 18.33 | AE177: 18.84 | AF177: 19.35 | AG177: 19.86 | AH177: 20.37 | AI177: 20.88 | AJ177: 21.39 | AK177: 21.9 | AL177: 22.41 | AM177: 22.92 | AN177: 23.43 | AO177: 23.94 | AP177: 24.45 | AQ177: 24.96 | AR177: 25.47 | AS177: 25.98 | AT177: 26.49 | AU177: 27 | AV177: 27.51 | AW177: 28.02 | AX177: 28.53 | AY177: 29.04 | AZ177: 29.55 | BA177: 30.06 | BB177: 30.57 | BC177: 31.08 | BD177: 31.59 | BE177: 32.1 | BF177: 32.61 | BG177: 33.12 | BH177: 33.63 | BI177: 34.14 | BJ177: 34.65 | BK177: 35.16 | BL177: 35.67 | BM177: 36.18 | BN177: 36.69 | BO177: 37.2 | BP177: 37.71 | BQ177: 38.22 | BR177: 38.73 | BS177: 39.24 | BT177: 39.75 | BU177: 40.26 | BV177: 40.77 | BW177: 41.28 | BX177: 41.79 | BY177: 42.3 | BZ177: 42.81 | CA177: 43.32 | CB177: 43.83 | CC177: 44.34 | CD177: 44.85 | CE177: 45.36 | CF177: 45.87 | CG177: 46.38 | CH177: 46.89 | CI177: 47.4 | CJ177: 47.91 | CK177: 48.42 | CL177: 48.93 | CM177: 49.44 | CN177: 49.95 | CO177: 50.46 | CP177: 50.97 | CQ177: 51.48 | CR177: 51.99 | CS177: 52.5 | CT177: 53.01 | CU177: 53.52 | CV177: 54.03 | CW177: 54.54 | CX177: 55.05 | CY177: 55.56 | CZ177: 56.07 | DA177: 56.58 | DB177: 57.09 | DC177: 57.6 | DD177: 58.11 | DE177: 58.62 | DF177: 59.13 | DG177: 59.64 | DH177: 60.15 | DI177: 60.66 | DJ177: 61.17 | DK177: 61.68 | DL177: 62.19 | DM177: 62.7 | DN177: 63.21 | DO177: 63.72 | DP177: 64.23 | DQ177: 64.74 | DR177: 65.25 | DS177: 65.76 | DT177: 66.27 | DU177: 66.78 | DV177: 67.29 | DW177: 67.8 | DX177: 68.31 | DY177: 68.82 | DZ177: 69.33 | EA177: 69.84 | EB177: 70.35 | EC177: 70.86 | ED177: 71.37 | EE177: 71.88 | EF177: 72.39 | EG177: 72.9 | EH177: 73.41 | EI177: 73.92 | EJ177: 74.43 | EK177: 74.94 | EL177: 75.45 | EM177: 75.96 | EN177: 76.47 | EO177: 76.98 | EP177: 77.49 | EQ177: 78 | ER177: 78.51 | ES177: 79.02 | ET177: 79.53 | EU177: 80.04 | EV177: 80.55 | EW177: 81.06 | EX177: 81.57 | EY177: 82.08 | EZ177: 82.59 | FA177: 83.1 | FB177: 83.61 | FC177: 84.12 | FD177: 84.63 | FE177: 85.14 | FF177: 85.65 | FG177: 86.16 | FH177: 86.67 | FI177: 87.18 | FJ177: 87.69 | FK177: 88.2 | FL177: 88.71 | FM177: 89.22 | FN177: 89.73 | FO177: 90.24 | FP177: 90.75 | FQ177: 91.26 | FR177: 91.77 | FS177: 92.28 | FT177: 92.79 | FU177: 93.3 | FV177: 93.81 | FW177: 94.32 | FX177: 94.83 | FY177: 95.34 | FZ177: 95.85 | GA177: 96.36 | GB177: 96.87 | GC177: 97.38 | GD177: 97.89 | GE177: 98.4 | GF177: 98.91 | GG177: 99.42 | GH177: 99.93 | GI177: 100.44 | GJ177: 100.95 | GK177: 101.46 | GL177: 101.97 | GM177: 102.48 | GN177: 102.99 | GO177: 103.5 | GP177: 104.01 | GQ177: 104.52 | GR177: 105.03 | GS177: 105.54 | GT177: 106.05 | GU177: 106.56 | GV177: 107.07 | GW177: 107.58
A178: 58 | B178: Nièvre | D178: Oui | F178: 6.09 | G178: 6.6 | H178: 7.11 | I178: 7.62 | J178: 8.13 | K178: 8.64 | L178: 9.15 | M178: 9.66 | N178: 10.17 | O178: 10.68 | P178: 11.19 | Q178: 11.7 | R178: 12.21 | S178: 12.72 | T178: 13.23 | U178: 13.74 | V178: 14.25 | W178: 14.76 | X178: 15.27 | Y178: 15.78 | Z178: 16.29 | AA178: 16.8 | AB178: 17.31 | AC178: 17.82 | AD178: 18.33 | AE178: 18.84 | AF178: 19.35 | AG178: 19.86 | AH178: 20.37 | AI178: 20.88 | AJ178: 21.39 | AK178: 21.9 | AL178: 22.41 | AM178: 22.92 | AN178: 23.43 | AO178: 23.94 | AP178: 24.45 | AQ178: 24.96 | AR178: 25.47 | AS178: 25.98 | AT178: 26.49 | AU178: 27 | AV178: 27.51 | AW178: 28.02 | AX178: 28.53 | AY178: 29.04 | AZ178: 29.55 | BA178: 30.06 | BB178: 30.57 | BC178: 31.08 | BD178: 31.59 | BE178: 32.1 | BF178: 32.61 | BG178: 33.12 | BH178: 33.63 | BI178: 34.14 | BJ178: 34.65 | BK178: 35.16 | BL178: 35.67 | BM178: 36.18 | BN178: 36.69 | BO178: 37.2 | BP178: 37.71 | BQ178: 38.22 | BR178: 38.73 | BS178: 39.24 | BT178: 39.75 | BU178: 40.26 | BV178: 40.77 | BW178: 41.28 | BX178: 41.79 | BY178: 42.3 | BZ178: 42.81 | CA178: 43.32 | CB178: 43.83 | CC178: 44.34 | CD178: 44.85 | CE178: 45.36 | CF178: 45.87 | CG178: 46.38 | CH178: 46.89 | CI178: 47.4 | CJ178: 47.91 | CK178: 48.42 | CL178: 48.93 | CM178: 49.44 | CN178: 49.95 | CO178: 50.46 | CP178: 50.97 | CQ178: 51.48 | CR178: 51.99 | CS178: 52.5 | CT178: 53.01 | CU178: 53.52 | CV178: 54.03 | CW178: 54.54 | CX178: 55.05 | CY178: 55.56 | CZ178: 56.07 | DA178: 56.58 | DB178: 57.09 | DC178: 57.6 | DD178: 58.11 | DE178: 58.62 | DF178: 59.13 | DG178: 59.64 | DH178: 60.15 | DI178: 60.66 | DJ178: 61.17 | DK178: 61.68 | DL178: 62.19 | DM178: 62.7 | DN178: 63.21 | DO178: 63.72 | DP178: 64.23 | DQ178: 64.74 | DR178: 65.25 | DS178: 65.76 | DT178: 66.27 | DU178: 66.78 | DV178: 67.29 | DW178: 67.8 | DX178: 68.31 | DY178: 68.82 | DZ178: 69.33 | EA178: 69.84 | EB178: 70.35 | EC178: 70.86 | ED178: 71.37 | EE178: 71.88 | EF178: 72.39 | EG178: 72.9 | EH178: 73.41 | EI178: 73.92 | EJ178: 74.43 | EK178: 74.94 | EL178: 75.45 | EM178: 75.96 | EN178: 76.47 | EO178: 76.98 | EP178: 77.49 | EQ178: 78 | ER178: 78.51 | ES178: 79.02 | ET178: 79.53 | EU178: 80.04 | EV178: 80.55 | EW178: 81.06 | EX178: 81.57 | EY178: 82.08 | EZ178: 82.59 | FA178: 83.1 | FB178: 83.61 | FC178: 84.12 | FD178: 84.63 | FE178: 85.14 | FF178: 85.65 | FG178: 86.16 | FH178: 86.67 | FI178: 87.18 | FJ178: 87.69 | FK178: 88.2 | FL178: 88.71 | FM178: 89.22 | FN178: 89.73 | FO178: 90.24 | FP178: 90.75 | FQ178: 91.26 | FR178: 91.77 | FS178: 92.28 | FT178: 92.79 | FU178: 93.3 | FV178: 93.81 | FW178: 94.32 | FX178: 94.83 | FY178: 95.34 | FZ178: 95.85 | GA178: 96.36 | GB178: 96.87 | GC178: 97.38 | GD178: 97.89 | GE178: 98.4 | GF178: 98.91 | GG178: 99.42 | GH178: 99.93 | GI178: 100.44 | GJ178: 100.95 | GK178: 101.46 | GL178: 101.97 | GM178: 102.48 | GN178: 102.99 | GO178: 103.5 | GP178: 104.01 | GQ178: 104.52 | GR178: 105.03 | GS178: 105.54 | GT178: 106.05 | GU178: 106.56 | GV178: 107.07 | GW178: 107.58
A179: 59 | B179: Nord | D179: Oui | F179: 6.09 | G179: 6.6 | H179: 7.11 | I179: 7.62 | J179: 8.13 | K179: 8.64 | L179: 9.15 | M179: 9.66 | N179: 10.17 | O179: 10.68 | P179: 11.19 | Q179: 11.7 | R179: 12.21 | S179: 12.72 | T179: 13.23 | U179: 13.74 | V179: 14.25 | W179: 14.76 | X179: 15.27 | Y179: 15.78 | Z179: 16.29 | AA179: 16.8 | AB179: 17.31 | AC179: 17.82 | AD179: 18.33 | AE179: 18.84 | AF179: 19.35 | AG179: 19.86 | AH179: 20.37 | AI179: 20.88 | AJ179: 21.39 | AK179: 21.9 | AL179: 22.41 | AM179: 22.92 | AN179: 23.43 | AO179: 23.94 | AP179: 24.45 | AQ179: 24.96 | AR179: 25.47 | AS179: 25.98 | AT179: 26.49 | AU179: 27 | AV179: 27.51 | AW179: 28.02 | AX179: 28.53 | AY179: 29.04 | AZ179: 29.55 | BA179: 30.06 | BB179: 30.57 | BC179: 31.08 | BD179: 31.59 | BE179: 32.1 | BF179: 32.61 | BG179: 33.12 | BH179: 33.63 | BI179: 34.14 | BJ179: 34.65 | BK179: 35.16 | BL179: 35.67 | BM179: 36.18 | BN179: 36.69 | BO179: 37.2 | BP179: 37.71 | BQ179: 38.22 | BR179: 38.73 | BS179: 39.24 | BT179: 39.75 | BU179: 40.26 | BV179: 40.77 | BW179: 41.28 | BX179: 41.79 | BY179: 42.3 | BZ179: 42.81 | CA179: 43.32 | CB179: 43.83 | CC179: 44.34 | CD179: 44.85 | CE179: 45.36 | CF179: 45.87 | CG179: 46.38 | CH179: 46.89 | CI179: 47.4 | CJ179: 47.91 | CK179: 48.42 | CL179: 48.93 | CM179: 49.44 | CN179: 49.95 | CO179: 50.46 | CP179: 50.97 | CQ179: 51.48 | CR179: 51.99 | CS179: 52.5 | CT179: 53.01 | CU179: 53.52 | CV179: 54.03 | CW179: 54.54 | CX179: 55.05 | CY179: 55.56 | CZ179: 56.07 | DA179: 56.58 | DB179: 57.09 | DC179: 57.6 | DD179: 58.11 | DE179: 58.62 | DF179: 59.13 | DG179: 59.64 | DH179: 60.15 | DI179: 60.66 | DJ179: 61.17 | DK179: 61.68 | DL179: 62.19 | DM179: 62.7 | DN179: 63.21 | DO179: 63.72 | DP179: 64.23 | DQ179: 64.74 | DR179: 65.25 | DS179: 65.76 | DT179: 66.27 | DU179: 66.78 | DV179: 67.29 | DW179: 67.8 | DX179: 68.31 | DY179: 68.82 | DZ179: 69.33 | EA179: 69.84 | EB179: 70.35 | EC179: 70.86 | ED179: 71.37 | EE179: 71.88 | EF179: 72.39 | EG179: 72.9 | EH179: 73.41 | EI179: 73.92 | EJ179: 74.43 | EK179: 74.94 | EL179: 75.45 | EM179: 75.96 | EN179: 76.47 | EO179: 76.98 | EP179: 77.49 | EQ179: 78 | ER179: 78.51 | ES179: 79.02 | ET179: 79.53 | EU179: 80.04 | EV179: 80.55 | EW179: 81.06 | EX179: 81.57 | EY179: 82.08 | EZ179: 82.59 | FA179: 83.1 | FB179: 83.61 | FC179: 84.12 | FD179: 84.63 | FE179: 85.14 | FF179: 85.65 | FG179: 86.16 | FH179: 86.67 | FI179: 87.18 | FJ179: 87.69 | FK179: 88.2 | FL179: 88.71 | FM179: 89.22 | FN179: 89.73 | FO179: 90.24 | FP179: 90.75 | FQ179: 91.26 | FR179: 91.77 | FS179: 92.28 | FT179: 92.79 | FU179: 93.3 | FV179: 93.81 | FW179: 94.32 | FX179: 94.83 | FY179: 95.34 | FZ179: 95.85 | GA179: 96.36 | GB179: 96.87 | GC179: 97.38 | GD179: 97.89 | GE179: 98.4 | GF179: 98.91 | GG179: 99.42 | GH179: 99.93 | GI179: 100.44 | GJ179: 100.95 | GK179: 101.46 | GL179: 101.97 | GM179: 102.48 | GN179: 102.99 | GO179: 103.5 | GP179: 104.01 | GQ179: 104.52 | GR179: 105.03 | GS179: 105.54 | GT179: 106.05 | GU179: 106.56 | GV179: 107.07 | GW179: 107.58
A180: 60 | B180: Oise | D180: Oui | F180: 6.09 | G180: 6.6 | H180: 7.11 | I180: 7.62 | J180: 8.13 | K180: 8.64 | L180: 9.15 | M180: 9.66 | N180: 10.17 | O180: 10.68 | P180: 11.19 | Q180: 11.7 | R180: 12.21 | S180: 12.72 | T180: 13.23 | U180: 13.74 | V180: 14.25 | W180: 14.76 | X180: 15.27 | Y180: 15.78 | Z180: 16.29 | AA180: 16.8 | AB180: 17.31 | AC180: 17.82 | AD180: 18.33 | AE180: 18.84 | AF180: 19.35 | AG180: 19.86 | AH180: 20.37 | AI180: 20.88 | AJ180: 21.39 | AK180: 21.9 | AL180: 22.41 | AM180: 22.92 | AN180: 23.43 | AO180: 23.94 | AP180: 24.45 | AQ180: 24.96 | AR180: 25.47 | AS180: 25.98 | AT180: 26.49 | AU180: 27 | AV180: 27.51 | AW180: 28.02 | AX180: 28.53 | AY180: 29.04 | AZ180: 29.55 | BA180: 30.06 | BB180: 30.57 | BC180: 31.08 | BD180: 31.59 | BE180: 32.1 | BF180: 32.61 | BG180: 33.12 | BH180: 33.63 | BI180: 34.14 | BJ180: 34.65 | BK180: 35.16 | BL180: 35.67 | BM180: 36.18 | BN180: 36.69 | BO180: 37.2 | BP180: 37.71 | BQ180: 38.22 | BR180: 38.73 | BS180: 39.24 | BT180: 39.75 | BU180: 40.26 | BV180: 40.77 | BW180: 41.28 | BX180: 41.79 | BY180: 42.3 | BZ180: 42.81 | CA180: 43.32 | CB180: 43.83 | CC180: 44.34 | CD180: 44.85 | CE180: 45.36 | CF180: 45.87 | CG180: 46.38 | CH180: 46.89 | CI180: 47.4 | CJ180: 47.91 | CK180: 48.42 | CL180: 48.93 | CM180: 49.44 | CN180: 49.95 | CO180: 50.46 | CP180: 50.97 | CQ180: 51.48 | CR180: 51.99 | CS180: 52.5 | CT180: 53.01 | CU180: 53.52 | CV180: 54.03 | CW180: 54.54 | CX180: 55.05 | CY180: 55.56 | CZ180: 56.07 | DA180: 56.58 | DB180: 57.09 | DC180: 57.6 | DD180: 58.11 | DE180: 58.62 | DF180: 59.13 | DG180: 59.64 | DH180: 60.15 | DI180: 60.66 | DJ180: 61.17 | DK180: 61.68 | DL180: 62.19 | DM180: 62.7 | DN180: 63.21 | DO180: 63.72 | DP180: 64.23 | DQ180: 64.74 | DR180: 65.25 | DS180: 65.76 | DT180: 66.27 | DU180: 66.78 | DV180: 67.29 | DW180: 67.8 | DX180: 68.31 | DY180: 68.82 | DZ180: 69.33 | EA180: 69.84 | EB180: 70.35 | EC180: 70.86 | ED180: 71.37 | EE180: 71.88 | EF180: 72.39 | EG180: 72.9 | EH180: 73.41 | EI180: 73.92 | EJ180: 74.43 | EK180: 74.94 | EL180: 75.45 | EM180: 75.96 | EN180: 76.47 | EO180: 76.98 | EP180: 77.49 | EQ180: 78 | ER180: 78.51 | ES180: 79.02 | ET180: 79.53 | EU180: 80.04 | EV180: 80.55 | EW180: 81.06 | EX180: 81.57 | EY180: 82.08 | EZ180: 82.59 | FA180: 83.1 | FB180: 83.61 | FC180: 84.12 | FD180: 84.63 | FE180: 85.14 | FF180: 85.65 | FG180: 86.16 | FH180: 86.67 | FI180: 87.18 | FJ180: 87.69 | FK180: 88.2 | FL180: 88.71 | FM180: 89.22 | FN180: 89.73 | FO180: 90.24 | FP180: 90.75 | FQ180: 91.26 | FR180: 91.77 | FS180: 92.28 | FT180: 92.79 | FU180: 93.3 | FV180: 93.81 | FW180: 94.32 | FX180: 94.83 | FY180: 95.34 | FZ180: 95.85 | GA180: 96.36 | GB180: 96.87 | GC180: 97.38 | GD180: 97.89 | GE180: 98.4 | GF180: 98.91 | GG180: 99.42 | GH180: 99.93 | GI180: 100.44 | GJ180: 100.95 | GK180: 101.46 | GL180: 101.97 | GM180: 102.48 | GN180: 102.99 | GO180: 103.5 | GP180: 104.01 | GQ180: 104.52 | GR180: 105.03 | GS180: 105.54 | GT180: 106.05 | GU180: 106.56 | GV180: 107.07 | GW180: 107.58
A181: 61 | B181: Orne | D181: Oui | F181: 6.09 | G181: 6.6 | H181: 7.11 | I181: 7.62 | J181: 8.13 | K181: 8.64 | L181: 9.15 | M181: 9.66 | N181: 10.17 | O181: 10.68 | P181: 11.19 | Q181: 11.7 | R181: 12.21 | S181: 12.72 | T181: 13.23 | U181: 13.74 | V181: 14.25 | W181: 14.76 | X181: 15.27 | Y181: 15.78 | Z181: 16.29 | AA181: 16.8 | AB181: 17.31 | AC181: 17.82 | AD181: 18.33 | AE181: 18.84 | AF181: 19.35 | AG181: 19.86 | AH181: 20.37 | AI181: 20.88 | AJ181: 21.39 | AK181: 21.9 | AL181: 22.41 | AM181: 22.92 | AN181: 23.43 | AO181: 23.94 | AP181: 24.45 | AQ181: 24.96 | AR181: 25.47 | AS181: 25.98 | AT181: 26.49 | AU181: 27 | AV181: 27.51 | AW181: 28.02 | AX181: 28.53 | AY181: 29.04 | AZ181: 29.55 | BA181: 30.06 | BB181: 30.57 | BC181: 31.08 | BD181: 31.59 | BE181: 32.1 | BF181: 32.61 | BG181: 33.12 | BH181: 33.63 | BI181: 34.14 | BJ181: 34.65 | BK181: 35.16 | BL181: 35.67 | BM181: 36.18 | BN181: 36.69 | BO181: 37.2 | BP181: 37.71 | BQ181: 38.22 | BR181: 38.73 | BS181: 39.24 | BT181: 39.75 | BU181: 40.26 | BV181: 40.77 | BW181: 41.28 | BX181: 41.79 | BY181: 42.3 | BZ181: 42.81 | CA181: 43.32 | CB181: 43.83 | CC181: 44.34 | CD181: 44.85 | CE181: 45.36 | CF181: 45.87 | CG181: 46.38 | CH181: 46.89 | CI181: 47.4 | CJ181: 47.91 | CK181: 48.42 | CL181: 48.93 | CM181: 49.44 | CN181: 49.95 | CO181: 50.46 | CP181: 50.97 | CQ181: 51.48 | CR181: 51.99 | CS181: 52.5 | CT181: 53.01 | CU181: 53.52 | CV181: 54.03 | CW181: 54.54 | CX181: 55.05 | CY181: 55.56 | CZ181: 56.07 | DA181: 56.58 | DB181: 57.09 | DC181: 57.6 | DD181: 58.11 | DE181: 58.62 | DF181: 59.13 | DG181: 59.64 | DH181: 60.15 | DI181: 60.66 | DJ181: 61.17 | DK181: 61.68 | DL181: 62.19 | DM181: 62.7 | DN181: 63.21 | DO181: 63.72 | DP181: 64.23 | DQ181: 64.74 | DR181: 65.25 | DS181: 65.76 | DT181: 66.27 | DU181: 66.78 | DV181: 67.29 | DW181: 67.8 | DX181: 68.31 | DY181: 68.82 | DZ181: 69.33 | EA181: 69.84 | EB181: 70.35 | EC181: 70.86 | ED181: 71.37 | EE181: 71.88 | EF181: 72.39 | EG181: 72.9 | EH181: 73.41 | EI181: 73.92 | EJ181: 74.43 | EK181: 74.94 | EL181: 75.45 | EM181: 75.96 | EN181: 76.47 | EO181: 76.98 | EP181: 77.49 | EQ181: 78 | ER181: 78.51 | ES181: 79.02 | ET181: 79.53 | EU181: 80.04 | EV181: 80.55 | EW181: 81.06 | EX181: 81.57 | EY181: 82.08 | EZ181: 82.59 | FA181: 83.1 | FB181: 83.61 | FC181: 84.12 | FD181: 84.63 | FE181: 85.14 | FF181: 85.65 | FG181: 86.16 | FH181: 86.67 | FI181: 87.18 | FJ181: 87.69 | FK181: 88.2 | FL181: 88.71 | FM181: 89.22 | FN181: 89.73 | FO181: 90.24 | FP181: 90.75 | FQ181: 91.26 | FR181: 91.77 | FS181: 92.28 | FT181: 92.79 | FU181: 93.3 | FV181: 93.81 | FW181: 94.32 | FX181: 94.83 | FY181: 95.34 | FZ181: 95.85 | GA181: 96.36 | GB181: 96.87 | GC181: 97.38 | GD181: 97.89 | GE181: 98.4 | GF181: 98.91 | GG181: 99.42 | GH181: 99.93 | GI181: 100.44 | GJ181: 100.95 | GK181: 101.46 | GL181: 101.97 | GM181: 102.48 | GN181: 102.99 | GO181: 103.5 | GP181: 104.01 | GQ181: 104.52 | GR181: 105.03 | GS181: 105.54 | GT181: 106.05 | GU181: 106.56 | GV181: 107.07 | GW181: 107.58
A182: 62 | B182: Pas-de-Calais | D182: Oui | F182: 6.09 | G182: 6.6 | H182: 7.11 | I182: 7.62 | J182: 8.13 | K182: 8.64 | L182: 9.15 | M182: 9.66 | N182: 10.17 | O182: 10.68 | P182: 11.19 | Q182: 11.7 | R182: 12.21 | S182: 12.72 | T182: 13.23 | U182: 13.74 | V182: 14.25 | W182: 14.76 | X182: 15.27 | Y182: 15.78 | Z182: 16.29 | AA182: 16.8 | AB182: 17.31 | AC182: 17.82 | AD182: 18.33 | AE182: 18.84 | AF182: 19.35 | AG182: 19.86 | AH182: 20.37 | AI182: 20.88 | AJ182: 21.39 | AK182: 21.9 | AL182: 22.41 | AM182: 22.92 | AN182: 23.43 | AO182: 23.94 | AP182: 24.45 | AQ182: 24.96 | AR182: 25.47 | AS182: 25.98 | AT182: 26.49 | AU182: 27 | AV182: 27.51 | AW182: 28.02 | AX182: 28.53 | AY182: 29.04 | AZ182: 29.55 | BA182: 30.06 | BB182: 30.57 | BC182: 31.08 | BD182: 31.59 | BE182: 32.1 | BF182: 32.61 | BG182: 33.12 | BH182: 33.63 | BI182: 34.14 | BJ182: 34.65 | BK182: 35.16 | BL182: 35.67 | BM182: 36.18 | BN182: 36.69 | BO182: 37.2 | BP182: 37.71 | BQ182: 38.22 | BR182: 38.73 | BS182: 39.24 | BT182: 39.75 | BU182: 40.26 | BV182: 40.77 | BW182: 41.28 | BX182: 41.79 | BY182: 42.3 | BZ182: 42.81 | CA182: 43.32 | CB182: 43.83 | CC182: 44.34 | CD182: 44.85 | CE182: 45.36 | CF182: 45.87 | CG182: 46.38 | CH182: 46.89 | CI182: 47.4 | CJ182: 47.91 | CK182: 48.42 | CL182: 48.93 | CM182: 49.44 | CN182: 49.95 | CO182: 50.46 | CP182: 50.97 | CQ182: 51.48 | CR182: 51.99 | CS182: 52.5 | CT182: 53.01 | CU182: 53.52 | CV182: 54.03 | CW182: 54.54 | CX182: 55.05 | CY182: 55.56 | CZ182: 56.07 | DA182: 56.58 | DB182: 57.09 | DC182: 57.6 | DD182: 58.11 | DE182: 58.62 | DF182: 59.13 | DG182: 59.64 | DH182: 60.15 | DI182: 60.66 | DJ182: 61.17 | DK182: 61.68 | DL182: 62.19 | DM182: 62.7 | DN182: 63.21 | DO182: 63.72 | DP182: 64.23 | DQ182: 64.74 | DR182: 65.25 | DS182: 65.76 | DT182: 66.27 | DU182: 66.78 | DV182: 67.29 | DW182: 67.8 | DX182: 68.31 | DY182: 68.82 | DZ182: 69.33 | EA182: 69.84 | EB182: 70.35 | EC182: 70.86 | ED182: 71.37 | EE182: 71.88 | EF182: 72.39 | EG182: 72.9 | EH182: 73.41 | EI182: 73.92 | EJ182: 74.43 | EK182: 74.94 | EL182: 75.45 | EM182: 75.96 | EN182: 76.47 | EO182: 76.98 | EP182: 77.49 | EQ182: 78 | ER182: 78.51 | ES182: 79.02 | ET182: 79.53 | EU182: 80.04 | EV182: 80.55 | EW182: 81.06 | EX182: 81.57 | EY182: 82.08 | EZ182: 82.59 | FA182: 83.1 | FB182: 83.61 | FC182: 84.12 | FD182: 84.63 | FE182: 85.14 | FF182: 85.65 | FG182: 86.16 | FH182: 86.67 | FI182: 87.18 | FJ182: 87.69 | FK182: 88.2 | FL182: 88.71 | FM182: 89.22 | FN182: 89.73 | FO182: 90.24 | FP182: 90.75 | FQ182: 91.26 | FR182: 91.77 | FS182: 92.28 | FT182: 92.79 | FU182: 93.3 | FV182: 93.81 | FW182: 94.32 | FX182: 94.83 | FY182: 95.34 | FZ182: 95.85 | GA182: 96.36 | GB182: 96.87 | GC182: 97.38 | GD182: 97.89 | GE182: 98.4 | GF182: 98.91 | GG182: 99.42 | GH182: 99.93 | GI182: 100.44 | GJ182: 100.95 | GK182: 101.46 | GL182: 101.97 | GM182: 102.48 | GN182: 102.99 | GO182: 103.5 | GP182: 104.01 | GQ182: 104.52 | GR182: 105.03 | GS182: 105.54 | GT182: 106.05 | GU182: 106.56 | GV182: 107.07 | GW182: 107.58
A183: 63 | B183: Puy-de-Dôme | D183: Oui | F183: 6.09 | G183: 6.6 | H183: 7.11 | I183: 7.62 | J183: 8.13 | K183: 8.64 | L183: 9.15 | M183: 9.66 | N183: 10.17 | O183: 10.68 | P183: 11.19 | Q183: 11.7 | R183: 12.21 | S183: 12.72 | T183: 13.23 | U183: 13.74 | V183: 14.25 | W183: 14.76 | X183: 15.27 | Y183: 15.78 | Z183: 16.29 | AA183: 16.8 | AB183: 17.31 | AC183: 17.82 | AD183: 18.33 | AE183: 18.84 | AF183: 19.35 | AG183: 19.86 | AH183: 20.37 | AI183: 20.88 | AJ183: 21.39 | AK183: 21.9 | AL183: 22.41 | AM183: 22.92 | AN183: 23.43 | AO183: 23.94 | AP183: 24.45 | AQ183: 24.96 | AR183: 25.47 | AS183: 25.98 | AT183: 26.49 | AU183: 27 | AV183: 27.51 | AW183: 28.02 | AX183: 28.53 | AY183: 29.04 | AZ183: 29.55 | BA183: 30.06 | BB183: 30.57 | BC183: 31.08 | BD183: 31.59 | BE183: 32.1 | BF183: 32.61 | BG183: 33.12 | BH183: 33.63 | BI183: 34.14 | BJ183: 34.65 | BK183: 35.16 | BL183: 35.67 | BM183: 36.18 | BN183: 36.69 | BO183: 37.2 | BP183: 37.71 | BQ183: 38.22 | BR183: 38.73 | BS183: 39.24 | BT183: 39.75 | BU183: 40.26 | BV183: 40.77 | BW183: 41.28 | BX183: 41.79 | BY183: 42.3 | BZ183: 42.81 | CA183: 43.32 | CB183: 43.83 | CC183: 44.34 | CD183: 44.85 | CE183: 45.36 | CF183: 45.87 | CG183: 46.38 | CH183: 46.89 | CI183: 47.4 | CJ183: 47.91 | CK183: 48.42 | CL183: 48.93 | CM183: 49.44 | CN183: 49.95 | CO183: 50.46 | CP183: 50.97 | CQ183: 51.48 | CR183: 51.99 | CS183: 52.5 | CT183: 53.01 | CU183: 53.52 | CV183: 54.03 | CW183: 54.54 | CX183: 55.05 | CY183: 55.56 | CZ183: 56.07 | DA183: 56.58 | DB183: 57.09 | DC183: 57.6 | DD183: 58.11 | DE183: 58.62 | DF183: 59.13 | DG183: 59.64 | DH183: 60.15 | DI183: 60.66 | DJ183: 61.17 | DK183: 61.68 | DL183: 62.19 | DM183: 62.7 | DN183: 63.21 | DO183: 63.72 | DP183: 64.23 | DQ183: 64.74 | DR183: 65.25 | DS183: 65.76 | DT183: 66.27 | DU183: 66.78 | DV183: 67.29 | DW183: 67.8 | DX183: 68.31 | DY183: 68.82 | DZ183: 69.33 | EA183: 69.84 | EB183: 70.35 | EC183: 70.86 | ED183: 71.37 | EE183: 71.88 | EF183: 72.39 | EG183: 72.9 | EH183: 73.41 | EI183: 73.92 | EJ183: 74.43 | EK183: 74.94 | EL183: 75.45 | EM183: 75.96 | EN183: 76.47 | EO183: 76.98 | EP183: 77.49 | EQ183: 78 | ER183: 78.51 | ES183: 79.02 | ET183: 79.53 | EU183: 80.04 | EV183: 80.55 | EW183: 81.06 | EX183: 81.57 | EY183: 82.08 | EZ183: 82.59 | FA183: 83.1 | FB183: 83.61 | FC183: 84.12 | FD183: 84.63 | FE183: 85.14 | FF183: 85.65 | FG183: 86.16 | FH183: 86.67 | FI183: 87.18 | FJ183: 87.69 | FK183: 88.2 | FL183: 88.71 | FM183: 89.22 | FN183: 89.73 | FO183: 90.24 | FP183: 90.75 | FQ183: 91.26 | FR183: 91.77 | FS183: 92.28 | FT183: 92.79 | FU183: 93.3 | FV183: 93.81 | FW183: 94.32 | FX183: 94.83 | FY183: 95.34 | FZ183: 95.85 | GA183: 96.36 | GB183: 96.87 | GC183: 97.38 | GD183: 97.89 | GE183: 98.4 | GF183: 98.91 | GG183: 99.42 | GH183: 99.93 | GI183: 100.44 | GJ183: 100.95 | GK183: 101.46 | GL183: 101.97 | GM183: 102.48 | GN183: 102.99 | GO183: 103.5 | GP183: 104.01 | GQ183: 104.52 | GR183: 105.03 | GS183: 105.54 | GT183: 106.05 | GU183: 106.56 | GV183: 107.07 | GW183: 107.58
A184: 64 | B184: Pyrénées-Atlantiques | D184: Oui | F184: 6.09 | G184: 6.6 | H184: 7.11 | I184: 7.62 | J184: 8.13 | K184: 8.64 | L184: 9.15 | M184: 9.66 | N184: 10.17 | O184: 10.68 | P184: 11.19 | Q184: 11.7 | R184: 12.21 | S184: 12.72 | T184: 13.23 | U184: 13.74 | V184: 14.25 | W184: 14.76 | X184: 15.27 | Y184: 15.78 | Z184: 16.29 | AA184: 16.8 | AB184: 17.31 | AC184: 17.82 | AD184: 18.33 | AE184: 18.84 | AF184: 19.35 | AG184: 19.86 | AH184: 20.37 | AI184: 20.88 | AJ184: 21.39 | AK184: 21.9 | AL184: 22.41 | AM184: 22.92 | AN184: 23.43 | AO184: 23.94 | AP184: 24.45 | AQ184: 24.96 | AR184: 25.47 | AS184: 25.98 | AT184: 26.49 | AU184: 27 | AV184: 27.51 | AW184: 28.02 | AX184: 28.53 | AY184: 29.04 | AZ184: 29.55 | BA184: 30.06 | BB184: 30.57 | BC184: 31.08 | BD184: 31.59 | BE184: 32.1 | BF184: 32.61 | BG184: 33.12 | BH184: 33.63 | BI184: 34.14 | BJ184: 34.65 | BK184: 35.16 | BL184: 35.67 | BM184: 36.18 | BN184: 36.69 | BO184: 37.2 | BP184: 37.71 | BQ184: 38.22 | BR184: 38.73 | BS184: 39.24 | BT184: 39.75 | BU184: 40.26 | BV184: 40.77 | BW184: 41.28 | BX184: 41.79 | BY184: 42.3 | BZ184: 42.81 | CA184: 43.32 | CB184: 43.83 | CC184: 44.34 | CD184: 44.85 | CE184: 45.36 | CF184: 45.87 | CG184: 46.38 | CH184: 46.89 | CI184: 47.4 | CJ184: 47.91 | CK184: 48.42 | CL184: 48.93 | CM184: 49.44 | CN184: 49.95 | CO184: 50.46 | CP184: 50.97 | CQ184: 51.48 | CR184: 51.99 | CS184: 52.5 | CT184: 53.01 | CU184: 53.52 | CV184: 54.03 | CW184: 54.54 | CX184: 55.05 | CY184: 55.56 | CZ184: 56.07 | DA184: 56.58 | DB184: 57.09 | DC184: 57.6 | DD184: 58.11 | DE184: 58.62 | DF184: 59.13 | DG184: 59.64 | DH184: 60.15 | DI184: 60.66 | DJ184: 61.17 | DK184: 61.68 | DL184: 62.19 | DM184: 62.7 | DN184: 63.21 | DO184: 63.72 | DP184: 64.23 | DQ184: 64.74 | DR184: 65.25 | DS184: 65.76 | DT184: 66.27 | DU184: 66.78 | DV184: 67.29 | DW184: 67.8 | DX184: 68.31 | DY184: 68.82 | DZ184: 69.33 | EA184: 69.84 | EB184: 70.35 | EC184: 70.86 | ED184: 71.37 | EE184: 71.88 | EF184: 72.39 | EG184: 72.9 | EH184: 73.41 | EI184: 73.92 | EJ184: 74.43 | EK184: 74.94 | EL184: 75.45 | EM184: 75.96 | EN184: 76.47 | EO184: 76.98 | EP184: 77.49 | EQ184: 78 | ER184: 78.51 | ES184: 79.02 | ET184: 79.53 | EU184: 80.04 | EV184: 80.55 | EW184: 81.06 | EX184: 81.57 | EY184: 82.08 | EZ184: 82.59 | FA184: 83.1 | FB184: 83.61 | FC184: 84.12 | FD184: 84.63 | FE184: 85.14 | FF184: 85.65 | FG184: 86.16 | FH184: 86.67 | FI184: 87.18 | FJ184: 87.69 | FK184: 88.2 | FL184: 88.71 | FM184: 89.22 | FN184: 89.73 | FO184: 90.24 | FP184: 90.75 | FQ184: 91.26 | FR184: 91.77 | FS184: 92.28 | FT184: 92.79 | FU184: 93.3 | FV184: 93.81 | FW184: 94.32 | FX184: 94.83 | FY184: 95.34 | FZ184: 95.85 | GA184: 96.36 | GB184: 96.87 | GC184: 97.38 | GD184: 97.89 | GE184: 98.4 | GF184: 98.91 | GG184: 99.42 | GH184: 99.93 | GI184: 100.44 | GJ184: 100.95 | GK184: 101.46 | GL184: 101.97 | GM184: 102.48 | GN184: 102.99 | GO184: 103.5 | GP184: 104.01 | GQ184: 104.52 | GR184: 105.03 | GS184: 105.54 | GT184: 106.05 | GU184: 106.56 | GV184: 107.07 | GW184: 107.58
A185: 65 | B185: Hautes-Pyrénées | D185: Oui | F185: 6.09 | G185: 6.6 | H185: 7.11 | I185: 7.62 | J185: 8.13 | K185: 8.64 | L185: 9.15 | M185: 9.66 | N185: 10.17 | O185: 10.68 | P185: 11.19 | Q185: 11.7 | R185: 12.21 | S185: 12.72 | T185: 13.23 | U185: 13.74 | V185: 14.25 | W185: 14.76 | X185: 15.27 | Y185: 15.78 | Z185: 16.29 | AA185: 16.8 | AB185: 17.31 | AC185: 17.82 | AD185: 18.33 | AE185: 18.84 | AF185: 19.35 | AG185: 19.86 | AH185: 20.37 | AI185: 20.88 | AJ185: 21.39 | AK185: 21.9 | AL185: 22.41 | AM185: 22.92 | AN185: 23.43 | AO185: 23.94 | AP185: 24.45 | AQ185: 24.96 | AR185: 25.47 | AS185: 25.98 | AT185: 26.49 | AU185: 27 | AV185: 27.51 | AW185: 28.02 | AX185: 28.53 | AY185: 29.04 | AZ185: 29.55 | BA185: 30.06 | BB185: 30.57 | BC185: 31.08 | BD185: 31.59 | BE185: 32.1 | BF185: 32.61 | BG185: 33.12 | BH185: 33.63 | BI185: 34.14 | BJ185: 34.65 | BK185: 35.16 | BL185: 35.67 | BM185: 36.18 | BN185: 36.69 | BO185: 37.2 | BP185: 37.71 | BQ185: 38.22 | BR185: 38.73 | BS185: 39.24 | BT185: 39.75 | BU185: 40.26 | BV185: 40.77 | BW185: 41.28 | BX185: 41.79 | BY185: 42.3 | BZ185: 42.81 | CA185: 43.32 | CB185: 43.83 | CC185: 44.34 | CD185: 44.85 | CE185: 45.36 | CF185: 45.87 | CG185: 46.38 | CH185: 46.89 | CI185: 47.4 | CJ185: 47.91 | CK185: 48.42 | CL185: 48.93 | CM185: 49.44 | CN185: 49.95 | CO185: 50.46 | CP185: 50.97 | CQ185: 51.48 | CR185: 51.99 | CS185: 52.5 | CT185: 53.01 | CU185: 53.52 | CV185: 54.03 | CW185: 54.54 | CX185: 55.05 | CY185: 55.56 | CZ185: 56.07 | DA185: 56.58 | DB185: 57.09 | DC185: 57.6 | DD185: 58.11 | DE185: 58.62 | DF185: 59.13 | DG185: 59.64 | DH185: 60.15 | DI185: 60.66 | DJ185: 61.17 | DK185: 61.68 | DL185: 62.19 | DM185: 62.7 | DN185: 63.21 | DO185: 63.72 | DP185: 64.23 | DQ185: 64.74 | DR185: 65.25 | DS185: 65.76 | DT185: 66.27 | DU185: 66.78 | DV185: 67.29 | DW185: 67.8 | DX185: 68.31 | DY185: 68.82 | DZ185: 69.33 | EA185: 69.84 | EB185: 70.35 | EC185: 70.86 | ED185: 71.37 | EE185: 71.88 | EF185: 72.39 | EG185: 72.9 | EH185: 73.41 | EI185: 73.92 | EJ185: 74.43 | EK185: 74.94 | EL185: 75.45 | EM185: 75.96 | EN185: 76.47 | EO185: 76.98 | EP185: 77.49 | EQ185: 78 | ER185: 78.51 | ES185: 79.02 | ET185: 79.53 | EU185: 80.04 | EV185: 80.55 | EW185: 81.06 | EX185: 81.57 | EY185: 82.08 | EZ185: 82.59 | FA185: 83.1 | FB185: 83.61 | FC185: 84.12 | FD185: 84.63 | FE185: 85.14 | FF185: 85.65 | FG185: 86.16 | FH185: 86.67 | FI185: 87.18 | FJ185: 87.69 | FK185: 88.2 | FL185: 88.71 | FM185: 89.22 | FN185: 89.73 | FO185: 90.24 | FP185: 90.75 | FQ185: 91.26 | FR185: 91.77 | FS185: 92.28 | FT185: 92.79 | FU185: 93.3 | FV185: 93.81 | FW185: 94.32 | FX185: 94.83 | FY185: 95.34 | FZ185: 95.85 | GA185: 96.36 | GB185: 96.87 | GC185: 97.38 | GD185: 97.89 | GE185: 98.4 | GF185: 98.91 | GG185: 99.42 | GH185: 99.93 | GI185: 100.44 | GJ185: 100.95 | GK185: 101.46 | GL185: 101.97 | GM185: 102.48 | GN185: 102.99 | GO185: 103.5 | GP185: 104.01 | GQ185: 104.52 | GR185: 105.03 | GS185: 105.54 | GT185: 106.05 | GU185: 106.56 | GV185: 107.07 | GW185: 107.58
A186: 66 | B186: Pyrénées-Orientales | D186: Oui | F186: 6.09 | G186: 6.6 | H186: 7.11 | I186: 7.62 | J186: 8.13 | K186: 8.64 | L186: 9.15 | M186: 9.66 | N186: 10.17 | O186: 10.68 | P186: 11.19 | Q186: 11.7 | R186: 12.21 | S186: 12.72 | T186: 13.23 | U186: 13.74 | V186: 14.25 | W186: 14.76 | X186: 15.27 | Y186: 15.78 | Z186: 16.29 | AA186: 16.8 | AB186: 17.31 | AC186: 17.82 | AD186: 18.33 | AE186: 18.84 | AF186: 19.35 | AG186: 19.86 | AH186: 20.37 | AI186: 20.88 | AJ186: 21.39 | AK186: 21.9 | AL186: 22.41 | AM186: 22.92 | AN186: 23.43 | AO186: 23.94 | AP186: 24.45 | AQ186: 24.96 | AR186: 25.47 | AS186: 25.98 | AT186: 26.49 | AU186: 27 | AV186: 27.51 | AW186: 28.02 | AX186: 28.53 | AY186: 29.04 | AZ186: 29.55 | BA186: 30.06 | BB186: 30.57 | BC186: 31.08 | BD186: 31.59 | BE186: 32.1 | BF186: 32.61 | BG186: 33.12 | BH186: 33.63 | BI186: 34.14 | BJ186: 34.65 | BK186: 35.16 | BL186: 35.67 | BM186: 36.18 | BN186: 36.69 | BO186: 37.2 | BP186: 37.71 | BQ186: 38.22 | BR186: 38.73 | BS186: 39.24 | BT186: 39.75 | BU186: 40.26 | BV186: 40.77 | BW186: 41.28 | BX186: 41.79 | BY186: 42.3 | BZ186: 42.81 | CA186: 43.32 | CB186: 43.83 | CC186: 44.34 | CD186: 44.85 | CE186: 45.36 | CF186: 45.87 | CG186: 46.38 | CH186: 46.89 | CI186: 47.4 | CJ186: 47.91 | CK186: 48.42 | CL186: 48.93 | CM186: 49.44 | CN186: 49.95 | CO186: 50.46 | CP186: 50.97 | CQ186: 51.48 | CR186: 51.99 | CS186: 52.5 | CT186: 53.01 | CU186: 53.52 | CV186: 54.03 | CW186: 54.54 | CX186: 55.05 | CY186: 55.56 | CZ186: 56.07 | DA186: 56.58 | DB186: 57.09 | DC186: 57.6 | DD186: 58.11 | DE186: 58.62 | DF186: 59.13 | DG186: 59.64 | DH186: 60.15 | DI186: 60.66 | DJ186: 61.17 | DK186: 61.68 | DL186: 62.19 | DM186: 62.7 | DN186: 63.21 | DO186: 63.72 | DP186: 64.23 | DQ186: 64.74 | DR186: 65.25 | DS186: 65.76 | DT186: 66.27 | DU186: 66.78 | DV186: 67.29 | DW186: 67.8 | DX186: 68.31 | DY186: 68.82 | DZ186: 69.33 | EA186: 69.84 | EB186: 70.35 | EC186: 70.86 | ED186: 71.37 | EE186: 71.88 | EF186: 72.39 | EG186: 72.9 | EH186: 73.41 | EI186: 73.92 | EJ186: 74.43 | EK186: 74.94 | EL186: 75.45 | EM186: 75.96 | EN186: 76.47 | EO186: 76.98 | EP186: 77.49 | EQ186: 78 | ER186: 78.51 | ES186: 79.02 | ET186: 79.53 | EU186: 80.04 | EV186: 80.55 | EW186: 81.06 | EX186: 81.57 | EY186: 82.08 | EZ186: 82.59 | FA186: 83.1 | FB186: 83.61 | FC186: 84.12 | FD186: 84.63 | FE186: 85.14 | FF186: 85.65 | FG186: 86.16 | FH186: 86.67 | FI186: 87.18 | FJ186: 87.69 | FK186: 88.2 | FL186: 88.71 | FM186: 89.22 | FN186: 89.73 | FO186: 90.24 | FP186: 90.75 | FQ186: 91.26 | FR186: 91.77 | FS186: 92.28 | FT186: 92.79 | FU186: 93.3 | FV186: 93.81 | FW186: 94.32 | FX186: 94.83 | FY186: 95.34 | FZ186: 95.85 | GA186: 96.36 | GB186: 96.87 | GC186: 97.38 | GD186: 97.89 | GE186: 98.4 | GF186: 98.91 | GG186: 99.42 | GH186: 99.93 | GI186: 100.44 | GJ186: 100.95 | GK186: 101.46 | GL186: 101.97 | GM186: 102.48 | GN186: 102.99 | GO186: 103.5 | GP186: 104.01 | GQ186: 104.52 | GR186: 105.03 | GS186: 105.54 | GT186: 106.05 | GU186: 106.56 | GV186: 107.07 | GW186: 107.58
A187: 67 | B187: Bas-Rhin | D187: Oui | F187: 6.09 | G187: 6.6 | H187: 7.11 | I187: 7.62 | J187: 8.13 | K187: 8.64 | L187: 9.15 | M187: 9.66 | N187: 10.17 | O187: 10.68 | P187: 11.19 | Q187: 11.7 | R187: 12.21 | S187: 12.72 | T187: 13.23 | U187: 13.74 | V187: 14.25 | W187: 14.76 | X187: 15.27 | Y187: 15.78 | Z187: 16.29 | AA187: 16.8 | AB187: 17.31 | AC187: 17.82 | AD187: 18.33 | AE187: 18.84 | AF187: 19.35 | AG187: 19.86 | AH187: 20.37 | AI187: 20.88 | AJ187: 21.39 | AK187: 21.9 | AL187: 22.41 | AM187: 22.92 | AN187: 23.43 | AO187: 23.94 | AP187: 24.45 | AQ187: 24.96 | AR187: 25.47 | AS187: 25.98 | AT187: 26.49 | AU187: 27 | AV187: 27.51 | AW187: 28.02 | AX187: 28.53 | AY187: 29.04 | AZ187: 29.55 | BA187: 30.06 | BB187: 30.57 | BC187: 31.08 | BD187: 31.59 | BE187: 32.1 | BF187: 32.61 | BG187: 33.12 | BH187: 33.63 | BI187: 34.14 | BJ187: 34.65 | BK187: 35.16 | BL187: 35.67 | BM187: 36.18 | BN187: 36.69 | BO187: 37.2 | BP187: 37.71 | BQ187: 38.22 | BR187: 38.73 | BS187: 39.24 | BT187: 39.75 | BU187: 40.26 | BV187: 40.77 | BW187: 41.28 | BX187: 41.79 | BY187: 42.3 | BZ187: 42.81 | CA187: 43.32 | CB187: 43.83 | CC187: 44.34 | CD187: 44.85 | CE187: 45.36 | CF187: 45.87 | CG187: 46.38 | CH187: 46.89 | CI187: 47.4 | CJ187: 47.91 | CK187: 48.42 | CL187: 48.93 | CM187: 49.44 | CN187: 49.95 | CO187: 50.46 | CP187: 50.97 | CQ187: 51.48 | CR187: 51.99 | CS187: 52.5 | CT187: 53.01 | CU187: 53.52 | CV187: 54.03 | CW187: 54.54 | CX187: 55.05 | CY187: 55.56 | CZ187: 56.07 | DA187: 56.58 | DB187: 57.09 | DC187: 57.6 | DD187: 58.11 | DE187: 58.62 | DF187: 59.13 | DG187: 59.64 | DH187: 60.15 | DI187: 60.66 | DJ187: 61.17 | DK187: 61.68 | DL187: 62.19 | DM187: 62.7 | DN187: 63.21 | DO187: 63.72 | DP187: 64.23 | DQ187: 64.74 | DR187: 65.25 | DS187: 65.76 | DT187: 66.27 | DU187: 66.78 | DV187: 67.29 | DW187: 67.8 | DX187: 68.31 | DY187: 68.82 | DZ187: 69.33 | EA187: 69.84 | EB187: 70.35 | EC187: 70.86 | ED187: 71.37 | EE187: 71.88 | EF187: 72.39 | EG187: 72.9 | EH187: 73.41 | EI187: 73.92 | EJ187: 74.43 | EK187: 74.94 | EL187: 75.45 | EM187: 75.96 | EN187: 76.47 | EO187: 76.98 | EP187: 77.49 | EQ187: 78 | ER187: 78.51 | ES187: 79.02 | ET187: 79.53 | EU187: 80.04 | EV187: 80.55 | EW187: 81.06 | EX187: 81.57 | EY187: 82.08 | EZ187: 82.59 | FA187: 83.1 | FB187: 83.61 | FC187: 84.12 | FD187: 84.63 | FE187: 85.14 | FF187: 85.65 | FG187: 86.16 | FH187: 86.67 | FI187: 87.18 | FJ187: 87.69 | FK187: 88.2 | FL187: 88.71 | FM187: 89.22 | FN187: 89.73 | FO187: 90.24 | FP187: 90.75 | FQ187: 91.26 | FR187: 91.77 | FS187: 92.28 | FT187: 92.79 | FU187: 93.3 | FV187: 93.81 | FW187: 94.32 | FX187: 94.83 | FY187: 95.34 | FZ187: 95.85 | GA187: 96.36 | GB187: 96.87 | GC187: 97.38 | GD187: 97.89 | GE187: 98.4 | GF187: 98.91 | GG187: 99.42 | GH187: 99.93 | GI187: 100.44 | GJ187: 100.95 | GK187: 101.46 | GL187: 101.97 | GM187: 102.48 | GN187: 102.99 | GO187: 103.5 | GP187: 104.01 | GQ187: 104.52 | GR187: 105.03 | GS187: 105.54 | GT187: 106.05 | GU187: 106.56 | GV187: 107.07 | GW187: 107.58
A188: 68 | B188: Haut-Rhin | D188: Oui | F188: 6.09 | G188: 6.6 | H188: 7.11 | I188: 7.62 | J188: 8.13 | K188: 8.64 | L188: 9.15 | M188: 9.66 | N188: 10.17 | O188: 10.68 | P188: 11.19 | Q188: 11.7 | R188: 12.21 | S188: 12.72 | T188: 13.23 | U188: 13.74 | V188: 14.25 | W188: 14.76 | X188: 15.27 | Y188: 15.78 | Z188: 16.29 | AA188: 16.8 | AB188: 17.31 | AC188: 17.82 | AD188: 18.33 | AE188: 18.84 | AF188: 19.35 | AG188: 19.86 | AH188: 20.37 | AI188: 20.88 | AJ188: 21.39 | AK188: 21.9 | AL188: 22.41 | AM188: 22.92 | AN188: 23.43 | AO188: 23.94 | AP188: 24.45 | AQ188: 24.96 | AR188: 25.47 | AS188: 25.98 | AT188: 26.49 | AU188: 27 | AV188: 27.51 | AW188: 28.02 | AX188: 28.53 | AY188: 29.04 | AZ188: 29.55 | BA188: 30.06 | BB188: 30.57 | BC188: 31.08 | BD188: 31.59 | BE188: 32.1 | BF188: 32.61 | BG188: 33.12 | BH188: 33.63 | BI188: 34.14 | BJ188: 34.65 | BK188: 35.16 | BL188: 35.67 | BM188: 36.18 | BN188: 36.69 | BO188: 37.2 | BP188: 37.71 | BQ188: 38.22 | BR188: 38.73 | BS188: 39.24 | BT188: 39.75 | BU188: 40.26 | BV188: 40.77 | BW188: 41.28 | BX188: 41.79 | BY188: 42.3 | BZ188: 42.81 | CA188: 43.32 | CB188: 43.83 | CC188: 44.34 | CD188: 44.85 | CE188: 45.36 | CF188: 45.87 | CG188: 46.38 | CH188: 46.89 | CI188: 47.4 | CJ188: 47.91 | CK188: 48.42 | CL188: 48.93 | CM188: 49.44 | CN188: 49.95 | CO188: 50.46 | CP188: 50.97 | CQ188: 51.48 | CR188: 51.99 | CS188: 52.5 | CT188: 53.01 | CU188: 53.52 | CV188: 54.03 | CW188: 54.54 | CX188: 55.05 | CY188: 55.56 | CZ188: 56.07 | DA188: 56.58 | DB188: 57.09 | DC188: 57.6 | DD188: 58.11 | DE188: 58.62 | DF188: 59.13 | DG188: 59.64 | DH188: 60.15 | DI188: 60.66 | DJ188: 61.17 | DK188: 61.68 | DL188: 62.19 | DM188: 62.7 | DN188: 63.21 | DO188: 63.72 | DP188: 64.23 | DQ188: 64.74 | DR188: 65.25 | DS188: 65.76 | DT188: 66.27 | DU188: 66.78 | DV188: 67.29 | DW188: 67.8 | DX188: 68.31 | DY188: 68.82 | DZ188: 69.33 | EA188: 69.84 | EB188: 70.35 | EC188: 70.86 | ED188: 71.37 | EE188: 71.88 | EF188: 72.39 | EG188: 72.9 | EH188: 73.41 | EI188: 73.92 | EJ188: 74.43 | EK188: 74.94 | EL188: 75.45 | EM188: 75.96 | EN188: 76.47 | EO188: 76.98 | EP188: 77.49 | EQ188: 78 | ER188: 78.51 | ES188: 79.02 | ET188: 79.53 | EU188: 80.04 | EV188: 80.55 | EW188: 81.06 | EX188: 81.57 | EY188: 82.08 | EZ188: 82.59 | FA188: 83.1 | FB188: 83.61 | FC188: 84.12 | FD188: 84.63 | FE188: 85.14 | FF188: 85.65 | FG188: 86.16 | FH188: 86.67 | FI188: 87.18 | FJ188: 87.69 | FK188: 88.2 | FL188: 88.71 | FM188: 89.22 | FN188: 89.73 | FO188: 90.24 | FP188: 90.75 | FQ188: 91.26 | FR188: 91.77 | FS188: 92.28 | FT188: 92.79 | FU188: 93.3 | FV188: 93.81 | FW188: 94.32 | FX188: 94.83 | FY188: 95.34 | FZ188: 95.85 | GA188: 96.36 | GB188: 96.87 | GC188: 97.38 | GD188: 97.89 | GE188: 98.4 | GF188: 98.91 | GG188: 99.42 | GH188: 99.93 | GI188: 100.44 | GJ188: 100.95 | GK188: 101.46 | GL188: 101.97 | GM188: 102.48 | GN188: 102.99 | GO188: 103.5 | GP188: 104.01 | GQ188: 104.52 | GR188: 105.03 | GS188: 105.54 | GT188: 106.05 | GU188: 106.56 | GV188: 107.07 | GW188: 107.58
A189: 69 | B189: Rhône | D189: Oui | F189: 6.09 | G189: 6.6 | H189: 7.11 | I189: 7.62 | J189: 8.13 | K189: 8.64 | L189: 9.15 | M189: 9.66 | N189: 10.17 | O189: 10.68 | P189: 11.19 | Q189: 11.7 | R189: 12.21 | S189: 12.72 | T189: 13.23 | U189: 13.74 | V189: 14.25 | W189: 14.76 | X189: 15.27 | Y189: 15.78 | Z189: 16.29 | AA189: 16.8 | AB189: 17.31 | AC189: 17.82 | AD189: 18.33 | AE189: 18.84 | AF189: 19.35 | AG189: 19.86 | AH189: 20.37 | AI189: 20.88 | AJ189: 21.39 | AK189: 21.9 | AL189: 22.41 | AM189: 22.92 | AN189: 23.43 | AO189: 23.94 | AP189: 24.45 | AQ189: 24.96 | AR189: 25.47 | AS189: 25.98 | AT189: 26.49 | AU189: 27 | AV189: 27.51 | AW189: 28.02 | AX189: 28.53 | AY189: 29.04 | AZ189: 29.55 | BA189: 30.06 | BB189: 30.57 | BC189: 31.08 | BD189: 31.59 | BE189: 32.1 | BF189: 32.61 | BG189: 33.12 | BH189: 33.63 | BI189: 34.14 | BJ189: 34.65 | BK189: 35.16 | BL189: 35.67 | BM189: 36.18 | BN189: 36.69 | BO189: 37.2 | BP189: 37.71 | BQ189: 38.22 | BR189: 38.73 | BS189: 39.24 | BT189: 39.75 | BU189: 40.26 | BV189: 40.77 | BW189: 41.28 | BX189: 41.79 | BY189: 42.3 | BZ189: 42.81 | CA189: 43.32 | CB189: 43.83 | CC189: 44.34 | CD189: 44.85 | CE189: 45.36 | CF189: 45.87 | CG189: 46.38 | CH189: 46.89 | CI189: 47.4 | CJ189: 47.91 | CK189: 48.42 | CL189: 48.93 | CM189: 49.44 | CN189: 49.95 | CO189: 50.46 | CP189: 50.97 | CQ189: 51.48 | CR189: 51.99 | CS189: 52.5 | CT189: 53.01 | CU189: 53.52 | CV189: 54.03 | CW189: 54.54 | CX189: 55.05 | CY189: 55.56 | CZ189: 56.07 | DA189: 56.58 | DB189: 57.09 | DC189: 57.6 | DD189: 58.11 | DE189: 58.62 | DF189: 59.13 | DG189: 59.64 | DH189: 60.15 | DI189: 60.66 | DJ189: 61.17 | DK189: 61.68 | DL189: 62.19 | DM189: 62.7 | DN189: 63.21 | DO189: 63.72 | DP189: 64.23 | DQ189: 64.74 | DR189: 65.25 | DS189: 65.76 | DT189: 66.27 | DU189: 66.78 | DV189: 67.29 | DW189: 67.8 | DX189: 68.31 | DY189: 68.82 | DZ189: 69.33 | EA189: 69.84 | EB189: 70.35 | EC189: 70.86 | ED189: 71.37 | EE189: 71.88 | EF189: 72.39 | EG189: 72.9 | EH189: 73.41 | EI189: 73.92 | EJ189: 74.43 | EK189: 74.94 | EL189: 75.45 | EM189: 75.96 | EN189: 76.47 | EO189: 76.98 | EP189: 77.49 | EQ189: 78 | ER189: 78.51 | ES189: 79.02 | ET189: 79.53 | EU189: 80.04 | EV189: 80.55 | EW189: 81.06 | EX189: 81.57 | EY189: 82.08 | EZ189: 82.59 | FA189: 83.1 | FB189: 83.61 | FC189: 84.12 | FD189: 84.63 | FE189: 85.14 | FF189: 85.65 | FG189: 86.16 | FH189: 86.67 | FI189: 87.18 | FJ189: 87.69 | FK189: 88.2 | FL189: 88.71 | FM189: 89.22 | FN189: 89.73 | FO189: 90.24 | FP189: 90.75 | FQ189: 91.26 | FR189: 91.77 | FS189: 92.28 | FT189: 92.79 | FU189: 93.3 | FV189: 93.81 | FW189: 94.32 | FX189: 94.83 | FY189: 95.34 | FZ189: 95.85 | GA189: 96.36 | GB189: 96.87 | GC189: 97.38 | GD189: 97.89 | GE189: 98.4 | GF189: 98.91 | GG189: 99.42 | GH189: 99.93 | GI189: 100.44 | GJ189: 100.95 | GK189: 101.46 | GL189: 101.97 | GM189: 102.48 | GN189: 102.99 | GO189: 103.5 | GP189: 104.01 | GQ189: 104.52 | GR189: 105.03 | GS189: 105.54 | GT189: 106.05 | GU189: 106.56 | GV189: 107.07 | GW189: 107.58
A190: 70 | B190: Haute-Saône | D190: Oui | F190: 6.09 | G190: 6.6 | H190: 7.11 | I190: 7.62 | J190: 8.13 | K190: 8.64 | L190: 9.15 | M190: 9.66 | N190: 10.17 | O190: 10.68 | P190: 11.19 | Q190: 11.7 | R190: 12.21 | S190: 12.72 | T190: 13.23 | U190: 13.74 | V190: 14.25 | W190: 14.76 | X190: 15.27 | Y190: 15.78 | Z190: 16.29 | AA190: 16.8 | AB190: 17.31 | AC190: 17.82 | AD190: 18.33 | AE190: 18.84 | AF190: 19.35 | AG190: 19.86 | AH190: 20.37 | AI190: 20.88 | AJ190: 21.39 | AK190: 21.9 | AL190: 22.41 | AM190: 22.92 | AN190: 23.43 | AO190: 23.94 | AP190: 24.45 | AQ190: 24.96 | AR190: 25.47 | AS190: 25.98 | AT190: 26.49 | AU190: 27 | AV190: 27.51 | AW190: 28.02 | AX190: 28.53 | AY190: 29.04 | AZ190: 29.55 | BA190: 30.06 | BB190: 30.57 | BC190: 31.08 | BD190: 31.59 | BE190: 32.1 | BF190: 32.61 | BG190: 33.12 | BH190: 33.63 | BI190: 34.14 | BJ190: 34.65 | BK190: 35.16 | BL190: 35.67 | BM190: 36.18 | BN190: 36.69 | BO190: 37.2 | BP190: 37.71 | BQ190: 38.22 | BR190: 38.73 | BS190: 39.24 | BT190: 39.75 | BU190: 40.26 | BV190: 40.77 | BW190: 41.28 | BX190: 41.79 | BY190: 42.3 | BZ190: 42.81 | CA190: 43.32 | CB190: 43.83 | CC190: 44.34 | CD190: 44.85 | CE190: 45.36 | CF190: 45.87 | CG190: 46.38 | CH190: 46.89 | CI190: 47.4 | CJ190: 47.91 | CK190: 48.42 | CL190: 48.93 | CM190: 49.44 | CN190: 49.95 | CO190: 50.46 | CP190: 50.97 | CQ190: 51.48 | CR190: 51.99 | CS190: 52.5 | CT190: 53.01 | CU190: 53.52 | CV190: 54.03 | CW190: 54.54 | CX190: 55.05 | CY190: 55.56 | CZ190: 56.07 | DA190: 56.58 | DB190: 57.09 | DC190: 57.6 | DD190: 58.11 | DE190: 58.62 | DF190: 59.13 | DG190: 59.64 | DH190: 60.15 | DI190: 60.66 | DJ190: 61.17 | DK190: 61.68 | DL190: 62.19 | DM190: 62.7 | DN190: 63.21 | DO190: 63.72 | DP190: 64.23 | DQ190: 64.74 | DR190: 65.25 | DS190: 65.76 | DT190: 66.27 | DU190: 66.78 | DV190: 67.29 | DW190: 67.8 | DX190: 68.31 | DY190: 68.82 | DZ190: 69.33 | EA190: 69.84 | EB190: 70.35 | EC190: 70.86 | ED190: 71.37 | EE190: 71.88 | EF190: 72.39 | EG190: 72.9 | EH190: 73.41 | EI190: 73.92 | EJ190: 74.43 | EK190: 74.94 | EL190: 75.45 | EM190: 75.96 | EN190: 76.47 | EO190: 76.98 | EP190: 77.49 | EQ190: 78 | ER190: 78.51 | ES190: 79.02 | ET190: 79.53 | EU190: 80.04 | EV190: 80.55 | EW190: 81.06 | EX190: 81.57 | EY190: 82.08 | EZ190: 82.59 | FA190: 83.1 | FB190: 83.61 | FC190: 84.12 | FD190: 84.63 | FE190: 85.14 | FF190: 85.65 | FG190: 86.16 | FH190: 86.67 | FI190: 87.18 | FJ190: 87.69 | FK190: 88.2 | FL190: 88.71 | FM190: 89.22 | FN190: 89.73 | FO190: 90.24 | FP190: 90.75 | FQ190: 91.26 | FR190: 91.77 | FS190: 92.28 | FT190: 92.79 | FU190: 93.3 | FV190: 93.81 | FW190: 94.32 | FX190: 94.83 | FY190: 95.34 | FZ190: 95.85 | GA190: 96.36 | GB190: 96.87 | GC190: 97.38 | GD190: 97.89 | GE190: 98.4 | GF190: 98.91 | GG190: 99.42 | GH190: 99.93 | GI190: 100.44 | GJ190: 100.95 | GK190: 101.46 | GL190: 101.97 | GM190: 102.48 | GN190: 102.99 | GO190: 103.5 | GP190: 104.01 | GQ190: 104.52 | GR190: 105.03 | GS190: 105.54 | GT190: 106.05 | GU190: 106.56 | GV190: 107.07 | GW190: 107.58
A191: 71 | B191: Saône-et-Loire | D191: Oui | F191: 6.09 | G191: 6.6 | H191: 7.11 | I191: 7.62 | J191: 8.13 | K191: 8.64 | L191: 9.15 | M191: 9.66 | N191: 10.17 | O191: 10.68 | P191: 11.19 | Q191: 11.7 | R191: 12.21 | S191: 12.72 | T191: 13.23 | U191: 13.74 | V191: 14.25 | W191: 14.76 | X191: 15.27 | Y191: 15.78 | Z191: 16.29 | AA191: 16.8 | AB191: 17.31 | AC191: 17.82 | AD191: 18.33 | AE191: 18.84 | AF191: 19.35 | AG191: 19.86 | AH191: 20.37 | AI191: 20.88 | AJ191: 21.39 | AK191: 21.9 | AL191: 22.41 | AM191: 22.92 | AN191: 23.43 | AO191: 23.94 | AP191: 24.45 | AQ191: 24.96 | AR191: 25.47 | AS191: 25.98 | AT191: 26.49 | AU191: 27 | AV191: 27.51 | AW191: 28.02 | AX191: 28.53 | AY191: 29.04 | AZ191: 29.55 | BA191: 30.06 | BB191: 30.57 | BC191: 31.08 | BD191: 31.59 | BE191: 32.1 | BF191: 32.61 | BG191: 33.12 | BH191: 33.63 | BI191: 34.14 | BJ191: 34.65 | BK191: 35.16 | BL191: 35.67 | BM191: 36.18 | BN191: 36.69 | BO191: 37.2 | BP191: 37.71 | BQ191: 38.22 | BR191: 38.73 | BS191: 39.24 | BT191: 39.75 | BU191: 40.26 | BV191: 40.77 | BW191: 41.28 | BX191: 41.79 | BY191: 42.3 | BZ191: 42.81 | CA191: 43.32 | CB191: 43.83 | CC191: 44.34 | CD191: 44.85 | CE191: 45.36 | CF191: 45.87 | CG191: 46.38 | CH191: 46.89 | CI191: 47.4 | CJ191: 47.91 | CK191: 48.42 | CL191: 48.93 | CM191: 49.44 | CN191: 49.95 | CO191: 50.46 | CP191: 50.97 | CQ191: 51.48 | CR191: 51.99 | CS191: 52.5 | CT191: 53.01 | CU191: 53.52 | CV191: 54.03 | CW191: 54.54 | CX191: 55.05 | CY191: 55.56 | CZ191: 56.07 | DA191: 56.58 | DB191: 57.09 | DC191: 57.6 | DD191: 58.11 | DE191: 58.62 | DF191: 59.13 | DG191: 59.64 | DH191: 60.15 | DI191: 60.66 | DJ191: 61.17 | DK191: 61.68 | DL191: 62.19 | DM191: 62.7 | DN191: 63.21 | DO191: 63.72 | DP191: 64.23 | DQ191: 64.74 | DR191: 65.25 | DS191: 65.76 | DT191: 66.27 | DU191: 66.78 | DV191: 67.29 | DW191: 67.8 | DX191: 68.31 | DY191: 68.82 | DZ191: 69.33 | EA191: 69.84 | EB191: 70.35 | EC191: 70.86 | ED191: 71.37 | EE191: 71.88 | EF191: 72.39 | EG191: 72.9 | EH191: 73.41 | EI191: 73.92 | EJ191: 74.43 | EK191: 74.94 | EL191: 75.45 | EM191: 75.96 | EN191: 76.47 | EO191: 76.98 | EP191: 77.49 | EQ191: 78 | ER191: 78.51 | ES191: 79.02 | ET191: 79.53 | EU191: 80.04 | EV191: 80.55 | EW191: 81.06 | EX191: 81.57 | EY191: 82.08 | EZ191: 82.59 | FA191: 83.1 | FB191: 83.61 | FC191: 84.12 | FD191: 84.63 | FE191: 85.14 | FF191: 85.65 | FG191: 86.16 | FH191: 86.67 | FI191: 87.18 | FJ191: 87.69 | FK191: 88.2 | FL191: 88.71 | FM191: 89.22 | FN191: 89.73 | FO191: 90.24 | FP191: 90.75 | FQ191: 91.26 | FR191: 91.77 | FS191: 92.28 | FT191: 92.79 | FU191: 93.3 | FV191: 93.81 | FW191: 94.32 | FX191: 94.83 | FY191: 95.34 | FZ191: 95.85 | GA191: 96.36 | GB191: 96.87 | GC191: 97.38 | GD191: 97.89 | GE191: 98.4 | GF191: 98.91 | GG191: 99.42 | GH191: 99.93 | GI191: 100.44 | GJ191: 100.95 | GK191: 101.46 | GL191: 101.97 | GM191: 102.48 | GN191: 102.99 | GO191: 103.5 | GP191: 104.01 | GQ191: 104.52 | GR191: 105.03 | GS191: 105.54 | GT191: 106.05 | GU191: 106.56 | GV191: 107.07 | GW191: 107.58
A192: 72 | B192: Sarthe | D192: Oui | F192: 6.09 | G192: 6.6 | H192: 7.11 | I192: 7.62 | J192: 8.13 | K192: 8.64 | L192: 9.15 | M192: 9.66 | N192: 10.17 | O192: 10.68 | P192: 11.19 | Q192: 11.7 | R192: 12.21 | S192: 12.72 | T192: 13.23 | U192: 13.74 | V192: 14.25 | W192: 14.76 | X192: 15.27 | Y192: 15.78 | Z192: 16.29 | AA192: 16.8 | AB192: 17.31 | AC192: 17.82 | AD192: 18.33 | AE192: 18.84 | AF192: 19.35 | AG192: 19.86 | AH192: 20.37 | AI192: 20.88 | AJ192: 21.39 | AK192: 21.9 | AL192: 22.41 | AM192: 22.92 | AN192: 23.43 | AO192: 23.94 | AP192: 24.45 | AQ192: 24.96 | AR192: 25.47 | AS192: 25.98 | AT192: 26.49 | AU192: 27 | AV192: 27.51 | AW192: 28.02 | AX192: 28.53 | AY192: 29.04 | AZ192: 29.55 | BA192: 30.06 | BB192: 30.57 | BC192: 31.08 | BD192: 31.59 | BE192: 32.1 | BF192: 32.61 | BG192: 33.12 | BH192: 33.63 | BI192: 34.14 | BJ192: 34.65 | BK192: 35.16 | BL192: 35.67 | BM192: 36.18 | BN192: 36.69 | BO192: 37.2 | BP192: 37.71 | BQ192: 38.22 | BR192: 38.73 | BS192: 39.24 | BT192: 39.75 | BU192: 40.26 | BV192: 40.77 | BW192: 41.28 | BX192: 41.79 | BY192: 42.3 | BZ192: 42.81 | CA192: 43.32 | CB192: 43.83 | CC192: 44.34 | CD192: 44.85 | CE192: 45.36 | CF192: 45.87 | CG192: 46.38 | CH192: 46.89 | CI192: 47.4 | CJ192: 47.91 | CK192: 48.42 | CL192: 48.93 | CM192: 49.44 | CN192: 49.95 | CO192: 50.46 | CP192: 50.97 | CQ192: 51.48 | CR192: 51.99 | CS192: 52.5 | CT192: 53.01 | CU192: 53.52 | CV192: 54.03 | CW192: 54.54 | CX192: 55.05 | CY192: 55.56 | CZ192: 56.07 | DA192: 56.58 | DB192: 57.09 | DC192: 57.6 | DD192: 58.11 | DE192: 58.62 | DF192: 59.13 | DG192: 59.64 | DH192: 60.15 | DI192: 60.66 | DJ192: 61.17 | DK192: 61.68 | DL192: 62.19 | DM192: 62.7 | DN192: 63.21 | DO192: 63.72 | DP192: 64.23 | DQ192: 64.74 | DR192: 65.25 | DS192: 65.76 | DT192: 66.27 | DU192: 66.78 | DV192: 67.29 | DW192: 67.8 | DX192: 68.31 | DY192: 68.82 | DZ192: 69.33 | EA192: 69.84 | EB192: 70.35 | EC192: 70.86 | ED192: 71.37 | EE192: 71.88 | EF192: 72.39 | EG192: 72.9 | EH192: 73.41 | EI192: 73.92 | EJ192: 74.43 | EK192: 74.94 | EL192: 75.45 | EM192: 75.96 | EN192: 76.47 | EO192: 76.98 | EP192: 77.49 | EQ192: 78 | ER192: 78.51 | ES192: 79.02 | ET192: 79.53 | EU192: 80.04 | EV192: 80.55 | EW192: 81.06 | EX192: 81.57 | EY192: 82.08 | EZ192: 82.59 | FA192: 83.1 | FB192: 83.61 | FC192: 84.12 | FD192: 84.63 | FE192: 85.14 | FF192: 85.65 | FG192: 86.16 | FH192: 86.67 | FI192: 87.18 | FJ192: 87.69 | FK192: 88.2 | FL192: 88.71 | FM192: 89.22 | FN192: 89.73 | FO192: 90.24 | FP192: 90.75 | FQ192: 91.26 | FR192: 91.77 | FS192: 92.28 | FT192: 92.79 | FU192: 93.3 | FV192: 93.81 | FW192: 94.32 | FX192: 94.83 | FY192: 95.34 | FZ192: 95.85 | GA192: 96.36 | GB192: 96.87 | GC192: 97.38 | GD192: 97.89 | GE192: 98.4 | GF192: 98.91 | GG192: 99.42 | GH192: 99.93 | GI192: 100.44 | GJ192: 100.95 | GK192: 101.46 | GL192: 101.97 | GM192: 102.48 | GN192: 102.99 | GO192: 103.5 | GP192: 104.01 | GQ192: 104.52 | GR192: 105.03 | GS192: 105.54 | GT192: 106.05 | GU192: 106.56 | GV192: 107.07 | GW192: 107.58
A193: 73 | B193: Savoie | D193: Oui | F193: 6.09 | G193: 6.6 | H193: 7.11 | I193: 7.62 | J193: 8.13 | K193: 8.64 | L193: 9.15 | M193: 9.66 | N193: 10.17 | O193: 10.68 | P193: 11.19 | Q193: 11.7 | R193: 12.21 | S193: 12.72 | T193: 13.23 | U193: 13.74 | V193: 14.25 | W193: 14.76 | X193: 15.27 | Y193: 15.78 | Z193: 16.29 | AA193: 16.8 | AB193: 17.31 | AC193: 17.82 | AD193: 18.33 | AE193: 18.84 | AF193: 19.35 | AG193: 19.86 | AH193: 20.37 | AI193: 20.88 | AJ193: 21.39 | AK193: 21.9 | AL193: 22.41 | AM193: 22.92 | AN193: 23.43 | AO193: 23.94 | AP193: 24.45 | AQ193: 24.96 | AR193: 25.47 | AS193: 25.98 | AT193: 26.49 | AU193: 27 | AV193: 27.51 | AW193: 28.02 | AX193: 28.53 | AY193: 29.04 | AZ193: 29.55 | BA193: 30.06 | BB193: 30.57 | BC193: 31.08 | BD193: 31.59 | BE193: 32.1 | BF193: 32.61 | BG193: 33.12 | BH193: 33.63 | BI193: 34.14 | BJ193: 34.65 | BK193: 35.16 | BL193: 35.67 | BM193: 36.18 | BN193: 36.69 | BO193: 37.2 | BP193: 37.71 | BQ193: 38.22 | BR193: 38.73 | BS193: 39.24 | BT193: 39.75 | BU193: 40.26 | BV193: 40.77 | BW193: 41.28 | BX193: 41.79 | BY193: 42.3 | BZ193: 42.81 | CA193: 43.32 | CB193: 43.83 | CC193: 44.34 | CD193: 44.85 | CE193: 45.36 | CF193: 45.87 | CG193: 46.38 | CH193: 46.89 | CI193: 47.4 | CJ193: 47.91 | CK193: 48.42 | CL193: 48.93 | CM193: 49.44 | CN193: 49.95 | CO193: 50.46 | CP193: 50.97 | CQ193: 51.48 | CR193: 51.99 | CS193: 52.5 | CT193: 53.01 | CU193: 53.52 | CV193: 54.03 | CW193: 54.54 | CX193: 55.05 | CY193: 55.56 | CZ193: 56.07 | DA193: 56.58 | DB193: 57.09 | DC193: 57.6 | DD193: 58.11 | DE193: 58.62 | DF193: 59.13 | DG193: 59.64 | DH193: 60.15 | DI193: 60.66 | DJ193: 61.17 | DK193: 61.68 | DL193: 62.19 | DM193: 62.7 | DN193: 63.21 | DO193: 63.72 | DP193: 64.23 | DQ193: 64.74 | DR193: 65.25 | DS193: 65.76 | DT193: 66.27 | DU193: 66.78 | DV193: 67.29 | DW193: 67.8 | DX193: 68.31 | DY193: 68.82 | DZ193: 69.33 | EA193: 69.84 | EB193: 70.35 | EC193: 70.86 | ED193: 71.37 | EE193: 71.88 | EF193: 72.39 | EG193: 72.9 | EH193: 73.41 | EI193: 73.92 | EJ193: 74.43 | EK193: 74.94 | EL193: 75.45 | EM193: 75.96 | EN193: 76.47 | EO193: 76.98 | EP193: 77.49 | EQ193: 78 | ER193: 78.51 | ES193: 79.02 | ET193: 79.53 | EU193: 80.04 | EV193: 80.55 | EW193: 81.06 | EX193: 81.57 | EY193: 82.08 | EZ193: 82.59 | FA193: 83.1 | FB193: 83.61 | FC193: 84.12 | FD193: 84.63 | FE193: 85.14 | FF193: 85.65 | FG193: 86.16 | FH193: 86.67 | FI193: 87.18 | FJ193: 87.69 | FK193: 88.2 | FL193: 88.71 | FM193: 89.22 | FN193: 89.73 | FO193: 90.24 | FP193: 90.75 | FQ193: 91.26 | FR193: 91.77 | FS193: 92.28 | FT193: 92.79 | FU193: 93.3 | FV193: 93.81 | FW193: 94.32 | FX193: 94.83 | FY193: 95.34 | FZ193: 95.85 | GA193: 96.36 | GB193: 96.87 | GC193: 97.38 | GD193: 97.89 | GE193: 98.4 | GF193: 98.91 | GG193: 99.42 | GH193: 99.93 | GI193: 100.44 | GJ193: 100.95 | GK193: 101.46 | GL193: 101.97 | GM193: 102.48 | GN193: 102.99 | GO193: 103.5 | GP193: 104.01 | GQ193: 104.52 | GR193: 105.03 | GS193: 105.54 | GT193: 106.05 | GU193: 106.56 | GV193: 107.07 | GW193: 107.58
A194: 74 | B194: Haute-Savoie | D194: Oui | F194: 6.09 | G194: 6.6 | H194: 7.11 | I194: 7.62 | J194: 8.13 | K194: 8.64 | L194: 9.15 | M194: 9.66 | N194: 10.17 | O194: 10.68 | P194: 11.19 | Q194: 11.7 | R194: 12.21 | S194: 12.72 | T194: 13.23 | U194: 13.74 | V194: 14.25 | W194: 14.76 | X194: 15.27 | Y194: 15.78 | Z194: 16.29 | AA194: 16.8 | AB194: 17.31 | AC194: 17.82 | AD194: 18.33 | AE194: 18.84 | AF194: 19.35 | AG194: 19.86 | AH194: 20.37 | AI194: 20.88 | AJ194: 21.39 | AK194: 21.9 | AL194: 22.41 | AM194: 22.92 | AN194: 23.43 | AO194: 23.94 | AP194: 24.45 | AQ194: 24.96 | AR194: 25.47 | AS194: 25.98 | AT194: 26.49 | AU194: 27 | AV194: 27.51 | AW194: 28.02 | AX194: 28.53 | AY194: 29.04 | AZ194: 29.55 | BA194: 30.06 | BB194: 30.57 | BC194: 31.08 | BD194: 31.59 | BE194: 32.1 | BF194: 32.61 | BG194: 33.12 | BH194: 33.63 | BI194: 34.14 | BJ194: 34.65 | BK194: 35.16 | BL194: 35.67 | BM194: 36.18 | BN194: 36.69 | BO194: 37.2 | BP194: 37.71 | BQ194: 38.22 | BR194: 38.73 | BS194: 39.24 | BT194: 39.75 | BU194: 40.26 | BV194: 40.77 | BW194: 41.28 | BX194: 41.79 | BY194: 42.3 | BZ194: 42.81 | CA194: 43.32 | CB194: 43.83 | CC194: 44.34 | CD194: 44.85 | CE194: 45.36 | CF194: 45.87 | CG194: 46.38 | CH194: 46.89 | CI194: 47.4 | CJ194: 47.91 | CK194: 48.42 | CL194: 48.93 | CM194: 49.44 | CN194: 49.95 | CO194: 50.46 | CP194: 50.97 | CQ194: 51.48 | CR194: 51.99 | CS194: 52.5 | CT194: 53.01 | CU194: 53.52 | CV194: 54.03 | CW194: 54.54 | CX194: 55.05 | CY194: 55.56 | CZ194: 56.07 | DA194: 56.58 | DB194: 57.09 | DC194: 57.6 | DD194: 58.11 | DE194: 58.62 | DF194: 59.13 | DG194: 59.64 | DH194: 60.15 | DI194: 60.66 | DJ194: 61.17 | DK194: 61.68 | DL194: 62.19 | DM194: 62.7 | DN194: 63.21 | DO194: 63.72 | DP194: 64.23 | DQ194: 64.74 | DR194: 65.25 | DS194: 65.76 | DT194: 66.27 | DU194: 66.78 | DV194: 67.29 | DW194: 67.8 | DX194: 68.31 | DY194: 68.82 | DZ194: 69.33 | EA194: 69.84 | EB194: 70.35 | EC194: 70.86 | ED194: 71.37 | EE194: 71.88 | EF194: 72.39 | EG194: 72.9 | EH194: 73.41 | EI194: 73.92 | EJ194: 74.43 | EK194: 74.94 | EL194: 75.45 | EM194: 75.96 | EN194: 76.47 | EO194: 76.98 | EP194: 77.49 | EQ194: 78 | ER194: 78.51 | ES194: 79.02 | ET194: 79.53 | EU194: 80.04 | EV194: 80.55 | EW194: 81.06 | EX194: 81.57 | EY194: 82.08 | EZ194: 82.59 | FA194: 83.1 | FB194: 83.61 | FC194: 84.12 | FD194: 84.63 | FE194: 85.14 | FF194: 85.65 | FG194: 86.16 | FH194: 86.67 | FI194: 87.18 | FJ194: 87.69 | FK194: 88.2 | FL194: 88.71 | FM194: 89.22 | FN194: 89.73 | FO194: 90.24 | FP194: 90.75 | FQ194: 91.26 | FR194: 91.77 | FS194: 92.28 | FT194: 92.79 | FU194: 93.3 | FV194: 93.81 | FW194: 94.32 | FX194: 94.83 | FY194: 95.34 | FZ194: 95.85 | GA194: 96.36 | GB194: 96.87 | GC194: 97.38 | GD194: 97.89 | GE194: 98.4 | GF194: 98.91 | GG194: 99.42 | GH194: 99.93 | GI194: 100.44 | GJ194: 100.95 | GK194: 101.46 | GL194: 101.97 | GM194: 102.48 | GN194: 102.99 | GO194: 103.5 | GP194: 104.01 | GQ194: 104.52 | GR194: 105.03 | GS194: 105.54 | GT194: 106.05 | GU194: 106.56 | GV194: 107.07 | GW194: 107.58
A195: 75 | B195: Paris | D195: Oui | F195: 6.09 | G195: 6.6 | H195: 7.11 | I195: 7.62 | J195: 8.13 | K195: 8.64 | L195: 9.15 | M195: 9.66 | N195: 10.17 | O195: 10.68 | P195: 11.19 | Q195: 11.7 | R195: 12.21 | S195: 12.72 | T195: 13.23 | U195: 13.74 | V195: 14.25 | W195: 14.76 | X195: 15.27 | Y195: 15.78 | Z195: 16.29 | AA195: 16.8 | AB195: 17.31 | AC195: 17.82 | AD195: 18.33 | AE195: 18.84 | AF195: 19.35 | AG195: 19.86 | AH195: 20.37 | AI195: 20.88 | AJ195: 21.39 | AK195: 21.9 | AL195: 22.41 | AM195: 22.92 | AN195: 23.43 | AO195: 23.94 | AP195: 24.45 | AQ195: 24.96 | AR195: 25.47 | AS195: 25.98 | AT195: 26.49 | AU195: 27 | AV195: 27.51 | AW195: 28.02 | AX195: 28.53 | AY195: 29.04 | AZ195: 29.55 | BA195: 30.06 | BB195: 30.57 | BC195: 31.08 | BD195: 31.59 | BE195: 32.1 | BF195: 32.61 | BG195: 33.12 | BH195: 33.63 | BI195: 34.14 | BJ195: 34.65 | BK195: 35.16 | BL195: 35.67 | BM195: 36.18 | BN195: 36.69 | BO195: 37.2 | BP195: 37.71 | BQ195: 38.22 | BR195: 38.73 | BS195: 39.24 | BT195: 39.75 | BU195: 40.26 | BV195: 40.77 | BW195: 41.28 | BX195: 41.79 | BY195: 42.3 | BZ195: 42.81 | CA195: 43.32 | CB195: 43.83 | CC195: 44.34 | CD195: 44.85 | CE195: 45.36 | CF195: 45.87 | CG195: 46.38 | CH195: 46.89 | CI195: 47.4 | CJ195: 47.91 | CK195: 48.42 | CL195: 48.93 | CM195: 49.44 | CN195: 49.95 | CO195: 50.46 | CP195: 50.97 | CQ195: 51.48 | CR195: 51.99 | CS195: 52.5 | CT195: 53.01 | CU195: 53.52 | CV195: 54.03 | CW195: 54.54 | CX195: 55.05 | CY195: 55.56 | CZ195: 56.07 | DA195: 56.58 | DB195: 57.09 | DC195: 57.6 | DD195: 58.11 | DE195: 58.62 | DF195: 59.13 | DG195: 59.64 | DH195: 60.15 | DI195: 60.66 | DJ195: 61.17 | DK195: 61.68 | DL195: 62.19 | DM195: 62.7 | DN195: 63.21 | DO195: 63.72 | DP195: 64.23 | DQ195: 64.74 | DR195: 65.25 | DS195: 65.76 | DT195: 66.27 | DU195: 66.78 | DV195: 67.29 | DW195: 67.8 | DX195: 68.31 | DY195: 68.82 | DZ195: 69.33 | EA195: 69.84 | EB195: 70.35 | EC195: 70.86 | ED195: 71.37 | EE195: 71.88 | EF195: 72.39 | EG195: 72.9 | EH195: 73.41 | EI195: 73.92 | EJ195: 74.43 | EK195: 74.94 | EL195: 75.45 | EM195: 75.96 | EN195: 76.47 | EO195: 76.98 | EP195: 77.49 | EQ195: 78 | ER195: 78.51 | ES195: 79.02 | ET195: 79.53 | EU195: 80.04 | EV195: 80.55 | EW195: 81.06 | EX195: 81.57 | EY195: 82.08 | EZ195: 82.59 | FA195: 83.1 | FB195: 83.61 | FC195: 84.12 | FD195: 84.63 | FE195: 85.14 | FF195: 85.65 | FG195: 86.16 | FH195: 86.67 | FI195: 87.18 | FJ195: 87.69 | FK195: 88.2 | FL195: 88.71 | FM195: 89.22 | FN195: 89.73 | FO195: 90.24 | FP195: 90.75 | FQ195: 91.26 | FR195: 91.77 | FS195: 92.28 | FT195: 92.79 | FU195: 93.3 | FV195: 93.81 | FW195: 94.32 | FX195: 94.83 | FY195: 95.34 | FZ195: 95.85 | GA195: 96.36 | GB195: 96.87 | GC195: 97.38 | GD195: 97.89 | GE195: 98.4 | GF195: 98.91 | GG195: 99.42 | GH195: 99.93 | GI195: 100.44 | GJ195: 100.95 | GK195: 101.46 | GL195: 101.97 | GM195: 102.48 | GN195: 102.99 | GO195: 103.5 | GP195: 104.01 | GQ195: 104.52 | GR195: 105.03 | GS195: 105.54 | GT195: 106.05 | GU195: 106.56 | GV195: 107.07 | GW195: 107.58
A196: 76 | B196: Seine-Maritime | D196: Oui | F196: 6.09 | G196: 6.6 | H196: 7.11 | I196: 7.62 | J196: 8.13 | K196: 8.64 | L196: 9.15 | M196: 9.66 | N196: 10.17 | O196: 10.68 | P196: 11.19 | Q196: 11.7 | R196: 12.21 | S196: 12.72 | T196: 13.23 | U196: 13.74 | V196: 14.25 | W196: 14.76 | X196: 15.27 | Y196: 15.78 | Z196: 16.29 | AA196: 16.8 | AB196: 17.31 | AC196: 17.82 | AD196: 18.33 | AE196: 18.84 | AF196: 19.35 | AG196: 19.86 | AH196: 20.37 | AI196: 20.88 | AJ196: 21.39 | AK196: 21.9 | AL196: 22.41 | AM196: 22.92 | AN196: 23.43 | AO196: 23.94 | AP196: 24.45 | AQ196: 24.96 | AR196: 25.47 | AS196: 25.98 | AT196: 26.49 | AU196: 27 | AV196: 27.51 | AW196: 28.02 | AX196: 28.53 | AY196: 29.04 | AZ196: 29.55 | BA196: 30.06 | BB196: 30.57 | BC196: 31.08 | BD196: 31.59 | BE196: 32.1 | BF196: 32.61 | BG196: 33.12 | BH196: 33.63 | BI196: 34.14 | BJ196: 34.65 | BK196: 35.16 | BL196: 35.67 | BM196: 36.18 | BN196: 36.69 | BO196: 37.2 | BP196: 37.71 | BQ196: 38.22 | BR196: 38.73 | BS196: 39.24 | BT196: 39.75 | BU196: 40.26 | BV196: 40.77 | BW196: 41.28 | BX196: 41.79 | BY196: 42.3 | BZ196: 42.81 | CA196: 43.32 | CB196: 43.83 | CC196: 44.34 | CD196: 44.85 | CE196: 45.36 | CF196: 45.87 | CG196: 46.38 | CH196: 46.89 | CI196: 47.4 | CJ196: 47.91 | CK196: 48.42 | CL196: 48.93 | CM196: 49.44 | CN196: 49.95 | CO196: 50.46 | CP196: 50.97 | CQ196: 51.48 | CR196: 51.99 | CS196: 52.5 | CT196: 53.01 | CU196: 53.52 | CV196: 54.03 | CW196: 54.54 | CX196: 55.05 | CY196: 55.56 | CZ196: 56.07 | DA196: 56.58 | DB196: 57.09 | DC196: 57.6 | DD196: 58.11 | DE196: 58.62 | DF196: 59.13 | DG196: 59.64 | DH196: 60.15 | DI196: 60.66 | DJ196: 61.17 | DK196: 61.68 | DL196: 62.19 | DM196: 62.7 | DN196: 63.21 | DO196: 63.72 | DP196: 64.23 | DQ196: 64.74 | DR196: 65.25 | DS196: 65.76 | DT196: 66.27 | DU196: 66.78 | DV196: 67.29 | DW196: 67.8 | DX196: 68.31 | DY196: 68.82 | DZ196: 69.33 | EA196: 69.84 | EB196: 70.35 | EC196: 70.86 | ED196: 71.37 | EE196: 71.88 | EF196: 72.39 | EG196: 72.9 | EH196: 73.41 | EI196: 73.92 | EJ196: 74.43 | EK196: 74.94 | EL196: 75.45 | EM196: 75.96 | EN196: 76.47 | EO196: 76.98 | EP196: 77.49 | EQ196: 78 | ER196: 78.51 | ES196: 79.02 | ET196: 79.53 | EU196: 80.04 | EV196: 80.55 | EW196: 81.06 | EX196: 81.57 | EY196: 82.08 | EZ196: 82.59 | FA196: 83.1 | FB196: 83.61 | FC196: 84.12 | FD196: 84.63 | FE196: 85.14 | FF196: 85.65 | FG196: 86.16 | FH196: 86.67 | FI196: 87.18 | FJ196: 87.69 | FK196: 88.2 | FL196: 88.71 | FM196: 89.22 | FN196: 89.73 | FO196: 90.24 | FP196: 90.75 | FQ196: 91.26 | FR196: 91.77 | FS196: 92.28 | FT196: 92.79 | FU196: 93.3 | FV196: 93.81 | FW196: 94.32 | FX196: 94.83 | FY196: 95.34 | FZ196: 95.85 | GA196: 96.36 | GB196: 96.87 | GC196: 97.38 | GD196: 97.89 | GE196: 98.4 | GF196: 98.91 | GG196: 99.42 | GH196: 99.93 | GI196: 100.44 | GJ196: 100.95 | GK196: 101.46 | GL196: 101.97 | GM196: 102.48 | GN196: 102.99 | GO196: 103.5 | GP196: 104.01 | GQ196: 104.52 | GR196: 105.03 | GS196: 105.54 | GT196: 106.05 | GU196: 106.56 | GV196: 107.07 | GW196: 107.58
A197: 77 | B197: Seine-et-Marne | D197: Oui | F197: 6.09 | G197: 6.6 | H197: 7.11 | I197: 7.62 | J197: 8.13 | K197: 8.64 | L197: 9.15 | M197: 9.66 | N197: 10.17 | O197: 10.68 | P197: 11.19 | Q197: 11.7 | R197: 12.21 | S197: 12.72 | T197: 13.23 | U197: 13.74 | V197: 14.25 | W197: 14.76 | X197: 15.27 | Y197: 15.78 | Z197: 16.29 | AA197: 16.8 | AB197: 17.31 | AC197: 17.82 | AD197: 18.33 | AE197: 18.84 | AF197: 19.35 | AG197: 19.86 | AH197: 20.37 | AI197: 20.88 | AJ197: 21.39 | AK197: 21.9 | AL197: 22.41 | AM197: 22.92 | AN197: 23.43 | AO197: 23.94 | AP197: 24.45 | AQ197: 24.96 | AR197: 25.47 | AS197: 25.98 | AT197: 26.49 | AU197: 27 | AV197: 27.51 | AW197: 28.02 | AX197: 28.53 | AY197: 29.04 | AZ197: 29.55 | BA197: 30.06 | BB197: 30.57 | BC197: 31.08 | BD197: 31.59 | BE197: 32.1 | BF197: 32.61 | BG197: 33.12 | BH197: 33.63 | BI197: 34.14 | BJ197: 34.65 | BK197: 35.16 | BL197: 35.67 | BM197: 36.18 | BN197: 36.69 | BO197: 37.2 | BP197: 37.71 | BQ197: 38.22 | BR197: 38.73 | BS197: 39.24 | BT197: 39.75 | BU197: 40.26 | BV197: 40.77 | BW197: 41.28 | BX197: 41.79 | BY197: 42.3 | BZ197: 42.81 | CA197: 43.32 | CB197: 43.83 | CC197: 44.34 | CD197: 44.85 | CE197: 45.36 | CF197: 45.87 | CG197: 46.38 | CH197: 46.89 | CI197: 47.4 | CJ197: 47.91 | CK197: 48.42 | CL197: 48.93 | CM197: 49.44 | CN197: 49.95 | CO197: 50.46 | CP197: 50.97 | CQ197: 51.48 | CR197: 51.99 | CS197: 52.5 | CT197: 53.01 | CU197: 53.52 | CV197: 54.03 | CW197: 54.54 | CX197: 55.05 | CY197: 55.56 | CZ197: 56.07 | DA197: 56.58 | DB197: 57.09 | DC197: 57.6 | DD197: 58.11 | DE197: 58.62 | DF197: 59.13 | DG197: 59.64 | DH197: 60.15 | DI197: 60.66 | DJ197: 61.17 | DK197: 61.68 | DL197: 62.19 | DM197: 62.7 | DN197: 63.21 | DO197: 63.72 | DP197: 64.23 | DQ197: 64.74 | DR197: 65.25 | DS197: 65.76 | DT197: 66.27 | DU197: 66.78 | DV197: 67.29 | DW197: 67.8 | DX197: 68.31 | DY197: 68.82 | DZ197: 69.33 | EA197: 69.84 | EB197: 70.35 | EC197: 70.86 | ED197: 71.37 | EE197: 71.88 | EF197: 72.39 | EG197: 72.9 | EH197: 73.41 | EI197: 73.92 | EJ197: 74.43 | EK197: 74.94 | EL197: 75.45 | EM197: 75.96 | EN197: 76.47 | EO197: 76.98 | EP197: 77.49 | EQ197: 78 | ER197: 78.51 | ES197: 79.02 | ET197: 79.53 | EU197: 80.04 | EV197: 80.55 | EW197: 81.06 | EX197: 81.57 | EY197: 82.08 | EZ197: 82.59 | FA197: 83.1 | FB197: 83.61 | FC197: 84.12 | FD197: 84.63 | FE197: 85.14 | FF197: 85.65 | FG197: 86.16 | FH197: 86.67 | FI197: 87.18 | FJ197: 87.69 | FK197: 88.2 | FL197: 88.71 | FM197: 89.22 | FN197: 89.73 | FO197: 90.24 | FP197: 90.75 | FQ197: 91.26 | FR197: 91.77 | FS197: 92.28 | FT197: 92.79 | FU197: 93.3 | FV197: 93.81 | FW197: 94.32 | FX197: 94.83 | FY197: 95.34 | FZ197: 95.85 | GA197: 96.36 | GB197: 96.87 | GC197: 97.38 | GD197: 97.89 | GE197: 98.4 | GF197: 98.91 | GG197: 99.42 | GH197: 99.93 | GI197: 100.44 | GJ197: 100.95 | GK197: 101.46 | GL197: 101.97 | GM197: 102.48 | GN197: 102.99 | GO197: 103.5 | GP197: 104.01 | GQ197: 104.52 | GR197: 105.03 | GS197: 105.54 | GT197: 106.05 | GU197: 106.56 | GV197: 107.07 | GW197: 107.58
A198: 78 | B198: Yvelines | D198: Oui | F198: 6.09 | G198: 6.6 | H198: 7.11 | I198: 7.62 | J198: 8.13 | K198: 8.64 | L198: 9.15 | M198: 9.66 | N198: 10.17 | O198: 10.68 | P198: 11.19 | Q198: 11.7 | R198: 12.21 | S198: 12.72 | T198: 13.23 | U198: 13.74 | V198: 14.25 | W198: 14.76 | X198: 15.27 | Y198: 15.78 | Z198: 16.29 | AA198: 16.8 | AB198: 17.31 | AC198: 17.82 | AD198: 18.33 | AE198: 18.84 | AF198: 19.35 | AG198: 19.86 | AH198: 20.37 | AI198: 20.88 | AJ198: 21.39 | AK198: 21.9 | AL198: 22.41 | AM198: 22.92 | AN198: 23.43 | AO198: 23.94 | AP198: 24.45 | AQ198: 24.96 | AR198: 25.47 | AS198: 25.98 | AT198: 26.49 | AU198: 27 | AV198: 27.51 | AW198: 28.02 | AX198: 28.53 | AY198: 29.04 | AZ198: 29.55 | BA198: 30.06 | BB198: 30.57 | BC198: 31.08 | BD198: 31.59 | BE198: 32.1 | BF198: 32.61 | BG198: 33.12 | BH198: 33.63 | BI198: 34.14 | BJ198: 34.65 | BK198: 35.16 | BL198: 35.67 | BM198: 36.18 | BN198: 36.69 | BO198: 37.2 | BP198: 37.71 | BQ198: 38.22 | BR198: 38.73 | BS198: 39.24 | BT198: 39.75 | BU198: 40.26 | BV198: 40.77 | BW198: 41.28 | BX198: 41.79 | BY198: 42.3 | BZ198: 42.81 | CA198: 43.32 | CB198: 43.83 | CC198: 44.34 | CD198: 44.85 | CE198: 45.36 | CF198: 45.87 | CG198: 46.38 | CH198: 46.89 | CI198: 47.4 | CJ198: 47.91 | CK198: 48.42 | CL198: 48.93 | CM198: 49.44 | CN198: 49.95 | CO198: 50.46 | CP198: 50.97 | CQ198: 51.48 | CR198: 51.99 | CS198: 52.5 | CT198: 53.01 | CU198: 53.52 | CV198: 54.03 | CW198: 54.54 | CX198: 55.05 | CY198: 55.56 | CZ198: 56.07 | DA198: 56.58 | DB198: 57.09 | DC198: 57.6 | DD198: 58.11 | DE198: 58.62 | DF198: 59.13 | DG198: 59.64 | DH198: 60.15 | DI198: 60.66 | DJ198: 61.17 | DK198: 61.68 | DL198: 62.19 | DM198: 62.7 | DN198: 63.21 | DO198: 63.72 | DP198: 64.23 | DQ198: 64.74 | DR198: 65.25 | DS198: 65.76 | DT198: 66.27 | DU198: 66.78 | DV198: 67.29 | DW198: 67.8 | DX198: 68.31 | DY198: 68.82 | DZ198: 69.33 | EA198: 69.84 | EB198: 70.35 | EC198: 70.86 | ED198: 71.37 | EE198: 71.88 | EF198: 72.39 | EG198: 72.9 | EH198: 73.41 | EI198: 73.92 | EJ198: 74.43 | EK198: 74.94 | EL198: 75.45 | EM198: 75.96 | EN198: 76.47 | EO198: 76.98 | EP198: 77.49 | EQ198: 78 | ER198: 78.51 | ES198: 79.02 | ET198: 79.53 | EU198: 80.04 | EV198: 80.55 | EW198: 81.06 | EX198: 81.57 | EY198: 82.08 | EZ198: 82.59 | FA198: 83.1 | FB198: 83.61 | FC198: 84.12 | FD198: 84.63 | FE198: 85.14 | FF198: 85.65 | FG198: 86.16 | FH198: 86.67 | FI198: 87.18 | FJ198: 87.69 | FK198: 88.2 | FL198: 88.71 | FM198: 89.22 | FN198: 89.73 | FO198: 90.24 | FP198: 90.75 | FQ198: 91.26 | FR198: 91.77 | FS198: 92.28 | FT198: 92.79 | FU198: 93.3 | FV198: 93.81 | FW198: 94.32 | FX198: 94.83 | FY198: 95.34 | FZ198: 95.85 | GA198: 96.36 | GB198: 96.87 | GC198: 97.38 | GD198: 97.89 | GE198: 98.4 | GF198: 98.91 | GG198: 99.42 | GH198: 99.93 | GI198: 100.44 | GJ198: 100.95 | GK198: 101.46 | GL198: 101.97 | GM198: 102.48 | GN198: 102.99 | GO198: 103.5 | GP198: 104.01 | GQ198: 104.52 | GR198: 105.03 | GS198: 105.54 | GT198: 106.05 | GU198: 106.56 | GV198: 107.07 | GW198: 107.58
A199: 79 | B199: Deux-Sèvres | D199: Oui | F199: 6.09 | G199: 6.6 | H199: 7.11 | I199: 7.62 | J199: 8.13 | K199: 8.64 | L199: 9.15 | M199: 9.66 | N199: 10.17 | O199: 10.68 | P199: 11.19 | Q199: 11.7 | R199: 12.21 | S199: 12.72 | T199: 13.23 | U199: 13.74 | V199: 14.25 | W199: 14.76 | X199: 15.27 | Y199: 15.78 | Z199: 16.29 | AA199: 16.8 | AB199: 17.31 | AC199: 17.82 | AD199: 18.33 | AE199: 18.84 | AF199: 19.35 | AG199: 19.86 | AH199: 20.37 | AI199: 20.88 | AJ199: 21.39 | AK199: 21.9 | AL199: 22.41 | AM199: 22.92 | AN199: 23.43 | AO199: 23.94 | AP199: 24.45 | AQ199: 24.96 | AR199: 25.47 | AS199: 25.98 | AT199: 26.49 | AU199: 27 | AV199: 27.51 | AW199: 28.02 | AX199: 28.53 | AY199: 29.04 | AZ199: 29.55 | BA199: 30.06 | BB199: 30.57 | BC199: 31.08 | BD199: 31.59 | BE199: 32.1 | BF199: 32.61 | BG199: 33.12 | BH199: 33.63 | BI199: 34.14 | BJ199: 34.65 | BK199: 35.16 | BL199: 35.67 | BM199: 36.18 | BN199: 36.69 | BO199: 37.2 | BP199: 37.71 | BQ199: 38.22 | BR199: 38.73 | BS199: 39.24 | BT199: 39.75 | BU199: 40.26 | BV199: 40.77 | BW199: 41.28 | BX199: 41.79 | BY199: 42.3 | BZ199: 42.81 | CA199: 43.32 | CB199: 43.83 | CC199: 44.34 | CD199: 44.85 | CE199: 45.36 | CF199: 45.87 | CG199: 46.38 | CH199: 46.89 | CI199: 47.4 | CJ199: 47.91 | CK199: 48.42 | CL199: 48.93 | CM199: 49.44 | CN199: 49.95 | CO199: 50.46 | CP199: 50.97 | CQ199: 51.48 | CR199: 51.99 | CS199: 52.5 | CT199: 53.01 | CU199: 53.52 | CV199: 54.03 | CW199: 54.54 | CX199: 55.05 | CY199: 55.56 | CZ199: 56.07 | DA199: 56.58 | DB199: 57.09 | DC199: 57.6 | DD199: 58.11 | DE199: 58.62 | DF199: 59.13 | DG199: 59.64 | DH199: 60.15 | DI199: 60.66 | DJ199: 61.17 | DK199: 61.68 | DL199: 62.19 | DM199: 62.7 | DN199: 63.21 | DO199: 63.72 | DP199: 64.23 | DQ199: 64.74 | DR199: 65.25 | DS199: 65.76 | DT199: 66.27 | DU199: 66.78 | DV199: 67.29 | DW199: 67.8 | DX199: 68.31 | DY199: 68.82 | DZ199: 69.33 | EA199: 69.84 | EB199: 70.35 | EC199: 70.86 | ED199: 71.37 | EE199: 71.88 | EF199: 72.39 | EG199: 72.9 | EH199: 73.41 | EI199: 73.92 | EJ199: 74.43 | EK199: 74.94 | EL199: 75.45 | EM199: 75.96 | EN199: 76.47 | EO199: 76.98 | EP199: 77.49 | EQ199: 78 | ER199: 78.51 | ES199: 79.02 | ET199: 79.53 | EU199: 80.04 | EV199: 80.55 | EW199: 81.06 | EX199: 81.57 | EY199: 82.08 | EZ199: 82.59 | FA199: 83.1 | FB199: 83.61 | FC199: 84.12 | FD199: 84.63 | FE199: 85.14 | FF199: 85.65 | FG199: 86.16 | FH199: 86.67 | FI199: 87.18 | FJ199: 87.69 | FK199: 88.2 | FL199: 88.71 | FM199: 89.22 | FN199: 89.73 | FO199: 90.24 | FP199: 90.75 | FQ199: 91.26 | FR199: 91.77 | FS199: 92.28 | FT199: 92.79 | FU199: 93.3 | FV199: 93.81 | FW199: 94.32 | FX199: 94.83 | FY199: 95.34 | FZ199: 95.85 | GA199: 96.36 | GB199: 96.87 | GC199: 97.38 | GD199: 97.89 | GE199: 98.4 | GF199: 98.91 | GG199: 99.42 | GH199: 99.93 | GI199: 100.44 | GJ199: 100.95 | GK199: 101.46 | GL199: 101.97 | GM199: 102.48 | GN199: 102.99 | GO199: 103.5 | GP199: 104.01 | GQ199: 104.52 | GR199: 105.03 | GS199: 105.54 | GT199: 106.05 | GU199: 106.56 | GV199: 107.07 | GW199: 107.58
A200: 80 | B200: Somme | D200: Oui | F200: 6.09 | G200: 6.6 | H200: 7.11 | I200: 7.62 | J200: 8.13 | K200: 8.64 | L200: 9.15 | M200: 9.66 | N200: 10.17 | O200: 10.68 | P200: 11.19 | Q200: 11.7 | R200: 12.21 | S200: 12.72 | T200: 13.23 | U200: 13.74 | V200: 14.25 | W200: 14.76 | X200: 15.27 | Y200: 15.78 | Z200: 16.29 | AA200: 16.8 | AB200: 17.31 | AC200: 17.82 | AD200: 18.33 | AE200: 18.84 | AF200: 19.35 | AG200: 19.86 | AH200: 20.37 | AI200: 20.88 | AJ200: 21.39 | AK200: 21.9 | AL200: 22.41 | AM200: 22.92 | AN200: 23.43 | AO200: 23.94 | AP200: 24.45 | AQ200: 24.96 | AR200: 25.47 | AS200: 25.98 | AT200: 26.49 | AU200: 27 | AV200: 27.51 | AW200: 28.02 | AX200: 28.53 | AY200: 29.04 | AZ200: 29.55 | BA200: 30.06 | BB200: 30.57 | BC200: 31.08 | BD200: 31.59 | BE200: 32.1 | BF200: 32.61 | BG200: 33.12 | BH200: 33.63 | BI200: 34.14 | BJ200: 34.65 | BK200: 35.16 | BL200: 35.67 | BM200: 36.18 | BN200: 36.69 | BO200: 37.2 | BP200: 37.71 | BQ200: 38.22 | BR200: 38.73 | BS200: 39.24 | BT200: 39.75 | BU200: 40.26 | BV200: 40.77 | BW200: 41.28 | BX200: 41.79 | BY200: 42.3 | BZ200: 42.81 | CA200: 43.32 | CB200: 43.83 | CC200: 44.34 | CD200: 44.85 | CE200: 45.36 | CF200: 45.87 | CG200: 46.38 | CH200: 46.89 | CI200: 47.4 | CJ200: 47.91 | CK200: 48.42 | CL200: 48.93 | CM200: 49.44 | CN200: 49.95 | CO200: 50.46 | CP200: 50.97 | CQ200: 51.48 | CR200: 51.99 | CS200: 52.5 | CT200: 53.01 | CU200: 53.52 | CV200: 54.03 | CW200: 54.54 | CX200: 55.05 | CY200: 55.56 | CZ200: 56.07 | DA200: 56.58 | DB200: 57.09 | DC200: 57.6 | DD200: 58.11 | DE200: 58.62 | DF200: 59.13 | DG200: 59.64 | DH200: 60.15 | DI200: 60.66 | DJ200: 61.17 | DK200: 61.68 | DL200: 62.19 | DM200: 62.7 | DN200: 63.21 | DO200: 63.72 | DP200: 64.23 | DQ200: 64.74 | DR200: 65.25 | DS200: 65.76 | DT200: 66.27 | DU200: 66.78 | DV200: 67.29 | DW200: 67.8 | DX200: 68.31 | DY200: 68.82 | DZ200: 69.33 | EA200: 69.84 | EB200: 70.35 | EC200: 70.86 | ED200: 71.37 | EE200: 71.88 | EF200: 72.39 | EG200: 72.9 | EH200: 73.41 | EI200: 73.92 | EJ200: 74.43 | EK200: 74.94 | EL200: 75.45 | EM200: 75.96 | EN200: 76.47 | EO200: 76.98 | EP200: 77.49 | EQ200: 78 | ER200: 78.51 | ES200: 79.02 | ET200: 79.53 | EU200: 80.04 | EV200: 80.55 | EW200: 81.06 | EX200: 81.57 | EY200: 82.08 | EZ200: 82.59 | FA200: 83.1 | FB200: 83.61 | FC200: 84.12 | FD200: 84.63 | FE200: 85.14 | FF200: 85.65 | FG200: 86.16 | FH200: 86.67 | FI200: 87.18 | FJ200: 87.69 | FK200: 88.2 | FL200: 88.71 | FM200: 89.22 | FN200: 89.73 | FO200: 90.24 | FP200: 90.75 | FQ200: 91.26 | FR200: 91.77 | FS200: 92.28 | FT200: 92.79 | FU200: 93.3 | FV200: 93.81 | FW200: 94.32 | FX200: 94.83 | FY200: 95.34 | FZ200: 95.85 | GA200: 96.36 | GB200: 96.87 | GC200: 97.38 | GD200: 97.89 | GE200: 98.4 | GF200: 98.91 | GG200: 99.42 | GH200: 99.93 | GI200: 100.44 | GJ200: 100.95 | GK200: 101.46 | GL200: 101.97 | GM200: 102.48 | GN200: 102.99 | GO200: 103.5 | GP200: 104.01 | GQ200: 104.52 | GR200: 105.03 | GS200: 105.54 | GT200: 106.05 | GU200: 106.56 | GV200: 107.07 | GW200: 107.58
A201: 81 | B201: Tarn | D201: Oui | F201: 6.09 | G201: 6.6 | H201: 7.11 | I201: 7.62 | J201: 8.13 | K201: 8.64 | L201: 9.15 | M201: 9.66 | N201: 10.17 | O201: 10.68 | P201: 11.19 | Q201: 11.7 | R201: 12.21 | S201: 12.72 | T201: 13.23 | U201: 13.74 | V201: 14.25 | W201: 14.76 | X201: 15.27 | Y201: 15.78 | Z201: 16.29 | AA201: 16.8 | AB201: 17.31 | AC201: 17.82 | AD201: 18.33 | AE201: 18.84 | AF201: 19.35 | AG201: 19.86 | AH201: 20.37 | AI201: 20.88 | AJ201: 21.39 | AK201: 21.9 | AL201: 22.41 | AM201: 22.92 | AN201: 23.43 | AO201: 23.94 | AP201: 24.45 | AQ201: 24.96 | AR201: 25.47 | AS201: 25.98 | AT201: 26.49 | AU201: 27 | AV201: 27.51 | AW201: 28.02 | AX201: 28.53 | AY201: 29.04 | AZ201: 29.55 | BA201: 30.06 | BB201: 30.57 | BC201: 31.08 | BD201: 31.59 | BE201: 32.1 | BF201: 32.61 | BG201: 33.12 | BH201: 33.63 | BI201: 34.14 | BJ201: 34.65 | BK201: 35.16 | BL201: 35.67 | BM201: 36.18 | BN201: 36.69 | BO201: 37.2 | BP201: 37.71 | BQ201: 38.22 | BR201: 38.73 | BS201: 39.24 | BT201: 39.75 | BU201: 40.26 | BV201: 40.77 | BW201: 41.28 | BX201: 41.79 | BY201: 42.3 | BZ201: 42.81 | CA201: 43.32 | CB201: 43.83 | CC201: 44.34 | CD201: 44.85 | CE201: 45.36 | CF201: 45.87 | CG201: 46.38 | CH201: 46.89 | CI201: 47.4 | CJ201: 47.91 | CK201: 48.42 | CL201: 48.93 | CM201: 49.44 | CN201: 49.95 | CO201: 50.46 | CP201: 50.97 | CQ201: 51.48 | CR201: 51.99 | CS201: 52.5 | CT201: 53.01 | CU201: 53.52 | CV201: 54.03 | CW201: 54.54 | CX201: 55.05 | CY201: 55.56 | CZ201: 56.07 | DA201: 56.58 | DB201: 57.09 | DC201: 57.6 | DD201: 58.11 | DE201: 58.62 | DF201: 59.13 | DG201: 59.64 | DH201: 60.15 | DI201: 60.66 | DJ201: 61.17 | DK201: 61.68 | DL201: 62.19 | DM201: 62.7 | DN201: 63.21 | DO201: 63.72 | DP201: 64.23 | DQ201: 64.74 | DR201: 65.25 | DS201: 65.76 | DT201: 66.27 | DU201: 66.78 | DV201: 67.29 | DW201: 67.8 | DX201: 68.31 | DY201: 68.82 | DZ201: 69.33 | EA201: 69.84 | EB201: 70.35 | EC201: 70.86 | ED201: 71.37 | EE201: 71.88 | EF201: 72.39 | EG201: 72.9 | EH201: 73.41 | EI201: 73.92 | EJ201: 74.43 | EK201: 74.94 | EL201: 75.45 | EM201: 75.96 | EN201: 76.47 | EO201: 76.98 | EP201: 77.49 | EQ201: 78 | ER201: 78.51 | ES201: 79.02 | ET201: 79.53 | EU201: 80.04 | EV201: 80.55 | EW201: 81.06 | EX201: 81.57 | EY201: 82.08 | EZ201: 82.59 | FA201: 83.1 | FB201: 83.61 | FC201: 84.12 | FD201: 84.63 | FE201: 85.14 | FF201: 85.65 | FG201: 86.16 | FH201: 86.67 | FI201: 87.18 | FJ201: 87.69 | FK201: 88.2 | FL201: 88.71 | FM201: 89.22 | FN201: 89.73 | FO201: 90.24 | FP201: 90.75 | FQ201: 91.26 | FR201: 91.77 | FS201: 92.28 | FT201: 92.79 | FU201: 93.3 | FV201: 93.81 | FW201: 94.32 | FX201: 94.83 | FY201: 95.34 | FZ201: 95.85 | GA201: 96.36 | GB201: 96.87 | GC201: 97.38 | GD201: 97.89 | GE201: 98.4 | GF201: 98.91 | GG201: 99.42 | GH201: 99.93 | GI201: 100.44 | GJ201: 100.95 | GK201: 101.46 | GL201: 101.97 | GM201: 102.48 | GN201: 102.99 | GO201: 103.5 | GP201: 104.01 | GQ201: 104.52 | GR201: 105.03 | GS201: 105.54 | GT201: 106.05 | GU201: 106.56 | GV201: 107.07 | GW201: 107.58
A202: 82 | B202: Tarn-et-Garonne | D202: Oui | F202: 6.09 | G202: 6.6 | H202: 7.11 | I202: 7.62 | J202: 8.13 | K202: 8.64 | L202: 9.15 | M202: 9.66 | N202: 10.17 | O202: 10.68 | P202: 11.19 | Q202: 11.7 | R202: 12.21 | S202: 12.72 | T202: 13.23 | U202: 13.74 | V202: 14.25 | W202: 14.76 | X202: 15.27 | Y202: 15.78 | Z202: 16.29 | AA202: 16.8 | AB202: 17.31 | AC202: 17.82 | AD202: 18.33 | AE202: 18.84 | AF202: 19.35 | AG202: 19.86 | AH202: 20.37 | AI202: 20.88 | AJ202: 21.39 | AK202: 21.9 | AL202: 22.41 | AM202: 22.92 | AN202: 23.43 | AO202: 23.94 | AP202: 24.45 | AQ202: 24.96 | AR202: 25.47 | AS202: 25.98 | AT202: 26.49 | AU202: 27 | AV202: 27.51 | AW202: 28.02 | AX202: 28.53 | AY202: 29.04 | AZ202: 29.55 | BA202: 30.06 | BB202: 30.57 | BC202: 31.08 | BD202: 31.59 | BE202: 32.1 | BF202: 32.61 | BG202: 33.12 | BH202: 33.63 | BI202: 34.14 | BJ202: 34.65 | BK202: 35.16 | BL202: 35.67 | BM202: 36.18 | BN202: 36.69 | BO202: 37.2 | BP202: 37.71 | BQ202: 38.22 | BR202: 38.73 | BS202: 39.24 | BT202: 39.75 | BU202: 40.26 | BV202: 40.77 | BW202: 41.28 | BX202: 41.79 | BY202: 42.3 | BZ202: 42.81 | CA202: 43.32 | CB202: 43.83 | CC202: 44.34 | CD202: 44.85 | CE202: 45.36 | CF202: 45.87 | CG202: 46.38 | CH202: 46.89 | CI202: 47.4 | CJ202: 47.91 | CK202: 48.42 | CL202: 48.93 | CM202: 49.44 | CN202: 49.95 | CO202: 50.46 | CP202: 50.97 | CQ202: 51.48 | CR202: 51.99 | CS202: 52.5 | CT202: 53.01 | CU202: 53.52 | CV202: 54.03 | CW202: 54.54 | CX202: 55.05 | CY202: 55.56 | CZ202: 56.07 | DA202: 56.58 | DB202: 57.09 | DC202: 57.6 | DD202: 58.11 | DE202: 58.62 | DF202: 59.13 | DG202: 59.64 | DH202: 60.15 | DI202: 60.66 | DJ202: 61.17 | DK202: 61.68 | DL202: 62.19 | DM202: 62.7 | DN202: 63.21 | DO202: 63.72 | DP202: 64.23 | DQ202: 64.74 | DR202: 65.25 | DS202: 65.76 | DT202: 66.27 | DU202: 66.78 | DV202: 67.29 | DW202: 67.8 | DX202: 68.31 | DY202: 68.82 | DZ202: 69.33 | EA202: 69.84 | EB202: 70.35 | EC202: 70.86 | ED202: 71.37 | EE202: 71.88 | EF202: 72.39 | EG202: 72.9 | EH202: 73.41 | EI202: 73.92 | EJ202: 74.43 | EK202: 74.94 | EL202: 75.45 | EM202: 75.96 | EN202: 76.47 | EO202: 76.98 | EP202: 77.49 | EQ202: 78 | ER202: 78.51 | ES202: 79.02 | ET202: 79.53 | EU202: 80.04 | EV202: 80.55 | EW202: 81.06 | EX202: 81.57 | EY202: 82.08 | EZ202: 82.59 | FA202: 83.1 | FB202: 83.61 | FC202: 84.12 | FD202: 84.63 | FE202: 85.14 | FF202: 85.65 | FG202: 86.16 | FH202: 86.67 | FI202: 87.18 | FJ202: 87.69 | FK202: 88.2 | FL202: 88.71 | FM202: 89.22 | FN202: 89.73 | FO202: 90.24 | FP202: 90.75 | FQ202: 91.26 | FR202: 91.77 | FS202: 92.28 | FT202: 92.79 | FU202: 93.3 | FV202: 93.81 | FW202: 94.32 | FX202: 94.83 | FY202: 95.34 | FZ202: 95.85 | GA202: 96.36 | GB202: 96.87 | GC202: 97.38 | GD202: 97.89 | GE202: 98.4 | GF202: 98.91 | GG202: 99.42 | GH202: 99.93 | GI202: 100.44 | GJ202: 100.95 | GK202: 101.46 | GL202: 101.97 | GM202: 102.48 | GN202: 102.99 | GO202: 103.5 | GP202: 104.01 | GQ202: 104.52 | GR202: 105.03 | GS202: 105.54 | GT202: 106.05 | GU202: 106.56 | GV202: 107.07 | GW202: 107.58
A203: 83 | B203: Var | D203: Oui | F203: 6.09 | G203: 6.6 | H203: 7.11 | I203: 7.62 | J203: 8.13 | K203: 8.64 | L203: 9.15 | M203: 9.66 | N203: 10.17 | O203: 10.68 | P203: 11.19 | Q203: 11.7 | R203: 12.21 | S203: 12.72 | T203: 13.23 | U203: 13.74 | V203: 14.25 | W203: 14.76 | X203: 15.27 | Y203: 15.78 | Z203: 16.29 | AA203: 16.8 | AB203: 17.31 | AC203: 17.82 | AD203: 18.33 | AE203: 18.84 | AF203: 19.35 | AG203: 19.86 | AH203: 20.37 | AI203: 20.88 | AJ203: 21.39 | AK203: 21.9 | AL203: 22.41 | AM203: 22.92 | AN203: 23.43 | AO203: 23.94 | AP203: 24.45 | AQ203: 24.96 | AR203: 25.47 | AS203: 25.98 | AT203: 26.49 | AU203: 27 | AV203: 27.51 | AW203: 28.02 | AX203: 28.53 | AY203: 29.04 | AZ203: 29.55 | BA203: 30.06 | BB203: 30.57 | BC203: 31.08 | BD203: 31.59 | BE203: 32.1 | BF203: 32.61 | BG203: 33.12 | BH203: 33.63 | BI203: 34.14 | BJ203: 34.65 | BK203: 35.16 | BL203: 35.67 | BM203: 36.18 | BN203: 36.69 | BO203: 37.2 | BP203: 37.71 | BQ203: 38.22 | BR203: 38.73 | BS203: 39.24 | BT203: 39.75 | BU203: 40.26 | BV203: 40.77 | BW203: 41.28 | BX203: 41.79 | BY203: 42.3 | BZ203: 42.81 | CA203: 43.32 | CB203: 43.83 | CC203: 44.34 | CD203: 44.85 | CE203: 45.36 | CF203: 45.87 | CG203: 46.38 | CH203: 46.89 | CI203: 47.4 | CJ203: 47.91 | CK203: 48.42 | CL203: 48.93 | CM203: 49.44 | CN203: 49.95 | CO203: 50.46 | CP203: 50.97 | CQ203: 51.48 | CR203: 51.99 | CS203: 52.5 | CT203: 53.01 | CU203: 53.52 | CV203: 54.03 | CW203: 54.54 | CX203: 55.05 | CY203: 55.56 | CZ203: 56.07 | DA203: 56.58 | DB203: 57.09 | DC203: 57.6 | DD203: 58.11 | DE203: 58.62 | DF203: 59.13 | DG203: 59.64 | DH203: 60.15 | DI203: 60.66 | DJ203: 61.17 | DK203: 61.68 | DL203: 62.19 | DM203: 62.7 | DN203: 63.21 | DO203: 63.72 | DP203: 64.23 | DQ203: 64.74 | DR203: 65.25 | DS203: 65.76 | DT203: 66.27 | DU203: 66.78 | DV203: 67.29 | DW203: 67.8 | DX203: 68.31 | DY203: 68.82 | DZ203: 69.33 | EA203: 69.84 | EB203: 70.35 | EC203: 70.86 | ED203: 71.37 | EE203: 71.88 | EF203: 72.39 | EG203: 72.9 | EH203: 73.41 | EI203: 73.92 | EJ203: 74.43 | EK203: 74.94 | EL203: 75.45 | EM203: 75.96 | EN203: 76.47 | EO203: 76.98 | EP203: 77.49 | EQ203: 78 | ER203: 78.51 | ES203: 79.02 | ET203: 79.53 | EU203: 80.04 | EV203: 80.55 | EW203: 81.06 | EX203: 81.57 | EY203: 82.08 | EZ203: 82.59 | FA203: 83.1 | FB203: 83.61 | FC203: 84.12 | FD203: 84.63 | FE203: 85.14 | FF203: 85.65 | FG203: 86.16 | FH203: 86.67 | FI203: 87.18 | FJ203: 87.69 | FK203: 88.2 | FL203: 88.71 | FM203: 89.22 | FN203: 89.73 | FO203: 90.24 | FP203: 90.75 | FQ203: 91.26 | FR203: 91.77 | FS203: 92.28 | FT203: 92.79 | FU203: 93.3 | FV203: 93.81 | FW203: 94.32 | FX203: 94.83 | FY203: 95.34 | FZ203: 95.85 | GA203: 96.36 | GB203: 96.87 | GC203: 97.38 | GD203: 97.89 | GE203: 98.4 | GF203: 98.91 | GG203: 99.42 | GH203: 99.93 | GI203: 100.44 | GJ203: 100.95 | GK203: 101.46 | GL203: 101.97 | GM203: 102.48 | GN203: 102.99 | GO203: 103.5 | GP203: 104.01 | GQ203: 104.52 | GR203: 105.03 | GS203: 105.54 | GT203: 106.05 | GU203: 106.56 | GV203: 107.07 | GW203: 107.58
A204: 84 | B204: Vaucluse | D204: Oui | F204: 6.09 | G204: 6.6 | H204: 7.11 | I204: 7.62 | J204: 8.13 | K204: 8.64 | L204: 9.15 | M204: 9.66 | N204: 10.17 | O204: 10.68 | P204: 11.19 | Q204: 11.7 | R204: 12.21 | S204: 12.72 | T204: 13.23 | U204: 13.74 | V204: 14.25 | W204: 14.76 | X204: 15.27 | Y204: 15.78 | Z204: 16.29 | AA204: 16.8 | AB204: 17.31 | AC204: 17.82 | AD204: 18.33 | AE204: 18.84 | AF204: 19.35 | AG204: 19.86 | AH204: 20.37 | AI204: 20.88 | AJ204: 21.39 | AK204: 21.9 | AL204: 22.41 | AM204: 22.92 | AN204: 23.43 | AO204: 23.94 | AP204: 24.45 | AQ204: 24.96 | AR204: 25.47 | AS204: 25.98 | AT204: 26.49 | AU204: 27 | AV204: 27.51 | AW204: 28.02 | AX204: 28.53 | AY204: 29.04 | AZ204: 29.55 | BA204: 30.06 | BB204: 30.57 | BC204: 31.08 | BD204: 31.59 | BE204: 32.1 | BF204: 32.61 | BG204: 33.12 | BH204: 33.63 | BI204: 34.14 | BJ204: 34.65 | BK204: 35.16 | BL204: 35.67 | BM204: 36.18 | BN204: 36.69 | BO204: 37.2 | BP204: 37.71 | BQ204: 38.22 | BR204: 38.73 | BS204: 39.24 | BT204: 39.75 | BU204: 40.26 | BV204: 40.77 | BW204: 41.28 | BX204: 41.79 | BY204: 42.3 | BZ204: 42.81 | CA204: 43.32 | CB204: 43.83 | CC204: 44.34 | CD204: 44.85 | CE204: 45.36 | CF204: 45.87 | CG204: 46.38 | CH204: 46.89 | CI204: 47.4 | CJ204: 47.91 | CK204: 48.42 | CL204: 48.93 | CM204: 49.44 | CN204: 49.95 | CO204: 50.46 | CP204: 50.97 | CQ204: 51.48 | CR204: 51.99 | CS204: 52.5 | CT204: 53.01 | CU204: 53.52 | CV204: 54.03 | CW204: 54.54 | CX204: 55.05 | CY204: 55.56 | CZ204: 56.07 | DA204: 56.58 | DB204: 57.09 | DC204: 57.6 | DD204: 58.11 | DE204: 58.62 | DF204: 59.13 | DG204: 59.64 | DH204: 60.15 | DI204: 60.66 | DJ204: 61.17 | DK204: 61.68 | DL204: 62.19 | DM204: 62.7 | DN204: 63.21 | DO204: 63.72 | DP204: 64.23 | DQ204: 64.74 | DR204: 65.25 | DS204: 65.76 | DT204: 66.27 | DU204: 66.78 | DV204: 67.29 | DW204: 67.8 | DX204: 68.31 | DY204: 68.82 | DZ204: 69.33 | EA204: 69.84 | EB204: 70.35 | EC204: 70.86 | ED204: 71.37 | EE204: 71.88 | EF204: 72.39 | EG204: 72.9 | EH204: 73.41 | EI204: 73.92 | EJ204: 74.43 | EK204: 74.94 | EL204: 75.45 | EM204: 75.96 | EN204: 76.47 | EO204: 76.98 | EP204: 77.49 | EQ204: 78 | ER204: 78.51 | ES204: 79.02 | ET204: 79.53 | EU204: 80.04 | EV204: 80.55 | EW204: 81.06 | EX204: 81.57 | EY204: 82.08 | EZ204: 82.59 | FA204: 83.1 | FB204: 83.61 | FC204: 84.12 | FD204: 84.63 | FE204: 85.14 | FF204: 85.65 | FG204: 86.16 | FH204: 86.67 | FI204: 87.18 | FJ204: 87.69 | FK204: 88.2 | FL204: 88.71 | FM204: 89.22 | FN204: 89.73 | FO204: 90.24 | FP204: 90.75 | FQ204: 91.26 | FR204: 91.77 | FS204: 92.28 | FT204: 92.79 | FU204: 93.3 | FV204: 93.81 | FW204: 94.32 | FX204: 94.83 | FY204: 95.34 | FZ204: 95.85 | GA204: 96.36 | GB204: 96.87 | GC204: 97.38 | GD204: 97.89 | GE204: 98.4 | GF204: 98.91 | GG204: 99.42 | GH204: 99.93 | GI204: 100.44 | GJ204: 100.95 | GK204: 101.46 | GL204: 101.97 | GM204: 102.48 | GN204: 102.99 | GO204: 103.5 | GP204: 104.01 | GQ204: 104.52 | GR204: 105.03 | GS204: 105.54 | GT204: 106.05 | GU204: 106.56 | GV204: 107.07 | GW204: 107.58
A205: 85 | B205: Vendée | D205: Oui | F205: 6.09 | G205: 6.6 | H205: 7.11 | I205: 7.62 | J205: 8.13 | K205: 8.64 | L205: 9.15 | M205: 9.66 | N205: 10.17 | O205: 10.68 | P205: 11.19 | Q205: 11.7 | R205: 12.21 | S205: 12.72 | T205: 13.23 | U205: 13.74 | V205: 14.25 | W205: 14.76 | X205: 15.27 | Y205: 15.78 | Z205: 16.29 | AA205: 16.8 | AB205: 17.31 | AC205: 17.82 | AD205: 18.33 | AE205: 18.84 | AF205: 19.35 | AG205: 19.86 | AH205: 20.37 | AI205: 20.88 | AJ205: 21.39 | AK205: 21.9 | AL205: 22.41 | AM205: 22.92 | AN205: 23.43 | AO205: 23.94 | AP205: 24.45 | AQ205: 24.96 | AR205: 25.47 | AS205: 25.98 | AT205: 26.49 | AU205: 27 | AV205: 27.51 | AW205: 28.02 | AX205: 28.53 | AY205: 29.04 | AZ205: 29.55 | BA205: 30.06 | BB205: 30.57 | BC205: 31.08 | BD205: 31.59 | BE205: 32.1 | BF205: 32.61 | BG205: 33.12 | BH205: 33.63 | BI205: 34.14 | BJ205: 34.65 | BK205: 35.16 | BL205: 35.67 | BM205: 36.18 | BN205: 36.69 | BO205: 37.2 | BP205: 37.71 | BQ205: 38.22 | BR205: 38.73 | BS205: 39.24 | BT205: 39.75 | BU205: 40.26 | BV205: 40.77 | BW205: 41.28 | BX205: 41.79 | BY205: 42.3 | BZ205: 42.81 | CA205: 43.32 | CB205: 43.83 | CC205: 44.34 | CD205: 44.85 | CE205: 45.36 | CF205: 45.87 | CG205: 46.38 | CH205: 46.89 | CI205: 47.4 | CJ205: 47.91 | CK205: 48.42 | CL205: 48.93 | CM205: 49.44 | CN205: 49.95 | CO205: 50.46 | CP205: 50.97 | CQ205: 51.48 | CR205: 51.99 | CS205: 52.5 | CT205: 53.01 | CU205: 53.52 | CV205: 54.03 | CW205: 54.54 | CX205: 55.05 | CY205: 55.56 | CZ205: 56.07 | DA205: 56.58 | DB205: 57.09 | DC205: 57.6 | DD205: 58.11 | DE205: 58.62 | DF205: 59.13 | DG205: 59.64 | DH205: 60.15 | DI205: 60.66 | DJ205: 61.17 | DK205: 61.68 | DL205: 62.19 | DM205: 62.7 | DN205: 63.21 | DO205: 63.72 | DP205: 64.23 | DQ205: 64.74 | DR205: 65.25 | DS205: 65.76 | DT205: 66.27 | DU205: 66.78 | DV205: 67.29 | DW205: 67.8 | DX205: 68.31 | DY205: 68.82 | DZ205: 69.33 | EA205: 69.84 | EB205: 70.35 | EC205: 70.86 | ED205: 71.37 | EE205: 71.88 | EF205: 72.39 | EG205: 72.9 | EH205: 73.41 | EI205: 73.92 | EJ205: 74.43 | EK205: 74.94 | EL205: 75.45 | EM205: 75.96 | EN205: 76.47 | EO205: 76.98 | EP205: 77.49 | EQ205: 78 | ER205: 78.51 | ES205: 79.02 | ET205: 79.53 | EU205: 80.04 | EV205: 80.55 | EW205: 81.06 | EX205: 81.57 | EY205: 82.08 | EZ205: 82.59 | FA205: 83.1 | FB205: 83.61 | FC205: 84.12 | FD205: 84.63 | FE205: 85.14 | FF205: 85.65 | FG205: 86.16 | FH205: 86.67 | FI205: 87.18 | FJ205: 87.69 | FK205: 88.2 | FL205: 88.71 | FM205: 89.22 | FN205: 89.73 | FO205: 90.24 | FP205: 90.75 | FQ205: 91.26 | FR205: 91.77 | FS205: 92.28 | FT205: 92.79 | FU205: 93.3 | FV205: 93.81 | FW205: 94.32 | FX205: 94.83 | FY205: 95.34 | FZ205: 95.85 | GA205: 96.36 | GB205: 96.87 | GC205: 97.38 | GD205: 97.89 | GE205: 98.4 | GF205: 98.91 | GG205: 99.42 | GH205: 99.93 | GI205: 100.44 | GJ205: 100.95 | GK205: 101.46 | GL205: 101.97 | GM205: 102.48 | GN205: 102.99 | GO205: 103.5 | GP205: 104.01 | GQ205: 104.52 | GR205: 105.03 | GS205: 105.54 | GT205: 106.05 | GU205: 106.56 | GV205: 107.07 | GW205: 107.58
A206: 86 | B206: Vienne | D206: Oui | F206: 6.09 | G206: 6.6 | H206: 7.11 | I206: 7.62 | J206: 8.13 | K206: 8.64 | L206: 9.15 | M206: 9.66 | N206: 10.17 | O206: 10.68 | P206: 11.19 | Q206: 11.7 | R206: 12.21 | S206: 12.72 | T206: 13.23 | U206: 13.74 | V206: 14.25 | W206: 14.76 | X206: 15.27 | Y206: 15.78 | Z206: 16.29 | AA206: 16.8 | AB206: 17.31 | AC206: 17.82 | AD206: 18.33 | AE206: 18.84 | AF206: 19.35 | AG206: 19.86 | AH206: 20.37 | AI206: 20.88 | AJ206: 21.39 | AK206: 21.9 | AL206: 22.41 | AM206: 22.92 | AN206: 23.43 | AO206: 23.94 | AP206: 24.45 | AQ206: 24.96 | AR206: 25.47 | AS206: 25.98 | AT206: 26.49 | AU206: 27 | AV206: 27.51 | AW206: 28.02 | AX206: 28.53 | AY206: 29.04 | AZ206: 29.55 | BA206: 30.06 | BB206: 30.57 | BC206: 31.08 | BD206: 31.59 | BE206: 32.1 | BF206: 32.61 | BG206: 33.12 | BH206: 33.63 | BI206: 34.14 | BJ206: 34.65 | BK206: 35.16 | BL206: 35.67 | BM206: 36.18 | BN206: 36.69 | BO206: 37.2 | BP206: 37.71 | BQ206: 38.22 | BR206: 38.73 | BS206: 39.24 | BT206: 39.75 | BU206: 40.26 | BV206: 40.77 | BW206: 41.28 | BX206: 41.79 | BY206: 42.3 | BZ206: 42.81 | CA206: 43.32 | CB206: 43.83 | CC206: 44.34 | CD206: 44.85 | CE206: 45.36 | CF206: 45.87 | CG206: 46.38 | CH206: 46.89 | CI206: 47.4 | CJ206: 47.91 | CK206: 48.42 | CL206: 48.93 | CM206: 49.44 | CN206: 49.95 | CO206: 50.46 | CP206: 50.97 | CQ206: 51.48 | CR206: 51.99 | CS206: 52.5 | CT206: 53.01 | CU206: 53.52 | CV206: 54.03 | CW206: 54.54 | CX206: 55.05 | CY206: 55.56 | CZ206: 56.07 | DA206: 56.58 | DB206: 57.09 | DC206: 57.6 | DD206: 58.11 | DE206: 58.62 | DF206: 59.13 | DG206: 59.64 | DH206: 60.15 | DI206: 60.66 | DJ206: 61.17 | DK206: 61.68 | DL206: 62.19 | DM206: 62.7 | DN206: 63.21 | DO206: 63.72 | DP206: 64.23 | DQ206: 64.74 | DR206: 65.25 | DS206: 65.76 | DT206: 66.27 | DU206: 66.78 | DV206: 67.29 | DW206: 67.8 | DX206: 68.31 | DY206: 68.82 | DZ206: 69.33 | EA206: 69.84 | EB206: 70.35 | EC206: 70.86 | ED206: 71.37 | EE206: 71.88 | EF206: 72.39 | EG206: 72.9 | EH206: 73.41 | EI206: 73.92 | EJ206: 74.43 | EK206: 74.94 | EL206: 75.45 | EM206: 75.96 | EN206: 76.47 | EO206: 76.98 | EP206: 77.49 | EQ206: 78 | ER206: 78.51 | ES206: 79.02 | ET206: 79.53 | EU206: 80.04 | EV206: 80.55 | EW206: 81.06 | EX206: 81.57 | EY206: 82.08 | EZ206: 82.59 | FA206: 83.1 | FB206: 83.61 | FC206: 84.12 | FD206: 84.63 | FE206: 85.14 | FF206: 85.65 | FG206: 86.16 | FH206: 86.67 | FI206: 87.18 | FJ206: 87.69 | FK206: 88.2 | FL206: 88.71 | FM206: 89.22 | FN206: 89.73 | FO206: 90.24 | FP206: 90.75 | FQ206: 91.26 | FR206: 91.77 | FS206: 92.28 | FT206: 92.79 | FU206: 93.3 | FV206: 93.81 | FW206: 94.32 | FX206: 94.83 | FY206: 95.34 | FZ206: 95.85 | GA206: 96.36 | GB206: 96.87 | GC206: 97.38 | GD206: 97.89 | GE206: 98.4 | GF206: 98.91 | GG206: 99.42 | GH206: 99.93 | GI206: 100.44 | GJ206: 100.95 | GK206: 101.46 | GL206: 101.97 | GM206: 102.48 | GN206: 102.99 | GO206: 103.5 | GP206: 104.01 | GQ206: 104.52 | GR206: 105.03 | GS206: 105.54 | GT206: 106.05 | GU206: 106.56 | GV206: 107.07 | GW206: 107.58
A207: 87 | B207: Haute-Vienne | D207: Oui | F207: 6.09 | G207: 6.6 | H207: 7.11 | I207: 7.62 | J207: 8.13 | K207: 8.64 | L207: 9.15 | M207: 9.66 | N207: 10.17 | O207: 10.68 | P207: 11.19 | Q207: 11.7 | R207: 12.21 | S207: 12.72 | T207: 13.23 | U207: 13.74 | V207: 14.25 | W207: 14.76 | X207: 15.27 | Y207: 15.78 | Z207: 16.29 | AA207: 16.8 | AB207: 17.31 | AC207: 17.82 | AD207: 18.33 | AE207: 18.84 | AF207: 19.35 | AG207: 19.86 | AH207: 20.37 | AI207: 20.88 | AJ207: 21.39 | AK207: 21.9 | AL207: 22.41 | AM207: 22.92 | AN207: 23.43 | AO207: 23.94 | AP207: 24.45 | AQ207: 24.96 | AR207: 25.47 | AS207: 25.98 | AT207: 26.49 | AU207: 27 | AV207: 27.51 | AW207: 28.02 | AX207: 28.53 | AY207: 29.04 | AZ207: 29.55 | BA207: 30.06 | BB207: 30.57 | BC207: 31.08 | BD207: 31.59 | BE207: 32.1 | BF207: 32.61 | BG207: 33.12 | BH207: 33.63 | BI207: 34.14 | BJ207: 34.65 | BK207: 35.16 | BL207: 35.67 | BM207: 36.18 | BN207: 36.69 | BO207: 37.2 | BP207: 37.71 | BQ207: 38.22 | BR207: 38.73 | BS207: 39.24 | BT207: 39.75 | BU207: 40.26 | BV207: 40.77 | BW207: 41.28 | BX207: 41.79 | BY207: 42.3 | BZ207: 42.81 | CA207: 43.32 | CB207: 43.83 | CC207: 44.34 | CD207: 44.85 | CE207: 45.36 | CF207: 45.87 | CG207: 46.38 | CH207: 46.89 | CI207: 47.4 | CJ207: 47.91 | CK207: 48.42 | CL207: 48.93 | CM207: 49.44 | CN207: 49.95 | CO207: 50.46 | CP207: 50.97 | CQ207: 51.48 | CR207: 51.99 | CS207: 52.5 | CT207: 53.01 | CU207: 53.52 | CV207: 54.03 | CW207: 54.54 | CX207: 55.05 | CY207: 55.56 | CZ207: 56.07 | DA207: 56.58 | DB207: 57.09 | DC207: 57.6 | DD207: 58.11 | DE207: 58.62 | DF207: 59.13 | DG207: 59.64 | DH207: 60.15 | DI207: 60.66 | DJ207: 61.17 | DK207: 61.68 | DL207: 62.19 | DM207: 62.7 | DN207: 63.21 | DO207: 63.72 | DP207: 64.23 | DQ207: 64.74 | DR207: 65.25 | DS207: 65.76 | DT207: 66.27 | DU207: 66.78 | DV207: 67.29 | DW207: 67.8 | DX207: 68.31 | DY207: 68.82 | DZ207: 69.33 | EA207: 69.84 | EB207: 70.35 | EC207: 70.86 | ED207: 71.37 | EE207: 71.88 | EF207: 72.39 | EG207: 72.9 | EH207: 73.41 | EI207: 73.92 | EJ207: 74.43 | EK207: 74.94 | EL207: 75.45 | EM207: 75.96 | EN207: 76.47 | EO207: 76.98 | EP207: 77.49 | EQ207: 78 | ER207: 78.51 | ES207: 79.02 | ET207: 79.53 | EU207: 80.04 | EV207: 80.55 | EW207: 81.06 | EX207: 81.57 | EY207: 82.08 | EZ207: 82.59 | FA207: 83.1 | FB207: 83.61 | FC207: 84.12 | FD207: 84.63 | FE207: 85.14 | FF207: 85.65 | FG207: 86.16 | FH207: 86.67 | FI207: 87.18 | FJ207: 87.69 | FK207: 88.2 | FL207: 88.71 | FM207: 89.22 | FN207: 89.73 | FO207: 90.24 | FP207: 90.75 | FQ207: 91.26 | FR207: 91.77 | FS207: 92.28 | FT207: 92.79 | FU207: 93.3 | FV207: 93.81 | FW207: 94.32 | FX207: 94.83 | FY207: 95.34 | FZ207: 95.85 | GA207: 96.36 | GB207: 96.87 | GC207: 97.38 | GD207: 97.89 | GE207: 98.4 | GF207: 98.91 | GG207: 99.42 | GH207: 99.93 | GI207: 100.44 | GJ207: 100.95 | GK207: 101.46 | GL207: 101.97 | GM207: 102.48 | GN207: 102.99 | GO207: 103.5 | GP207: 104.01 | GQ207: 104.52 | GR207: 105.03 | GS207: 105.54 | GT207: 106.05 | GU207: 106.56 | GV207: 107.07 | GW207: 107.58
A208: 88 | B208: Vosges | D208: Oui | F208: 6.09 | G208: 6.6 | H208: 7.11 | I208: 7.62 | J208: 8.13 | K208: 8.64 | L208: 9.15 | M208: 9.66 | N208: 10.17 | O208: 10.68 | P208: 11.19 | Q208: 11.7 | R208: 12.21 | S208: 12.72 | T208: 13.23 | U208: 13.74 | V208: 14.25 | W208: 14.76 | X208: 15.27 | Y208: 15.78 | Z208: 16.29 | AA208: 16.8 | AB208: 17.31 | AC208: 17.82 | AD208: 18.33 | AE208: 18.84 | AF208: 19.35 | AG208: 19.86 | AH208: 20.37 | AI208: 20.88 | AJ208: 21.39 | AK208: 21.9 | AL208: 22.41 | AM208: 22.92 | AN208: 23.43 | AO208: 23.94 | AP208: 24.45 | AQ208: 24.96 | AR208: 25.47 | AS208: 25.98 | AT208: 26.49 | AU208: 27 | AV208: 27.51 | AW208: 28.02 | AX208: 28.53 | AY208: 29.04 | AZ208: 29.55 | BA208: 30.06 | BB208: 30.57 | BC208: 31.08 | BD208: 31.59 | BE208: 32.1 | BF208: 32.61 | BG208: 33.12 | BH208: 33.63 | BI208: 34.14 | BJ208: 34.65 | BK208: 35.16 | BL208: 35.67 | BM208: 36.18 | BN208: 36.69 | BO208: 37.2 | BP208: 37.71 | BQ208: 38.22 | BR208: 38.73 | BS208: 39.24 | BT208: 39.75 | BU208: 40.26 | BV208: 40.77 | BW208: 41.28 | BX208: 41.79 | BY208: 42.3 | BZ208: 42.81 | CA208: 43.32 | CB208: 43.83 | CC208: 44.34 | CD208: 44.85 | CE208: 45.36 | CF208: 45.87 | CG208: 46.38 | CH208: 46.89 | CI208: 47.4 | CJ208: 47.91 | CK208: 48.42 | CL208: 48.93 | CM208: 49.44 | CN208: 49.95 | CO208: 50.46 | CP208: 50.97 | CQ208: 51.48 | CR208: 51.99 | CS208: 52.5 | CT208: 53.01 | CU208: 53.52 | CV208: 54.03 | CW208: 54.54 | CX208: 55.05 | CY208: 55.56 | CZ208: 56.07 | DA208: 56.58 | DB208: 57.09 | DC208: 57.6 | DD208: 58.11 | DE208: 58.62 | DF208: 59.13 | DG208: 59.64 | DH208: 60.15 | DI208: 60.66 | DJ208: 61.17 | DK208: 61.68 | DL208: 62.19 | DM208: 62.7 | DN208: 63.21 | DO208: 63.72 | DP208: 64.23 | DQ208: 64.74 | DR208: 65.25 | DS208: 65.76 | DT208: 66.27 | DU208: 66.78 | DV208: 67.29 | DW208: 67.8 | DX208: 68.31 | DY208: 68.82 | DZ208: 69.33 | EA208: 69.84 | EB208: 70.35 | EC208: 70.86 | ED208: 71.37 | EE208: 71.88 | EF208: 72.39 | EG208: 72.9 | EH208: 73.41 | EI208: 73.92 | EJ208: 74.43 | EK208: 74.94 | EL208: 75.45 | EM208: 75.96 | EN208: 76.47 | EO208: 76.98 | EP208: 77.49 | EQ208: 78 | ER208: 78.51 | ES208: 79.02 | ET208: 79.53 | EU208: 80.04 | EV208: 80.55 | EW208: 81.06 | EX208: 81.57 | EY208: 82.08 | EZ208: 82.59 | FA208: 83.1 | FB208: 83.61 | FC208: 84.12 | FD208: 84.63 | FE208: 85.14 | FF208: 85.65 | FG208: 86.16 | FH208: 86.67 | FI208: 87.18 | FJ208: 87.69 | FK208: 88.2 | FL208: 88.71 | FM208: 89.22 | FN208: 89.73 | FO208: 90.24 | FP208: 90.75 | FQ208: 91.26 | FR208: 91.77 | FS208: 92.28 | FT208: 92.79 | FU208: 93.3 | FV208: 93.81 | FW208: 94.32 | FX208: 94.83 | FY208: 95.34 | FZ208: 95.85 | GA208: 96.36 | GB208: 96.87 | GC208: 97.38 | GD208: 97.89 | GE208: 98.4 | GF208: 98.91 | GG208: 99.42 | GH208: 99.93 | GI208: 100.44 | GJ208: 100.95 | GK208: 101.46 | GL208: 101.97 | GM208: 102.48 | GN208: 102.99 | GO208: 103.5 | GP208: 104.01 | GQ208: 104.52 | GR208: 105.03 | GS208: 105.54 | GT208: 106.05 | GU208: 106.56 | GV208: 107.07 | GW208: 107.58
